Workbook

Sheet Instructions
A1: ='DNSP Inputs O & M'!$A$3 -> Powercor
A3: Instructions
A5: This model is to be used for the setting of Public Lighting Tariffs for the Regulatory Period 2016 to 2020 based on forecast inflation rates and Real Pre Tax WACC.
A7: Distributor data input fields are shaded | C7: and located in tabs "DNSP Inputs General" , "DNSP Inputs O & M" and "DNSP Inputs Capex"
A8: NOTE : All Distributor data input fields have been populated with test data in this model.
A12: This model will also to be used for the annual Public Lighting Tariff Approvals in the Regulatory Period 2016 to 2020 based on actual inflation rates and Real Pre Tax WACC.

Sheet DNSP Inputs General
A1: ='DNSP Inputs O & M'!$A$3 -> Powercor
D2: 2009 | E2: 2010 | F2: 2011 | G2: 2012 | H2: 2013 | I2: 2014 | J2: 2015 | K2: 2016 | L2: 2017 | M2: 2018 | N2: 2019 | O2: 2020
A3: Capital Expenditue | D3: Nominal $ - Actual | J3: Real 2015 $ - Forecast
A4: (Net of customer contributions)
A6: Poles and Brackets | D6: ='[1]ACS - General'!D$6 -> 12361.67474 | E6: ='[1]ACS - General'!E$6 -> 16376.14373 | F6: ='[1]ACS - General'!F$6 -> 12461.57225 | G6: ='[1]ACS - General'!G$6 -> 22893.43666 | H6: ='[1]ACS - General'!H$6 -> 29116.5754 | I6: ='[1]ACS - General'!I$6 -> 18668.27037 | J6: ='[1]ACS - General'!J$6 -> 30960.80833 | K6: ='Capex 2016-2020'!B22 -> 9298.693427 | L6: ='Capex 2016-2020'!C22 -> 9419.506325 | M6: ='Capex 2016-2020'!D22 -> 9536.439906 | N6: ='Capex 2016-2020'!E22 -> 9655.069125 | O6: ='Capex 2016-2020'!F22 -> 9776.141644
A8: Existing Lights
A9: Luminaires | D9: ='[1]ACS - General'!D9 -> 309497.4671 | E9: ='[1]ACS - General'!E9 -> 268788.4602 | F9: ='[1]ACS - General'!F9 -> 217388.4566 | G9: ='[1]ACS - General'!G9 -> 193438.7851 | H9: ='[1]ACS - General'!H9 -> 242408.8964 | I9: ='[1]ACS - General'!I9 -> 403721.4986 | J9: ='[1]ACS - General'!J9 -> 669560.9014 | K9: ='Capex 2016-2020'!B12-'Capex 2016-2020'!B29 -> -505354.153 | L9: ='Capex 2016-2020'!C12-'Capex 2016-2020'!C29 -> -141043.954 | M9: ='Capex 2016-2020'!D12-'Capex 2016-2020'!D29 -> 138024.2589 | N9: ='Capex 2016-2020'!E12-'Capex 2016-2020'!E29 -> 161301.0659 | O9: ='Capex 2016-2020'!F12-'Capex 2016-2020'!F29 -> 181702.3321
A11: Energy Efficient Lights
A12: Luminaires and Ballasts | D12: ='[1]ACS - General'!D12 -> 118659.1961 | E12: ='[1]ACS - General'!E12 -> 103051.6434 | F12: ='[1]ACS - General'!F12 -> 83345.23619 | G12: ='[1]ACS - General'!G12 -> 74163.09718 | H12: ='[1]ACS - General'!H12 -> 92937.90038 | I12: ='[1]ACS - General'!I12 -> 154784.0404 | J12: ='[1]ACS - General'!J12 -> 256705.0355 | K12: ='Capex 2016-2020'!B17 -> 43509.40907 | L12: ='Capex 2016-2020'!C17 -> 55164.94539 | M12: ='Capex 2016-2020'!D17 -> 58890.05835 | N12: ='Capex 2016-2020'!E17 -> 62526.42034 | O12: ='Capex 2016-2020'!F17 -> 66044.62398
A14: Total Net Capex | D14: =SUM(D6,D9,D12) -> 440518.338 | E14: =SUM(E6,E9,E12) -> 388216.2473 | F14: 313195.265 | G14: 290495.319 | H14: 364463.3722 | I14: 577173.8093 | J14: 957226.7452 | K14: -452546.0505 | L14: -76459.50227 | M14: 206450.7571 | N14: 233482.5554 | O14: 257523.0978
F17: 2011 | G17: 2012 | H17: 2013 | I17: 2014 | J17: 2015 | K17: 2016 | L17: 2017 | M17: 2018 | N17: 2019 | O17: 2020
A18: Operating and Maintenance Expenditure | F18: Nominal $ - Actual | J18: Real 2015 $ - Forecast
A20: Total O & M | F20: ='[1]ACS - General'!F20 -> 3952821.428 | G20: ='[1]ACS - General'!G20 -> 3917368.69 | H20: ='[1]ACS - General'!H20 -> 2896448.499 | I20: ='[1]ACS - General'!I20 -> 3095161.513 | J20: ='[1]ACS - General'!J20 -> 3466465.335 | K20: ='Cashflow Summary'!K83 -> 2832593.48 | L20: ='Cashflow Summary'!L83 -> 2889748.604 | M20: ='Cashflow Summary'!M83 -> 2962594.205 | N20: ='Cashflow Summary'!N83 -> 3047266.1 | O20: ='Cashflow Summary'!O83 -> 3145121.211
A24: WACC
A25: Regulatoy Period | K25: 2016 | L25: 2017 | M25: 2018 | N25: 2019 | O25: 2020
A26: Real Pre Tax WACC | K26: ='[1]ACS - General'!K26 -> 0.05568104031 | L26: ='[1]ACS - General'!L26 -> 0.05568104031 | M26: ='[1]ACS - General'!M26 -> 0.05568104031 | N26: ='[1]ACS - General'!N26 -> 0.05568104031 | O26: ='[1]ACS - General'!O26 -> 0.05568104031
A29: CPI Index | B29: CPI Index | C29: Actual CPI | D29: F'cast CPI
A30: 2014-09-30 | B30: ='[1]ACS - General'!B30 -> 106.4
A31: 2015-09-30 | C31: =IF(B31="","",B31/B30-1) ->  | D31: ='[1]ACS - General'!D31 -> 0.026
A32: 2016-09-30 | D32: ='[1]ACS - General'!D32 -> 0.026
A33: 2017-09-30 | D33: ='[1]ACS - General'!D33 -> 0.026
A34: 2018-09-30 | D34: ='[1]ACS - General'!D34 -> 0.026
A35: 2019-09-30 | D35: ='[1]ACS - General'!D35 -> 0.026
A38: Number Of Lights | E38: =J$2 -> 2015 | F38: =F$2 -> 2011 | G38: 2012 | H38: 2013 | I38: 2014 | J38: 2015 | K38: 2016 | L38: 2017 | M38: 2018 | N38: 2019 | O38: 2020 | Q38: ='[1]ACS - General'!Q38 -> 2004
E39: Actual Prices | F39: Actual Volumes | J39: Forecast Volumes | Q39: ='[1]ACS - General'!Q39 -> Assumed
A40: Existing Lights | B40: Reference Light | D40: Price Factor
A41: ='[1]ACS - General'!A41 -> Mercury vapour 80 watt | B41: ='[1]ACS - General'!B41 -> Mercury vapour 80 watt | D41: ='[1]ACS - General'!D41 -> 1 | E41: ='[1]ACS - General'!E41 -> 53.01279618 | I41: ='[1]ACS - General'!I41 -> 48510.45478 | J41: ='[1]ACS - General'!J41 -> 34983.03089 | K41: ='[1]ACS - General'!K41 -> 24802.82894 | L41: ='[1]ACS - General'!L41 -> 19080.89598 | M41: ='[1]ACS - General'!M41 -> 17172.80638 | N41: ='[1]ACS - General'!N41 -> 15455.52574 | O41: ='[1]ACS - General'!O41 -> 13909.97317 | Q41: ='[1]ACS - General'!Q41 -> 56915.96619
A42: ='[1]ACS - General'!A42 -> Sodium high pressure 150 watt | B42: ='[1]ACS - General'!B42 -> Sodium high pressure 150 watt | D42: ='[1]ACS - General'!D42 -> 1 | E42: ='[1]ACS - General'!E42 -> 87.39393168 | I42: ='[1]ACS - General'!I42 -> 12185.25031 | J42: ='[1]ACS - General'!J42 -> 12729.38473 | K42: ='[1]ACS - General'!K42 -> 13297.81756 | L42: ='[1]ACS - General'!L42 -> 13891.63385 | M42: ='[1]ACS - General'!M42 -> 14511.96711 | N42: ='[1]ACS - General'!N42 -> 15160.00146 | O42: ='[1]ACS - General'!O42 -> 15836.97389 | Q42: ='[1]ACS - General'!Q42 -> 10546.84438
A43: ='[1]ACS - General'!A43 -> Sodium high pressure 250 watt | B43: ='[1]ACS - General'!B43 -> Sodium high pressure 250 watt | D43: ='[1]ACS - General'!D43 -> 1 | E43: ='[1]ACS - General'!E43 -> 90.26732099 | I43: ='[1]ACS - General'!I43 -> 3821.818877 | J43: ='[1]ACS - General'!J43 -> 3951.398993 | K43: ='[1]ACS - General'!K43 -> 4085.372568 | L43: ='[1]ACS - General'!L43 -> 4223.888564 | M43: ='[1]ACS - General'!M43 -> 4367.100994 | N43: ='[1]ACS - General'!N43 -> 4515.169092 | O43: ='[1]ACS - General'!O43 -> 4668.257491 | Q43: ='[1]ACS - General'!Q43 -> 3321.114975
A44: ='[1]ACS - General'!A44 -> Flourescent 20 watt | B44: ='[1]ACS - General'!B44 -> Mercury vapour 80 watt | D44: ='[1]ACS - General'!D44 -> 2.12 | E44: ='[1]ACS - General'!E44 -> 147.3755734 | I44: ='[1]ACS - General'!I44 -> 0 | J44: ='[1]ACS - General'!J44 -> 0 | K44: ='[1]ACS - General'!K44 -> 0 | L44: ='[1]ACS - General'!L44 -> 0 | M44: ='[1]ACS - General'!M44 -> 0 | N44: ='[1]ACS - General'!N44 -> 0 | O44: ='[1]ACS - General'!O44 -> 0 | Q44: ='[1]ACS - General'!Q44 -> 0
A45: ='[1]ACS - General'!A45 -> Flourescent 40 watt | B45: ='[1]ACS - General'!B45 -> Mercury vapour 80 watt | D45: ='[1]ACS - General'!D45 -> 2.12 | E45: ='[1]ACS - General'!E45 -> 147.3755734 | I45: ='[1]ACS - General'!I45 -> 0 | J45: ='[1]ACS - General'!J45 -> 0 | K45: ='[1]ACS - General'!K45 -> 0 | L45: ='[1]ACS - General'!L45 -> 0 | M45: ='[1]ACS - General'!M45 -> 0 | N45: ='[1]ACS - General'!N45 -> 0 | O45: ='[1]ACS - General'!O45 -> 0 | Q45: ='[1]ACS - General'!Q45 -> 0
A46: ='[1]ACS - General'!A46 -> Mercury vapour 50 watt | B46: ='[1]ACS - General'!B46 -> Mercury vapour 80 watt | D46: ='[1]ACS - General'!D46 -> 1.39 | E46: ='[1]ACS - General'!E46 -> 73.68778669 | I46: ='[1]ACS - General'!I46 -> 277 | J46: ='[1]ACS - General'!J46 -> 259.7568048 | K46: ='[1]ACS - General'!K46 -> 243.5869951 | L46: ='[1]ACS - General'!L46 -> 228.4237529 | M46: ='[1]ACS - General'!M46 -> 214.2044195 | N46: ='[1]ACS - General'!N46 -> 200.8702368 | O46: ='[1]ACS - General'!O46 -> 188.3661043 | Q46: ='[1]ACS - General'!Q46 -> 406.7047812
A47: ='[1]ACS - General'!A47 -> Mercury vapour 125 watt | B47: ='[1]ACS - General'!B47 -> Mercury vapour 80 watt | D47: ='[1]ACS - General'!D47 -> 1.35 | E47: ='[1]ACS - General'!E47 -> 71.56727484 | I47: ='[1]ACS - General'!I47 -> 785.3287788 | J47: ='[1]ACS - General'!J47 -> 815.3700463 | K47: ='[1]ACS - General'!K47 -> 846.5604857 | L47: ='[1]ACS - General'!L47 -> 878.9440563 | M47: ='[1]ACS - General'!M47 -> 912.5663992 | N47: ='[1]ACS - General'!N47 -> 947.4749013 | O47: ='[1]ACS - General'!O47 -> 983.7187621 | Q47: ='[1]ACS - General'!Q47 -> 929.8835715
A48: ='[1]ACS - General'!A48 -> Mercury vapour 250 watt | B48: ='[1]ACS - General'!B48 -> Sodium high pressure 250 watt | D48: ='[1]ACS - General'!D48 -> 0.76 | E48: ='[1]ACS - General'!E48 -> 68.60316396 | I48: ='[1]ACS - General'!I48 -> 195.2783505 | J48: ='[1]ACS - General'!J48 -> 150.1325179 | K48: ='[1]ACS - General'!K48 -> 115.4238188 | L48: ='[1]ACS - General'!L48 -> 88.73932257 | M48: ='[1]ACS - General'!M48 -> 68.22393727 | N48: ='[1]ACS - General'!N48 -> 52.45144409 | O48: ='[1]ACS - General'!O48 -> 40.32534763 | Q48: ='[1]ACS - General'!Q48 -> 662.56949
A49: ='[1]ACS - General'!A49 -> Mercury vapour 400 watt | B49: ='[1]ACS - General'!B49 -> Sodium high pressure 250 watt | D49: ='[1]ACS - General'!D49 -> 0.88 | E49: ='[1]ACS - General'!E49 -> 79.43524248 | I49: ='[1]ACS - General'!I49 -> 74.27184466 | J49: ='[1]ACS - General'!J49 -> 66.14305461 | K49: ='[1]ACS - General'!K49 -> 58.9039318 | L49: ='[1]ACS - General'!L49 -> 52.45710532 | M49: ='[1]ACS - General'!M49 -> 46.71586114 | N49: ='[1]ACS - General'!N49 -> 41.60297578 | O49: ='[1]ACS - General'!O49 -> 37.04967759 | Q49: ='[1]ACS - General'!Q49 -> 130.5412694
A50: ='[1]ACS - General'!A50 -> Mercury vapour 700 watt | B50: ='[1]ACS - General'!B50 -> Sodium high pressure 250 watt | D50: ='[1]ACS - General'!D50 -> 1.33 | E50: ='[1]ACS - General'!E50 -> 120.0555369 | I50: ='[1]ACS - General'!I50 -> 0 | J50: ='[1]ACS - General'!J50 -> 0 | K50: ='[1]ACS - General'!K50 -> 0 | L50: ='[1]ACS - General'!L50 -> 0 | M50: ='[1]ACS - General'!M50 -> 0 | N50: ='[1]ACS - General'!N50 -> 0 | O50: ='[1]ACS - General'!O50 -> 0 | Q50: ='[1]ACS - General'!Q50 -> 0
A51: ='[1]ACS - General'!A51 -> Sodium low pressure 90 watt | B51: ='[1]ACS - General'!B51 -> Sodium high pressure 150 watt | D51: ='[1]ACS - General'!D51 -> 1.35 | E51: ='[1]ACS - General'!E51 -> 117.9818078 | I51: ='[1]ACS - General'!I51 -> 0 | J51: ='[1]ACS - General'!J51 -> 0 | K51: ='[1]ACS - General'!K51 -> 0 | L51: ='[1]ACS - General'!L51 -> 0 | M51: ='[1]ACS - General'!M51 -> 0 | N51: ='[1]ACS - General'!N51 -> 0 | O51: ='[1]ACS - General'!O51 -> 0 | Q51: ='[1]ACS - General'!Q51 -> 0
A52: ='[1]ACS - General'!A52 -> Sodium low pressure 180 watt | B52: ='[1]ACS - General'!B52 -> Sodium high pressure 150 watt | D52: ='[1]ACS - General'!D52 -> 1.35 | E52: ='[1]ACS - General'!E52 -> 117.2832143 | I52: ='[1]ACS - General'!I52 -> 0 | J52: ='[1]ACS - General'!J52 -> 0 | K52: ='[1]ACS - General'!K52 -> 0 | L52: ='[1]ACS - General'!L52 -> 0 | M52: ='[1]ACS - General'!M52 -> 0 | N52: ='[1]ACS - General'!N52 -> 0 | O52: ='[1]ACS - General'!O52 -> 0 | Q52: ='[1]ACS - General'!Q52 -> 0
A53: ='[1]ACS - General'!A53 -> Sodium high pressure 400 watt | B53: ='[1]ACS - General'!B53 -> Sodium high pressure 250 watt | D53: ='[1]ACS - General'!D53 -> 1.33 | E53: ='[1]ACS - General'!E53 -> 120.0555369 | I53: ='[1]ACS - General'!I53 -> 154 | J53: ='[1]ACS - General'!J53 -> 154.5296136 | K53: ='[1]ACS - General'!K53 -> 155.0610486 | L53: ='[1]ACS - General'!L53 -> 155.5943113 | M53: ='[1]ACS - General'!M53 -> 156.1294078 | N53: ='[1]ACS - General'!N53 -> 156.6663446 | O53: ='[1]ACS - General'!O53 -> 157.2051279 | Q53: ='[1]ACS - General'!Q53 -> 155.0088682
A54: ='[1]ACS - General'!A54 -> Incandescent 100 watt | B54: ='[1]ACS - General'!B54 -> Mercury vapour 80 watt | D54: ='[1]ACS - General'!D54 -> 2.78 | E54: ='[1]ACS - General'!E54 -> 147.3755734 | I54: ='[1]ACS - General'!I54 -> 0 | J54: ='[1]ACS - General'!J54 -> 0 | K54: ='[1]ACS - General'!K54 -> 0 | L54: ='[1]ACS - General'!L54 -> 0 | M54: ='[1]ACS - General'!M54 -> 0 | N54: ='[1]ACS - General'!N54 -> 0 | O54: ='[1]ACS - General'!O54 -> 0 | Q54: ='[1]ACS - General'!Q54 -> 0
A55: ='[1]ACS - General'!A55 -> Incandescent 150 watt | B55: ='[1]ACS - General'!B55 -> Mercury vapour 80 watt | D55: ='[1]ACS - General'!D55 -> 2.78 | E55: ='[1]ACS - General'!E55 -> 147.3755734 | I55: ='[1]ACS - General'!I55 -> 0 | J55: ='[1]ACS - General'!J55 -> 0 | K55: ='[1]ACS - General'!K55 -> 0 | L55: ='[1]ACS - General'!L55 -> 0 | M55: ='[1]ACS - General'!M55 -> 0 | N55: ='[1]ACS - General'!N55 -> 0 | O55: ='[1]ACS - General'!O55 -> 0 | Q55: ='[1]ACS - General'!Q55 -> 0
A56: ='[1]ACS - General'!A56 -> Metal halide 250 watt | B56: ='[1]ACS - General'!B56 -> Sodium high pressure 250 watt | D56: ='[1]ACS - General'!D56 -> 1.33 | E56: ='[1]ACS - General'!E56 -> 120.0555369 | I56: ='[1]ACS - General'!I56 -> 49 | J56: ='[1]ACS - General'!J56 -> 51.47901375 | K56: ='[1]ACS - General'!K56 -> 54.08344606 | L56: ='[1]ACS - General'!L56 -> 56.81964211 | M56: ='[1]ACS - General'!M56 -> 59.69426811 | N56: ='[1]ACS - General'!N56 -> 62.71432753 | O56: ='[1]ACS - General'!O56 -> 65.88717815 | Q56: ='[1]ACS - General'!Q56 -> 44.50292066
A57: ='[1]ACS - General'!A57 -> Metal halide 400 watt | B57: ='[1]ACS - General'!B57 -> Sodium high pressure 250 watt | D57: ='[1]ACS - General'!D57 -> 1.33 | E57: ='[1]ACS - General'!E57 -> 120.0555369 | I57: ='[1]ACS - General'!I57 -> 0 | J57: ='[1]ACS - General'!J57 -> 0 | K57: ='[1]ACS - General'!K57 -> 0 | L57: ='[1]ACS - General'!L57 -> 0 | M57: ='[1]ACS - General'!M57 -> 0 | N57: ='[1]ACS - General'!N57 -> 0 | O57: ='[1]ACS - General'!O57 -> 0 | Q57: ='[1]ACS - General'!Q57 -> 0
A58: ='[1]ACS - General'!A58 -> Metal halide 70 watt | B58: ='[1]ACS - General'!B58 -> Mercury vapour 80 watt | D58: ='[1]ACS - General'!D58 -> 2.12 | E58: ='[1]ACS - General'!E58 -> 191.9219234 | I58: ='[1]ACS - General'!I58 -> 0 | J58: ='[1]ACS - General'!J58 -> 0 | K58: ='[1]ACS - General'!K58 -> 0 | L58: ='[1]ACS - General'!L58 -> 0 | M58: ='[1]ACS - General'!M58 -> 0 | N58: ='[1]ACS - General'!N58 -> 0 | O58: ='[1]ACS - General'!O58 -> 0 | Q58: ='[1]ACS - General'!Q58 -> 0
A59: ='[1]ACS - General'!A59 -> Metal halide 150 watt | B59: ='[1]ACS - General'!B59 -> Sodium high pressure 150 watt | D59: ='[1]ACS - General'!D59 -> 1.33 | E59: ='[1]ACS - General'!E59 -> 152.9761672 | I59: ='[1]ACS - General'!I59 -> 0 | J59: ='[1]ACS - General'!J59 -> 0 | K59: ='[1]ACS - General'!K59 -> 0 | L59: ='[1]ACS - General'!L59 -> 0 | M59: ='[1]ACS - General'!M59 -> 0 | N59: ='[1]ACS - General'!N59 -> 0 | O59: ='[1]ACS - General'!O59 -> 0 | Q59: ='[1]ACS - General'!Q59 -> 0
A60: ='[1]ACS - General'!A60 -> Total Existing Lights | I60: =SUM(I41:I59) -> 66052.40294 | J60: 53161.22567 | K60: 43659.63879 | L60: 38657.39659 | M60: 37509.40878 | N60: 36592.47653 | O60: 35887.75675
A62: Energy Efficient Lights | B62: Reference Light | D62: Price Factor
A63: T5 2X14W | B63: T5 2X14W | D63: ='[1]ACS - General'!D63 -> 1 | E63: ='[1]ACS - General'!E63 -> 33.60818013 | I63: ='[1]ACS - General'!I63 -> 3872 | J63: ='[1]ACS - General'!J63 -> 6872.355697 | K63: ='[1]ACS - General'!K63 -> 6734.908583 | L63: ='[1]ACS - General'!L63 -> 6600.210411 | M63: ='[1]ACS - General'!M63 -> 6468.206203 | N63: ='[1]ACS - General'!N63 -> 6338.842079 | O63: ='[1]ACS - General'!O63 -> 6212.065237
A64: T5 2X24W | B64: T5 2X14W | D64: ='[1]ACS - General'!D64 -> 0.9837858113 | E64: ='[1]ACS - General'!E64 -> 33.06325076 | I64: ='[1]ACS - General'!I64 -> 477 | J64: ='[1]ACS - General'!J64 -> 853.2301099 | K64: ='[1]ACS - General'!K64 -> 836.1655077 | L64: ='[1]ACS - General'!L64 -> 819.4421975 | M64: ='[1]ACS - General'!M64 -> 803.0533536 | N64: ='[1]ACS - General'!N64 -> 786.9922865 | O64: ='[1]ACS - General'!O64 -> 771.2524408
A65: CF32 | B65: T5 2X14W | D65: ='[1]ACS - General'!D65 -> 0.9612856452 | E65: ='[1]ACS - General'!E65 -> 32.30706113 | I65: ='[1]ACS - General'!I65 -> 2200 | J65: ='[1]ACS - General'!J65 -> 2872.397413 | K65: ='[1]ACS - General'!K65 -> 2814.949464 | L65: ='[1]ACS - General'!L65 -> 2758.650475 | M65: ='[1]ACS - General'!M65 -> 2703.477466 | N65: ='[1]ACS - General'!N65 -> 2649.407916 | O65: ='[1]ACS - General'!O65 -> 2596.419758
A66: CF42 | B66: T5 2X14W | D66: ='[1]ACS - General'!D66 -> 0.9612856452 | E66: ='[1]ACS - General'!E66 -> 32.30706113 | I66: ='[1]ACS - General'!I66 -> 753.8178744 | J66: ='[1]ACS - General'!J66 -> 796.8461411 | K66: ='[1]ACS - General'!K66 -> 780.9092182 | L66: ='[1]ACS - General'!L66 -> 765.2910339 | M66: ='[1]ACS - General'!M66 -> 749.9852132 | N66: ='[1]ACS - General'!N66 -> 734.9855089 | O66: ='[1]ACS - General'!O66 -> 720.2857988
A67: Category P LED 18 Watt | B67: Category P LED 18 Watt | D67: ='[1]ACS - General'!D67 -> 1 | E67: ='[1]ACS - General'!E67 -> 17.82195409 | I67: ='[1]ACS - General'!I67 -> 5560 | J67: ='[1]ACS - General'!J67 -> 14775.88205 | K67: ='[1]ACS - General'!K67 -> 27725.20527 | L67: ='[1]ACS - General'!L67 -> 38503.92013 | M67: ='[1]ACS - General'!M67 -> 41584.23374 | N67: ='[1]ACS - General'!N67 -> 44910.97244 | O67: ='[1]ACS - General'!O67 -> 48503.85024
A68: Category P LED 47 Watt | B68: Category P LED 18 Watt | D68: ='[1]ACS - General'!D68 -> 1 | E68: ='[1]ACS - General'!E68 -> 17.82195409 | I68: ='[1]ACS - General'!I68 -> 0 | J68: ='[1]ACS - General'!J68 -> 0 | K68: ='[1]ACS - General'!K68 -> 0 | L68: ='[1]ACS - General'!L68 -> 0 | M68: ='[1]ACS - General'!M68 -> 0 | N68: ='[1]ACS - General'!N68 -> 0 | O68: ='[1]ACS - General'!O68 -> 0
A71: Total Energy Efficient Lights | I71: =SUM(I63:I70) -> 12862.81787 | J71: 26170.71141 | K71: 38892.13805 | L71: 49447.51425 | M71: 52308.95598 | N71: 55421.20024 | O71: 58803.87347
A73: Total Number of Lights | I73: =SUM(I60,I71) -> 78915.22082 | J73: 79331.93708 | K73: 82551.77683 | L73: 88104.91084 | M73: 89818.36476 | N73: 92013.67676 | O73: 94691.63022

Sheet DNSP Inputs O & M
A1: Public Lighting Cost Build-up Model
A3: Powercor | C3: O & M Data Inputs
C5: Real 2015 $
A7: Input parameters | C7: 2015 | D7: 2016 | E7: 2017 | F7: 2018 | G7: 2019 | H7: 2020
A9: Inputs - all lamps
A11: Material premium for rural areas | C11: ='[1]ACS - O&M'!C11 -> 0.05 | D11: ='[1]ACS - O&M'!D11 -> 0.05 | E11: ='[1]ACS - O&M'!E11 -> 0.05 | F11: ='[1]ACS - O&M'!F11 -> 0.05 | G11: ='[1]ACS - O&M'!G11 -> 0.05 | H11: ='[1]ACS - O&M'!H11 -> 0.05
A12: Labour rate (per hour) | C12: ='[1]ACS - O&M'!C12 -> 121.4914353 | D12: ='[1]ACS - O&M'!D12 -> 123.7674125 | E12: ='[1]ACS - O&M'!E12 -> 125.8521179 | F12: ='[1]ACS - O&M'!F12 -> 127.9719375 | G12: ='[1]ACS - O&M'!G12 -> 130.1274628 | H12: ='[1]ACS - O&M'!H12 -> 132.3192952
A13: Labour rate for night patrols (per hour) | C13: ='[1]ACS - O&M'!C13 -> 142.6766892 | D13: ='[1]ACS - O&M'!D13 -> 145.3495434 | E13: ='[1]ACS - O&M'!E13 -> 147.7977724 | F13: ='[1]ACS - O&M'!F13 -> 150.2872388 | G13: ='[1]ACS - O&M'!G13 -> 152.8186371 | H13: ='[1]ACS - O&M'!H13 -> 155.3926736
A14: Elevated platform vehicle (per hour) - urban MV,urban T5 | C14: ='[1]ACS - O&M'!C14 -> 76.9531112 | D14: ='[1]ACS - O&M'!D14 -> 77.69564122 | E14: ='[1]ACS - O&M'!E14 -> 79.36920231 | F14: ='[1]ACS - O&M'!F14 -> 80.74617287 | G14: ='[1]ACS - O&M'!G14 -> 82.13129241 | H14: ='[1]ACS - O&M'!H14 -> 83.56418727
A15: Elevated platform vehicle (per hour) - rural MV, rural T5, S-HP | C15: ='[1]ACS - O&M'!C15 -> 57.00342251 | D15: ='[1]ACS - O&M'!D15 -> 57.55345553 | E15: ='[1]ACS - O&M'!E15 -> 58.79315472 | F15: ='[1]ACS - O&M'!F15 -> 59.81315292 | G15: ='[1]ACS - O&M'!G15 -> 60.83918751 | H15: ='[1]ACS - O&M'!H15 -> 61.90061193
A16: Patrol vehicle (per hour) | C16: ='[1]ACS - O&M'!C16 -> 42.50060677 | D16: ='[1]ACS - O&M'!D16 -> 42.91070035 | E16: ='[1]ACS - O&M'!E16 -> 43.83499516 | F16: ='[1]ACS - O&M'!F16 -> 44.59548533 | G16: ='[1]ACS - O&M'!G16 -> 45.36047611 | H16: ='[1]ACS - O&M'!H16 -> 46.15185284
A17: Number of hours in a day | C17: ='[1]ACS - O&M'!C17 -> 8 | D17: ='[1]ACS - O&M'!D17 -> 8 | E17: ='[1]ACS - O&M'!E17 -> 8 | F17: ='[1]ACS - O&M'!F17 -> 8 | G17: ='[1]ACS - O&M'!G17 -> 8 | H17: ='[1]ACS - O&M'!H17 -> 8
A18: Indirect overheads | C18: ='[1]ACS - O&M'!C18 -> 0.24358336 | D18: ='[1]ACS - O&M'!D18 -> 0.24358336 | E18: ='[1]ACS - O&M'!E18 -> 0.24358336 | F18: ='[1]ACS - O&M'!F18 -> 0.24358336 | G18: ='[1]ACS - O&M'!G18 -> 0.24358336 | H18: ='[1]ACS - O&M'!H18 -> 0.24358336
A22: Inputs - MV80
A24: Depreciation period | B24: years | C24: ='[1]ACS - O&M'!C24 -> 20 | D24: ='[1]ACS - O&M'!D24 -> 20 | E24: ='[1]ACS - O&M'!E24 -> 20 | F24: ='[1]ACS - O&M'!F24 -> 20 | G24: ='[1]ACS - O&M'!G24 -> 20 | H24: ='[1]ACS - O&M'!H24 -> 20
A25: Lamps - bulk change | B25: years | C25: ='[1]ACS - O&M'!C25 -> 4 | D25: ='[1]ACS - O&M'!D25 -> 4 | E25: ='[1]ACS - O&M'!E25 -> 4 | F25: ='[1]ACS - O&M'!F25 -> 4 | G25: ='[1]ACS - O&M'!G25 -> 4 | H25: ='[1]ACS - O&M'!H25 -> 4
A26: PE cells - bulk change | B26: years | C26: ='[1]ACS - O&M'!C26 -> 8 | D26: ='[1]ACS - O&M'!D26 -> 8 | E26: ='[1]ACS - O&M'!E26 -> 8 | F26: ='[1]ACS - O&M'!F26 -> 8 | G26: ='[1]ACS - O&M'!G26 -> 8 | H26: ='[1]ACS - O&M'!H26 -> 8
A27: Proportion of lamps that fail between bulk change | C27: ='[1]ACS - O&M'!C27 -> 0.15 | D27: ='[1]ACS - O&M'!D27 -> 0.1554544767 | E27: ='[1]ACS - O&M'!E27 -> 0.1554544767 | F27: ='[1]ACS - O&M'!F27 -> 0.1554544767 | G27: ='[1]ACS - O&M'!G27 -> 0.1554544767 | H27: ='[1]ACS - O&M'!H27 -> 0.1554544767
A28: Unit cost - lamp | C28: ='[1]ACS - O&M'!C28 -> 5.711379906 | D28: ='[1]ACS - O&M'!D28 -> 5.711379906 | E28: ='[1]ACS - O&M'!E28 -> 5.711379906 | F28: ='[1]ACS - O&M'!F28 -> 5.711379906 | G28: ='[1]ACS - O&M'!G28 -> 5.711379906 | H28: ='[1]ACS - O&M'!H28 -> 5.711379906
A29: Unit cost - PE cell | C29: ='[1]ACS - O&M'!C29 -> 23.05797796 | D29: ='[1]ACS - O&M'!D29 -> 23.05797796 | E29: ='[1]ACS - O&M'!E29 -> 23.05797796 | F29: ='[1]ACS - O&M'!F29 -> 23.05797796 | G29: ='[1]ACS - O&M'!G29 -> 23.05797796 | H29: ='[1]ACS - O&M'!H29 -> 23.05797796
A30: Unit cost - luminaire | C30: ='[1]ACS - O&M'!C30 -> 198.1486398 | D30: ='[1]ACS - O&M'!D30 -> 198.1486398 | E30: ='[1]ACS - O&M'!E30 -> 198.1486398 | F30: ='[1]ACS - O&M'!F30 -> 198.1486398 | G30: ='[1]ACS - O&M'!G30 -> 198.1486398 | H30: ='[1]ACS - O&M'!H30 -> 198.1486398
A31: Unit cost - miscellaneous materials (bulk lamp) | C31: ='[1]ACS - O&M'!C31 -> 1.249754903 | D31: ='[1]ACS - O&M'!D31 -> 1.249754903 | E31: ='[1]ACS - O&M'!E31 -> 1.249754903 | F31: ='[1]ACS - O&M'!F31 -> 1.249754903 | G31: ='[1]ACS - O&M'!G31 -> 1.249754903 | H31: ='[1]ACS - O&M'!H31 -> 1.249754903
A32: Unit cost - miscellaneous materials (repair) | C32: ='[1]ACS - O&M'!C32 -> 12.49754903 | D32: ='[1]ACS - O&M'!D32 -> 12.49754903 | E32: ='[1]ACS - O&M'!E32 -> 12.49754903 | F32: ='[1]ACS - O&M'!F32 -> 12.49754903 | G32: ='[1]ACS - O&M'!G32 -> 12.49754903 | H32: ='[1]ACS - O&M'!H32 -> 12.49754903
A33: Number of men in crew | C33: ='[1]ACS - O&M'!C33 -> 2 | D33: ='[1]ACS - O&M'!D33 -> 2 | E33: ='[1]ACS - O&M'!E33 -> 2 | F33: ='[1]ACS - O&M'!F33 -> 2 | G33: ='[1]ACS - O&M'!G33 -> 2 | H33: ='[1]ACS - O&M'!H33 -> 2
A34: Number of bulk lamp changes in 1 day - urban | C34: ='[1]ACS - O&M'!C34 -> 86.4 | D34: ='[1]ACS - O&M'!D34 -> 86.4 | E34: ='[1]ACS - O&M'!E34 -> 86.4 | F34: ='[1]ACS - O&M'!F34 -> 86.4 | G34: ='[1]ACS - O&M'!G34 -> 86.4 | H34: ='[1]ACS - O&M'!H34 -> 86.4
A35: Number of bulk lamp changes in 1 day - rural | C35: ='[1]ACS - O&M'!C35 -> 72 | D35: ='[1]ACS - O&M'!D35 -> 72 | E35: ='[1]ACS - O&M'!E35 -> 72 | F35: ='[1]ACS - O&M'!F35 -> 72 | G35: ='[1]ACS - O&M'!G35 -> 72 | H35: ='[1]ACS - O&M'!H35 -> 72
A36: Number of bulk lamp changes in 1 day - remote | C36: ='[1]ACS - O&M'!C36 -> 60 | D36: ='[1]ACS - O&M'!D36 -> 60 | E36: ='[1]ACS - O&M'!E36 -> 60 | F36: ='[1]ACS - O&M'!F36 -> 60 | G36: ='[1]ACS - O&M'!G36 -> 60 | H36: ='[1]ACS - O&M'!H36 -> 60
A37: Number of repairs in 1 day - urban | C37: ='[1]ACS - O&M'!C37 -> 28.8 | D37: ='[1]ACS - O&M'!D37 -> 28.8 | E37: ='[1]ACS - O&M'!E37 -> 28.8 | F37: ='[1]ACS - O&M'!F37 -> 28.8 | G37: ='[1]ACS - O&M'!G37 -> 28.8 | H37: ='[1]ACS - O&M'!H37 -> 28.8
A38: Number of repairs in 1 day - rural | C38: ='[1]ACS - O&M'!C38 -> 24 | D38: ='[1]ACS - O&M'!D38 -> 24 | E38: ='[1]ACS - O&M'!E38 -> 24 | F38: ='[1]ACS - O&M'!F38 -> 24 | G38: ='[1]ACS - O&M'!G38 -> 24 | H38: ='[1]ACS - O&M'!H38 -> 24
A39: Number of repairs in 1 day - remote | C39: ='[1]ACS - O&M'!C39 -> 19.2 | D39: ='[1]ACS - O&M'!D39 -> 19.2 | E39: ='[1]ACS - O&M'!E39 -> 19.2 | F39: ='[1]ACS - O&M'!F39 -> 19.2 | G39: ='[1]ACS - O&M'!G39 -> 19.2 | H39: ='[1]ACS - O&M'!H39 -> 19.2
A40: % of repairs - lamps | C40: ='[1]ACS - O&M'!C40 -> 0.6 | D40: ='[1]ACS - O&M'!D40 -> 0.6 | E40: ='[1]ACS - O&M'!E40 -> 0.6 | F40: ='[1]ACS - O&M'!F40 -> 0.6 | G40: ='[1]ACS - O&M'!G40 -> 0.6 | H40: ='[1]ACS - O&M'!H40 -> 0.6
A41: % of repairs - PE cells | C41: ='[1]ACS - O&M'!C41 -> 0.5 | D41: ='[1]ACS - O&M'!D41 -> 0.5 | E41: ='[1]ACS - O&M'!E41 -> 0.5 | F41: ='[1]ACS - O&M'!F41 -> 0.5 | G41: ='[1]ACS - O&M'!G41 -> 0.5 | H41: ='[1]ACS - O&M'!H41 -> 0.5
A42: % of repairs - luminaires | C42: ='[1]ACS - O&M'!C42 -> 0.15 | D42: ='[1]ACS - O&M'!D42 -> 0.15 | E42: ='[1]ACS - O&M'!E42 -> 0.15 | F42: ='[1]ACS - O&M'!F42 -> 0.15 | G42: ='[1]ACS - O&M'!G42 -> 0.15 | H42: ='[1]ACS - O&M'!H42 -> 0.15
A43: % of repairs - other | C43: ='[1]ACS - O&M'!C43 -> 0.1 | D43: ='[1]ACS - O&M'!D43 -> 0.1 | E43: ='[1]ACS - O&M'!E43 -> 0.1 | F43: ='[1]ACS - O&M'!F43 -> 0.1 | G43: ='[1]ACS - O&M'!G43 -> 0.1 | H43: ='[1]ACS - O&M'!H43 -> 0.1
A45: Other Maintenance and Repair costs
A46: Traffic control costs | C46: ='[1]ACS - O&M'!C46 -> 29927.68159 | D46: ='[1]ACS - O&M'!D46 -> 21542.30056 | E46: ='[1]ACS - O&M'!E46 -> 16266.84191 | F46: ='[1]ACS - O&M'!F46 -> 14844.18477 | G46: ='[1]ACS - O&M'!G46 -> 13457.95684 | H46: ='[1]ACS - O&M'!H46 -> 12130.41754
A47: Other costs : Describe……………………………………. | C47: ='[1]ACS - O&M'!C47 -> 0 | D47: ='[1]ACS - O&M'!D47 -> 0 | E47: ='[1]ACS - O&M'!E47 -> 0 | F47: ='[1]ACS - O&M'!F47 -> 0 | G47: ='[1]ACS - O&M'!G47 -> 0 | H47: ='[1]ACS - O&M'!H47 -> 0
C48: =SUM(C46:C47) -> 29927.68159 | D48: 21542.30056 | E48: 16266.84191 | F48: 14844.18477 | G48: 13457.95684 | H48: 12130.41754
A49: Number of Lights | C49: ='DNSP Inputs General'!J41 -> 34983.03089 | D49: ='DNSP Inputs General'!K41 -> 24802.82894 | E49: ='DNSP Inputs General'!L41 -> 19080.89598 | F49: ='DNSP Inputs General'!M41 -> 17172.80638 | G49: ='DNSP Inputs General'!N41 -> 15455.52574 | H49: ='DNSP Inputs General'!O41 -> 13909.97317
A50: Unit Cost | C50: =IF(C49=0,0,C48/C49) -> 0.8554913862 | D50: 0.8685420772 | E50: 0.8525198152 | F50: 0.8644006364 | G50: 0.8707537394 | H50: 0.8720662068
A52: Location of selected public lighting assets within distributors' areas (%)
A53: Urban | C53: ='[1]ACS - O&M'!C53 -> 0.6839891983 | D53: ='[1]ACS - O&M'!D53 -> 0.6839891983 | E53: ='[1]ACS - O&M'!E53 -> 0.6839891983 | F53: ='[1]ACS - O&M'!F53 -> 0.6839891983 | G53: ='[1]ACS - O&M'!G53 -> 0.6839891983 | H53: ='[1]ACS - O&M'!H53 -> 0.6839891983
A54: Rural | C54: ='[1]ACS - O&M'!C54 -> 0.2232483354 | D54: ='[1]ACS - O&M'!D54 -> 0.2232483354 | E54: ='[1]ACS - O&M'!E54 -> 0.2232483354 | F54: ='[1]ACS - O&M'!F54 -> 0.2232483354 | G54: ='[1]ACS - O&M'!G54 -> 0.2232483354 | H54: ='[1]ACS - O&M'!H54 -> 0.2232483354
A55: Remote | C55: ='[1]ACS - O&M'!C55 -> 0.09276246624 | D55: ='[1]ACS - O&M'!D55 -> 0.09276246624 | E55: ='[1]ACS - O&M'!E55 -> 0.09276246624 | F55: ='[1]ACS - O&M'!F55 -> 0.09276246624 | G55: ='[1]ACS - O&M'!G55 -> 0.09276246624 | H55: ='[1]ACS - O&M'!H55 -> 0.09276246624
A59: Inputs - S-HP150
A61: Depreciation period | B61: years | C61: ='[1]ACS - O&M'!C61 -> 20 | D61: ='[1]ACS - O&M'!D61 -> 20 | E61: ='[1]ACS - O&M'!E61 -> 20 | F61: ='[1]ACS - O&M'!F61 -> 20 | G61: ='[1]ACS - O&M'!G61 -> 20 | H61: ='[1]ACS - O&M'!H61 -> 20
A62: Number of patrols per year | C62: ='[1]ACS - O&M'!C62 -> 3 | D62: ='[1]ACS - O&M'!D62 -> 3 | E62: ='[1]ACS - O&M'!E62 -> 3 | F62: ='[1]ACS - O&M'!F62 -> 3 | G62: ='[1]ACS - O&M'!G62 -> 3 | H62: ='[1]ACS - O&M'!H62 -> 3
A63: Lamps - frequency of replacement | B63: years | C63: ='[1]ACS - O&M'!C63 -> 5 | D63: ='[1]ACS - O&M'!D63 -> 5 | E63: ='[1]ACS - O&M'!E63 -> 5 | F63: ='[1]ACS - O&M'!F63 -> 5 | G63: ='[1]ACS - O&M'!G63 -> 5 | H63: ='[1]ACS - O&M'!H63 -> 5
A64: PE cells - frequency of replacement | B64: years | C64: ='[1]ACS - O&M'!C64 -> 10 | D64: ='[1]ACS - O&M'!D64 -> 10 | E64: ='[1]ACS - O&M'!E64 -> 10 | F64: ='[1]ACS - O&M'!F64 -> 10 | G64: ='[1]ACS - O&M'!G64 -> 10 | H64: ='[1]ACS - O&M'!H64 -> 10
A65: Unit cost - lamp | C65: ='[1]ACS - O&M'!C65 -> 41.30439954 | D65: ='[1]ACS - O&M'!D65 -> 41.30439954 | E65: ='[1]ACS - O&M'!E65 -> 41.30439954 | F65: ='[1]ACS - O&M'!F65 -> 41.30439954 | G65: ='[1]ACS - O&M'!G65 -> 41.30439954 | H65: ='[1]ACS - O&M'!H65 -> 41.30439954
A66: Unit cost - PE cell | C66: ='[1]ACS - O&M'!C66 -> 22.43310051 | D66: ='[1]ACS - O&M'!D66 -> 22.43310051 | E66: ='[1]ACS - O&M'!E66 -> 22.43310051 | F66: ='[1]ACS - O&M'!F66 -> 22.43310051 | G66: ='[1]ACS - O&M'!G66 -> 22.43310051 | H66: ='[1]ACS - O&M'!H66 -> 22.43310051
A67: Unit cost - miscellaneous materials | C67: ='[1]ACS - O&M'!C67 -> 2.499509806 | D67: ='[1]ACS - O&M'!D67 -> 2.499509806 | E67: ='[1]ACS - O&M'!E67 -> 2.499509806 | F67: ='[1]ACS - O&M'!F67 -> 2.499509806 | G67: ='[1]ACS - O&M'!G67 -> 2.499509806 | H67: ='[1]ACS - O&M'!H67 -> 2.499509806
A68: Number of men in crew - road patrols | C68: ='[1]ACS - O&M'!C68 -> 2 | D68: ='[1]ACS - O&M'!D68 -> 2 | E68: ='[1]ACS - O&M'!E68 -> 2 | F68: ='[1]ACS - O&M'!F68 -> 2 | G68: ='[1]ACS - O&M'!G68 -> 2 | H68: ='[1]ACS - O&M'!H68 -> 2
A69: Number of men in crew - repairs | C69: ='[1]ACS - O&M'!C69 -> 2 | D69: ='[1]ACS - O&M'!D69 -> 2 | E69: ='[1]ACS - O&M'!E69 -> 2 | F69: ='[1]ACS - O&M'!F69 -> 2 | G69: ='[1]ACS - O&M'!G69 -> 2 | H69: ='[1]ACS - O&M'!H69 -> 2
A70: Number of lamps patrolled in 1 day - urban | C70: ='[1]ACS - O&M'!C70 -> 3000 | D70: ='[1]ACS - O&M'!D70 -> 3000 | E70: ='[1]ACS - O&M'!E70 -> 3000 | F70: ='[1]ACS - O&M'!F70 -> 3000 | G70: ='[1]ACS - O&M'!G70 -> 3000 | H70: ='[1]ACS - O&M'!H70 -> 3000
A71: Number of lamps patrolled in 1 day - rural | C71: ='[1]ACS - O&M'!C71 -> 2000 | D71: ='[1]ACS - O&M'!D71 -> 2000 | E71: ='[1]ACS - O&M'!E71 -> 2000 | F71: ='[1]ACS - O&M'!F71 -> 2000 | G71: ='[1]ACS - O&M'!G71 -> 2000 | H71: ='[1]ACS - O&M'!H71 -> 2000
A72: Number of lamps patrolled in 1 day - remote | C72: ='[1]ACS - O&M'!C72 -> 1000 | D72: ='[1]ACS - O&M'!D72 -> 1000 | E72: ='[1]ACS - O&M'!E72 -> 1000 | F72: ='[1]ACS - O&M'!F72 -> 1000 | G72: ='[1]ACS - O&M'!G72 -> 1000 | H72: ='[1]ACS - O&M'!H72 -> 1000
A73: Number of repairs in 1 day - urban | C73: ='[1]ACS - O&M'!C73 -> 19.2 | D73: ='[1]ACS - O&M'!D73 -> 19.2 | E73: ='[1]ACS - O&M'!E73 -> 19.2 | F73: ='[1]ACS - O&M'!F73 -> 19.2 | G73: ='[1]ACS - O&M'!G73 -> 19.2 | H73: ='[1]ACS - O&M'!H73 -> 19.2
A74: Number of repairs in 1 day - rural | C74: ='[1]ACS - O&M'!C74 -> 15.36 | D74: ='[1]ACS - O&M'!D74 -> 15.36 | E74: ='[1]ACS - O&M'!E74 -> 15.36 | F74: ='[1]ACS - O&M'!F74 -> 15.36 | G74: ='[1]ACS - O&M'!G74 -> 15.36 | H74: ='[1]ACS - O&M'!H74 -> 15.36
A75: Number of repairs in 1 day - remote | C75: ='[1]ACS - O&M'!C75 -> 11.52 | D75: ='[1]ACS - O&M'!D75 -> 11.52 | E75: ='[1]ACS - O&M'!E75 -> 11.52 | F75: ='[1]ACS - O&M'!F75 -> 11.52 | G75: ='[1]ACS - O&M'!G75 -> 11.52 | H75: ='[1]ACS - O&M'!H75 -> 11.52
A77: Other Maintenance and Repair costs
A78: Traffic control costs | C78: ='[1]ACS - O&M'!C78 -> 131919.0294 | D78: ='[1]ACS - O&M'!D78 -> 133892.4689 | E78: ='[1]ACS - O&M'!E78 -> 137822.7087 | F78: ='[1]ACS - O&M'!F78 -> 140956.1682 | G78: ='[1]ACS - O&M'!G78 -> 144150.3179 | H78: ='[1]ACS - O&M'!H78 -> 147466.9048
A79: Other costs : Describe……………………………………. | C79: ='[1]ACS - O&M'!C79 -> 0 | D79: ='[1]ACS - O&M'!D79 -> 0 | E79: ='[1]ACS - O&M'!E79 -> 0 | F79: ='[1]ACS - O&M'!F79 -> 0 | G79: ='[1]ACS - O&M'!G79 -> 0 | H79: ='[1]ACS - O&M'!H79 -> 0
C80: =SUM(C78:C79) -> 131919.0294 | D80: 133892.4689 | E80: 137822.7087 | F80: 140956.1682 | G80: 144150.3179 | H80: 147466.9048
A81: Number of Lights | C81: ='DNSP Inputs General'!J42 -> 12729.38473 | D81: ='DNSP Inputs General'!K42 -> 13297.81756 | E81: ='DNSP Inputs General'!L42 -> 13891.63385 | F81: ='DNSP Inputs General'!M42 -> 14511.96711 | G81: ='DNSP Inputs General'!N42 -> 15160.00146 | H81: ='DNSP Inputs General'!O42 -> 15836.97389
A82: Unit Cost | C82: =IF(C81=0,0,C80/C81) -> 10.36334687 | D82: 10.06875514 | E82: 9.921274213 | F82: 9.71309865 | G82: 9.508595251 | H82: 9.311558246
A84: Location of selected public lighting assets within distributors' areas (%)
A85: Urban | C85: ='[1]ACS - O&M'!C85 -> 0.7457946993 | D85: ='[1]ACS - O&M'!D85 -> 0.7457946993 | E85: ='[1]ACS - O&M'!E85 -> 0.7457946993 | F85: ='[1]ACS - O&M'!F85 -> 0.7457946993 | G85: ='[1]ACS - O&M'!G85 -> 0.7457946993 | H85: ='[1]ACS - O&M'!H85 -> 0.7457946993
A86: Rural | C86: ='[1]ACS - O&M'!C86 -> 0.2071879872 | D86: ='[1]ACS - O&M'!D86 -> 0.2071879872 | E86: ='[1]ACS - O&M'!E86 -> 0.2071879872 | F86: ='[1]ACS - O&M'!F86 -> 0.2071879872 | G86: ='[1]ACS - O&M'!G86 -> 0.2071879872 | H86: ='[1]ACS - O&M'!H86 -> 0.2071879872
A87: Remote | C87: ='[1]ACS - O&M'!C87 -> 0.04693525888 | D87: ='[1]ACS - O&M'!D87 -> 0.04693525888 | E87: ='[1]ACS - O&M'!E87 -> 0.04693525888 | F87: ='[1]ACS - O&M'!F87 -> 0.04693525888 | G87: ='[1]ACS - O&M'!G87 -> 0.04693525888 | H87: ='[1]ACS - O&M'!H87 -> 0.04693525888
A91: Inputs - S-HP250
A93: Depreciation period | B93: years | C93: ='[1]ACS - O&M'!C93 -> 20 | D93: ='[1]ACS - O&M'!D93 -> 20 | E93: ='[1]ACS - O&M'!E93 -> 20 | F93: ='[1]ACS - O&M'!F93 -> 20 | G93: ='[1]ACS - O&M'!G93 -> 20 | H93: ='[1]ACS - O&M'!H93 -> 20
A94: Number of patrols per year | C94: ='[1]ACS - O&M'!C94 -> 3 | D94: ='[1]ACS - O&M'!D94 -> 3 | E94: ='[1]ACS - O&M'!E94 -> 3 | F94: ='[1]ACS - O&M'!F94 -> 3 | G94: ='[1]ACS - O&M'!G94 -> 3 | H94: ='[1]ACS - O&M'!H94 -> 3
A95: Lamps - frequency of replacement | B95: years | C95: ='[1]ACS - O&M'!C95 -> 5 | D95: ='[1]ACS - O&M'!D95 -> 5 | E95: ='[1]ACS - O&M'!E95 -> 5 | F95: ='[1]ACS - O&M'!F95 -> 5 | G95: ='[1]ACS - O&M'!G95 -> 5 | H95: ='[1]ACS - O&M'!H95 -> 5
A96: PE cells - frequency of replacement | B96: years | C96: ='[1]ACS - O&M'!C96 -> 10 | D96: ='[1]ACS - O&M'!D96 -> 10 | E96: ='[1]ACS - O&M'!E96 -> 10 | F96: ='[1]ACS - O&M'!F96 -> 10 | G96: ='[1]ACS - O&M'!G96 -> 10 | H96: ='[1]ACS - O&M'!H96 -> 10
A97: Unit cost - lamp | C97: ='[1]ACS - O&M'!C97 -> 41.30439954 | D97: ='[1]ACS - O&M'!D97 -> 41.30439954 | E97: ='[1]ACS - O&M'!E97 -> 41.30439954 | F97: ='[1]ACS - O&M'!F97 -> 41.30439954 | G97: ='[1]ACS - O&M'!G97 -> 41.30439954 | H97: ='[1]ACS - O&M'!H97 -> 41.30439954
A98: Unit cost - PE cell | C98: ='[1]ACS - O&M'!C98 -> 22.43310051 | D98: ='[1]ACS - O&M'!D98 -> 22.43310051 | E98: ='[1]ACS - O&M'!E98 -> 22.43310051 | F98: ='[1]ACS - O&M'!F98 -> 22.43310051 | G98: ='[1]ACS - O&M'!G98 -> 22.43310051 | H98: ='[1]ACS - O&M'!H98 -> 22.43310051
A99: Unit cost - miscellaneous materials | C99: ='[1]ACS - O&M'!C99 -> 2.499509806 | D99: ='[1]ACS - O&M'!D99 -> 2.499509806 | E99: ='[1]ACS - O&M'!E99 -> 2.499509806 | F99: ='[1]ACS - O&M'!F99 -> 2.499509806 | G99: ='[1]ACS - O&M'!G99 -> 2.499509806 | H99: ='[1]ACS - O&M'!H99 -> 2.499509806
A100: Number of men in crew - road patrols | C100: ='[1]ACS - O&M'!C100 -> 2 | D100: ='[1]ACS - O&M'!D100 -> 2 | E100: ='[1]ACS - O&M'!E100 -> 2 | F100: ='[1]ACS - O&M'!F100 -> 2 | G100: ='[1]ACS - O&M'!G100 -> 2 | H100: ='[1]ACS - O&M'!H100 -> 2
A101: Number of men in crew - repairs | C101: ='[1]ACS - O&M'!C101 -> 2 | D101: ='[1]ACS - O&M'!D101 -> 2 | E101: ='[1]ACS - O&M'!E101 -> 2 | F101: ='[1]ACS - O&M'!F101 -> 2 | G101: ='[1]ACS - O&M'!G101 -> 2 | H101: ='[1]ACS - O&M'!H101 -> 2
A102: Number of lamps patrolled in 1 day - urban | C102: ='[1]ACS - O&M'!C102 -> 3000 | D102: ='[1]ACS - O&M'!D102 -> 3000 | E102: ='[1]ACS - O&M'!E102 -> 3000 | F102: ='[1]ACS - O&M'!F102 -> 3000 | G102: ='[1]ACS - O&M'!G102 -> 3000 | H102: ='[1]ACS - O&M'!H102 -> 3000
A103: Number of lamps patrolled in 1 day - rural | C103: ='[1]ACS - O&M'!C103 -> 2000 | D103: ='[1]ACS - O&M'!D103 -> 2000 | E103: ='[1]ACS - O&M'!E103 -> 2000 | F103: ='[1]ACS - O&M'!F103 -> 2000 | G103: ='[1]ACS - O&M'!G103 -> 2000 | H103: ='[1]ACS - O&M'!H103 -> 2000
A104: Number of lamps patrolled in 1 day - remote | C104: ='[1]ACS - O&M'!C104 -> 1000 | D104: ='[1]ACS - O&M'!D104 -> 1000 | E104: ='[1]ACS - O&M'!E104 -> 1000 | F104: ='[1]ACS - O&M'!F104 -> 1000 | G104: ='[1]ACS - O&M'!G104 -> 1000 | H104: ='[1]ACS - O&M'!H104 -> 1000
A105: Number of repairs in 1 day - urban | C105: ='[1]ACS - O&M'!C105 -> 19.2 | D105: ='[1]ACS - O&M'!D105 -> 19.2 | E105: ='[1]ACS - O&M'!E105 -> 19.2 | F105: ='[1]ACS - O&M'!F105 -> 19.2 | G105: ='[1]ACS - O&M'!G105 -> 19.2 | H105: ='[1]ACS - O&M'!H105 -> 19.2
A106: Number of repairs in 1 day - rural | C106: ='[1]ACS - O&M'!C106 -> 15.36 | D106: ='[1]ACS - O&M'!D106 -> 15.36 | E106: ='[1]ACS - O&M'!E106 -> 15.36 | F106: ='[1]ACS - O&M'!F106 -> 15.36 | G106: ='[1]ACS - O&M'!G106 -> 15.36 | H106: ='[1]ACS - O&M'!H106 -> 15.36
A107: Number of repairs in 1 day - remote | C107: ='[1]ACS - O&M'!C107 -> 11.52 | D107: ='[1]ACS - O&M'!D107 -> 11.52 | E107: ='[1]ACS - O&M'!E107 -> 11.52 | F107: ='[1]ACS - O&M'!F107 -> 11.52 | G107: ='[1]ACS - O&M'!G107 -> 11.52 | H107: ='[1]ACS - O&M'!H107 -> 11.52
A109: Other Maintenance and Repair costs
A110: Traffic control costs | C110: ='[1]ACS - O&M'!C110 -> 27467.3117 | D110: ='[1]ACS - O&M'!D110 -> 27591.3331 | E110: ='[1]ACS - O&M'!E110 -> 28108.98358 | F110: ='[1]ACS - O&M'!F110 -> 28452.22744 | G110: ='[1]ACS - O&M'!G110 -> 28797.55504 | H110: ='[1]ACS - O&M'!H110 -> 29156.97091
A111: Other costs : Describe……………………………………. | C111: ='[1]ACS - O&M'!C111 -> 0 | D111: ='[1]ACS - O&M'!D111 -> 0 | E111: ='[1]ACS - O&M'!E111 -> 0 | F111: ='[1]ACS - O&M'!F111 -> 0 | G111: ='[1]ACS - O&M'!G111 -> 0 | H111: ='[1]ACS - O&M'!H111 -> 0
C112: =SUM(C110:C111) -> 27467.3117 | D112: 27591.3331 | E112: 28108.98358 | F112: 28452.22744 | G112: 28797.55504 | H112: 29156.97091
A113: Number of Lights | C113: ='DNSP Inputs General'!J43 -> 3951.398993 | D113: ='DNSP Inputs General'!K43 -> 4085.372568 | E113: ='DNSP Inputs General'!L43 -> 4223.888564 | F113: ='DNSP Inputs General'!M43 -> 4367.100994 | G113: ='DNSP Inputs General'!N43 -> 4515.169092 | H113: ='DNSP Inputs General'!O43 -> 4668.257491
A114: Unit Cost | C114: =IF(C113=0,0,C112/C113) -> 6.951287823 | D114: 6.753688345 | E114: 6.654764478 | F114: 6.515129254 | G114: 6.37795716 | H114: 6.245793203
A116: Location of selected public lighting assets within distributors' areas (%)
A117: Urban | C117: ='[1]ACS - O&M'!C117 -> 0.7143604499 | D117: ='[1]ACS - O&M'!D117 -> 0.7143604499 | E117: ='[1]ACS - O&M'!E117 -> 0.7143604499 | F117: ='[1]ACS - O&M'!F117 -> 0.7143604499 | G117: ='[1]ACS - O&M'!G117 -> 0.7143604499 | H117: ='[1]ACS - O&M'!H117 -> 0.7143604499
A118: Rural | C118: ='[1]ACS - O&M'!C118 -> 0.2466649228 | D118: ='[1]ACS - O&M'!D118 -> 0.2466649228 | E118: ='[1]ACS - O&M'!E118 -> 0.2466649228 | F118: ='[1]ACS - O&M'!F118 -> 0.2466649228 | G118: ='[1]ACS - O&M'!G118 -> 0.2466649228 | H118: ='[1]ACS - O&M'!H118 -> 0.2466649228
A119: Remote | C119: ='[1]ACS - O&M'!C119 -> 0.03818990322 | D119: ='[1]ACS - O&M'!D119 -> 0.03818990322 | E119: ='[1]ACS - O&M'!E119 -> 0.03818990322 | F119: ='[1]ACS - O&M'!F119 -> 0.03818990322 | G119: ='[1]ACS - O&M'!G119 -> 0.03818990322 | H119: ='[1]ACS - O&M'!H119 -> 0.03818990322
A123: Dedicated street lighting poles
A125: Period of inspection | B125: years | C125: ='[1]ACS - O&M'!C125 -> 0 | D125: ='[1]ACS - O&M'!D125 -> 0 | E125: ='[1]ACS - O&M'!E125 -> 0 | F125: ='[1]ACS - O&M'!F125 -> 0 | G125: ='[1]ACS - O&M'!G125 -> 0 | H125: ='[1]ACS - O&M'!H125 -> 0
A126: Pole inspection rate | B126: per day | C126: ='[1]ACS - O&M'!C126 -> 0 | D126: ='[1]ACS - O&M'!D126 -> 0 | E126: ='[1]ACS - O&M'!E126 -> 0 | F126: ='[1]ACS - O&M'!F126 -> 0 | G126: ='[1]ACS - O&M'!G126 -> 0 | H126: ='[1]ACS - O&M'!H126 -> 0
A127: Depreciation of dedicated street lighting pole & bracket | B127: years | C127: ='[1]ACS - O&M'!C127 -> 0 | D127: ='[1]ACS - O&M'!D127 -> 0 | E127: ='[1]ACS - O&M'!E127 -> 0 | F127: ='[1]ACS - O&M'!F127 -> 0 | G127: ='[1]ACS - O&M'!G127 -> 0 | H127: ='[1]ACS - O&M'!H127 -> 0
A128: Proportion of lights on dedicated poles | C128: ='[1]ACS - O&M'!C128 -> 0 | D128: ='[1]ACS - O&M'!D128 -> 0 | E128: ='[1]ACS - O&M'!E128 -> 0 | F128: ='[1]ACS - O&M'!F128 -> 0 | G128: ='[1]ACS - O&M'!G128 -> 0 | H128: ='[1]ACS - O&M'!H128 -> 0
A132: Other direct costs
A133: Call centre
A134: Number of calls | C134: ='[1]ACS - O&M'!C134 -> 1982.454488 | D134: ='[1]ACS - O&M'!D134 -> 3119.202518 | E134: ='[1]ACS - O&M'!E134 -> 3171.741536 | F134: ='[1]ACS - O&M'!F134 -> 3225.165507 | G134: ='[1]ACS - O&M'!G134 -> 3279.489337 | H134: ='[1]ACS - O&M'!H134 -> 3334.728183
A135: Average cost per call $ | C135: ='[1]ACS - O&M'!C135 -> 10 | D135: ='[1]ACS - O&M'!D135 -> 15.81990815 | E135: ='[1]ACS - O&M'!E135 -> 16.08637448 | F135: ='[1]ACS - O&M'!F135 -> 16.35732909 | G135: ='[1]ACS - O&M'!G135 -> 16.63284759 | H135: ='[1]ACS - O&M'!H135 -> 16.91300685
A136: Total call centre costs | C136: =C134*C135 -> 19824.54488 | D136: 49345.49733 | E136: 51021.82208 | F136: 52755.09356 | G136: 54547.24631 | H136: 56400.2806
A138: GIS and other | C138: ='[1]ACS - O&M'!C138 -> 56949.88743 | D138: ='[1]ACS - O&M'!D138 -> 58016.7663 | E138: ='[1]ACS - O&M'!E138 -> 58993.98528 | F138: ='[1]ACS - O&M'!F138 -> 59987.66428 | G138: ='[1]ACS - O&M'!G138 -> 60998.08055 | H138: ='[1]ACS - O&M'!H138 -> 62025.51599
A139: Complaints handling | C139: ='[1]ACS - O&M'!C139 -> 17084.96623 | D139: ='[1]ACS - O&M'!D139 -> 17405.02989 | E139: ='[1]ACS - O&M'!E139 -> 17698.19559 | F139: ='[1]ACS - O&M'!F139 -> 17996.29928 | G139: ='[1]ACS - O&M'!G139 -> 18299.42416 | H139: ='[1]ACS - O&M'!H139 -> 18607.6548
A140: Accounts Manager | C140: ='[1]ACS - O&M'!C140 -> 0 | D140: ='[1]ACS - O&M'!D140 -> 0 | E140: ='[1]ACS - O&M'!E140 -> 0 | F140: ='[1]ACS - O&M'!F140 -> 0 | G140: ='[1]ACS - O&M'!G140 -> 0 | H140: ='[1]ACS - O&M'!H140 -> 0
A143: ENERGY EFFICIENT LIGHTS
A145: Inputs - T5 (2 X 14W)
A147: Depreciation period | B147: years | C147: ='[1]ACS - O&M'!C147 -> 20 | D147: ='[1]ACS - O&M'!D147 -> 20 | E147: ='[1]ACS - O&M'!E147 -> 20 | F147: ='[1]ACS - O&M'!F147 -> 20 | G147: ='[1]ACS - O&M'!G147 -> 20 | H147: ='[1]ACS - O&M'!H147 -> 20
A148: Lamps - bulk change | B148: years | C148: ='[1]ACS - O&M'!C148 -> 4 | D148: ='[1]ACS - O&M'!D148 -> 4 | E148: ='[1]ACS - O&M'!E148 -> 4 | F148: ='[1]ACS - O&M'!F148 -> 4 | G148: ='[1]ACS - O&M'!G148 -> 4 | H148: ='[1]ACS - O&M'!H148 -> 4
A149: PE cells - bulk change | B149: years | C149: ='[1]ACS - O&M'!C149 -> 8 | D149: ='[1]ACS - O&M'!D149 -> 8 | E149: ='[1]ACS - O&M'!E149 -> 8 | F149: ='[1]ACS - O&M'!F149 -> 8 | G149: ='[1]ACS - O&M'!G149 -> 8 | H149: ='[1]ACS - O&M'!H149 -> 8
A150: Ballast unit life | B150: years | C150: ='[1]ACS - O&M'!C150 -> 20 | D150: ='[1]ACS - O&M'!D150 -> 20 | E150: ='[1]ACS - O&M'!E150 -> 20 | F150: ='[1]ACS - O&M'!F150 -> 20 | G150: ='[1]ACS - O&M'!G150 -> 20 | H150: ='[1]ACS - O&M'!H150 -> 20
A151: Proportion of luminaires that fail between bulk change | C151: ='[1]ACS - O&M'!C151 -> 0.114 | D151: ='[1]ACS - O&M'!D151 -> 0.114 | E151: ='[1]ACS - O&M'!E151 -> 0.114 | F151: ='[1]ACS - O&M'!F151 -> 0.114 | G151: ='[1]ACS - O&M'!G151 -> 0.114 | H151: ='[1]ACS - O&M'!H151 -> 0.114
A152: Unit cost - lamp | C152: ='[1]ACS - O&M'!C152 -> 9.998039223 | D152: ='[1]ACS - O&M'!D152 -> 9.998039223 | E152: ='[1]ACS - O&M'!E152 -> 9.998039223 | F152: ='[1]ACS - O&M'!F152 -> 9.998039223 | G152: ='[1]ACS - O&M'!G152 -> 9.998039223 | H152: ='[1]ACS - O&M'!H152 -> 9.998039223
A153: Unit cost - PE cell | C153: ='[1]ACS - O&M'!C153 -> 16.87169119 | D153: ='[1]ACS - O&M'!D153 -> 16.87169119 | E153: ='[1]ACS - O&M'!E153 -> 16.87169119 | F153: ='[1]ACS - O&M'!F153 -> 16.87169119 | G153: ='[1]ACS - O&M'!G153 -> 16.87169119 | H153: ='[1]ACS - O&M'!H153 -> 16.87169119
A154: Unit cost - luminaire | C154: ='[1]ACS - O&M'!C154 -> 301.4158875 | D154: ='[1]ACS - O&M'!D154 -> 301.4158875 | E154: ='[1]ACS - O&M'!E154 -> 301.4158875 | F154: ='[1]ACS - O&M'!F154 -> 301.4158875 | G154: ='[1]ACS - O&M'!G154 -> 301.4158875 | H154: ='[1]ACS - O&M'!H154 -> 301.4158875
A155: Unit cost - miscellaneous materials (bulk lamp) | C155: ='[1]ACS - O&M'!C155 -> 1.249754903 | D155: ='[1]ACS - O&M'!D155 -> 1.249754903 | E155: ='[1]ACS - O&M'!E155 -> 1.249754903 | F155: ='[1]ACS - O&M'!F155 -> 1.249754903 | G155: ='[1]ACS - O&M'!G155 -> 1.249754903 | H155: ='[1]ACS - O&M'!H155 -> 1.249754903
A156: Unit cost - miscellaneous materials (repair) | C156: ='[1]ACS - O&M'!C156 -> 12.49754903 | D156: ='[1]ACS - O&M'!D156 -> 12.49754903 | E156: ='[1]ACS - O&M'!E156 -> 12.49754903 | F156: ='[1]ACS - O&M'!F156 -> 12.49754903 | G156: ='[1]ACS - O&M'!G156 -> 12.49754903 | H156: ='[1]ACS - O&M'!H156 -> 12.49754903
A157: Number of men in crew | C157: ='[1]ACS - O&M'!C157 -> 2 | D157: ='[1]ACS - O&M'!D157 -> 2 | E157: ='[1]ACS - O&M'!E157 -> 2 | F157: ='[1]ACS - O&M'!F157 -> 2 | G157: ='[1]ACS - O&M'!G157 -> 2 | H157: ='[1]ACS - O&M'!H157 -> 2
A158: Number of bulk lamp changes in 1 day - urban | C158: ='[1]ACS - O&M'!C158 -> 73.92 | D158: ='[1]ACS - O&M'!D158 -> 73.92 | E158: ='[1]ACS - O&M'!E158 -> 73.92 | F158: ='[1]ACS - O&M'!F158 -> 73.92 | G158: ='[1]ACS - O&M'!G158 -> 73.92 | H158: ='[1]ACS - O&M'!H158 -> 73.92
A159: Number of bulk lamp changes in 1 day - rural | C159: ='[1]ACS - O&M'!C159 -> 61.44 | D159: ='[1]ACS - O&M'!D159 -> 61.44 | E159: ='[1]ACS - O&M'!E159 -> 61.44 | F159: ='[1]ACS - O&M'!F159 -> 61.44 | G159: ='[1]ACS - O&M'!G159 -> 61.44 | H159: ='[1]ACS - O&M'!H159 -> 61.44
A160: Number of bulk lamp changes in 1 day - remote | C160: ='[1]ACS - O&M'!C160 -> 48.96 | D160: ='[1]ACS - O&M'!D160 -> 48.96 | E160: ='[1]ACS - O&M'!E160 -> 48.96 | F160: ='[1]ACS - O&M'!F160 -> 48.96 | G160: ='[1]ACS - O&M'!G160 -> 48.96 | H160: ='[1]ACS - O&M'!H160 -> 48.96
A161: Number of repairs in 1 day - urban | C161: ='[1]ACS - O&M'!C161 -> 24.96 | D161: ='[1]ACS - O&M'!D161 -> 24.96 | E161: ='[1]ACS - O&M'!E161 -> 24.96 | F161: ='[1]ACS - O&M'!F161 -> 24.96 | G161: ='[1]ACS - O&M'!G161 -> 24.96 | H161: ='[1]ACS - O&M'!H161 -> 24.96
A162: Number of repairs in 1 day - rural | C162: ='[1]ACS - O&M'!C162 -> 20.16 | D162: ='[1]ACS - O&M'!D162 -> 20.16 | E162: ='[1]ACS - O&M'!E162 -> 20.16 | F162: ='[1]ACS - O&M'!F162 -> 20.16 | G162: ='[1]ACS - O&M'!G162 -> 20.16 | H162: ='[1]ACS - O&M'!H162 -> 20.16
A163: Number of repairs in 1 day - remote | C163: ='[1]ACS - O&M'!C163 -> 16.32 | D163: ='[1]ACS - O&M'!D163 -> 16.32 | E163: ='[1]ACS - O&M'!E163 -> 16.32 | F163: ='[1]ACS - O&M'!F163 -> 16.32 | G163: ='[1]ACS - O&M'!G163 -> 16.32 | H163: ='[1]ACS - O&M'!H163 -> 16.32
A164: % of repairs - lamps | C164: ='[1]ACS - O&M'!C164 -> 0.6 | D164: ='[1]ACS - O&M'!D164 -> 0.6 | E164: ='[1]ACS - O&M'!E164 -> 0.6 | F164: ='[1]ACS - O&M'!F164 -> 0.6 | G164: ='[1]ACS - O&M'!G164 -> 0.6 | H164: ='[1]ACS - O&M'!H164 -> 0.6
A165: % of repairs - PE cells | C165: ='[1]ACS - O&M'!C165 -> 0.5 | D165: ='[1]ACS - O&M'!D165 -> 0.5 | E165: ='[1]ACS - O&M'!E165 -> 0.5 | F165: ='[1]ACS - O&M'!F165 -> 0.5 | G165: ='[1]ACS - O&M'!G165 -> 0.5 | H165: ='[1]ACS - O&M'!H165 -> 0.5
A166: % of repairs - luminaires | C166: ='[1]ACS - O&M'!C166 -> 0.15 | D166: ='[1]ACS - O&M'!D166 -> 0.15 | E166: ='[1]ACS - O&M'!E166 -> 0.15 | F166: ='[1]ACS - O&M'!F166 -> 0.15 | G166: ='[1]ACS - O&M'!G166 -> 0.15 | H166: ='[1]ACS - O&M'!H166 -> 0.15
A167: % of repairs - other | C167: ='[1]ACS - O&M'!C167 -> 0.1 | D167: ='[1]ACS - O&M'!D167 -> 0.1 | E167: ='[1]ACS - O&M'!E167 -> 0.1 | F167: ='[1]ACS - O&M'!F167 -> 0.1 | G167: ='[1]ACS - O&M'!G167 -> 0.1 | H167: ='[1]ACS - O&M'!H167 -> 0.1
A169: Other Maintenance and Repair costs
A170: Traffic control costs | C170: ='[1]ACS - O&M'!C170 -> 9395.431859 | D170: ='[1]ACS - O&M'!D170 -> 9347.985817 | E170: ='[1]ACS - O&M'!E170 -> 8992.029843 | F170: ='[1]ACS - O&M'!F170 -> 8934.997002 | G170: ='[1]ACS - O&M'!G170 -> 8820.653397 | H170: ='[1]ACS - O&M'!H170 -> 8657.269597
A171: Other costs : Describe……………………………………. | C171: ='[1]ACS - O&M'!C171 -> 0 | D171: ='[1]ACS - O&M'!D171 -> 0 | E171: ='[1]ACS - O&M'!E171 -> 0 | F171: ='[1]ACS - O&M'!F171 -> 0 | G171: ='[1]ACS - O&M'!G171 -> 0 | H171: ='[1]ACS - O&M'!H171 -> 0
C172: =SUM(C170:C171) -> 9395.431859 | D172: 9347.985817 | E172: 8992.029843 | F172: 8934.997002 | G172: 8820.653397 | H172: 8657.269597
A173: Number of Lights | C173: ='DNSP Inputs General'!J63 -> 6872.355697 | D173: ='DNSP Inputs General'!K63 -> 6734.908583 | E173: ='DNSP Inputs General'!L63 -> 6600.210411 | F173: ='DNSP Inputs General'!M63 -> 6468.206203 | G173: ='DNSP Inputs General'!N63 -> 6338.842079 | H173: ='DNSP Inputs General'!O63 -> 6212.065237
A174: Unit Cost | C174: =IF(C173=0,0,C172/C173) -> 1.367134106 | D174: 1.387990008 | E174: 1.362385331 | F174: 1.3813717 | G174: 1.391524396 | H174: 1.393621809
A176: ='[1]ACS - O&M'!A176 -> Location of selected public lighting assets within distributors' areas (%)
A177: ='[1]ACS - O&M'!A177 -> Urban | C177: ='[1]ACS - O&M'!C177 -> 0.5891012397 | D177: ='[1]ACS - O&M'!D177 -> 0.5891012397 | E177: ='[1]ACS - O&M'!E177 -> 0.5891012397 | F177: ='[1]ACS - O&M'!F177 -> 0.5891012397 | G177: ='[1]ACS - O&M'!G177 -> 0.5891012397 | H177: ='[1]ACS - O&M'!H177 -> 0.5891012397
A178: ='[1]ACS - O&M'!A178 -> Rural | C178: ='[1]ACS - O&M'!C178 -> 0.4103822314 | D178: ='[1]ACS - O&M'!D178 -> 0.4103822314 | E178: ='[1]ACS - O&M'!E178 -> 0.4103822314 | F178: ='[1]ACS - O&M'!F178 -> 0.4103822314 | G178: ='[1]ACS - O&M'!G178 -> 0.4103822314 | H178: ='[1]ACS - O&M'!H178 -> 0.4103822314
A179: ='[1]ACS - O&M'!A179 -> Remote | C179: ='[1]ACS - O&M'!C179 -> 0.0005165289256 | D179: ='[1]ACS - O&M'!D179 -> 0.0005165289256 | E179: ='[1]ACS - O&M'!E179 -> 0.0005165289256 | F179: ='[1]ACS - O&M'!F179 -> 0.0005165289256 | G179: ='[1]ACS - O&M'!G179 -> 0.0005165289256 | H179: ='[1]ACS - O&M'!H179 -> 0.0005165289256
A181: ='[1]ACS - O&M'!A181 -> Option for "0.8" factor
A182: ='[1]ACS - O&M'!A182 -> Switch ( 1 = On; 0 = Off ) | B182: ='[1]ACS - O&M'!B182 -> 1
A183: ='[1]ACS - O&M'!A183 -> Factor | B183: ='[1]ACS - O&M'!B183 -> 0.8
A185: Inputs - Category P LED
A187: Depreciation period | B187: years | C187: ='[1]ACS - O&M'!C187 -> 20 | D187: ='[1]ACS - O&M'!D187 -> 20 | E187: ='[1]ACS - O&M'!E187 -> 20 | F187: ='[1]ACS - O&M'!F187 -> 20 | G187: ='[1]ACS - O&M'!G187 -> 20 | H187: ='[1]ACS - O&M'!H187 -> 20
A188: Lamps - bulk change | B188: years | C188: ='[1]ACS - O&M'!C188 -> 20 | D188: ='[1]ACS - O&M'!D188 -> 20 | E188: ='[1]ACS - O&M'!E188 -> 20 | F188: ='[1]ACS - O&M'!F188 -> 20 | G188: ='[1]ACS - O&M'!G188 -> 20 | H188: ='[1]ACS - O&M'!H188 -> 20
A189: PE cells - bulk change | B189: years | C189: ='[1]ACS - O&M'!C189 -> 8 | D189: ='[1]ACS - O&M'!D189 -> 8 | E189: ='[1]ACS - O&M'!E189 -> 8 | F189: ='[1]ACS - O&M'!F189 -> 8 | G189: ='[1]ACS - O&M'!G189 -> 8 | H189: ='[1]ACS - O&M'!H189 -> 8
A190: Ballast unit life | B190: years | C190: ='[1]ACS - O&M'!C190 -> 20 | D190: ='[1]ACS - O&M'!D190 -> 20 | E190: ='[1]ACS - O&M'!E190 -> 20 | F190: ='[1]ACS - O&M'!F190 -> 20 | G190: ='[1]ACS - O&M'!G190 -> 20 | H190: ='[1]ACS - O&M'!H190 -> 20
A191: Proportion of luminaires that fail between bulk change | C191: ='[1]ACS - O&M'!C191 -> 0.114 | D191: ='[1]ACS - O&M'!D191 -> 0.114 | E191: ='[1]ACS - O&M'!E191 -> 0.114 | F191: ='[1]ACS - O&M'!F191 -> 0.114 | G191: ='[1]ACS - O&M'!G191 -> 0.114 | H191: ='[1]ACS - O&M'!H191 -> 0.114
A192: Unit cost - lamp | C192: ='[1]ACS - O&M'!C192 -> 0 | D192: ='[1]ACS - O&M'!D192 -> 0 | E192: ='[1]ACS - O&M'!E192 -> 0 | F192: ='[1]ACS - O&M'!F192 -> 0 | G192: ='[1]ACS - O&M'!G192 -> 0 | H192: ='[1]ACS - O&M'!H192 -> 0 | I192: Not applicable for LED
A193: Unit cost - PE cell | C193: ='[1]ACS - O&M'!C193 -> 16.87169119 | D193: ='[1]ACS - O&M'!D193 -> 16.87169119 | E193: ='[1]ACS - O&M'!E193 -> 16.87169119 | F193: ='[1]ACS - O&M'!F193 -> 16.87169119 | G193: ='[1]ACS - O&M'!G193 -> 16.87169119 | H193: ='[1]ACS - O&M'!H193 -> 16.87169119
A194: Unit cost - luminaire | C194: ='[1]ACS - O&M'!C194 -> 352.7287516 | D194: ='[1]ACS - O&M'!D194 -> 352.7287516 | E194: ='[1]ACS - O&M'!E194 -> 352.7287516 | F194: ='[1]ACS - O&M'!F194 -> 352.7287516 | G194: ='[1]ACS - O&M'!G194 -> 352.7287516 | H194: ='[1]ACS - O&M'!H194 -> 352.7287516
A195: Unit cost - miscellaneous materials (bulk lamp) | C195: ='[1]ACS - O&M'!C195 -> 0 | D195: ='[1]ACS - O&M'!D195 -> 0 | E195: ='[1]ACS - O&M'!E195 -> 0 | F195: ='[1]ACS - O&M'!F195 -> 0 | G195: ='[1]ACS - O&M'!G195 -> 0 | H195: ='[1]ACS - O&M'!H195 -> 0
A196: Unit cost - miscellaneous materials (repair) | C196: ='[1]ACS - O&M'!C196 -> 12.49754903 | D196: ='[1]ACS - O&M'!D196 -> 12.49754903 | E196: ='[1]ACS - O&M'!E196 -> 12.49754903 | F196: ='[1]ACS - O&M'!F196 -> 12.49754903 | G196: ='[1]ACS - O&M'!G196 -> 12.49754903 | H196: ='[1]ACS - O&M'!H196 -> 12.49754903
A197: Number of men in crew | C197: ='[1]ACS - O&M'!C197 -> 2 | D197: ='[1]ACS - O&M'!D197 -> 2 | E197: ='[1]ACS - O&M'!E197 -> 2 | F197: ='[1]ACS - O&M'!F197 -> 2 | G197: ='[1]ACS - O&M'!G197 -> 2 | H197: ='[1]ACS - O&M'!H197 -> 2
A198: Number of bulk lamp changes in 1 day - urban | C198: ='[1]ACS - O&M'!C198 -> 73.92 | D198: ='[1]ACS - O&M'!D198 -> 73.92 | E198: ='[1]ACS - O&M'!E198 -> 73.92 | F198: ='[1]ACS - O&M'!F198 -> 73.92 | G198: ='[1]ACS - O&M'!G198 -> 73.92 | H198: ='[1]ACS - O&M'!H198 -> 73.92
A199: Number of bulk lamp changes in 1 day - rural | C199: ='[1]ACS - O&M'!C199 -> 61.44 | D199: ='[1]ACS - O&M'!D199 -> 61.44 | E199: ='[1]ACS - O&M'!E199 -> 61.44 | F199: ='[1]ACS - O&M'!F199 -> 61.44 | G199: ='[1]ACS - O&M'!G199 -> 61.44 | H199: ='[1]ACS - O&M'!H199 -> 61.44
A200: Number of bulk lamp changes in 1 day - remote | C200: ='[1]ACS - O&M'!C200 -> 48.96 | D200: ='[1]ACS - O&M'!D200 -> 48.96 | E200: ='[1]ACS - O&M'!E200 -> 48.96 | F200: ='[1]ACS - O&M'!F200 -> 48.96 | G200: ='[1]ACS - O&M'!G200 -> 48.96 | H200: ='[1]ACS - O&M'!H200 -> 48.96
A201: Number of repairs in 1 day - urban | C201: ='[1]ACS - O&M'!C201 -> 24.96 | D201: ='[1]ACS - O&M'!D201 -> 24.96 | E201: ='[1]ACS - O&M'!E201 -> 24.96 | F201: ='[1]ACS - O&M'!F201 -> 24.96 | G201: ='[1]ACS - O&M'!G201 -> 24.96 | H201: ='[1]ACS - O&M'!H201 -> 24.96
A202: Number of repairs in 1 day - rural | C202: ='[1]ACS - O&M'!C202 -> 20.16 | D202: ='[1]ACS - O&M'!D202 -> 20.16 | E202: ='[1]ACS - O&M'!E202 -> 20.16 | F202: ='[1]ACS - O&M'!F202 -> 20.16 | G202: ='[1]ACS - O&M'!G202 -> 20.16 | H202: ='[1]ACS - O&M'!H202 -> 20.16
A203: Number of repairs in 1 day - remote | C203: ='[1]ACS - O&M'!C203 -> 16.32 | D203: ='[1]ACS - O&M'!D203 -> 16.32 | E203: ='[1]ACS - O&M'!E203 -> 16.32 | F203: ='[1]ACS - O&M'!F203 -> 16.32 | G203: ='[1]ACS - O&M'!G203 -> 16.32 | H203: ='[1]ACS - O&M'!H203 -> 16.32
A204: % of repairs - lamps | C204: ='[1]ACS - O&M'!C204 -> 0.6 | D204: ='[1]ACS - O&M'!D204 -> 0.6 | E204: ='[1]ACS - O&M'!E204 -> 0.6 | F204: ='[1]ACS - O&M'!F204 -> 0.6 | G204: ='[1]ACS - O&M'!G204 -> 0.6 | H204: ='[1]ACS - O&M'!H204 -> 0.6
A205: % of repairs - PE cells | C205: ='[1]ACS - O&M'!C205 -> 0.5 | D205: ='[1]ACS - O&M'!D205 -> 0.5 | E205: ='[1]ACS - O&M'!E205 -> 0.5 | F205: ='[1]ACS - O&M'!F205 -> 0.5 | G205: ='[1]ACS - O&M'!G205 -> 0.5 | H205: ='[1]ACS - O&M'!H205 -> 0.5
A206: % of repairs - luminaires | C206: ='[1]ACS - O&M'!C206 -> 0.15 | D206: ='[1]ACS - O&M'!D206 -> 0.15 | E206: ='[1]ACS - O&M'!E206 -> 0.15 | F206: ='[1]ACS - O&M'!F206 -> 0.15 | G206: ='[1]ACS - O&M'!G206 -> 0.15 | H206: ='[1]ACS - O&M'!H206 -> 0.15
A207: % of repairs - other | C207: ='[1]ACS - O&M'!C207 -> 0.1 | D207: ='[1]ACS - O&M'!D207 -> 0.1 | E207: ='[1]ACS - O&M'!E207 -> 0.1 | F207: ='[1]ACS - O&M'!F207 -> 0.1 | G207: ='[1]ACS - O&M'!G207 -> 0.1 | H207: ='[1]ACS - O&M'!H207 -> 0.1
A209: Other Maintenance and Repair costs
A210: Traffic control costs | C210: ='[1]ACS - O&M'!C210 -> 10212.61998 | D210: ='[1]ACS - O&M'!D210 -> 19455.11258 | E210: ='[1]ACS - O&M'!E210 -> 26520.2458 | F210: ='[1]ACS - O&M'!F210 -> 29041.02203 | G210: ='[1]ACS - O&M'!G210 -> 31594.82266 | H210: ='[1]ACS - O&M'!H210 -> 34173.8404
A211: Other costs : Describe……………………………………. | C211: ='[1]ACS - O&M'!C211 -> 0 | D211: ='[1]ACS - O&M'!D211 -> 0 | E211: ='[1]ACS - O&M'!E211 -> 0 | F211: ='[1]ACS - O&M'!F211 -> 0 | G211: ='[1]ACS - O&M'!G211 -> 0 | H211: ='[1]ACS - O&M'!H211 -> 0
C212: =SUM(C210:C211) -> 10212.61998 | D212: 19455.11258 | E212: 26520.2458 | F212: 29041.02203 | G212: 31594.82266 | H212: 34173.8404
A213: Number of Lights | C213: ='DNSP Inputs General'!J67 -> 14775.88205 | D213: ='DNSP Inputs General'!K67 -> 27725.20527 | E213: ='DNSP Inputs General'!L67 -> 38503.92013 | F213: ='DNSP Inputs General'!M67 -> 41584.23374 | G213: ='DNSP Inputs General'!N67 -> 44910.97244 | H213: ='DNSP Inputs General'!O67 -> 48503.85024
A214: Unit Cost | C214: =IF(C213=0,0,C212/C213) -> 0.6911682121 | D214: 0.7017121204 | E214: 0.6887674218 | F214: 0.6983661695 | G214: 0.7034989655 | H214: 0.7045593336
A216: Location of selected public lighting assets within distributors' areas (%)
A217: Urban | C217: ='[1]ACS - O&M'!C217 -> 0.2838129496 | D217: ='[1]ACS - O&M'!D217 -> 0.2838129496 | E217: ='[1]ACS - O&M'!E217 -> 0.2838129496 | F217: ='[1]ACS - O&M'!F217 -> 0.2838129496 | G217: ='[1]ACS - O&M'!G217 -> 0.2838129496 | H217: ='[1]ACS - O&M'!H217 -> 0.2838129496
A218: Rural | C218: ='[1]ACS - O&M'!C218 -> 0.6170863309 | D218: ='[1]ACS - O&M'!D218 -> 0.6170863309 | E218: ='[1]ACS - O&M'!E218 -> 0.6170863309 | F218: ='[1]ACS - O&M'!F218 -> 0.6170863309 | G218: ='[1]ACS - O&M'!G218 -> 0.6170863309 | H218: ='[1]ACS - O&M'!H218 -> 0.6170863309
A219: Remote | C219: ='[1]ACS - O&M'!C219 -> 0.09910071942 | D219: ='[1]ACS - O&M'!D219 -> 0.09910071942 | E219: ='[1]ACS - O&M'!E219 -> 0.09910071942 | F219: ='[1]ACS - O&M'!F219 -> 0.09910071942 | G219: ='[1]ACS - O&M'!G219 -> 0.09910071942 | H219: ='[1]ACS - O&M'!H219 -> 0.09910071942
A221: ='[1]ACS - O&M'!A221 -> Option for "0.8" factor
A222: ='[1]ACS - O&M'!A222 -> Switch ( 1 = On; 0 = Off ) | B222: ='[1]ACS - O&M'!B222 -> 1
A223: ='[1]ACS - O&M'!A223 -> Factor | B223: ='[1]ACS - O&M'!B223 -> 0.9

Sheet DNSP Inputs Capex
A1: Public Lighting Cost Build-up Model
A3: ='DNSP Inputs O & M'!$A$3 -> Powercor | C3: Capex Data Inputs
C5: Real 2015 $
A7: Input parameters | C7: 2015 | D7: 2016 | E7: 2017 | F7: 2018 | G7: 2019 | H7: 2020
A9: Inputs - all lamps
A11: Material premium for rural areas | C11: ='[1]ACS - Capex'!C11 -> 0.05 | D11: ='[1]ACS - Capex'!D11 -> 0.05 | E11: ='[1]ACS - Capex'!E11 -> 0.05 | F11: ='[1]ACS - Capex'!F11 -> 0.05 | G11: ='[1]ACS - Capex'!G11 -> 0.05 | H11: ='[1]ACS - Capex'!H11 -> 0.05
A12: Labour rate (per hour) | C12: ='[1]ACS - Capex'!C12 -> 121.4914353 | D12: ='[1]ACS - Capex'!D12 -> 123.7674125 | E12: ='[1]ACS - Capex'!E12 -> 125.8521179 | F12: ='[1]ACS - Capex'!F12 -> 127.9719375 | G12: ='[1]ACS - Capex'!G12 -> 130.1274628 | H12: ='[1]ACS - Capex'!H12 -> 132.3192952
A13: Elevated platform vehicle (per hour) - urban MV,urban T5 | C13: ='[1]ACS - Capex'!C13 -> 76.9531112 | D13: ='[1]ACS - Capex'!D13 -> 77.69564122 | E13: ='[1]ACS - Capex'!E13 -> 79.36920231 | F13: ='[1]ACS - Capex'!F13 -> 80.74617287 | G13: ='[1]ACS - Capex'!G13 -> 82.13129241 | H13: ='[1]ACS - Capex'!H13 -> 83.56418727
A14: Elevated platform vehicle (per hour) - rural MV, rural T5, S-HP | C14: ='[1]ACS - Capex'!C14 -> 57.00342251 | D14: ='[1]ACS - Capex'!D14 -> 57.55345553 | E14: ='[1]ACS - Capex'!E14 -> 58.79315472 | F14: ='[1]ACS - Capex'!F14 -> 59.81315292 | G14: ='[1]ACS - Capex'!G14 -> 60.83918751 | H14: ='[1]ACS - Capex'!H14 -> 61.90061193
A15: Number of hours in a day | C15: ='[1]ACS - Capex'!C15 -> 8 | D15: ='[1]ACS - Capex'!D15 -> 8 | E15: ='[1]ACS - Capex'!E15 -> 8 | F15: ='[1]ACS - Capex'!F15 -> 8 | G15: ='[1]ACS - Capex'!G15 -> 8 | H15: ='[1]ACS - Capex'!H15 -> 8
A19: Inputs - MV80
A21: Unit cost - luminaire | C21: ='[1]ACS - Capex'!C21 -> 198.1486398 | D21: ='[1]ACS - Capex'!D21 -> 198.1486398 | E21: ='[1]ACS - Capex'!E21 -> 198.1486398 | F21: ='[1]ACS - Capex'!F21 -> 198.1486398 | G21: ='[1]ACS - Capex'!G21 -> 198.1486398 | H21: ='[1]ACS - Capex'!H21 -> 198.1486398
A22: Unit cost - miscellaneous materials (bulk lamp) | C22: ='[1]ACS - Capex'!C22 -> 1.249754903 | D22: ='[1]ACS - Capex'!D22 -> 1.249754903 | E22: ='[1]ACS - Capex'!E22 -> 1.249754903 | F22: ='[1]ACS - Capex'!F22 -> 1.249754903 | G22: ='[1]ACS - Capex'!G22 -> 1.249754903 | H22: ='[1]ACS - Capex'!H22 -> 1.249754903
A23: Number of men in crew | C23: ='[1]ACS - Capex'!C23 -> 2 | D23: ='[1]ACS - Capex'!D23 -> 2 | E23: ='[1]ACS - Capex'!E23 -> 2 | F23: ='[1]ACS - Capex'!F23 -> 2 | G23: ='[1]ACS - Capex'!G23 -> 2 | H23: ='[1]ACS - Capex'!H23 -> 2
A24: Number of luminaires replaced per day - urban | C24: ='[1]ACS - Capex'!C24 -> 15.36 | D24: ='[1]ACS - Capex'!D24 -> 15.36 | E24: ='[1]ACS - Capex'!E24 -> 15.36 | F24: ='[1]ACS - Capex'!F24 -> 15.36 | G24: ='[1]ACS - Capex'!G24 -> 15.36 | H24: ='[1]ACS - Capex'!H24 -> 15.36
A25: Number of luminaires replaced per day - rural | C25: ='[1]ACS - Capex'!C25 -> 12.48 | D25: ='[1]ACS - Capex'!D25 -> 12.48 | E25: ='[1]ACS - Capex'!E25 -> 12.48 | F25: ='[1]ACS - Capex'!F25 -> 12.48 | G25: ='[1]ACS - Capex'!G25 -> 12.48 | H25: ='[1]ACS - Capex'!H25 -> 12.48
A26: Number of luminaires replaced per day - remote | C26: ='[1]ACS - Capex'!C26 -> 9.6 | D26: ='[1]ACS - Capex'!D26 -> 9.6 | E26: ='[1]ACS - Capex'!E26 -> 9.6 | F26: ='[1]ACS - Capex'!F26 -> 9.6 | G26: ='[1]ACS - Capex'!G26 -> 9.6 | H26: ='[1]ACS - Capex'!H26 -> 9.6
A28: Other Capex unit costs Describe :……………………… | C28: ='[1]ACS - Capex'!C28 -> 0 | D28: ='[1]ACS - Capex'!D28 -> 0 | E28: ='[1]ACS - Capex'!E28 -> 0 | F28: ='[1]ACS - Capex'!F28 -> 0 | G28: ='[1]ACS - Capex'!G28 -> 0 | H28: ='[1]ACS - Capex'!H28 -> 0
A30: Forecast Quantities to be replaced
A31: Number of luminaires replaced per year - urban | D31: ='[1]ACS - Capex'!D31 -> 39.26048323 | E31: ='[1]ACS - Capex'!E31 -> 28.89363548 | F31: ='[1]ACS - Capex'!F31 -> 25.86318803 | G31: ='[1]ACS - Capex'!G31 -> 23.00135785 | H31: ='[1]ACS - Capex'!H31 -> 20.33018919
A32: Number of luminaires replaced per year - rural | D32: ='[1]ACS - Capex'!D32 -> 12.81429232 | E32: ='[1]ACS - Capex'!E32 -> 9.430640192 | F32: ='[1]ACS - Capex'!F32 -> 8.441527571 | G32: ='[1]ACS - Capex'!G32 -> 7.507450212 | H32: ='[1]ACS - Capex'!H32 -> 6.635603173
A33: Number of luminaires replaced per year - remote | D33: ='[1]ACS - Capex'!D33 -> 5.324498193 | E33: ='[1]ACS - Capex'!E33 -> 3.918548556 | F33: ='[1]ACS - Capex'!F33 -> 3.507559933 | G33: ='[1]ACS - Capex'!G33 -> 3.119439146 | H33: ='[1]ACS - Capex'!H33 -> 2.757175834
A35: MV80 Lights replaced with T5 Energy Efficient Lights
A36: Number of Lights MV80 replaced with Energy Efficient Lights per year | D36: ='[1]ACS - Capex'!D36 -> 10180.20196 | E36: ='[1]ACS - Capex'!E36 -> 5721.932956 | F36: ='[1]ACS - Capex'!F36 -> 1908.089598 | G36: ='[1]ACS - Capex'!G36 -> 1717.280638 | H36: ='[1]ACS - Capex'!H36 -> 1545.552574
A40: Inputs - S-HP150
A42: Unit cost - luminaire | C42: ='[1]ACS - Capex'!C42 -> 234.50401 | D42: ='[1]ACS - Capex'!D42 -> 234.50401 | E42: ='[1]ACS - Capex'!E42 -> 234.50401 | F42: ='[1]ACS - Capex'!F42 -> 234.50401 | G42: ='[1]ACS - Capex'!G42 -> 234.50401 | H42: ='[1]ACS - Capex'!H42 -> 234.50401
A43: Unit cost - miscellaneous materials | C43: ='[1]ACS - Capex'!C43 -> 2.499509806 | D43: ='[1]ACS - Capex'!D43 -> 2.499509806 | E43: ='[1]ACS - Capex'!E43 -> 2.499509806 | F43: ='[1]ACS - Capex'!F43 -> 2.499509806 | G43: ='[1]ACS - Capex'!G43 -> 2.499509806 | H43: ='[1]ACS - Capex'!H43 -> 2.499509806
A44: Number of men in crew - repairs | C44: ='[1]ACS - Capex'!C44 -> 2 | D44: ='[1]ACS - Capex'!D44 -> 2 | E44: ='[1]ACS - Capex'!E44 -> 2 | F44: ='[1]ACS - Capex'!F44 -> 2 | G44: ='[1]ACS - Capex'!G44 -> 2 | H44: ='[1]ACS - Capex'!H44 -> 2
A45: Number of luminaires replaced per day - urban | C45: ='[1]ACS - Capex'!C45 -> 15.36 | D45: ='[1]ACS - Capex'!D45 -> 15.36 | E45: ='[1]ACS - Capex'!E45 -> 15.36 | F45: ='[1]ACS - Capex'!F45 -> 15.36 | G45: ='[1]ACS - Capex'!G45 -> 15.36 | H45: ='[1]ACS - Capex'!H45 -> 15.36
A46: Number of luminaires replaced per day - rural | C46: ='[1]ACS - Capex'!C46 -> 12.48 | D46: ='[1]ACS - Capex'!D46 -> 12.48 | E46: ='[1]ACS - Capex'!E46 -> 12.48 | F46: ='[1]ACS - Capex'!F46 -> 12.48 | G46: ='[1]ACS - Capex'!G46 -> 12.48 | H46: ='[1]ACS - Capex'!H46 -> 12.48
A47: Number of luminaires replaced per day - remote | C47: ='[1]ACS - Capex'!C47 -> 9.6 | D47: ='[1]ACS - Capex'!D47 -> 9.6 | E47: ='[1]ACS - Capex'!E47 -> 9.6 | F47: ='[1]ACS - Capex'!F47 -> 9.6 | G47: ='[1]ACS - Capex'!G47 -> 9.6 | H47: ='[1]ACS - Capex'!H47 -> 9.6
A49: Other Capex unit costs Describe :……………………… | C49: ='[1]ACS - Capex'!C49 -> 0 | D49: ='[1]ACS - Capex'!D49 -> 0 | E49: ='[1]ACS - Capex'!E49 -> 0 | F49: ='[1]ACS - Capex'!F49 -> 0 | G49: ='[1]ACS - Capex'!G49 -> 0 | H49: ='[1]ACS - Capex'!H49 -> 0
A51: Forecast Quantities to be replaced
A52: Number of luminaires replaced per year - urban | D52: ='[1]ACS - Capex'!D52 -> 330.4159171 | E52: ='[1]ACS - Capex'!E52 -> 331.4827823 | F52: ='[1]ACS - Capex'!F52 -> 332.5454745 | G52: ='[1]ACS - Capex'!G52 -> 333.6039614 | H52: ='[1]ACS - Capex'!H52 -> 334.6582118
A53: Number of luminaires replaced per year - rural | D53: ='[1]ACS - Capex'!D53 -> 91.79229736 | E53: ='[1]ACS - Capex'!E53 -> 92.08868141 | F53: ='[1]ACS - Capex'!F53 -> 92.38390615 | G53: ='[1]ACS - Capex'!G53 -> 92.67796265 | H53: ='[1]ACS - Capex'!H53 -> 92.97084221
A54: Number of luminaires replaced per day - remote | D54: ='[1]ACS - Capex'!D54 -> 20.79413627 | E54: ='[1]ACS - Capex'!E54 -> 20.86127753 | F54: ='[1]ACS - Capex'!F54 -> 20.92815617 | G54: ='[1]ACS - Capex'!G54 -> 20.99477015 | H54: ='[1]ACS - Capex'!H54 -> 21.06111752
A58: Inputs - S-HP250
A60: Unit cost - luminaire | C60: ='[1]ACS - Capex'!C60 -> 238.0033237 | D60: ='[1]ACS - Capex'!D60 -> 238.0033237 | E60: ='[1]ACS - Capex'!E60 -> 238.0033237 | F60: ='[1]ACS - Capex'!F60 -> 238.0033237 | G60: ='[1]ACS - Capex'!G60 -> 238.0033237 | H60: ='[1]ACS - Capex'!H60 -> 238.0033237
A61: Unit cost - miscellaneous materials | C61: ='[1]ACS - Capex'!C61 -> 2.499509806 | D61: ='[1]ACS - Capex'!D61 -> 2.499509806 | E61: ='[1]ACS - Capex'!E61 -> 2.499509806 | F61: ='[1]ACS - Capex'!F61 -> 2.499509806 | G61: ='[1]ACS - Capex'!G61 -> 2.499509806 | H61: ='[1]ACS - Capex'!H61 -> 2.499509806
A62: Number of men in crew - repairs | C62: ='[1]ACS - Capex'!C62 -> 2 | D62: ='[1]ACS - Capex'!D62 -> 2 | E62: ='[1]ACS - Capex'!E62 -> 2 | F62: ='[1]ACS - Capex'!F62 -> 2 | G62: ='[1]ACS - Capex'!G62 -> 2 | H62: ='[1]ACS - Capex'!H62 -> 2
A63: Number of luminaires replaced per day - urban | C63: ='[1]ACS - Capex'!C63 -> 15.36 | D63: ='[1]ACS - Capex'!D63 -> 15.36 | E63: ='[1]ACS - Capex'!E63 -> 15.36 | F63: ='[1]ACS - Capex'!F63 -> 15.36 | G63: ='[1]ACS - Capex'!G63 -> 15.36 | H63: ='[1]ACS - Capex'!H63 -> 15.36
A64: Number of luminaires replaced per day - rural | C64: ='[1]ACS - Capex'!C64 -> 12.48 | D64: ='[1]ACS - Capex'!D64 -> 12.48 | E64: ='[1]ACS - Capex'!E64 -> 12.48 | F64: ='[1]ACS - Capex'!F64 -> 12.48 | G64: ='[1]ACS - Capex'!G64 -> 12.48 | H64: ='[1]ACS - Capex'!H64 -> 12.48
A65: Number of luminaires replaced per day - remote | C65: ='[1]ACS - Capex'!C65 -> 9.6 | D65: ='[1]ACS - Capex'!D65 -> 9.6 | E65: ='[1]ACS - Capex'!E65 -> 9.6 | F65: ='[1]ACS - Capex'!F65 -> 9.6 | G65: ='[1]ACS - Capex'!G65 -> 9.6 | H65: ='[1]ACS - Capex'!H65 -> 9.6
A67: Other Capex unit costs Describe :……………………… | C67: ='[1]ACS - Capex'!C67 -> 0 | D67: ='[1]ACS - Capex'!D67 -> 0 | E67: ='[1]ACS - Capex'!E67 -> 0 | F67: ='[1]ACS - Capex'!F67 -> 0 | G67: ='[1]ACS - Capex'!G67 -> 0 | H67: ='[1]ACS - Capex'!H67 -> 0
A69: Forecast Quantities to be replaced
A70: Number of luminaires replaced per year - urban | D70: ='[1]ACS - Capex'!D70 -> 97.27438054 | E70: ='[1]ACS - Capex'!E70 -> 100.5725027 | F70: ='[1]ACS - Capex'!F70 -> 103.9824488 | G70: ='[1]ACS - Capex'!G70 -> 107.5080104 | H70: ='[1]ACS - Capex'!H70 -> 111.1531074
A71: Number of luminaires replaced per year - rural | D71: ='[1]ACS - Capex'!D71 -> 33.58833425 | E71: ='[1]ACS - Capex'!E71 -> 34.72715856 | F71: ='[1]ACS - Capex'!F71 -> 35.90459511 | G71: ='[1]ACS - Capex'!G71 -> 37.12195306 | H71: ='[1]ACS - Capex'!H71 -> 38.38058596
A72: Number of luminaires replaced per day - remote | D72: ='[1]ACS - Capex'!D72 -> 5.200314741 | E72: ='[1]ACS - Capex'!E72 -> 5.376633245 | F72: ='[1]ACS - Capex'!F72 -> 5.55892989 | G72: ='[1]ACS - Capex'!G72 -> 5.747407366 | H72: ='[1]ACS - Capex'!H72 -> 5.942275238
A76: Dedicated street lighting poles
A78: Cost of pole & bracket | C78: ='[1]ACS - Capex'!C78 -> 1598.251629 | D78: ='[1]ACS - Capex'!D78 -> 1598.251629 | E78: ='[1]ACS - Capex'!E78 -> 1598.251629 | F78: ='[1]ACS - Capex'!F78 -> 1598.251629 | G78: ='[1]ACS - Capex'!G78 -> 1598.251629 | H78: ='[1]ACS - Capex'!H78 -> 1598.251629
A79: Number of poles & brackets replaced per day | C79: ='[1]ACS - Capex'!C79 -> 3.84 | D79: ='[1]ACS - Capex'!D79 -> 3.84 | E79: ='[1]ACS - Capex'!E79 -> 3.84 | F79: ='[1]ACS - Capex'!F79 -> 3.84 | G79: ='[1]ACS - Capex'!G79 -> 3.84 | H79: ='[1]ACS - Capex'!H79 -> 3.84
A80: Cost of bracket on non-dedicated poles | C80: ='[1]ACS - Capex'!C80 -> 48.47299616 | D80: ='[1]ACS - Capex'!D80 -> 48.47299616 | E80: ='[1]ACS - Capex'!E80 -> 48.47299616 | F80: ='[1]ACS - Capex'!F80 -> 48.47299616 | G80: ='[1]ACS - Capex'!G80 -> 48.47299616 | H80: ='[1]ACS - Capex'!H80 -> 48.47299616
A81: Number of brackets replaced per day | C81: ='[1]ACS - Capex'!C81 -> 19.2 | D81: ='[1]ACS - Capex'!D81 -> 19.2 | E81: ='[1]ACS - Capex'!E81 -> 19.2 | F81: ='[1]ACS - Capex'!F81 -> 19.2 | G81: ='[1]ACS - Capex'!G81 -> 19.2 | H81: ='[1]ACS - Capex'!H81 -> 19.2
A83: Other poles & brackets Capex unit costs Describe :………………… | C83: ='[1]ACS - Capex'!C83 -> 0 | D83: ='[1]ACS - Capex'!D83 -> 0 | E83: ='[1]ACS - Capex'!E83 -> 0 | F83: ='[1]ACS - Capex'!F83 -> 0 | G83: ='[1]ACS - Capex'!G83 -> 0 | H83: ='[1]ACS - Capex'!H83 -> 0
A86: Forecast Quantities to be replaced
A87: Number of poles & brackets replaced per year - urban | D87: ='[1]ACS - Capex'!D87 -> 0 | E87: ='[1]ACS - Capex'!E87 -> 0 | F87: ='[1]ACS - Capex'!F87 -> 0 | G87: ='[1]ACS - Capex'!G87 -> 0 | H87: ='[1]ACS - Capex'!H87 -> 0
A88: Number of poles & brackets replaced per year - rural | D88: ='[1]ACS - Capex'!D88 -> 0 | E88: ='[1]ACS - Capex'!E88 -> 0 | F88: ='[1]ACS - Capex'!F88 -> 0 | G88: ='[1]ACS - Capex'!G88 -> 0 | H88: ='[1]ACS - Capex'!H88 -> 0
A89: Number of poles & brackets replaced per year - remote | D89: ='[1]ACS - Capex'!D89 -> 0 | E89: ='[1]ACS - Capex'!E89 -> 0 | F89: ='[1]ACS - Capex'!F89 -> 0 | G89: ='[1]ACS - Capex'!G89 -> 0 | H89: ='[1]ACS - Capex'!H89 -> 0
A91: Brackets on non-dedicated poles :
A92: Number of brackets replaced per year - urban | D92: ='[1]ACS - Capex'!D92 -> 20 | E92: ='[1]ACS - Capex'!E92 -> 20 | F92: ='[1]ACS - Capex'!F92 -> 20 | G92: ='[1]ACS - Capex'!G92 -> 20 | H92: ='[1]ACS - Capex'!H92 -> 20
A93: Number of brackets replaced per year - rural | D93: ='[1]ACS - Capex'!D93 -> 30 | E93: ='[1]ACS - Capex'!E93 -> 30 | F93: ='[1]ACS - Capex'!F93 -> 30 | G93: ='[1]ACS - Capex'!G93 -> 30 | H93: ='[1]ACS - Capex'!H93 -> 30
A94: Number of brackets replaced per year - remote | D94: ='[1]ACS - Capex'!D94 -> 2 | E94: ='[1]ACS - Capex'!E94 -> 2 | F94: ='[1]ACS - Capex'!F94 -> 2 | G94: ='[1]ACS - Capex'!G94 -> 2 | H94: ='[1]ACS - Capex'!H94 -> 2
A98: Luminaire Replacents - Other Light types (excluding Energy Efficient Lights)
A99: Number of luminaires replaced per year | D99: ='[1]ACS - Capex'!D99 -> 860.1327896 | E99: ='[1]ACS - Capex'!E99 -> 860.1327896 | F99: ='[1]ACS - Capex'!F99 -> 860.1327896 | G99: ='[1]ACS - Capex'!G99 -> 860.1327896 | H99: ='[1]ACS - Capex'!H99 -> 860.1327896
A100: Forecast Capex | D100: ='[1]ACS - Capex'!D100 -> 721197.9954 | E100: ='[1]ACS - Capex'!E100 -> 721197.9954 | F100: ='[1]ACS - Capex'!F100 -> 721197.9954 | G100: ='[1]ACS - Capex'!G100 -> 721197.9954 | H100: ='[1]ACS - Capex'!H100 -> 721197.9954
A104: Inputs - T5 (2 X 14W)
A106: Unit cost - luminaire | C106: ='[1]ACS - Capex'!C106 -> 301.4158875 | D106: ='[1]ACS - Capex'!D106 -> 301.4158875 | E106: ='[1]ACS - Capex'!E106 -> 301.4158875 | F106: ='[1]ACS - Capex'!F106 -> 301.4158875 | G106: ='[1]ACS - Capex'!G106 -> 301.4158875 | H106: ='[1]ACS - Capex'!H106 -> 301.4158875
A107: Unit cost - miscellaneous materials | C107: ='[1]ACS - Capex'!C107 -> 1.249754903 | D107: ='[1]ACS - Capex'!D107 -> 1.249754903 | E107: ='[1]ACS - Capex'!E107 -> 1.249754903 | F107: ='[1]ACS - Capex'!F107 -> 1.249754903 | G107: ='[1]ACS - Capex'!G107 -> 1.249754903 | H107: ='[1]ACS - Capex'!H107 -> 1.249754903
A108: Number of men in crew - repairs | C108: ='[1]ACS - Capex'!C108 -> 2 | D108: ='[1]ACS - Capex'!D108 -> 2 | E108: ='[1]ACS - Capex'!E108 -> 2 | F108: ='[1]ACS - Capex'!F108 -> 2 | G108: ='[1]ACS - Capex'!G108 -> 2 | H108: ='[1]ACS - Capex'!H108 -> 2
A109: Number of luminaires replaced per day - urban | C109: ='[1]ACS - Capex'!C109 -> 15.36 | D109: ='[1]ACS - Capex'!D109 -> 15.36 | E109: ='[1]ACS - Capex'!E109 -> 15.36 | F109: ='[1]ACS - Capex'!F109 -> 15.36 | G109: ='[1]ACS - Capex'!G109 -> 15.36 | H109: ='[1]ACS - Capex'!H109 -> 15.36
A110: Number of luminaires replaced per day - rural | C110: ='[1]ACS - Capex'!C110 -> 12.48 | D110: ='[1]ACS - Capex'!D110 -> 12.48 | E110: ='[1]ACS - Capex'!E110 -> 12.48 | F110: ='[1]ACS - Capex'!F110 -> 12.48 | G110: ='[1]ACS - Capex'!G110 -> 12.48 | H110: ='[1]ACS - Capex'!H110 -> 12.48
A111: Number of luminaires replaced per day - remote | C111: ='[1]ACS - Capex'!C111 -> 9.6 | D111: ='[1]ACS - Capex'!D111 -> 9.6 | E111: ='[1]ACS - Capex'!E111 -> 9.6 | F111: ='[1]ACS - Capex'!F111 -> 9.6 | G111: ='[1]ACS - Capex'!G111 -> 9.6 | H111: ='[1]ACS - Capex'!H111 -> 9.6
A113: Other Capex unit costs Describe :……………………… | C113: ='[1]ACS - Capex'!C113 -> 0 | D113: ='[1]ACS - Capex'!D113 -> 0 | E113: ='[1]ACS - Capex'!E113 -> 0 | F113: ='[1]ACS - Capex'!F113 -> 0 | G113: ='[1]ACS - Capex'!G113 -> 0 | H113: ='[1]ACS - Capex'!H113 -> 0
A115: Forecast Quantities to be replaced
A116: Number of luminaires replaced per year - urban | D116: ='[1]ACS - Capex'!D116 -> 9.181778701 | E116: ='[1]ACS - Capex'!E116 -> 8.60799289 | F116: ='[1]ACS - Capex'!F116 -> 8.390065158 | G116: ='[1]ACS - Capex'!G116 -> 8.124942895 | H116: ='[1]ACS - Capex'!H116 -> 7.819731279
A117: Number of luminaires replaced per year - rural | D117: ='[1]ACS - Capex'!D117 -> 6.396250046 | E117: ='[1]ACS - Capex'!E117 -> 5.996536914 | F117: ='[1]ACS - Capex'!F117 -> 5.844723164 | G117: ='[1]ACS - Capex'!G117 -> 5.660032556 | H117: ='[1]ACS - Capex'!H117 -> 5.447414731
A118: Number of luminaires replaced per day - remote | D118: ='[1]ACS - Capex'!D118 -> 0.008050660851 | E118: ='[1]ACS - Capex'!E118 -> 0.007547560622 | F118: ='[1]ACS - Capex'!F118 -> 0.007356479753 | G118: ='[1]ACS - Capex'!G118 -> 0.007124018321 | H118: ='[1]ACS - Capex'!H118 -> 0.006856406207
A122: Inputs - Category P LED
A124: Unit cost - luminaire | C124: ='[1]ACS - Capex'!C124 -> 352.7287516 | D124: ='[1]ACS - Capex'!D124 -> 352.7287516 | E124: ='[1]ACS - Capex'!E124 -> 352.7287516 | F124: ='[1]ACS - Capex'!F124 -> 352.7287516 | G124: ='[1]ACS - Capex'!G124 -> 352.7287516 | H124: ='[1]ACS - Capex'!H124 -> 352.7287516
A125: Unit cost - miscellaneous materials | C125: ='[1]ACS - Capex'!C125 -> 0 | D125: ='[1]ACS - Capex'!D125 -> 0 | E125: ='[1]ACS - Capex'!E125 -> 0 | F125: ='[1]ACS - Capex'!F125 -> 0 | G125: ='[1]ACS - Capex'!G125 -> 0 | H125: ='[1]ACS - Capex'!H125 -> 0
A126: Number of men in crew - repairs | C126: ='[1]ACS - Capex'!C126 -> 2 | D126: ='[1]ACS - Capex'!D126 -> 2 | E126: ='[1]ACS - Capex'!E126 -> 2 | F126: ='[1]ACS - Capex'!F126 -> 2 | G126: ='[1]ACS - Capex'!G126 -> 2 | H126: ='[1]ACS - Capex'!H126 -> 2
A127: Number of luminaires replaced per day - urban | C127: ='[1]ACS - Capex'!C127 -> 15.36 | D127: ='[1]ACS - Capex'!D127 -> 15.36 | E127: ='[1]ACS - Capex'!E127 -> 15.36 | F127: ='[1]ACS - Capex'!F127 -> 15.36 | G127: ='[1]ACS - Capex'!G127 -> 15.36 | H127: ='[1]ACS - Capex'!H127 -> 15.36
A128: Number of luminaires replaced per day - rural | C128: ='[1]ACS - Capex'!C128 -> 12.48 | D128: ='[1]ACS - Capex'!D128 -> 12.48 | E128: ='[1]ACS - Capex'!E128 -> 12.48 | F128: ='[1]ACS - Capex'!F128 -> 12.48 | G128: ='[1]ACS - Capex'!G128 -> 12.48 | H128: ='[1]ACS - Capex'!H128 -> 12.48
A129: Number of luminaires replaced per day - remote | C129: ='[1]ACS - Capex'!C129 -> 9.6 | D129: ='[1]ACS - Capex'!D129 -> 9.6 | E129: ='[1]ACS - Capex'!E129 -> 9.6 | F129: ='[1]ACS - Capex'!F129 -> 9.6 | G129: ='[1]ACS - Capex'!G129 -> 9.6 | H129: ='[1]ACS - Capex'!H129 -> 9.6
A131: Other Capex unit costs Describe :……………………… | C131: ='[1]ACS - Capex'!C131 -> 0 | D131: ='[1]ACS - Capex'!D131 -> 0 | E131: ='[1]ACS - Capex'!E131 -> 0 | F131: ='[1]ACS - Capex'!F131 -> 0 | G131: ='[1]ACS - Capex'!G131 -> 0 | H131: ='[1]ACS - Capex'!H131 -> 0
A133: Forecast Quantities to be replaced
A134: Number of luminaires replaced per year - urban | D134: ='[1]ACS - Capex'!D134 -> 18.21009272 | E134: ='[1]ACS - Capex'!E134 -> 24.19308979 | F134: ='[1]ACS - Capex'!F134 -> 25.98677888 | G134: ='[1]ACS - Capex'!G134 -> 27.73352765 | H134: ='[1]ACS - Capex'!H134 -> 29.41536936
A135: Number of luminaires replaced per year - rural | D135: ='[1]ACS - Capex'!D135 -> 39.59368068 | E135: ='[1]ACS - Capex'!E135 -> 52.60233908 | F135: ='[1]ACS - Capex'!F135 -> 56.50230567 | G135: ='[1]ACS - Capex'!G135 -> 60.30021127 | H135: ='[1]ACS - Capex'!H135 -> 63.9569913
A136: Number of luminaires replaced per day - remote | D136: ='[1]ACS - Capex'!D136 -> 6.358530473 | E136: ='[1]ACS - Capex'!E136 -> 8.44765049 | F136: ='[1]ACS - Capex'!F136 -> 9.073963982 | G136: ='[1]ACS - Capex'!G136 -> 9.683887033 | H136: ='[1]ACS - Capex'!H136 -> 10.27114608
A140: Reset RIN
A141: Number of lights replaced | D141: =SUM(D31:D33,D52:D54,D70:D72,D116:D118,D134:D136) -> 716.2130373 | E141: =SUM(E31:E33,E52:E54,E70:E72,E116:E118,E134:E136) -> 727.2070167 | F141: 734.9209795 | G141: 742.7920377 | H141: 750.8066175

Sheet Total RAB
A1: ='DNSP Inputs O & M'!$A$3 -> Powercor | E1: Check | F1: =SUM(B144) -> 1.164153218e-08
A3: Total Public Lighting RAB
A4: Historical cost ($)
B6: Life (years) | C6: 2005 | D6: 2006 | E6: 2007 | F6: 2008 | G6: 2009 | H6: 2010 | I6: 2011 | J6: 2012 | K6: 2013 | L6: 2014 | M6: 2015 | N6: 2016 | O6: 2017 | P6: 2018 | Q6: 2019 | R6: 2020
A8: Capital Expenditue (Nominal $)
A9: (Net of customer contributions)
A11: Poles and Brackets | B11: 35 | C11: 33973.97092 | D11: 9854.518948 | E11: 4019.908662 | F11: 10474.73343 | G11: ='DNSP Inputs General'!D6 -> 12361.67474 | H11: ='DNSP Inputs General'!E6 -> 16376.14373 | I11: ='DNSP Inputs General'!F6 -> 12461.57225 | J11: ='DNSP Inputs General'!G6 -> 22893.43666 | K11: ='DNSP Inputs General'!H6 -> 29116.5754 | L11: ='DNSP Inputs General'!I6 -> 18668.27037 | M11: ='DNSP Inputs General'!J6*M$20 -> 30960.80833 | N11: ='DNSP Inputs General'!K6*N$20 -> 9540.459456 | O11: ='DNSP Inputs General'!L6*O$20 -> 9915.688241 | P11: ='DNSP Inputs General'!M6*P$20 -> 10299.78973 | Q11: ='DNSP Inputs General'!N6*Q$20 -> 10699.04048 | R11: ='DNSP Inputs General'!O6*R$20 -> 11114.86748
A13: Existing Lights
A14: Luminaires | B14: ='DNSP Inputs O & M'!$C$24 -> 20 | C14: ='[1]DNSP Inputs General'!B9*'[1]allocation inputs'!G12 -> 1176716.127 | D14: ='[1]DNSP Inputs General'!C9*'[1]allocation inputs'!H12 -> 341319.2822 | E14: ='[1]DNSP Inputs General'!D9*'[1]allocation inputs'!I12 -> 139232.8074 | F14: ='[1]DNSP Inputs General'!E9*'[1]allocation inputs'!J12 -> 362800.9153 | G14: ='DNSP Inputs General'!D9 -> 309497.4671 | H14: ='DNSP Inputs General'!E9 -> 268788.4602 | I14: ='DNSP Inputs General'!F9 -> 217388.4566 | J14: ='DNSP Inputs General'!G9 -> 193438.7851 | K14: ='DNSP Inputs General'!H9 -> 242408.8964 | L14: ='DNSP Inputs General'!I9 -> 403721.4986 | M14: ='DNSP Inputs General'!J9*M$20 -> 669560.9014 | N14: ='DNSP Inputs General'!K9*N$20 -> -518493.3609 | O14: ='DNSP Inputs General'!L9*O$20 -> -148473.5853 | P14: ='DNSP Inputs General'!M9*P$20 -> 149072.4902 | Q14: ='DNSP Inputs General'!N9*Q$20 -> 178742.0277 | R14: ='DNSP Inputs General'!O9*R$20 -> 206584.2964
A16: Energy Efficient Lights
A17: Luminaires and Ballasts | B17: ='DNSP Inputs O & M'!$C$147 -> 20 | G17: ='DNSP Inputs General'!D12 -> 118659.1961 | H17: ='DNSP Inputs General'!E12 -> 103051.6434 | I17: ='DNSP Inputs General'!F12 -> 83345.23619 | J17: ='DNSP Inputs General'!G12 -> 74163.09718 | K17: ='DNSP Inputs General'!H12 -> 92937.90038 | L17: ='DNSP Inputs General'!I12 -> 154784.0404 | M17: ='DNSP Inputs General'!J12*M$20 -> 256705.0355 | N17: ='DNSP Inputs General'!K12*N$20 -> 44640.6537 | O17: ='DNSP Inputs General'!L12*O$20 -> 58070.81405 | P17: ='DNSP Inputs General'!M12*P$20 -> 63603.94699 | Q17: ='DNSP Inputs General'!N12*Q$20 -> 69287.19965 | R17: ='DNSP Inputs General'!O12*R$20 -> 75088.64644
A20: CPI Index | M20: 1 | N20: =M20*(1+WACC!E$6) -> 1.026 | O20: =N20*(1+WACC!F$6) -> 1.052676 | P20: =O20*(1+WACC!G$6) -> 1.080045576 | Q20: =P20*(1+WACC!H$6) -> 1.108126761 | R20: =Q20*(1+WACC!I$6) -> 1.136938057
A23: Depreciation | C23: =$C$6 -> 2005 | D23: =$D$6 -> 2006 | E23: =$E$6 -> 2007 | F23: =$F$6 -> 2008 | G23: =G$6 -> 2009 | H23: =H$6 -> 2010 | I23: 2011 | J23: 2012 | K23: 2013 | L23: 2014 | M23: 2015 | N23: 2016 | O23: 2017 | P23: 2018 | Q23: 2019 | R23: 2020
A24: =$A$11 -> Poles and Brackets
A25: RAB 2001-04 | C25: ='RAB 2001 to 2004'!F113 -> 0 | D25: ='RAB 2001 to 2004'!G113 -> 0 | E25: ='RAB 2001 to 2004'!H113 -> 0 | F25: ='RAB 2001 to 2004'!I113 -> 0 | G25: ='RAB 2001 to 2004'!J113 -> 0 | H25: ='RAB 2001 to 2004'!K113 -> 0 | I25: ='RAB 2001 to 2004'!L113 -> 0 | J25: ='RAB 2001 to 2004'!M113 -> 0 | K25: ='RAB 2001 to 2004'!N113 -> 0 | L25: ='RAB 2001 to 2004'!O113 -> 0 | M25: ='RAB 2001 to 2004'!P113 -> 0 | N25: ='RAB 2001 to 2004'!Q113 -> 0 | O25: ='RAB 2001 to 2004'!R113 -> 0 | P25: ='RAB 2001 to 2004'!S113 -> 0 | Q25: ='RAB 2001 to 2004'!T113 -> 0 | R25: ='RAB 2001 to 2004'!U113 -> 0
A26: Depn Capex 2005 | C26: =C$11/$B$11/2 -> 485.3424417 | D26: =C26*2 -> 970.6848834 | E26: =D26 -> 970.6848834 | F26: =E26 -> 970.6848834 | G26: =F26 -> 970.6848834 | H26: 970.6848834 | I26: 970.6848834 | J26: 970.6848834 | K26: 970.6848834 | L26: 970.6848834 | M26: 970.6848834 | N26: 970.6848834 | O26: 970.6848834 | P26: 970.6848834 | Q26: 970.6848834 | R26: 970.6848834
A27: Depn Capex 2006 | D27: =D$11/$B$11/2 -> 140.7788421 | E27: =D27*2 -> 281.5576842 | F27: =E27 -> 281.5576842 | G27: 281.5576842 | H27: 281.5576842 | I27: 281.5576842 | J27: 281.5576842 | K27: 281.5576842 | L27: 281.5576842 | M27: 281.5576842 | N27: 281.5576842 | O27: 281.5576842 | P27: 281.5576842 | Q27: 281.5576842 | R27: 281.5576842
A28: Depn Capex 2007 | E28: =E$11/$B$11/2 -> 57.4272666 | F28: =E28*2 -> 114.8545332 | G28: =F28 -> 114.8545332 | H28: 114.8545332 | I28: 114.8545332 | J28: 114.8545332 | K28: 114.8545332 | L28: 114.8545332 | M28: 114.8545332 | N28: 114.8545332 | O28: 114.8545332 | P28: 114.8545332 | Q28: 114.8545332 | R28: 114.8545332
A29: Depn Capex 2008 | F29: =F$11/$B$11/2 -> 149.639049 | G29: =F29*2 -> 299.2780979 | H29: 299.2780979 | I29: 299.2780979 | J29: 299.2780979 | K29: 299.2780979 | L29: 299.2780979 | M29: 299.2780979 | N29: 299.2780979 | O29: 299.2780979 | P29: 299.2780979 | Q29: 299.2780979 | R29: 299.2780979
A30: Depn Capex 2009 | G30: =G$11/$B$11/2 -> 176.5953535 | H30: =G30*2 -> 353.190707 | I30: =H30 -> 353.190707 | J30: =I30 -> 353.190707 | K30: =J30 -> 353.190707 | L30: =K30 -> 353.190707 | M30: =L30 -> 353.190707 | N30: 353.190707 | O30: 353.190707 | P30: 353.190707 | Q30: 353.190707 | R30: 353.190707
A31: Depn Capex 2010 | H31: =H$11/$B$11/2 -> 233.9449104 | I31: =H31*2 -> 467.8898208 | J31: =I31 -> 467.8898208 | K31: =J31 -> 467.8898208 | L31: =K31 -> 467.8898208 | M31: =L31 -> 467.8898208 | N31: 467.8898208 | O31: 467.8898208 | P31: 467.8898208 | Q31: 467.8898208 | R31: 467.8898208
A32: Depn Capex 2011 | I32: =I$11/$B$11/2 -> 178.0224606 | J32: =I32*2 -> 356.0449213 | K32: =J32 -> 356.0449213 | L32: =K32 -> 356.0449213 | M32: =L32 -> 356.0449213 | N32: 356.0449213 | O32: 356.0449213 | P32: 356.0449213 | Q32: 356.0449213 | R32: 356.0449213
A33: Depn Capex 2012 | J33: =J$11/$B$11/2 -> 327.0490951 | K33: =J33*2 -> 654.0981903 | L33: =K33 -> 654.0981903 | M33: =L33 -> 654.0981903 | N33: 654.0981903 | O33: 654.0981903 | P33: 654.0981903 | Q33: 654.0981903 | R33: 654.0981903
A34: Depn Capex 2013 | K34: =K$11/$B$11/2 -> 415.9510772 | L34: =K34*2 -> 831.9021543 | M34: =L34 -> 831.9021543 | N34: 831.9021543 | O34: 831.9021543 | P34: 831.9021543 | Q34: 831.9021543 | R34: 831.9021543
A35: Depn Capex 2014 | L35: =L$11/$B$11/2 -> 266.6895767 | M35: =L35*2 -> 533.3791534 | N35: 533.3791534 | O35: 533.3791534 | P35: 533.3791534 | Q35: 533.3791534 | R35: 533.3791534
A36: Depn Capex 2015 | M36: =M$11/$B$11/2 -> 442.2972618 | N36: =M36*2 -> 884.5945237 | O36: 884.5945237 | P36: 884.5945237 | Q36: 884.5945237 | R36: 884.5945237
A37: Depn Capex 2016 | N37: =N$11/$B$11/2 -> 136.2922779 | O37: =N37*2 -> 272.5845559 | P37: 272.5845559 | Q37: 272.5845559 | R37: 272.5845559
A38: Depn Capex 2017 | O38: =O$11/$B$11/2 -> 141.6526892 | P38: =O38*2 -> 283.3053783 | Q38: 283.3053783 | R38: 283.3053783
A39: Depn Capex 2018 | P39: =P$11/$B$11/2 -> 147.1398533 | Q39: =P39*2 -> 294.2797066 | R39: 294.2797066
A40: Depn Capex 2019 | Q40: =Q$11/$B$11/2 -> 152.8434354 | R40: =Q40*2 -> 305.6868708
A41: Depn Capex 2020 | R41: =R$11/$B$11/2 -> 158.7838212
A42: Total Depreciation | C42: =SUM(C25:C41) -> 485.3424417 | D42: =SUM(D25:D41) -> 1111.463725 | E42: 1309.669834 | F42: 1516.73615 | G42: 1842.970552 | H42: 2253.510816 | I42: 2665.478187 | J42: 3170.549743 | K42: 3913.549915 | L42: 4596.190569 | M42: 5305.177408 | N42: 5883.766947 | O42: 6161.711914 | P42: 6450.504457 | Q42: 6750.487746 | R42: 7062.115002
A44: =$A$13 -> Existing Lights
A45: =$A$14 -> Luminaires
A46: =A25 -> RAB 2001-04 | C46: ='RAB 2001 to 2004'!F77 -> 168384.5178 | D46: ='RAB 2001 to 2004'!G77 -> 168384.5178 | E46: ='RAB 2001 to 2004'!H77 -> 168384.5178 | F46: ='RAB 2001 to 2004'!I77 -> 168384.5178 | G46: ='RAB 2001 to 2004'!J77 -> 168384.5178 | H46: ='RAB 2001 to 2004'!K77 -> 168384.5178 | I46: ='RAB 2001 to 2004'!L77 -> 168384.5178 | J46: ='RAB 2001 to 2004'!M77 -> 168384.5178 | K46: ='RAB 2001 to 2004'!N77 -> 168384.5178 | L46: ='RAB 2001 to 2004'!O77 -> 168384.5178 | M46: ='RAB 2001 to 2004'!P77 -> 168384.5178 | N46: ='RAB 2001 to 2004'!Q77 -> 168384.5178 | O46: ='RAB 2001 to 2004'!R77 -> 168384.5178 | P46: ='RAB 2001 to 2004'!S77 -> 168384.5178 | Q46: ='RAB 2001 to 2004'!T77 -> 168384.5178 | R46: ='RAB 2001 to 2004'!U77 -> 168384.5178
A47: =A26 -> Depn Capex 2005 | C47: =C$14/$B$14/2 -> 29417.90317 | D47: =C47*2 -> 58835.80634 | E47: =D47 -> 58835.80634 | F47: 58835.80634 | G47: 58835.80634 | H47: 58835.80634 | I47: 58835.80634 | J47: 58835.80634 | K47: 58835.80634 | L47: 58835.80634 | M47: 58835.80634 | N47: =M47 -> 58835.80634 | O47: =N47 -> 58835.80634 | P47: =O47 -> 58835.80634 | Q47: =P47 -> 58835.80634 | R47: =Q47 -> 58835.80634
A48: =A27 -> Depn Capex 2006 | D48: =D$14/$B$14/2 -> 8532.982055 | E48: =D48*2 -> 17065.96411 | F48: =E48 -> 17065.96411 | G48: 17065.96411 | H48: 17065.96411 | I48: 17065.96411 | J48: 17065.96411 | K48: 17065.96411 | L48: 17065.96411 | M48: 17065.96411 | N48: 17065.96411 | O48: 17065.96411 | P48: 17065.96411 | Q48: 17065.96411 | R48: 17065.96411
A49: Depn Capex 2007 | E49: =E$14/$B$14/2 -> 3480.820185 | F49: =E49*2 -> 6961.640371 | G49: =F49 -> 6961.640371 | H49: 6961.640371 | I49: 6961.640371 | J49: 6961.640371 | K49: 6961.640371 | L49: 6961.640371 | M49: 6961.640371 | N49: 6961.640371 | O49: 6961.640371 | P49: 6961.640371 | Q49: 6961.640371 | R49: 6961.640371
A50: Depn Capex 2008 | F50: =F$14/$B$14/2 -> 9070.022883 | G50: =F50*2 -> 18140.04577 | H50: =G50 -> 18140.04577 | I50: 18140.04577 | J50: 18140.04577 | K50: 18140.04577 | L50: 18140.04577 | M50: 18140.04577 | N50: 18140.04577 | O50: 18140.04577 | P50: 18140.04577 | Q50: 18140.04577 | R50: 18140.04577
A51: Depn Capex 2009 | G51: =G$14/$B$14/2 -> 7737.436679 | H51: =G51*2 -> 15474.87336 | I51: =H51 -> 15474.87336 | J51: =I51 -> 15474.87336 | K51: =J51 -> 15474.87336 | L51: =K51 -> 15474.87336 | M51: =L51 -> 15474.87336 | N51: 15474.87336 | O51: 15474.87336 | P51: 15474.87336 | Q51: 15474.87336 | R51: 15474.87336
A52: Depn Capex 2010 | H52: =H$14/$B$14/2 -> 6719.711506 | I52: =H52*2 -> 13439.42301 | J52: =I52 -> 13439.42301 | K52: =J52 -> 13439.42301 | L52: =K52 -> 13439.42301 | M52: =L52 -> 13439.42301 | N52: 13439.42301 | O52: 13439.42301 | P52: 13439.42301 | Q52: 13439.42301 | R52: 13439.42301
A53: Depn Capex 2011 | I53: =I$14/$B$14/2 -> 5434.711415 | J53: =I53*2 -> 10869.42283 | K53: =J53 -> 10869.42283 | L53: =K53 -> 10869.42283 | M53: =L53 -> 10869.42283 | N53: 10869.42283 | O53: 10869.42283 | P53: 10869.42283 | Q53: 10869.42283 | R53: 10869.42283
A54: Depn Capex 2012 | J54: =J$14/$B$14/2 -> 4835.969628 | K54: =J54*2 -> 9671.939257 | L54: =K54 -> 9671.939257 | M54: =L54 -> 9671.939257 | N54: 9671.939257 | O54: 9671.939257 | P54: 9671.939257 | Q54: 9671.939257 | R54: 9671.939257
A55: Depn Capex 2013 | K55: =K$14/$B$14/2 -> 6060.22241 | L55: =K55*2 -> 12120.44482 | M55: =L55 -> 12120.44482 | N55: 12120.44482 | O55: 12120.44482 | P55: 12120.44482 | Q55: 12120.44482 | R55: 12120.44482
A56: Depn Capex 2014 | L56: =L$14/$B$14/2 -> 10093.03746 | M56: =L56*2 -> 20186.07493 | N56: 20186.07493 | O56: =N56 -> 20186.07493 | P56: =O56 -> 20186.07493 | Q56: =P56 -> 20186.07493 | R56: =Q56 -> 20186.07493
A57: Depn Capex 2015 | M57: =M$14/$B$14/2 -> 16739.02253 | N57: =M57*2 -> 33478.04507 | O57: 33478.04507 | P57: 33478.04507 | Q57: 33478.04507 | R57: 33478.04507
A58: Depn Capex 2016 | N58: =N$14/$B$14/2 -> -12962.33402 | O58: =N58*2 -> -25924.66805 | P58: =O58 -> -25924.66805 | Q58: -25924.66805 | R58: -25924.66805
A59: Depn Capex 2017 | O59: =O$14/$B$14/2 -> -3711.839633 | P59: =O59*2 -> -7423.679265 | Q59: -7423.679265 | R59: -7423.679265
A60: Depn Capex 2018 | P60: =P$14/$B$14/2 -> 3726.812254 | Q60: =P60*2 -> 7453.624509 | R60: 7453.624509
A61: Depn Capex 2019 | Q61: =Q$14/$B$14/2 -> 4468.550692 | R61: =Q61*2 -> 8937.101384
A62: Depn Capex 2020 | R62: =R$14/$B$14/2 -> 5164.60741
A63: Total Depreciation | C63: =SUM(C46:C62) -> 197802.421 | D63: 235753.3062 | E63: 247767.1084 | F63: 260317.9515 | G63: 277125.4111 | H63: 291582.5592 | I63: 303736.9822 | J63: 314007.6632 | K63: 324903.8552 | L63: 341057.1151 | M63: 367889.1751 | N63: =SUM(N46:N62) -> 371665.8636 | O63: 354991.69 | P63: 355006.6626 | Q63: 363202.0255 | R63: 372835.1836
A65: =$A$16 -> Energy Efficient Lights
A66: =$A$17 -> Luminaires and Ballasts
A67: =A46 -> RAB 2001-04
A68: =A47 -> Depn Capex 2005
A69: =A48 -> Depn Capex 2006
A70: Depn Capex 2007
A71: Depn Capex 2008
A72: Depn Capex 2009 | G72: =G$17/$B$17/2 -> 2966.479902 | H72: =G72*2 -> 5932.959804 | I72: =H72 -> 5932.959804 | J72: =I72 -> 5932.959804 | K72: =J72 -> 5932.959804 | L72: =K72 -> 5932.959804 | M72: =L72 -> 5932.959804 | N72: =M72 -> 5932.959804 | O72: 5932.959804 | P72: 5932.959804 | Q72: 5932.959804 | R72: 5932.959804
A73: Depn Capex 2010 | H73: =H$17/$B$17/2 -> 2576.291084 | I73: =H73*2 -> 5152.582168 | J73: =I73 -> 5152.582168 | K73: =J73 -> 5152.582168 | L73: =K73 -> 5152.582168 | M73: =L73 -> 5152.582168 | N73: =M73 -> 5152.582168 | O73: 5152.582168 | P73: 5152.582168 | Q73: 5152.582168 | R73: 5152.582168
A74: Depn Capex 2011 | I74: =I$17/$B$17/2 -> 2083.630905 | J74: =I74*2 -> 4167.261809 | K74: =J74 -> 4167.261809 | L74: =K74 -> 4167.261809 | M74: =L74 -> 4167.261809 | N74: =M74 -> 4167.261809 | O74: 4167.261809 | P74: 4167.261809 | Q74: 4167.261809 | R74: 4167.261809
A75: Depn Capex 2012 | J75: =J$17/$B$17/2 -> 1854.07743 | K75: =J75*2 -> 3708.154859 | L75: =K75 -> 3708.154859 | M75: =L75 -> 3708.154859 | N75: =M75 -> 3708.154859 | O75: 3708.154859 | P75: 3708.154859 | Q75: 3708.154859 | R75: 3708.154859
A76: Depn Capex 2013 | K76: =K$17/$B$17/2 -> 2323.44751 | L76: =K76*2 -> 4646.895019 | M76: =L76 -> 4646.895019 | N76: =M76 -> 4646.895019 | O76: 4646.895019 | P76: 4646.895019 | Q76: 4646.895019 | R76: 4646.895019
A77: Depn Capex 2014 | L77: =L$17/$B$17/2 -> 3869.60101 | M77: =L77*2 -> 7739.20202 | N77: 7739.20202 | O77: =N77 -> 7739.20202 | P77: 7739.20202 | Q77: 7739.20202 | R77: 7739.20202
A78: Depn Capex 2015 | M78: =M$17/$B$17/2 -> 6417.625887 | N78: =M78*2 -> 12835.25177 | O78: =N78 -> 12835.25177 | P78: 12835.25177 | Q78: 12835.25177 | R78: 12835.25177
A79: Depn Capex 2016 | N79: =N$17/$B$17/2 -> 1116.016343 | O79: =N79*2 -> 2232.032685 | P79: =O79 -> 2232.032685 | Q79: 2232.032685 | R79: 2232.032685
A80: Depn Capex 2017 | O80: =O$17/$B$17/2 -> 1451.770351 | P80: =O80*2 -> 2903.540703 | Q80: 2903.540703 | R80: 2903.540703
A81: Depn Capex 2018 | P81: =P$17/$B$17/2 -> 1590.098675 | Q81: =P81*2 -> 3180.19735 | R81: 3180.19735
A82: Depn Capex 2019 | Q82: =Q$17/$B$17/2 -> 1732.179991 | R82: =Q82*2 -> 3464.359983
A83: Depn Capex 2020 | R83: =R$17/$B$17/2 -> 1877.216161
A84: Total Depreciation | C84: =SUM(C67:C83) -> 0 | D84: =SUM(D67:D83) -> 0 | E84: =SUM(E67:E83) -> 0 | F84: =SUM(F67:F83) -> 0 | G84: =SUM(G67:G83) -> 2966.479902 | H84: =SUM(H67:H83) -> 8509.250888 | I84: =SUM(I67:I83) -> 13169.17288 | J84: =SUM(J67:J83) -> 17106.88121 | K84: =SUM(K67:K83) -> 21284.40615 | L84: =SUM(L67:L83) -> 27477.45467 | M84: =SUM(M67:M83) -> 37764.68157 | N84: =SUM(N67:N83) -> 45298.3238 | O84: =SUM(O67:O83) -> 47866.11049 | P84: =SUM(P67:P83) -> 50907.97952 | Q84: =SUM(Q67:Q83) -> 54230.25818 | R84: =SUM(R67:R83) -> 57839.65433
A87: Nominal pre tax WACC | N87: =WACC!E$8 -> 0.08312874735 | O87: =WACC!F$8 -> 0.08312874735 | P87: =WACC!G$8 -> 0.08312874735 | Q87: =WACC!H$8 -> 0.08312874735 | R87: =WACC!I$8 -> 0.08312874735
A90: =$A$11 -> Poles and Brackets
A91: RAB | C91: =C$6 -> 2005 | D91: =D$6 -> 2006 | E91: 2007 | F91: 2008 | G91: 2009 | H91: 2010 | I91: 2011 | J91: 2012 | K91: 2013 | L91: 2014 | M91: 2015 | N91: 2016 | O91: 2017 | P91: 2018 | Q91: 2019 | R91: 2020
A92: Opening RAB | C92: ='RAB 2001 to 2004'!E113 -> 0 | D92: =C95 -> 33488.62848 | E92: 42231.6837 | F92: 44941.92253 | G92: 53899.9198 | H92: 64418.624 | I92: 78541.25691 | J92: 88337.35096 | K92: 108060.2379 | L92: 133263.2634 | M92: 147335.3432 | N92: =M95 -> 172990.9741 | O92: =N95 -> 176647.6666 | P92: =O95 -> 180401.6429 | Q92: =P95 -> 184250.9282 | R92: =Q95 -> 188199.4809
A93: Additional Capex | C93: =C$11 -> 33973.97092 | D93: 9854.518948 | E93: 4019.908662 | F93: 10474.73343 | G93: 12361.67474 | H93: 16376.14373 | I93: 12461.57225 | J93: 22893.43666 | K93: 29116.5754 | L93: 18668.27037 | M93: 30960.80833 | N93: 9540.459456 | O93: 9915.688241 | P93: 10299.78973 | Q93: 10699.04048 | R93: 11114.86748
A94: Depreciation | C94: =C$42 -> 485.3424417 | D94: 1111.463725 | E94: 1309.669834 | F94: 1516.73615 | G94: 1842.970552 | H94: 2253.510816 | I94: 2665.478187 | J94: 3170.549743 | K94: 3913.549915 | L94: 4596.190569 | M94: 5305.177408 | N94: 5883.766947 | O94: 6161.711914 | P94: 6450.504457 | Q94: 6750.487746 | R94: 7062.115002
A95: Closing RAB | C95: =C92+C93-C94 -> 33488.62848 | D95: 42231.6837 | E95: 44941.92253 | F95: 53899.9198 | G95: 64418.624 | H95: 78541.25691 | I95: 88337.35096 | J95: 108060.2379 | K95: 133263.2634 | L95: 147335.3432 | M95: 172990.9741 | N95: =N92+N93-N94 -> 176647.6666 | O95: 180401.6429 | P95: 184250.9282 | Q95: 188199.4809 | R95: 192252.2334
A96: Average RAB | C96: =SUM(C92,C95)/2 -> 16744.31424 | D96: 37860.15609 | E96: 43586.80311 | F96: 49420.92116 | G96: =SUM(G92,G95)/2 -> 59159.2719 | H96: 71479.94045 | I96: 83439.30394 | J96: 98198.79442 | K96: 120661.7506 | L96: 140299.3033 | M96: 160163.1586 | N96: 174819.3203 | O96: 178524.6548 | P96: 182326.2856 | Q96: 186225.2046 | R96: 190225.8572
A98: Total Value to be recovered by change in unit rates | N98: =N$6 -> 2016 | O98: 2017 | P98: 2018 | Q98: 2019 | R98: 2020
A99: Depreciation | N99: =N94 -> 5883.766947 | O99: =O94 -> 6161.711914 | P99: =P94 -> 6450.504457 | Q99: =Q94 -> 6750.487746 | R99: =R94 -> 7062.115002
A100: ROA | N100: =N$87*N96 -> 14532.51111 | O100: =O$87*O96 -> 14840.53092 | P100: 15156.55573 | Q100: 15480.66798 | R100: 15813.23722
N101: =SUM(N99:N100) -> 20416.27806 | O101: 21002.24284 | P101: 21607.06018 | Q101: 22231.15573 | R101: 22875.35222
A104: =$A$13 -> Existing Lights
A105: =$A$14 -> Luminaires
A106: RAB | C106: =$C$6 -> 2005 | D106: =$D$6 -> 2006 | E106: =$E$6 -> 2007 | F106: =$F$6 -> 2008 | G106: =G$6 -> 2009 | H106: =H$6 -> 2010 | I106: 2011 | J106: 2012 | K106: 2013 | L106: 2014 | M106: 2015 | N106: 2016 | O106: 2017 | P106: 2018 | Q106: 2019 | R106: 2020
A107: Opening RAB | C107: ='RAB 2001 to 2004'!E77 -> 3030921.32 | D107: =C110 -> 4009835.026 | E107: 4115401.002 | F107: 4006866.701 | G107: 4109349.665 | H107: 4141721.721 | I107: 4118927.622 | J107: 4032579.096 | K107: 3912010.218 | L107: 3829515.26 | M107: 3892179.643 | N107: =M110 -> 4193851.369 | O107: =N110 -> 3303692.145 | P107: =O110 -> 2800226.869 | Q107: =P110 -> 2594292.697 | R107: =Q110 -> 2409832.699
A108: Additional Capex | C108: =C$14 -> 1176716.127 | D108: 341319.2822 | E108: 139232.8074 | F108: 362800.9153 | G108: 309497.4671 | H108: 268788.4602 | I108: 217388.4566 | J108: 193438.7851 | K108: 242408.8964 | L108: 403721.4986 | M108: 669560.9014 | N108: -518493.3609 | O108: -148473.5853 | P108: 149072.4902 | Q108: 178742.0277 | R108: 206584.2964
A109: Depreciation | C109: =C$63 -> 197802.421 | D109: 235753.3062 | E109: 247767.1084 | F109: 260317.9515 | G109: 277125.4111 | H109: 291582.5592 | I109: 303736.9822 | J109: 314007.6632 | K109: 324903.8552 | L109: 341057.1151 | M109: 367889.1751 | N109: =N$63 -> 371665.8636 | O109: 354991.69 | P109: 355006.6626 | Q109: 363202.0255 | R109: 372835.1836
A110: Closing RAB | C110: =C107+C108-C109 -> 4009835.026 | D110: 4115401.002 | E110: 4006866.701 | F110: 4109349.665 | G110: 4141721.721 | H110: 4118927.622 | I110: 4032579.096 | J110: 3912010.218 | K110: 3829515.26 | L110: 3892179.643 | M110: 4193851.369 | N110: =N107+N108-N109 -> 3303692.145 | O110: 2800226.869 | P110: 2594292.697 | Q110: 2409832.699 | R110: 2243581.812
A111: Average RAB | C111: =SUM(C107,C110)/2 -> 3520378.173 | D111: =SUM(D107,D110)/2 -> 4062618.014 | E111: =SUM(E107,E110)/2 -> 4061133.852 | F111: =SUM(F107,F110)/2 -> 4058108.183 | G111: =SUM(G107,G110)/2 -> 4125535.693 | H111: 4130324.671 | I111: 4075753.359 | J111: 3972294.657 | K111: 3870762.739 | L111: 3860847.451 | M111: 4043015.506 | N111: 3748771.757 | O111: 3051959.507 | P111: 2697259.783 | Q111: 2502062.698 | R111: 2326707.255
A113: Total Value to be recovered by change in unit rates | N113: =N$6 -> 2016 | O113: 2017 | P113: 2018 | Q113: 2019 | R113: 2020
A114: Depreciation | N114: =N109 -> 371665.8636 | O114: =O109 -> 354991.69 | P114: =P109 -> 355006.6626 | Q114: =Q109 -> 363202.0255 | R114: =R109 -> 372835.1836
A115: ROA | N115: =N$87*N111 -> 311630.7003 | O115: =O$87*O111 -> 253705.5708 | P115: 224219.8271 | Q115: 207993.3379 | R115: 193416.2596
N116: =SUM(N114:N115) -> 683296.5639 | O116: 608697.2608 | P116: 579226.4897 | Q116: 571195.3634 | R116: 566251.4432
A119: =$A$16 -> Energy Efficient Lights
A120: =$A$17 -> Luminaires and Ballasts
A121: RAB | C121: =$C$6 -> 2005 | D121: =$D$6 -> 2006 | E121: =$E$6 -> 2007 | F121: =$F$6 -> 2008 | G121: =G$6 -> 2009 | H121: =H$6 -> 2010 | I121: 2011 | J121: 2012 | K121: 2013 | L121: 2014 | M121: 2015 | N121: 2016 | O121: 2017 | P121: 2018 | Q121: 2019 | R121: 2020
A122: Opening RAB | C122: 0 | D122: =C125 -> 0 | E122: 0 | F122: 0 | G122: 0 | H122: 115692.7162 | I122: 210235.1087 | J122: 280411.172 | K122: 337467.3879 | L122: 409120.8822 | M122: 536427.4679 | N122: =M125 -> 755367.8218 | O122: =N125 -> 754710.1517 | P122: =O125 -> 764914.8553 | Q122: =P125 -> 777610.8227 | R122: =Q125 -> 792667.7642
A123: Additional Capex | C123: =C$17 -> 0 | D123: 0 | E123: 0 | F123: 0 | G123: 118659.1961 | H123: 103051.6434 | I123: 83345.23619 | J123: 74163.09718 | K123: 92937.90038 | L123: 154784.0404 | M123: 256705.0355 | N123: 44640.6537 | O123: 58070.81405 | P123: 63603.94699 | Q123: 69287.19965 | R123: 75088.64644
A124: Depreciation | C124: =C$84 -> 0 | D124: 0 | E124: 0 | F124: 0 | G124: 2966.479902 | H124: 8509.250888 | I124: 13169.17288 | J124: 17106.88121 | K124: 21284.40615 | L124: 27477.45467 | M124: 37764.68157 | N124: 45298.3238 | O124: 47866.11049 | P124: 50907.97952 | Q124: 54230.25818 | R124: 57839.65433
A125: Closing RAB | C125: =C122+C123-C124 -> 0 | D125: 0 | E125: 0 | F125: 0 | G125: 115692.7162 | H125: 210235.1087 | I125: 280411.172 | J125: 337467.3879 | K125: 409120.8822 | L125: 536427.4679 | M125: 755367.8218 | N125: =N122+N123-N124 -> 754710.1517 | O125: 764914.8553 | P125: 777610.8227 | Q125: 792667.7642 | R125: 809916.7563
A126: Average RAB | C126: =SUM(C122,C125)/2 -> 0 | D126: 0 | E126: 0 | F126: 0 | G126: =SUM(G122,G125)/2 -> 57846.35809 | H126: 162963.9124 | I126: 245323.1403 | J126: 308939.28 | K126: 373294.1351 | L126: 472774.175 | M126: 645897.6448 | N126: 755038.9868 | O126: 759812.5035 | P126: 771262.839 | Q126: 785139.2935 | R126: 801292.2603
A128: Total Value to be recovered by change in unit rates | N128: =N$6 -> 2016 | O128: 2017 | P128: 2018 | Q128: 2019 | R128: 2020
A129: Depreciation | N129: =N124 -> 45298.3238 | O129: =O124 -> 47866.11049 | P129: =P124 -> 50907.97952 | Q129: =Q124 -> 54230.25818 | R129: =R124 -> 57839.65433
A130: ROA | N130: =N$87*N126 -> 62765.44517 | O130: =O$87*O126 -> 63162.26164 | P130: 64114.11369 | Q130: 65267.64596 | R130: 66610.42186
N131: =SUM(N129:N130) -> 108063.769 | O131: 111028.3721 | P131: 115022.0932 | Q131: 119497.9041 | R131: 124450.0762
A135: Total Public Lighting RAB
A136: Historical cost ($)
A138: RAB | C138: =C$6 -> 2005 | D138: =D$6 -> 2006 | E138: =E$6 -> 2007 | F138: 2008 | G138: 2009 | H138: 2010 | I138: 2011 | J138: 2012 | K138: 2013 | L138: 2014 | M138: 2015 | N138: 2016 | O138: 2017 | P138: 2018 | Q138: 2019 | R138: 2020
A139: Opening RAB | C139: =SUM(C92,C107,C122) -> 3030921.32 | D139: =C142 -> 4043323.654 | E139: =D142 -> 4157632.686 | F139: 4051808.624 | G139: 4163249.585 | H139: 4321833.061 | I139: 4407703.988 | J139: 4401327.619 | K139: 4357537.844 | L139: 4371899.405 | M139: 4575942.454 | N139: 5122210.165 | O139: 4235049.963 | P139: 3745543.368 | Q139: 3556154.448 | R139: 3390699.944
A140: Capex | C140: =SUM(C93,C108,C123) -> 1210690.098 | D140: =SUM(D93,D108,D123) -> 351173.8011 | E140: 143252.7161 | F140: 373275.6488 | G140: 440518.338 | H140: 388216.2473 | I140: 313195.265 | J140: 290495.319 | K140: 364463.3722 | L140: 577173.8093 | M140: 957226.7452 | N140: =SUM(N93,N108,N123) -> -464312.2478 | O140: -80487.08301 | P140: 222976.2269 | Q140: 258728.2678 | R140: 292787.8103
A141: Depreciation | C141: =SUM(C94,C109,C124) -> 198287.7634 | D141: 236864.7699 | E141: 249076.7783 | F141: 261834.6876 | G141: 281934.8615 | H141: 302345.3209 | I141: 319571.6332 | J141: 334285.0942 | K141: 350101.8113 | L141: 373130.7604 | M141: 410959.0341 | N141: =SUM(N94,N109,N124) -> 422847.9544 | O141: 409019.5124 | P141: 412365.1466 | Q141: 424182.7715 | R141: 437736.953
A142: Closing RAB | C142: =C139+C140-C141 -> 4043323.654 | D142: =D139+D140-D141 -> 4157632.686 | E142: =E139+E140-E141 -> 4051808.624 | F142: 4163249.585 | G142: 4321833.061 | H142: 4407703.988 | I142: 4401327.619 | J142: 4357537.844 | K142: 4371899.405 | L142: 4575942.454 | M142: 5122210.165 | N142: 4235049.963 | O142: 3745543.368 | P142: =P139+P140-P141 -> 3556154.448 | Q142: 3390699.944 | R142: 3245750.802
A143: Average RAB | C143: =SUM(C139,C142)/2 -> 3537122.487 | D143: =SUM(D139,D142)/2 -> 4100478.17 | E143: =SUM(E139,E142)/2 -> 4104720.655 | F143: 4107529.104 | G143: 4242541.323 | H143: 4364768.524 | I143: 4404515.803 | J143: 4379432.732 | K143: 4364718.625 | L143: 4473920.93 | M143: 4849076.31 | N143: 4678630.064 | O143: 3990296.665 | P143: 3650848.908 | Q143: 3473427.196 | R143: 3318225.373
A144: Check | B144: =SUM(C144:R144) -> 1.164153218e-08 | C144: =ABS(C142-SUM(C95,C110,C125)) -> 4.656612873e-10 | D144: 4.656612873e-10 | E144: 0 | F144: 4.656612873e-10 | G144: 0 | H144: 9.313225746e-10 | I144: 0 | J144: 0 | K144: 0 | L144: 9.313225746e-10 | M144: 9.313225746e-10 | N144: =ABS(N142-SUM(N95,N110,N125)) -> 1.862645149e-09 | O144: 1.396983862e-09 | P144: 1.862645149e-09 | Q144: 9.313225746e-10 | R144: 1.396983862e-09
A147: Depreciation Useful Lives for RAB RIN
A149: Table 3.3.4.1 - Asset Lives – estimated service life of new assets
A150: “Other” assets with long lives | M150: =ROUND( M11/SUM(M$11,M$14,M$17)*$B11 + M14/SUM(M$11,M$14,M$17)*$B14 + M17/SUM(M$11,M$14,M$17)*$B17, 1) -> 20.5 | N150: Applied for periods 2016-2020
A152: Table 3.3.4.2 - Asset Lives – estimated residual service life
A153: “Other” assets with long lives | M153: =ROUND(M139/M141,1) -> 11.1 | N153: =ROUND(N139/N141,1) -> 12.1 | O153: 10.4 | P153: 9.1 | Q153: 8.4 | R153: 7.7

Sheet PL Tariffs
A1: ='DNSP Inputs O & M'!$A$3 -> Powercor | E1: Global Check | F1: =IF(SUM('Total RAB'!F1,'Depn & WACC Post 2004'!F1,'Cashflow Summary'!F1)<1,"Ok","Error") -> Ok
A3: Public Lighting Tariffs | C3: Nominal Prices | J3: Nominal Price Movement | P3: Real Price Movement (Implied X Factor)
C4: Actual
A5: ='DNSP Inputs General'!A$40 -> Existing Lights | C5: ='DNSP Inputs General'!J$2 -> 2015 | D5: ='DNSP Inputs General'!K$2 -> 2016 | E5: ='DNSP Inputs General'!L$2 -> 2017 | F5: ='DNSP Inputs General'!M$2 -> 2018 | G5: ='DNSP Inputs General'!N$2 -> 2019 | H5: ='DNSP Inputs General'!O$2 -> 2020 | J5: =D5 -> 2016 | K5: =E5 -> 2017 | L5: 2018 | M5: 2019 | N5: 2020 | P5: =J5 -> 2016 | Q5: =K5 -> 2017 | R5: 2018 | S5: 2019 | T5: 2020
A6: ='DNSP Inputs General'!A41 -> Mercury vapour 80 watt | C6: ='DNSP Inputs General'!E41 -> 53.01279618 | D6: ='Charges Summary'!D$31 -> 42.99277685 | E6: ='Charges Summary'!E$31 -> 43.95057814 | F6: ='Charges Summary'!F$31 -> 44.70011948 | G6: ='Charges Summary'!G$31 -> 45.93131059 | H6: ='Charges Summary'!H$31 -> 47.19283905 | J6: =IF(C6=0,"",D6/C6-1) -> -0.1890113341 | K6: =IF(D6=0,"",E6/D6-1) -> 0.02227819078 | L6: =IF(E6=0,"",F6/E6-1) -> 0.01705418613 | M6: =IF(F6=0,"",G6/F6-1) -> 0.02754335186 | N6: =IF(G6=0,"",H6/G6-1) -> 0.02746554452 | P6: =IF(C6=0,"",(D6/'Charges Summary'!D$4)/C6-1) -> -0.2095627038 | Q6: =IF(D6=0,"",(E6/'Charges Summary'!E$4)/(D6/'Charges Summary'!D$4)-1) -> -0.003627494371 | R6: =IF(E6=0,"",(F6/'Charges Summary'!F$4)/(E6/'Charges Summary'!E$4)-1) -> -0.008719116829 | S6: =IF(F6=0,"",(G6/'Charges Summary'!G$4)/(F6/'Charges Summary'!F$4)-1) -> 0.001504241578 | T6: =IF(G6=0,"",(H6/'Charges Summary'!H$4)/(G6/'Charges Summary'!G$4)-1) -> 0.001428405964
A7: ='DNSP Inputs General'!A42 -> Sodium high pressure 150 watt | C7: ='DNSP Inputs General'!E42 -> 87.39393168 | D7: ='Charges Summary'!D$55 -> 101.1654494 | E7: ='Charges Summary'!E$55 -> 104.1761556 | F7: ='Charges Summary'!F$55 -> 106.9033377 | G7: ='Charges Summary'!G$55 -> 110.2074522 | H7: ='Charges Summary'!H$55 -> 113.6407487 | J7: 0.1575797936 | K7: 0.02976022171 | L7: 0.02617856378 | M7: 0.03090749602 | N7: 0.03115303406 | P7: =IF(C7=0,"",(D7/'Charges Summary'!D$4)/C7-1) -> 0.1282454129 | Q7: =IF(D7=0,"",(E7/'Charges Summary'!E$4)/(D7/'Charges Summary'!D$4)-1) -> 0.003664933444 | R7: =IF(E7=0,"",(F7/'Charges Summary'!F$4)/(E7/'Charges Summary'!E$4)-1) -> 0.0001740387691 | S7: =IF(F7=0,"",(G7/'Charges Summary'!G$4)/(F7/'Charges Summary'!F$4)-1) -> 0.004783134525 | T7: =IF(G7=0,"",(H7/'Charges Summary'!H$4)/(G7/'Charges Summary'!G$4)-1) -> 0.005022450354
A8: ='DNSP Inputs General'!A43 -> Sodium high pressure 250 watt | C8: ='DNSP Inputs General'!E43 -> 90.26732099 | D8: ='Charges Summary'!D$71 -> 98.53762669 | E8: ='Charges Summary'!E$71 -> 101.5119661 | F8: ='Charges Summary'!F$71 -> 104.1975524 | G8: ='Charges Summary'!G$71 -> 107.5034937 | H8: ='Charges Summary'!H$71 -> 111.1361207 | J8: 0.09162015229 | K8: 0.03018480905 | L8: 0.02645585891 | M8: 0.0317276289 | N8: 0.03379078128 | P8: =IF(C8=0,"",(D8/'Charges Summary'!D$4)/C8-1) -> 0.06395726344 | Q8: =IF(D8=0,"",(E8/'Charges Summary'!E$4)/(D8/'Charges Summary'!D$4)-1) -> 0.00407876126 | R8: =IF(E8=0,"",(F8/'Charges Summary'!F$4)/(E8/'Charges Summary'!E$4)-1) -> 0.0004443069298 | S8: =IF(F8=0,"",(G8/'Charges Summary'!G$4)/(F8/'Charges Summary'!F$4)-1) -> 0.005582484305 | T8: =IF(G8=0,"",(H8/'Charges Summary'!H$4)/(G8/'Charges Summary'!G$4)-1) -> 0.007593354075
A9: ='DNSP Inputs General'!A44 -> Flourescent 20 watt | C9: ='DNSP Inputs General'!E44 -> 147.3755734 | D9: =IF('DNSP Inputs General'!$B44='DNSP Inputs General'!$A$41,D$6,IF('DNSP Inputs General'!$B44='DNSP Inputs General'!$A$42,D$7,D$8))*'DNSP Inputs General'!$D44 -> 91.14468692 | E9: =IF('DNSP Inputs General'!$B44='DNSP Inputs General'!$A$41,E$6,IF('DNSP Inputs General'!$B44='DNSP Inputs General'!$A$42,E$7,E$8))*'DNSP Inputs General'!$D44 -> 93.17522565 | F9: =IF('DNSP Inputs General'!$B44='DNSP Inputs General'!$A$41,F$6,IF('DNSP Inputs General'!$B44='DNSP Inputs General'!$A$42,F$7,F$8))*'DNSP Inputs General'!$D44 -> 94.76425329 | G9: =IF('DNSP Inputs General'!$B44='DNSP Inputs General'!$A$41,G$6,IF('DNSP Inputs General'!$B44='DNSP Inputs General'!$A$42,G$7,G$8))*'DNSP Inputs General'!$D44 -> 97.37437846 | H9: =IF('DNSP Inputs General'!$B44='DNSP Inputs General'!$A$41,H$6,IF('DNSP Inputs General'!$B44='DNSP Inputs General'!$A$42,H$7,H$8))*'DNSP Inputs General'!$D44 -> 100.0488188 | J9: -0.3815482116 | K9: 0.02227819078 | L9: 0.01705418613 | M9: 0.02754335186 | N9: 0.02746554452 | P9: =IF(C9=0,"",(D9/'Charges Summary'!D$4)/C9-1) -> -0.3972204791 | Q9: =IF(D9=0,"",(E9/'Charges Summary'!E$4)/(D9/'Charges Summary'!D$4)-1) -> -0.003627494371 | R9: =IF(E9=0,"",(F9/'Charges Summary'!F$4)/(E9/'Charges Summary'!E$4)-1) -> -0.008719116829 | S9: =IF(F9=0,"",(G9/'Charges Summary'!G$4)/(F9/'Charges Summary'!F$4)-1) -> 0.001504241578 | T9: =IF(G9=0,"",(H9/'Charges Summary'!H$4)/(G9/'Charges Summary'!G$4)-1) -> 0.001428405964
A10: ='DNSP Inputs General'!A45 -> Flourescent 40 watt | C10: ='DNSP Inputs General'!E45 -> 147.3755734 | D10: =IF('DNSP Inputs General'!$B45='DNSP Inputs General'!$A$41,D$6,IF('DNSP Inputs General'!$B45='DNSP Inputs General'!$A$42,D$7,D$8))*'DNSP Inputs General'!$D45 -> 91.14468692 | E10: =IF('DNSP Inputs General'!$B45='DNSP Inputs General'!$A$41,E$6,IF('DNSP Inputs General'!$B45='DNSP Inputs General'!$A$42,E$7,E$8))*'DNSP Inputs General'!$D45 -> 93.17522565 | F10: =IF('DNSP Inputs General'!$B45='DNSP Inputs General'!$A$41,F$6,IF('DNSP Inputs General'!$B45='DNSP Inputs General'!$A$42,F$7,F$8))*'DNSP Inputs General'!$D45 -> 94.76425329 | G10: =IF('DNSP Inputs General'!$B45='DNSP Inputs General'!$A$41,G$6,IF('DNSP Inputs General'!$B45='DNSP Inputs General'!$A$42,G$7,G$8))*'DNSP Inputs General'!$D45 -> 97.37437846 | H10: =IF('DNSP Inputs General'!$B45='DNSP Inputs General'!$A$41,H$6,IF('DNSP Inputs General'!$B45='DNSP Inputs General'!$A$42,H$7,H$8))*'DNSP Inputs General'!$D45 -> 100.0488188 | J10: -0.3815482116 | K10: 0.02227819078 | L10: 0.01705418613 | M10: 0.02754335186 | N10: 0.02746554452 | P10: =IF(C10=0,"",(D10/'Charges Summary'!D$4)/C10-1) -> -0.3972204791 | Q10: =IF(D10=0,"",(E10/'Charges Summary'!E$4)/(D10/'Charges Summary'!D$4)-1) -> -0.003627494371 | R10: =IF(E10=0,"",(F10/'Charges Summary'!F$4)/(E10/'Charges Summary'!E$4)-1) -> -0.008719116829 | S10: =IF(F10=0,"",(G10/'Charges Summary'!G$4)/(F10/'Charges Summary'!F$4)-1) -> 0.001504241578 | T10: =IF(G10=0,"",(H10/'Charges Summary'!H$4)/(G10/'Charges Summary'!G$4)-1) -> 0.001428405964
A11: ='DNSP Inputs General'!A46 -> Mercury vapour 50 watt | C11: ='DNSP Inputs General'!E46 -> 73.68778669 | D11: =IF('DNSP Inputs General'!$B46='DNSP Inputs General'!$A$41,D$6,IF('DNSP Inputs General'!$B46='DNSP Inputs General'!$A$42,D$7,D$8))*'DNSP Inputs General'!$D46 -> 59.75995982 | E11: =IF('DNSP Inputs General'!$B46='DNSP Inputs General'!$A$41,E$6,IF('DNSP Inputs General'!$B46='DNSP Inputs General'!$A$42,E$7,E$8))*'DNSP Inputs General'!$D46 -> 61.09130361 | F11: =IF('DNSP Inputs General'!$B46='DNSP Inputs General'!$A$41,F$6,IF('DNSP Inputs General'!$B46='DNSP Inputs General'!$A$42,F$7,F$8))*'DNSP Inputs General'!$D46 -> 62.13316607 | G11: =IF('DNSP Inputs General'!$B46='DNSP Inputs General'!$A$41,G$6,IF('DNSP Inputs General'!$B46='DNSP Inputs General'!$A$42,G$7,G$8))*'DNSP Inputs General'!$D46 -> 63.84452173 | H11: =IF('DNSP Inputs General'!$B46='DNSP Inputs General'!$A$41,H$6,IF('DNSP Inputs General'!$B46='DNSP Inputs General'!$A$42,H$7,H$8))*'DNSP Inputs General'!$D46 -> 65.59804628 | J11: -0.1890113341 | K11: 0.02227819078 | L11: 0.01705418613 | M11: 0.02754335186 | N11: 0.02746554452 | P11: =IF(C11=0,"",(D11/'Charges Summary'!D$4)/C11-1) -> -0.2095627038 | Q11: =IF(D11=0,"",(E11/'Charges Summary'!E$4)/(D11/'Charges Summary'!D$4)-1) -> -0.003627494371 | R11: =IF(E11=0,"",(F11/'Charges Summary'!F$4)/(E11/'Charges Summary'!E$4)-1) -> -0.008719116829 | S11: =IF(F11=0,"",(G11/'Charges Summary'!G$4)/(F11/'Charges Summary'!F$4)-1) -> 0.001504241578 | T11: =IF(G11=0,"",(H11/'Charges Summary'!H$4)/(G11/'Charges Summary'!G$4)-1) -> 0.001428405964
A12: ='DNSP Inputs General'!A47 -> Mercury vapour 125 watt | C12: ='DNSP Inputs General'!E47 -> 71.56727484 | D12: =IF('DNSP Inputs General'!$B47='DNSP Inputs General'!$A$41,D$6,IF('DNSP Inputs General'!$B47='DNSP Inputs General'!$A$42,D$7,D$8))*'DNSP Inputs General'!$D47 -> 58.04024875 | E12: =IF('DNSP Inputs General'!$B47='DNSP Inputs General'!$A$41,E$6,IF('DNSP Inputs General'!$B47='DNSP Inputs General'!$A$42,E$7,E$8))*'DNSP Inputs General'!$D47 -> 59.33328048 | F12: =IF('DNSP Inputs General'!$B47='DNSP Inputs General'!$A$41,F$6,IF('DNSP Inputs General'!$B47='DNSP Inputs General'!$A$42,F$7,F$8))*'DNSP Inputs General'!$D47 -> 60.34516129 | G12: =IF('DNSP Inputs General'!$B47='DNSP Inputs General'!$A$41,G$6,IF('DNSP Inputs General'!$B47='DNSP Inputs General'!$A$42,G$7,G$8))*'DNSP Inputs General'!$D47 -> 62.0072693 | H12: =IF('DNSP Inputs General'!$B47='DNSP Inputs General'!$A$41,H$6,IF('DNSP Inputs General'!$B47='DNSP Inputs General'!$A$42,H$7,H$8))*'DNSP Inputs General'!$D47 -> 63.71033272 | J12: -0.1890113341 | K12: 0.02227819078 | L12: 0.01705418613 | M12: 0.02754335186 | N12: 0.02746554452 | P12: =IF(C12=0,"",(D12/'Charges Summary'!D$4)/C12-1) -> -0.2095627038 | Q12: =IF(D12=0,"",(E12/'Charges Summary'!E$4)/(D12/'Charges Summary'!D$4)-1) -> -0.003627494371 | R12: =IF(E12=0,"",(F12/'Charges Summary'!F$4)/(E12/'Charges Summary'!E$4)-1) -> -0.008719116829 | S12: =IF(F12=0,"",(G12/'Charges Summary'!G$4)/(F12/'Charges Summary'!F$4)-1) -> 0.001504241578 | T12: =IF(G12=0,"",(H12/'Charges Summary'!H$4)/(G12/'Charges Summary'!G$4)-1) -> 0.001428405964
A13: ='DNSP Inputs General'!A48 -> Mercury vapour 250 watt | C13: ='DNSP Inputs General'!E48 -> 68.60316396 | D13: =IF('DNSP Inputs General'!$B48='DNSP Inputs General'!$A$41,D$6,IF('DNSP Inputs General'!$B48='DNSP Inputs General'!$A$42,D$7,D$8))*'DNSP Inputs General'!$D48 -> 74.88859629 | E13: =IF('DNSP Inputs General'!$B48='DNSP Inputs General'!$A$41,E$6,IF('DNSP Inputs General'!$B48='DNSP Inputs General'!$A$42,E$7,E$8))*'DNSP Inputs General'!$D48 -> 77.14909426 | F13: =IF('DNSP Inputs General'!$B48='DNSP Inputs General'!$A$41,F$6,IF('DNSP Inputs General'!$B48='DNSP Inputs General'!$A$42,F$7,F$8))*'DNSP Inputs General'!$D48 -> 79.19013982 | G13: =IF('DNSP Inputs General'!$B48='DNSP Inputs General'!$A$41,G$6,IF('DNSP Inputs General'!$B48='DNSP Inputs General'!$A$42,G$7,G$8))*'DNSP Inputs General'!$D48 -> 81.70265519 | H13: =IF('DNSP Inputs General'!$B48='DNSP Inputs General'!$A$41,H$6,IF('DNSP Inputs General'!$B48='DNSP Inputs General'!$A$42,H$7,H$8))*'DNSP Inputs General'!$D48 -> 84.46345174 | J13: 0.09162015229 | K13: 0.03018480905 | L13: 0.02645585891 | M13: 0.0317276289 | N13: 0.03379078128 | P13: =IF(C13=0,"",(D13/'Charges Summary'!D$4)/C13-1) -> 0.06395726344 | Q13: =IF(D13=0,"",(E13/'Charges Summary'!E$4)/(D13/'Charges Summary'!D$4)-1) -> 0.00407876126 | R13: =IF(E13=0,"",(F13/'Charges Summary'!F$4)/(E13/'Charges Summary'!E$4)-1) -> 0.0004443069298 | S13: =IF(F13=0,"",(G13/'Charges Summary'!G$4)/(F13/'Charges Summary'!F$4)-1) -> 0.005582484305 | T13: =IF(G13=0,"",(H13/'Charges Summary'!H$4)/(G13/'Charges Summary'!G$4)-1) -> 0.007593354075
A14: ='DNSP Inputs General'!A49 -> Mercury vapour 400 watt | C14: ='DNSP Inputs General'!E49 -> 79.43524248 | D14: =IF('DNSP Inputs General'!$B49='DNSP Inputs General'!$A$41,D$6,IF('DNSP Inputs General'!$B49='DNSP Inputs General'!$A$42,D$7,D$8))*'DNSP Inputs General'!$D49 -> 86.71311149 | E14: =IF('DNSP Inputs General'!$B49='DNSP Inputs General'!$A$41,E$6,IF('DNSP Inputs General'!$B49='DNSP Inputs General'!$A$42,E$7,E$8))*'DNSP Inputs General'!$D49 -> 89.3305302 | F14: =IF('DNSP Inputs General'!$B49='DNSP Inputs General'!$A$41,F$6,IF('DNSP Inputs General'!$B49='DNSP Inputs General'!$A$42,F$7,F$8))*'DNSP Inputs General'!$D49 -> 91.6938461 | G14: =IF('DNSP Inputs General'!$B49='DNSP Inputs General'!$A$41,G$6,IF('DNSP Inputs General'!$B49='DNSP Inputs General'!$A$42,G$7,G$8))*'DNSP Inputs General'!$D49 -> 94.60307443 | H14: =IF('DNSP Inputs General'!$B49='DNSP Inputs General'!$A$41,H$6,IF('DNSP Inputs General'!$B49='DNSP Inputs General'!$A$42,H$7,H$8))*'DNSP Inputs General'!$D49 -> 97.79978622 | J14: 0.09162015229 | K14: 0.03018480905 | L14: 0.02645585891 | M14: 0.0317276289 | N14: 0.03379078128 | P14: =IF(C14=0,"",(D14/'Charges Summary'!D$4)/C14-1) -> 0.06395726344 | Q14: =IF(D14=0,"",(E14/'Charges Summary'!E$4)/(D14/'Charges Summary'!D$4)-1) -> 0.00407876126 | R14: =IF(E14=0,"",(F14/'Charges Summary'!F$4)/(E14/'Charges Summary'!E$4)-1) -> 0.0004443069298 | S14: =IF(F14=0,"",(G14/'Charges Summary'!G$4)/(F14/'Charges Summary'!F$4)-1) -> 0.005582484305 | T14: =IF(G14=0,"",(H14/'Charges Summary'!H$4)/(G14/'Charges Summary'!G$4)-1) -> 0.007593354075
A15: ='DNSP Inputs General'!A50 -> Mercury vapour 700 watt | C15: ='DNSP Inputs General'!E50 -> 120.0555369 | D15: =IF('DNSP Inputs General'!$B50='DNSP Inputs General'!$A$41,D$6,IF('DNSP Inputs General'!$B50='DNSP Inputs General'!$A$42,D$7,D$8))*'DNSP Inputs General'!$D50 -> 131.0550435 | E15: =IF('DNSP Inputs General'!$B50='DNSP Inputs General'!$A$41,E$6,IF('DNSP Inputs General'!$B50='DNSP Inputs General'!$A$42,E$7,E$8))*'DNSP Inputs General'!$D50 -> 135.010915 | F15: =IF('DNSP Inputs General'!$B50='DNSP Inputs General'!$A$41,F$6,IF('DNSP Inputs General'!$B50='DNSP Inputs General'!$A$42,F$7,F$8))*'DNSP Inputs General'!$D50 -> 138.5827447 | G15: =IF('DNSP Inputs General'!$B50='DNSP Inputs General'!$A$41,G$6,IF('DNSP Inputs General'!$B50='DNSP Inputs General'!$A$42,G$7,G$8))*'DNSP Inputs General'!$D50 -> 142.9796466 | H15: =IF('DNSP Inputs General'!$B50='DNSP Inputs General'!$A$41,H$6,IF('DNSP Inputs General'!$B50='DNSP Inputs General'!$A$42,H$7,H$8))*'DNSP Inputs General'!$D50 -> 147.8110405 | J15: 0.09162015229 | K15: 0.03018480905 | L15: 0.02645585891 | M15: 0.0317276289 | N15: 0.03379078128 | P15: =IF(C15=0,"",(D15/'Charges Summary'!D$4)/C15-1) -> 0.06395726344 | Q15: =IF(D15=0,"",(E15/'Charges Summary'!E$4)/(D15/'Charges Summary'!D$4)-1) -> 0.00407876126 | R15: =IF(E15=0,"",(F15/'Charges Summary'!F$4)/(E15/'Charges Summary'!E$4)-1) -> 0.0004443069298 | S15: =IF(F15=0,"",(G15/'Charges Summary'!G$4)/(F15/'Charges Summary'!F$4)-1) -> 0.005582484305 | T15: =IF(G15=0,"",(H15/'Charges Summary'!H$4)/(G15/'Charges Summary'!G$4)-1) -> 0.007593354075
A16: ='DNSP Inputs General'!A51 -> Sodium low pressure 90 watt | C16: ='DNSP Inputs General'!E51 -> 117.9818078 | D16: =IF('DNSP Inputs General'!$B51='DNSP Inputs General'!$A$41,D$6,IF('DNSP Inputs General'!$B51='DNSP Inputs General'!$A$42,D$7,D$8))*'DNSP Inputs General'!$D51 -> 136.5733567 | E16: =IF('DNSP Inputs General'!$B51='DNSP Inputs General'!$A$41,E$6,IF('DNSP Inputs General'!$B51='DNSP Inputs General'!$A$42,E$7,E$8))*'DNSP Inputs General'!$D51 -> 140.6378101 | F16: =IF('DNSP Inputs General'!$B51='DNSP Inputs General'!$A$41,F$6,IF('DNSP Inputs General'!$B51='DNSP Inputs General'!$A$42,F$7,F$8))*'DNSP Inputs General'!$D51 -> 144.3195059 | G16: =IF('DNSP Inputs General'!$B51='DNSP Inputs General'!$A$41,G$6,IF('DNSP Inputs General'!$B51='DNSP Inputs General'!$A$42,G$7,G$8))*'DNSP Inputs General'!$D51 -> 148.7800605 | H16: =IF('DNSP Inputs General'!$B51='DNSP Inputs General'!$A$41,H$6,IF('DNSP Inputs General'!$B51='DNSP Inputs General'!$A$42,H$7,H$8))*'DNSP Inputs General'!$D51 -> 153.4150108 | J16: 0.1575797936 | K16: 0.02976022171 | L16: 0.02617856378 | M16: 0.03090749602 | N16: 0.03115303406 | P16: =IF(C16=0,"",(D16/'Charges Summary'!D$4)/C16-1) -> 0.1282454129 | Q16: =IF(D16=0,"",(E16/'Charges Summary'!E$4)/(D16/'Charges Summary'!D$4)-1) -> 0.003664933444 | R16: =IF(E16=0,"",(F16/'Charges Summary'!F$4)/(E16/'Charges Summary'!E$4)-1) -> 0.0001740387691 | S16: =IF(F16=0,"",(G16/'Charges Summary'!G$4)/(F16/'Charges Summary'!F$4)-1) -> 0.004783134525 | T16: =IF(G16=0,"",(H16/'Charges Summary'!H$4)/(G16/'Charges Summary'!G$4)-1) -> 0.005022450354
A17: ='DNSP Inputs General'!A52 -> Sodium low pressure 180 watt | C17: ='DNSP Inputs General'!E52 -> 117.2832143 | D17: =IF('DNSP Inputs General'!$B52='DNSP Inputs General'!$A$41,D$6,IF('DNSP Inputs General'!$B52='DNSP Inputs General'!$A$42,D$7,D$8))*'DNSP Inputs General'!$D52 -> 136.5733567 | E17: =IF('DNSP Inputs General'!$B52='DNSP Inputs General'!$A$41,E$6,IF('DNSP Inputs General'!$B52='DNSP Inputs General'!$A$42,E$7,E$8))*'DNSP Inputs General'!$D52 -> 140.6378101 | F17: =IF('DNSP Inputs General'!$B52='DNSP Inputs General'!$A$41,F$6,IF('DNSP Inputs General'!$B52='DNSP Inputs General'!$A$42,F$7,F$8))*'DNSP Inputs General'!$D52 -> 144.3195059 | G17: =IF('DNSP Inputs General'!$B52='DNSP Inputs General'!$A$41,G$6,IF('DNSP Inputs General'!$B52='DNSP Inputs General'!$A$42,G$7,G$8))*'DNSP Inputs General'!$D52 -> 148.7800605 | H17: =IF('DNSP Inputs General'!$B52='DNSP Inputs General'!$A$41,H$6,IF('DNSP Inputs General'!$B52='DNSP Inputs General'!$A$42,H$7,H$8))*'DNSP Inputs General'!$D52 -> 153.4150108 | J17: 0.1644748777 | K17: 0.02976022171 | L17: 0.02617856378 | M17: 0.03090749602 | N17: 0.03115303406 | P17: =IF(C17=0,"",(D17/'Charges Summary'!D$4)/C17-1) -> 0.1349657677 | Q17: =IF(D17=0,"",(E17/'Charges Summary'!E$4)/(D17/'Charges Summary'!D$4)-1) -> 0.003664933444 | R17: =IF(E17=0,"",(F17/'Charges Summary'!F$4)/(E17/'Charges Summary'!E$4)-1) -> 0.0001740387691 | S17: =IF(F17=0,"",(G17/'Charges Summary'!G$4)/(F17/'Charges Summary'!F$4)-1) -> 0.004783134525 | T17: =IF(G17=0,"",(H17/'Charges Summary'!H$4)/(G17/'Charges Summary'!G$4)-1) -> 0.005022450354
A18: ='DNSP Inputs General'!A53 -> Sodium high pressure 400 watt | C18: ='DNSP Inputs General'!E53 -> 120.0555369 | D18: =IF('DNSP Inputs General'!$B53='DNSP Inputs General'!$A$41,D$6,IF('DNSP Inputs General'!$B53='DNSP Inputs General'!$A$42,D$7,D$8))*'DNSP Inputs General'!$D53 -> 131.0550435 | E18: =IF('DNSP Inputs General'!$B53='DNSP Inputs General'!$A$41,E$6,IF('DNSP Inputs General'!$B53='DNSP Inputs General'!$A$42,E$7,E$8))*'DNSP Inputs General'!$D53 -> 135.010915 | F18: =IF('DNSP Inputs General'!$B53='DNSP Inputs General'!$A$41,F$6,IF('DNSP Inputs General'!$B53='DNSP Inputs General'!$A$42,F$7,F$8))*'DNSP Inputs General'!$D53 -> 138.5827447 | G18: =IF('DNSP Inputs General'!$B53='DNSP Inputs General'!$A$41,G$6,IF('DNSP Inputs General'!$B53='DNSP Inputs General'!$A$42,G$7,G$8))*'DNSP Inputs General'!$D53 -> 142.9796466 | H18: =IF('DNSP Inputs General'!$B53='DNSP Inputs General'!$A$41,H$6,IF('DNSP Inputs General'!$B53='DNSP Inputs General'!$A$42,H$7,H$8))*'DNSP Inputs General'!$D53 -> 147.8110405 | J18: 0.09162015229 | K18: 0.03018480905 | L18: 0.02645585891 | M18: 0.0317276289 | N18: 0.03379078128 | P18: =IF(C18=0,"",(D18/'Charges Summary'!D$4)/C18-1) -> 0.06395726344 | Q18: =IF(D18=0,"",(E18/'Charges Summary'!E$4)/(D18/'Charges Summary'!D$4)-1) -> 0.00407876126 | R18: =IF(E18=0,"",(F18/'Charges Summary'!F$4)/(E18/'Charges Summary'!E$4)-1) -> 0.0004443069298 | S18: =IF(F18=0,"",(G18/'Charges Summary'!G$4)/(F18/'Charges Summary'!F$4)-1) -> 0.005582484305 | T18: =IF(G18=0,"",(H18/'Charges Summary'!H$4)/(G18/'Charges Summary'!G$4)-1) -> 0.007593354075
A19: ='DNSP Inputs General'!A54 -> Incandescent 100 watt | C19: ='DNSP Inputs General'!E54 -> 147.3755734 | D19: =IF('DNSP Inputs General'!$B54='DNSP Inputs General'!$A$41,D$6,IF('DNSP Inputs General'!$B54='DNSP Inputs General'!$A$42,D$7,D$8))*'DNSP Inputs General'!$D54 -> 119.5199196 | E19: =IF('DNSP Inputs General'!$B54='DNSP Inputs General'!$A$41,E$6,IF('DNSP Inputs General'!$B54='DNSP Inputs General'!$A$42,E$7,E$8))*'DNSP Inputs General'!$D54 -> 122.1826072 | F19: =IF('DNSP Inputs General'!$B54='DNSP Inputs General'!$A$41,F$6,IF('DNSP Inputs General'!$B54='DNSP Inputs General'!$A$42,F$7,F$8))*'DNSP Inputs General'!$D54 -> 124.2663321 | G19: =IF('DNSP Inputs General'!$B54='DNSP Inputs General'!$A$41,G$6,IF('DNSP Inputs General'!$B54='DNSP Inputs General'!$A$42,G$7,G$8))*'DNSP Inputs General'!$D54 -> 127.6890435 | H19: =IF('DNSP Inputs General'!$B54='DNSP Inputs General'!$A$41,H$6,IF('DNSP Inputs General'!$B54='DNSP Inputs General'!$A$42,H$7,H$8))*'DNSP Inputs General'!$D54 -> 131.1960926 | J19: -0.1890113341 | K19: 0.02227819078 | L19: 0.01705418613 | M19: 0.02754335186 | N19: 0.02746554452 | P19: =IF(C19=0,"",(D19/'Charges Summary'!D$4)/C19-1) -> -0.2095627038 | Q19: =IF(D19=0,"",(E19/'Charges Summary'!E$4)/(D19/'Charges Summary'!D$4)-1) -> -0.003627494371 | R19: =IF(E19=0,"",(F19/'Charges Summary'!F$4)/(E19/'Charges Summary'!E$4)-1) -> -0.008719116829 | S19: =IF(F19=0,"",(G19/'Charges Summary'!G$4)/(F19/'Charges Summary'!F$4)-1) -> 0.001504241578 | T19: =IF(G19=0,"",(H19/'Charges Summary'!H$4)/(G19/'Charges Summary'!G$4)-1) -> 0.001428405964
A20: ='DNSP Inputs General'!A55 -> Incandescent 150 watt | C20: ='DNSP Inputs General'!E55 -> 147.3755734 | D20: =IF('DNSP Inputs General'!$B55='DNSP Inputs General'!$A$41,D$6,IF('DNSP Inputs General'!$B55='DNSP Inputs General'!$A$42,D$7,D$8))*'DNSP Inputs General'!$D55 -> 119.5199196 | E20: =IF('DNSP Inputs General'!$B55='DNSP Inputs General'!$A$41,E$6,IF('DNSP Inputs General'!$B55='DNSP Inputs General'!$A$42,E$7,E$8))*'DNSP Inputs General'!$D55 -> 122.1826072 | F20: =IF('DNSP Inputs General'!$B55='DNSP Inputs General'!$A$41,F$6,IF('DNSP Inputs General'!$B55='DNSP Inputs General'!$A$42,F$7,F$8))*'DNSP Inputs General'!$D55 -> 124.2663321 | G20: =IF('DNSP Inputs General'!$B55='DNSP Inputs General'!$A$41,G$6,IF('DNSP Inputs General'!$B55='DNSP Inputs General'!$A$42,G$7,G$8))*'DNSP Inputs General'!$D55 -> 127.6890435 | H20: =IF('DNSP Inputs General'!$B55='DNSP Inputs General'!$A$41,H$6,IF('DNSP Inputs General'!$B55='DNSP Inputs General'!$A$42,H$7,H$8))*'DNSP Inputs General'!$D55 -> 131.1960926 | J20: -0.1890113341 | K20: 0.02227819078 | L20: 0.01705418613 | M20: 0.02754335186 | N20: 0.02746554452 | P20: =IF(C20=0,"",(D20/'Charges Summary'!D$4)/C20-1) -> -0.2095627038 | Q20: =IF(D20=0,"",(E20/'Charges Summary'!E$4)/(D20/'Charges Summary'!D$4)-1) -> -0.003627494371 | R20: =IF(E20=0,"",(F20/'Charges Summary'!F$4)/(E20/'Charges Summary'!E$4)-1) -> -0.008719116829 | S20: =IF(F20=0,"",(G20/'Charges Summary'!G$4)/(F20/'Charges Summary'!F$4)-1) -> 0.001504241578 | T20: =IF(G20=0,"",(H20/'Charges Summary'!H$4)/(G20/'Charges Summary'!G$4)-1) -> 0.001428405964
A21: ='DNSP Inputs General'!A56 -> Metal halide 250 watt | C21: ='DNSP Inputs General'!E56 -> 120.0555369 | D21: =IF('DNSP Inputs General'!$B56='DNSP Inputs General'!$A$41,D$6,IF('DNSP Inputs General'!$B56='DNSP Inputs General'!$A$42,D$7,D$8))*'DNSP Inputs General'!$D56 -> 131.0550435 | E21: =IF('DNSP Inputs General'!$B56='DNSP Inputs General'!$A$41,E$6,IF('DNSP Inputs General'!$B56='DNSP Inputs General'!$A$42,E$7,E$8))*'DNSP Inputs General'!$D56 -> 135.010915 | F21: =IF('DNSP Inputs General'!$B56='DNSP Inputs General'!$A$41,F$6,IF('DNSP Inputs General'!$B56='DNSP Inputs General'!$A$42,F$7,F$8))*'DNSP Inputs General'!$D56 -> 138.5827447 | G21: =IF('DNSP Inputs General'!$B56='DNSP Inputs General'!$A$41,G$6,IF('DNSP Inputs General'!$B56='DNSP Inputs General'!$A$42,G$7,G$8))*'DNSP Inputs General'!$D56 -> 142.9796466 | H21: =IF('DNSP Inputs General'!$B56='DNSP Inputs General'!$A$41,H$6,IF('DNSP Inputs General'!$B56='DNSP Inputs General'!$A$42,H$7,H$8))*'DNSP Inputs General'!$D56 -> 147.8110405 | J21: 0.09162015229 | K21: 0.03018480905 | L21: 0.02645585891 | M21: 0.0317276289 | N21: 0.03379078128 | P21: =IF(C21=0,"",(D21/'Charges Summary'!D$4)/C21-1) -> 0.06395726344 | Q21: =IF(D21=0,"",(E21/'Charges Summary'!E$4)/(D21/'Charges Summary'!D$4)-1) -> 0.00407876126 | R21: =IF(E21=0,"",(F21/'Charges Summary'!F$4)/(E21/'Charges Summary'!E$4)-1) -> 0.0004443069298 | S21: =IF(F21=0,"",(G21/'Charges Summary'!G$4)/(F21/'Charges Summary'!F$4)-1) -> 0.005582484305 | T21: =IF(G21=0,"",(H21/'Charges Summary'!H$4)/(G21/'Charges Summary'!G$4)-1) -> 0.007593354075
A22: ='DNSP Inputs General'!A57 -> Metal halide 400 watt | C22: ='DNSP Inputs General'!E57 -> 120.0555369 | D22: =IF('DNSP Inputs General'!$B57='DNSP Inputs General'!$A$41,D$6,IF('DNSP Inputs General'!$B57='DNSP Inputs General'!$A$42,D$7,D$8))*'DNSP Inputs General'!$D57 -> 131.0550435 | E22: =IF('DNSP Inputs General'!$B57='DNSP Inputs General'!$A$41,E$6,IF('DNSP Inputs General'!$B57='DNSP Inputs General'!$A$42,E$7,E$8))*'DNSP Inputs General'!$D57 -> 135.010915 | F22: =IF('DNSP Inputs General'!$B57='DNSP Inputs General'!$A$41,F$6,IF('DNSP Inputs General'!$B57='DNSP Inputs General'!$A$42,F$7,F$8))*'DNSP Inputs General'!$D57 -> 138.5827447 | G22: =IF('DNSP Inputs General'!$B57='DNSP Inputs General'!$A$41,G$6,IF('DNSP Inputs General'!$B57='DNSP Inputs General'!$A$42,G$7,G$8))*'DNSP Inputs General'!$D57 -> 142.9796466 | H22: =IF('DNSP Inputs General'!$B57='DNSP Inputs General'!$A$41,H$6,IF('DNSP Inputs General'!$B57='DNSP Inputs General'!$A$42,H$7,H$8))*'DNSP Inputs General'!$D57 -> 147.8110405 | J22: 0.09162015229 | K22: 0.03018480905 | L22: 0.02645585891 | M22: 0.0317276289 | N22: 0.03379078128 | P22: =IF(C22=0,"",(D22/'Charges Summary'!D$4)/C22-1) -> 0.06395726344 | Q22: =IF(D22=0,"",(E22/'Charges Summary'!E$4)/(D22/'Charges Summary'!D$4)-1) -> 0.00407876126 | R22: =IF(E22=0,"",(F22/'Charges Summary'!F$4)/(E22/'Charges Summary'!E$4)-1) -> 0.0004443069298 | S22: =IF(F22=0,"",(G22/'Charges Summary'!G$4)/(F22/'Charges Summary'!F$4)-1) -> 0.005582484305 | T22: =IF(G22=0,"",(H22/'Charges Summary'!H$4)/(G22/'Charges Summary'!G$4)-1) -> 0.007593354075
A23: ='DNSP Inputs General'!A58 -> Metal halide 70 watt | C23: ='DNSP Inputs General'!E58 -> 191.9219234 | D23: =IF('DNSP Inputs General'!$B58='DNSP Inputs General'!$A$41,D$6,IF('DNSP Inputs General'!$B58='DNSP Inputs General'!$A$42,D$7,D$8))*'DNSP Inputs General'!$D58 -> 91.14468692 | E23: =IF('DNSP Inputs General'!$B58='DNSP Inputs General'!$A$41,E$6,IF('DNSP Inputs General'!$B58='DNSP Inputs General'!$A$42,E$7,E$8))*'DNSP Inputs General'!$D58 -> 93.17522565 | F23: =IF('DNSP Inputs General'!$B58='DNSP Inputs General'!$A$41,F$6,IF('DNSP Inputs General'!$B58='DNSP Inputs General'!$A$42,F$7,F$8))*'DNSP Inputs General'!$D58 -> 94.76425329 | G23: =IF('DNSP Inputs General'!$B58='DNSP Inputs General'!$A$41,G$6,IF('DNSP Inputs General'!$B58='DNSP Inputs General'!$A$42,G$7,G$8))*'DNSP Inputs General'!$D58 -> 97.37437846 | H23: =IF('DNSP Inputs General'!$B58='DNSP Inputs General'!$A$41,H$6,IF('DNSP Inputs General'!$B58='DNSP Inputs General'!$A$42,H$7,H$8))*'DNSP Inputs General'!$D58 -> 100.0488188 | J23: =IF(C23=0,"",D23/C23-1) -> -0.5250949692 | K23: =IF(D23=0,"",E23/D23-1) -> 0.02227819078 | L23: =IF(E23=0,"",F23/E23-1) -> 0.01705418613 | M23: =IF(F23=0,"",G23/F23-1) -> 0.02754335186 | N23: =IF(G23=0,"",H23/G23-1) -> 0.02746554452 | P23: =IF(C23=0,"",(D23/'Charges Summary'!D$4)/C23-1) -> -0.5371295996 | Q23: =IF(D23=0,"",(E23/'Charges Summary'!E$4)/(D23/'Charges Summary'!D$4)-1) -> -0.003627494371 | R23: =IF(E23=0,"",(F23/'Charges Summary'!F$4)/(E23/'Charges Summary'!E$4)-1) -> -0.008719116829 | S23: =IF(F23=0,"",(G23/'Charges Summary'!G$4)/(F23/'Charges Summary'!F$4)-1) -> 0.001504241578 | T23: =IF(G23=0,"",(H23/'Charges Summary'!H$4)/(G23/'Charges Summary'!G$4)-1) -> 0.001428405964
A24: ='DNSP Inputs General'!A59 -> Metal halide 150 watt | C24: ='DNSP Inputs General'!E59 -> 152.9761672 | D24: =IF('DNSP Inputs General'!$B59='DNSP Inputs General'!$A$41,D$6,IF('DNSP Inputs General'!$B59='DNSP Inputs General'!$A$42,D$7,D$8))*'DNSP Inputs General'!$D59 -> 134.5500477 | E24: =IF('DNSP Inputs General'!$B59='DNSP Inputs General'!$A$41,E$6,IF('DNSP Inputs General'!$B59='DNSP Inputs General'!$A$42,E$7,E$8))*'DNSP Inputs General'!$D59 -> 138.5542869 | F24: =IF('DNSP Inputs General'!$B59='DNSP Inputs General'!$A$41,F$6,IF('DNSP Inputs General'!$B59='DNSP Inputs General'!$A$42,F$7,F$8))*'DNSP Inputs General'!$D59 -> 142.1814392 | G24: =IF('DNSP Inputs General'!$B59='DNSP Inputs General'!$A$41,G$6,IF('DNSP Inputs General'!$B59='DNSP Inputs General'!$A$42,G$7,G$8))*'DNSP Inputs General'!$D59 -> 146.5759115 | H24: =IF('DNSP Inputs General'!$B59='DNSP Inputs General'!$A$41,H$6,IF('DNSP Inputs General'!$B59='DNSP Inputs General'!$A$42,H$7,H$8))*'DNSP Inputs General'!$D59 -> 151.1421958 | J24: -0.1204509162 | K24: 0.02976022171 | L24: 0.02617856378 | M24: 0.03090749602 | N24: 0.03115303406 | P24: =IF(C24=0,"",(D24/'Charges Summary'!D$4)/C24-1) -> -0.1427396844 | Q24: =IF(D24=0,"",(E24/'Charges Summary'!E$4)/(D24/'Charges Summary'!D$4)-1) -> 0.003664933444 | R24: =IF(E24=0,"",(F24/'Charges Summary'!F$4)/(E24/'Charges Summary'!E$4)-1) -> 0.0001740387691 | S24: =IF(F24=0,"",(G24/'Charges Summary'!G$4)/(F24/'Charges Summary'!F$4)-1) -> 0.004783134525 | T24: =IF(G24=0,"",(H24/'Charges Summary'!H$4)/(G24/'Charges Summary'!G$4)-1) -> 0.005022450354
A30: ='DNSP Inputs General'!A$62 -> Energy Efficient Lights
A31: ='DNSP Inputs General'!A63 -> T5 2X14W | C31: ='DNSP Inputs General'!E63 -> 33.60818013 | D31: ='Charges Summary'!D$89 -> 32.21944433 | E31: ='Charges Summary'!E$89 -> 32.71399232 | F31: ='Charges Summary'!F$89 -> 33.82570153 | G31: ='Charges Summary'!G$89 -> 34.9645686 | H31: ='Charges Summary'!H$89 -> 36.13395805 | J31: =IF(C31=0,"",D31/C31-1) -> -0.04132136275 | K31: =IF(D31=0,"",E31/D31-1) -> 0.01534936414 | L31: =IF(E31=0,"",F31/E31-1) -> 0.0339826825 | M31: =IF(F31=0,"",G31/F31-1) -> 0.03366869047 | N31: =IF(G31=0,"",H31/G31-1) -> 0.0334449843 | P31: =IF(C31=0,"",(D31/'Charges Summary'!D$4)/C31-1) -> -0.0656153633 | Q31: =IF(D31=0,"",(E31/'Charges Summary'!E$4)/(D31/'Charges Summary'!D$4)-1) -> -0.01038073671 | R31: =IF(E31=0,"",(F31/'Charges Summary'!F$4)/(E31/'Charges Summary'!E$4)-1) -> 0.007780392301 | S31: =IF(F31=0,"",(G31/'Charges Summary'!G$4)/(F31/'Charges Summary'!F$4)-1) -> 0.007474357185 | T31: =IF(G31=0,"",(H31/'Charges Summary'!H$4)/(G31/'Charges Summary'!G$4)-1) -> 0.007256319979
A32: ='DNSP Inputs General'!A64 -> T5 2X24W | C32: ='DNSP Inputs General'!E64 -> 33.06325076 | D32: =IF('DNSP Inputs General'!$B64='DNSP Inputs General'!$A$63,D$31,D$35)*'DNSP Inputs General'!$D64 -> 31.69703218 | E32: =IF('DNSP Inputs General'!$B64='DNSP Inputs General'!$A$63,E$31,E$35)*'DNSP Inputs General'!$D64 -> 32.18356147 | F32: =IF('DNSP Inputs General'!$B64='DNSP Inputs General'!$A$63,F$31,F$35)*'DNSP Inputs General'!$D64 -> 33.27724522 | G32: =IF('DNSP Inputs General'!$B64='DNSP Inputs General'!$A$63,G$31,G$35)*'DNSP Inputs General'!$D64 -> 34.39764649 | H32: =IF('DNSP Inputs General'!$B64='DNSP Inputs General'!$A$63,H$31,H$35)*'DNSP Inputs General'!$D64 -> 35.54807524 | J32: =IF(C32=0,"",D32/C32-1) -> -0.04132136275 | K32: =IF(D32=0,"",E32/D32-1) -> 0.01534936414 | L32: =IF(E32=0,"",F32/E32-1) -> 0.0339826825 | M32: =IF(F32=0,"",G32/F32-1) -> 0.03366869047 | N32: =IF(G32=0,"",H32/G32-1) -> 0.0334449843 | P32: =IF(C32=0,"",(D32/'Charges Summary'!D$4)/C32-1) -> -0.0656153633 | Q32: =IF(D32=0,"",(E32/'Charges Summary'!E$4)/(D32/'Charges Summary'!D$4)-1) -> -0.01038073671 | R32: =IF(E32=0,"",(F32/'Charges Summary'!F$4)/(E32/'Charges Summary'!E$4)-1) -> 0.007780392301 | S32: =IF(F32=0,"",(G32/'Charges Summary'!G$4)/(F32/'Charges Summary'!F$4)-1) -> 0.007474357185 | T32: =IF(G32=0,"",(H32/'Charges Summary'!H$4)/(G32/'Charges Summary'!G$4)-1) -> 0.007256319979
A33: ='DNSP Inputs General'!A65 -> CF32 | C33: ='DNSP Inputs General'!E65 -> 32.30706113 | D33: =IF('DNSP Inputs General'!$B65='DNSP Inputs General'!$A$63,D$31,D$35)*'DNSP Inputs General'!$D65 -> 30.97208933 | E33: =IF('DNSP Inputs General'!$B65='DNSP Inputs General'!$A$63,E$31,E$35)*'DNSP Inputs General'!$D65 -> 31.44749121 | F33: =IF('DNSP Inputs General'!$B65='DNSP Inputs General'!$A$63,F$31,F$35)*'DNSP Inputs General'!$D65 -> 32.51616132 | G33: =IF('DNSP Inputs General'!$B65='DNSP Inputs General'!$A$63,G$31,G$35)*'DNSP Inputs General'!$D65 -> 33.61093789 | H33: =IF('DNSP Inputs General'!$B65='DNSP Inputs General'!$A$63,H$31,H$35)*'DNSP Inputs General'!$D65 -> 34.73505518 | J33: -0.04132136275 | K33: 0.01534936414 | L33: 0.0339826825 | M33: 0.03366869047 | N33: 0.0334449843 | P33: =IF(C33=0,"",(D33/'Charges Summary'!D$4)/C33-1) -> -0.0656153633 | Q33: =IF(D33=0,"",(E33/'Charges Summary'!E$4)/(D33/'Charges Summary'!D$4)-1) -> -0.01038073671 | R33: =IF(E33=0,"",(F33/'Charges Summary'!F$4)/(E33/'Charges Summary'!E$4)-1) -> 0.007780392301 | S33: =IF(F33=0,"",(G33/'Charges Summary'!G$4)/(F33/'Charges Summary'!F$4)-1) -> 0.007474357185 | T33: =IF(G33=0,"",(H33/'Charges Summary'!H$4)/(G33/'Charges Summary'!G$4)-1) -> 0.007256319979
A34: ='DNSP Inputs General'!A66 -> CF42 | C34: ='DNSP Inputs General'!E66 -> 32.30706113 | D34: =IF('DNSP Inputs General'!$B66='DNSP Inputs General'!$A$63,D$31,D$35)*'DNSP Inputs General'!$D66 -> 30.97208933 | E34: =IF('DNSP Inputs General'!$B66='DNSP Inputs General'!$A$63,E$31,E$35)*'DNSP Inputs General'!$D66 -> 31.44749121 | F34: =IF('DNSP Inputs General'!$B66='DNSP Inputs General'!$A$63,F$31,F$35)*'DNSP Inputs General'!$D66 -> 32.51616132 | G34: =IF('DNSP Inputs General'!$B66='DNSP Inputs General'!$A$63,G$31,G$35)*'DNSP Inputs General'!$D66 -> 33.61093789 | H34: =IF('DNSP Inputs General'!$B66='DNSP Inputs General'!$A$63,H$31,H$35)*'DNSP Inputs General'!$D66 -> 34.73505518 | J34: -0.04132136275 | K34: 0.01534936414 | L34: 0.0339826825 | M34: 0.03366869047 | N34: 0.0334449843 | P34: =IF(C34=0,"",(D34/'Charges Summary'!D$4)/C34-1) -> -0.0656153633 | Q34: =IF(D34=0,"",(E34/'Charges Summary'!E$4)/(D34/'Charges Summary'!D$4)-1) -> -0.01038073671 | R34: =IF(E34=0,"",(F34/'Charges Summary'!F$4)/(E34/'Charges Summary'!E$4)-1) -> 0.007780392301 | S34: =IF(F34=0,"",(G34/'Charges Summary'!G$4)/(F34/'Charges Summary'!F$4)-1) -> 0.007474357185 | T34: =IF(G34=0,"",(H34/'Charges Summary'!H$4)/(G34/'Charges Summary'!G$4)-1) -> 0.007256319979
A35: ='DNSP Inputs General'!A67 -> Category P LED 18 Watt | C35: ='DNSP Inputs General'!E67 -> 17.82195409 | D35: ='Charges Summary'!D$107 -> 16.01826733 | E35: ='Charges Summary'!E$107 -> 15.80882105 | F35: ='Charges Summary'!F$107 -> 16.25050423 | G35: ='Charges Summary'!G$107 -> 16.70028942 | H35: ='Charges Summary'!H$107 -> 17.15889923 | J35: -0.1012058921 | K35: -0.01307546415 | L35: 0.02793903366 | M35: 0.02767822939 | N35: 0.02746118969 | P35: =IF(C35=0,"",(D35/'Charges Summary'!D$4)/C35-1) -> -0.123982351 | Q35: =IF(D35=0,"",(E35/'Charges Summary'!E$4)/(D35/'Charges Summary'!D$4)-1) -> -0.03808524771 | R35: =IF(E35=0,"",(F35/'Charges Summary'!F$4)/(E35/'Charges Summary'!E$4)-1) -> 0.001889896359 | S35: =IF(F35=0,"",(G35/'Charges Summary'!G$4)/(F35/'Charges Summary'!F$4)-1) -> 0.001635701157 | T35: =IF(G35=0,"",(H35/'Charges Summary'!H$4)/(G35/'Charges Summary'!G$4)-1) -> 0.001424161488
A36: ='DNSP Inputs General'!A68 -> Category P LED 47 Watt | C36: ='DNSP Inputs General'!E68 -> 17.82195409 | D36: =IF('DNSP Inputs General'!$B68='DNSP Inputs General'!$A$63,D$31,D$35)*'DNSP Inputs General'!$D68 -> 16.01826733 | E36: =IF('DNSP Inputs General'!$B68='DNSP Inputs General'!$A$63,E$31,E$35)*'DNSP Inputs General'!$D68 -> 15.80882105 | F36: =IF('DNSP Inputs General'!$B68='DNSP Inputs General'!$A$63,F$31,F$35)*'DNSP Inputs General'!$D68 -> 16.25050423 | G36: =IF('DNSP Inputs General'!$B68='DNSP Inputs General'!$A$63,G$31,G$35)*'DNSP Inputs General'!$D68 -> 16.70028942 | H36: =IF('DNSP Inputs General'!$B68='DNSP Inputs General'!$A$63,H$31,H$35)*'DNSP Inputs General'!$D68 -> 17.15889923 | J36: -0.1012058921 | K36: -0.01307546415 | L36: 0.02793903366 | M36: 0.02767822939 | N36: 0.02746118969 | P36: =IF(C36=0,"",(D36/'Charges Summary'!D$4)/C36-1) -> -0.123982351 | Q36: =IF(D36=0,"",(E36/'Charges Summary'!E$4)/(D36/'Charges Summary'!D$4)-1) -> -0.03808524771 | R36: =IF(E36=0,"",(F36/'Charges Summary'!F$4)/(E36/'Charges Summary'!E$4)-1) -> 0.001889896359 | S36: =IF(F36=0,"",(G36/'Charges Summary'!G$4)/(F36/'Charges Summary'!F$4)-1) -> 0.001635701157 | T36: =IF(G36=0,"",(H36/'Charges Summary'!H$4)/(G36/'Charges Summary'!G$4)-1) -> 0.001424161488

Sheet Cashflow Summary
A1: ='DNSP Inputs O & M'!$A$3 -> Powercor | E1: Check | F1: =SUM(C131,C137,C160) -> 9.531504475e-09
C2: ='DNSP Inputs General'!J$2 -> 2015 | D2: ='DNSP Inputs General'!K$2 -> 2016 | E2: ='DNSP Inputs General'!L$2 -> 2017 | F2: ='DNSP Inputs General'!M$2 -> 2018 | G2: ='DNSP Inputs General'!N$2 -> 2019 | H2: ='DNSP Inputs General'!O$2 -> 2020 | J2: =C2 -> 2015 | K2: =D2 -> 2016 | L2: 2017 | M2: 2018 | N2: 2019 | O2: 2020
A4: Public Lighting - Revenue | C4: Revenue - Nominal | J4: Revenue - Real 2015 $
C5: =C$2 -> 2015 | D5: =D$2 -> 2016 | E5: 2017 | F5: 2018 | G5: 2019 | H5: 2020 | J5: =J$2 -> 2015 | K5: 2016 | L5: 2017 | M5: 2018 | N5: 2019 | O5: 2020
A6: ='DNSP Inputs General'!A$40 -> Existing Lights
A7: ='DNSP Inputs General'!A41 -> Mercury vapour 80 watt | C7: =IF('PL Tariffs'!C6=0,"",'DNSP Inputs General'!J41*'PL Tariffs'!C6) -> 1854548.287 | D7: =IF('PL Tariffs'!D6=0,"",'DNSP Inputs General'!K41*'PL Tariffs'!D6) -> 1066342.49 | E7: =IF('PL Tariffs'!E6=0,"",'DNSP Inputs General'!L41*'PL Tariffs'!E6) -> 838616.4096 | F7: =IF('PL Tariffs'!F6=0,"",'DNSP Inputs General'!M41*'PL Tariffs'!F6) -> 767626.497 | G7: =IF('PL Tariffs'!G6=0,"",'DNSP Inputs General'!N41*'PL Tariffs'!G6) -> 709892.5533 | H7: =IF('PL Tariffs'!H6=0,"",'DNSP Inputs General'!O41*'PL Tariffs'!H6) -> 656451.125 | J7: =C7 -> 1854548.287 | K7: =D7/'Charges Summary'!D$4 -> 1039320.165 | L7: =E7/'Charges Summary'!E$4 -> 796651.9704 | M7: =F7/'Charges Summary'!F$4 -> 710735.282 | N7: =G7/'Charges Summary'!G$4 -> 640623.9596 | O7: =H7/'Charges Summary'!H$4 -> 577385.1276
A8: ='DNSP Inputs General'!A42 -> Sodium high pressure 150 watt | C8: =IF('PL Tariffs'!C7=0,"",'DNSP Inputs General'!J42*'PL Tariffs'!C7) -> 1112470.979 | D8: =IF('PL Tariffs'!D7=0,"",'DNSP Inputs General'!K42*'PL Tariffs'!D7) -> 1345279.689 | E8: =IF('PL Tariffs'!E7=0,"",'DNSP Inputs General'!L42*'PL Tariffs'!E7) -> 1447177.01 | F8: =IF('PL Tariffs'!F7=0,"",'DNSP Inputs General'!M42*'PL Tariffs'!F7) -> 1551377.721 | G8: =IF('PL Tariffs'!G7=0,"",'DNSP Inputs General'!N42*'PL Tariffs'!G7) -> 1670745.137 | H8: =IF('PL Tariffs'!H7=0,"",'DNSP Inputs General'!O42*'PL Tariffs'!H7) -> 1799725.571 | J8: 1112470.979 | K8: =D8/'Charges Summary'!D$4 -> 1311188.781 | L8: =E8/'Charges Summary'!E$4 -> 1374760.144 | M8: =F8/'Charges Summary'!F$4 -> 1436400.237 | N8: =G8/'Charges Summary'!G$4 -> 1507720.231 | O8: =H8/'Charges Summary'!H$4 -> 1582958.333
A9: ='DNSP Inputs General'!A43 -> Sodium high pressure 250 watt | C9: =IF('PL Tariffs'!C8=0,"",'DNSP Inputs General'!J43*'PL Tariffs'!C8) -> 356682.2012 | D9: =IF('PL Tariffs'!D8=0,"",'DNSP Inputs General'!K43*'PL Tariffs'!D8) -> 402562.917 | E9: =IF('PL Tariffs'!E8=0,"",'DNSP Inputs General'!L43*'PL Tariffs'!E8) -> 428775.2329 | F9: =IF('PL Tariffs'!F8=0,"",'DNSP Inputs General'!M43*'PL Tariffs'!F8) -> 455041.2347 | G9: =IF('PL Tariffs'!G8=0,"",'DNSP Inputs General'!N43*'PL Tariffs'!G8) -> 485396.4519 | H9: =IF('PL Tariffs'!H8=0,"",'DNSP Inputs General'!O43*'PL Tariffs'!H8) -> 518812.0281 | J9: 356682.2012 | K9: =D9/'Charges Summary'!D$4 -> 392361.5175 | L9: =E9/'Charges Summary'!E$4 -> 407319.2824 | M9: =F9/'Charges Summary'!F$4 -> 421316.697 | N9: =G9/'Charges Summary'!G$4 -> 438033.3271 | O9: =H9/'Charges Summary'!H$4 -> 456323.9175
A10: ='DNSP Inputs General'!A44 -> Flourescent 20 watt | C10: =IF('PL Tariffs'!C9=0,"",'DNSP Inputs General'!J44*'PL Tariffs'!C9) -> 0 | D10: =IF('PL Tariffs'!D9=0,"",'DNSP Inputs General'!K44*'PL Tariffs'!D9) -> 0 | E10: =IF('PL Tariffs'!E9=0,"",'DNSP Inputs General'!L44*'PL Tariffs'!E9) -> 0 | F10: =IF('PL Tariffs'!F9=0,"",'DNSP Inputs General'!M44*'PL Tariffs'!F9) -> 0 | G10: =IF('PL Tariffs'!G9=0,"",'DNSP Inputs General'!N44*'PL Tariffs'!G9) -> 0 | H10: =IF('PL Tariffs'!H9=0,"",'DNSP Inputs General'!O44*'PL Tariffs'!H9) -> 0 | J10: 0 | K10: =D10/'Charges Summary'!D$4 -> 0 | L10: =E10/'Charges Summary'!E$4 -> 0 | M10: =F10/'Charges Summary'!F$4 -> 0 | N10: =G10/'Charges Summary'!G$4 -> 0 | O10: =H10/'Charges Summary'!H$4 -> 0
A11: ='DNSP Inputs General'!A45 -> Flourescent 40 watt | C11: =IF('PL Tariffs'!C10=0,"",'DNSP Inputs General'!J45*'PL Tariffs'!C10) -> 0 | D11: =IF('PL Tariffs'!D10=0,"",'DNSP Inputs General'!K45*'PL Tariffs'!D10) -> 0 | E11: =IF('PL Tariffs'!E10=0,"",'DNSP Inputs General'!L45*'PL Tariffs'!E10) -> 0 | F11: =IF('PL Tariffs'!F10=0,"",'DNSP Inputs General'!M45*'PL Tariffs'!F10) -> 0 | G11: =IF('PL Tariffs'!G10=0,"",'DNSP Inputs General'!N45*'PL Tariffs'!G10) -> 0 | H11: =IF('PL Tariffs'!H10=0,"",'DNSP Inputs General'!O45*'PL Tariffs'!H10) -> 0 | J11: 0 | K11: =D11/'Charges Summary'!D$4 -> 0 | L11: =E11/'Charges Summary'!E$4 -> 0 | M11: =F11/'Charges Summary'!F$4 -> 0 | N11: =G11/'Charges Summary'!G$4 -> 0 | O11: =H11/'Charges Summary'!H$4 -> 0
A12: ='DNSP Inputs General'!A46 -> Mercury vapour 50 watt | C12: =IF('PL Tariffs'!C11=0,"",'DNSP Inputs General'!J46*'PL Tariffs'!C11) -> 19140.90402 | D12: =IF('PL Tariffs'!D11=0,"",'DNSP Inputs General'!K46*'PL Tariffs'!D11) -> 14556.74904 | E12: =IF('PL Tariffs'!E11=0,"",'DNSP Inputs General'!L46*'PL Tariffs'!E11) -> 13954.70484 | F12: =IF('PL Tariffs'!F11=0,"",'DNSP Inputs General'!M46*'PL Tariffs'!F11) -> 13309.19877 | G12: =IF('PL Tariffs'!G11=0,"",'DNSP Inputs General'!N46*'PL Tariffs'!G11) -> 12824.4642 | H12: =IF('PL Tariffs'!H11=0,"",'DNSP Inputs General'!O46*'PL Tariffs'!H11) -> 12356.44843 | J12: 19140.90402 | K12: =D12/'Charges Summary'!D$4 -> 14187.86456 | L12: =E12/'Charges Summary'!E$4 -> 13256.41018 | M12: =F12/'Charges Summary'!F$4 -> 12322.81217 | N12: =G12/'Charges Summary'!G$4 -> 11573.10215 | O12: =H12/'Charges Summary'!H$4 -> 10868.18086
A13: ='DNSP Inputs General'!A47 -> Mercury vapour 125 watt | C13: =IF('PL Tariffs'!C12=0,"",'DNSP Inputs General'!J47*'PL Tariffs'!C12) -> 58353.8122 | D13: =IF('PL Tariffs'!D12=0,"",'DNSP Inputs General'!K47*'PL Tariffs'!D12) -> 49134.58117 | E13: =IF('PL Tariffs'!E12=0,"",'DNSP Inputs General'!L47*'PL Tariffs'!E12) -> 52150.63422 | F13: =IF('PL Tariffs'!F12=0,"",'DNSP Inputs General'!M47*'PL Tariffs'!F12) -> 55068.96655 | G13: =IF('PL Tariffs'!G12=0,"",'DNSP Inputs General'!N47*'PL Tariffs'!G12) -> 58750.33136 | H13: =IF('PL Tariffs'!H12=0,"",'DNSP Inputs General'!O47*'PL Tariffs'!H12) -> 62673.04963 | J13: 58353.8122 | K13: =D13/'Charges Summary'!D$4 -> 47889.45533 | L13: =E13/'Charges Summary'!E$4 -> 49541.01188 | M13: =F13/'Charges Summary'!F$4 -> 50987.63217 | N13: =G13/'Charges Summary'!G$4 -> 53017.69927 | O13: =H13/'Charges Summary'!H$4 -> 55124.41884
A14: ='DNSP Inputs General'!A48 -> Mercury vapour 250 watt | C14: =IF('PL Tariffs'!C13=0,"",'DNSP Inputs General'!J48*'PL Tariffs'!C13) -> 10299.56574 | D14: =IF('PL Tariffs'!D13=0,"",'DNSP Inputs General'!K48*'PL Tariffs'!D13) -> 8643.927764 | E14: =IF('PL Tariffs'!E13=0,"",'DNSP Inputs General'!L48*'PL Tariffs'!E13) -> 6846.158362 | F14: =IF('PL Tariffs'!F13=0,"",'DNSP Inputs General'!M48*'PL Tariffs'!F13) -> 5402.663131 | G14: =IF('PL Tariffs'!G13=0,"",'DNSP Inputs General'!N48*'PL Tariffs'!G13) -> 4285.422251 | H14: =IF('PL Tariffs'!H13=0,"",'DNSP Inputs General'!O48*'PL Tariffs'!H13) -> 3406.018054 | J14: 10299.56574 | K14: =D14/'Charges Summary'!D$4 -> 8424.880862 | L14: =E14/'Charges Summary'!E$4 -> 6503.575993 | M14: =F14/'Charges Summary'!F$4 -> 5002.254767 | N14: =G14/'Charges Summary'!G$4 -> 3867.267177 | O14: =H14/'Charges Summary'!H$4 -> 2995.78155
A15: ='DNSP Inputs General'!A49 -> Mercury vapour 400 watt | C15: =IF('PL Tariffs'!C14=0,"",'DNSP Inputs General'!J49*'PL Tariffs'!C14) -> 5254.089581 | D15: =IF('PL Tariffs'!D14=0,"",'DNSP Inputs General'!K49*'PL Tariffs'!D14) -> 5107.743206 | E15: =IF('PL Tariffs'!E14=0,"",'DNSP Inputs General'!L49*'PL Tariffs'!E14) -> 4686.021031 | F15: =IF('PL Tariffs'!F14=0,"",'DNSP Inputs General'!M49*'PL Tariffs'!F14) -> 4283.556982 | G15: =IF('PL Tariffs'!G14=0,"",'DNSP Inputs General'!N49*'PL Tariffs'!G14) -> 3935.769414 | H15: =IF('PL Tariffs'!H14=0,"",'DNSP Inputs General'!O49*'PL Tariffs'!H14) -> 3623.450548 | J15: 5254.089581 | K15: =D15/'Charges Summary'!D$4 -> 4978.307218 | L15: =E15/'Charges Summary'!E$4 -> 4451.532125 | M15: =F15/'Charges Summary'!F$4 -> 3966.089096 | N15: =G15/'Charges Summary'!G$4 -> 3551.732124 | O15: =H15/'Charges Summary'!H$4 -> 3187.025473
A16: ='DNSP Inputs General'!A50 -> Mercury vapour 700 watt | C16: =IF('PL Tariffs'!C15=0,"",'DNSP Inputs General'!J50*'PL Tariffs'!C15) -> 0 | D16: =IF('PL Tariffs'!D15=0,"",'DNSP Inputs General'!K50*'PL Tariffs'!D15) -> 0 | E16: =IF('PL Tariffs'!E15=0,"",'DNSP Inputs General'!L50*'PL Tariffs'!E15) -> 0 | F16: =IF('PL Tariffs'!F15=0,"",'DNSP Inputs General'!M50*'PL Tariffs'!F15) -> 0 | G16: =IF('PL Tariffs'!G15=0,"",'DNSP Inputs General'!N50*'PL Tariffs'!G15) -> 0 | H16: =IF('PL Tariffs'!H15=0,"",'DNSP Inputs General'!O50*'PL Tariffs'!H15) -> 0 | J16: 0 | K16: =D16/'Charges Summary'!D$4 -> 0 | L16: =E16/'Charges Summary'!E$4 -> 0 | M16: =F16/'Charges Summary'!F$4 -> 0 | N16: =G16/'Charges Summary'!G$4 -> 0 | O16: =H16/'Charges Summary'!H$4 -> 0
A17: ='DNSP Inputs General'!A51 -> Sodium low pressure 90 watt | C17: =IF('PL Tariffs'!C16=0,"",'DNSP Inputs General'!J51*'PL Tariffs'!C16) -> 0 | D17: =IF('PL Tariffs'!D16=0,"",'DNSP Inputs General'!K51*'PL Tariffs'!D16) -> 0 | E17: =IF('PL Tariffs'!E16=0,"",'DNSP Inputs General'!L51*'PL Tariffs'!E16) -> 0 | F17: =IF('PL Tariffs'!F16=0,"",'DNSP Inputs General'!M51*'PL Tariffs'!F16) -> 0 | G17: =IF('PL Tariffs'!G16=0,"",'DNSP Inputs General'!N51*'PL Tariffs'!G16) -> 0 | H17: =IF('PL Tariffs'!H16=0,"",'DNSP Inputs General'!O51*'PL Tariffs'!H16) -> 0 | J17: 0 | K17: =D17/'Charges Summary'!D$4 -> 0 | L17: =E17/'Charges Summary'!E$4 -> 0 | M17: =F17/'Charges Summary'!F$4 -> 0 | N17: =G17/'Charges Summary'!G$4 -> 0 | O17: =H17/'Charges Summary'!H$4 -> 0
A18: ='DNSP Inputs General'!A52 -> Sodium low pressure 180 watt | C18: =IF('PL Tariffs'!C17=0,"",'DNSP Inputs General'!J52*'PL Tariffs'!C17) -> 0 | D18: =IF('PL Tariffs'!D17=0,"",'DNSP Inputs General'!K52*'PL Tariffs'!D17) -> 0 | E18: =IF('PL Tariffs'!E17=0,"",'DNSP Inputs General'!L52*'PL Tariffs'!E17) -> 0 | F18: =IF('PL Tariffs'!F17=0,"",'DNSP Inputs General'!M52*'PL Tariffs'!F17) -> 0 | G18: =IF('PL Tariffs'!G17=0,"",'DNSP Inputs General'!N52*'PL Tariffs'!G17) -> 0 | H18: =IF('PL Tariffs'!H17=0,"",'DNSP Inputs General'!O52*'PL Tariffs'!H17) -> 0 | J18: 0 | K18: =D18/'Charges Summary'!D$4 -> 0 | L18: =E18/'Charges Summary'!E$4 -> 0 | M18: =F18/'Charges Summary'!F$4 -> 0 | N18: =G18/'Charges Summary'!G$4 -> 0 | O18: =H18/'Charges Summary'!H$4 -> 0
A19: ='DNSP Inputs General'!A53 -> Sodium high pressure 400 watt | C19: =IF('PL Tariffs'!C18=0,"",'DNSP Inputs General'!J53*'PL Tariffs'!C18) -> 18552.13574 | D19: =IF('PL Tariffs'!D18=0,"",'DNSP Inputs General'!K53*'PL Tariffs'!D18) -> 20321.53247 | E19: =IF('PL Tariffs'!E18=0,"",'DNSP Inputs General'!L53*'PL Tariffs'!E18) -> 21006.93033 | F19: =IF('PL Tariffs'!F18=0,"",'DNSP Inputs General'!M53*'PL Tariffs'!F18) -> 21636.84186 | G19: =IF('PL Tariffs'!G18=0,"",'DNSP Inputs General'!N53*'PL Tariffs'!G18) -> 22400.09858 | H19: =IF('PL Tariffs'!H18=0,"",'DNSP Inputs General'!O53*'PL Tariffs'!H18) -> 23236.65354 | J19: 18552.13574 | K19: =D19/'Charges Summary'!D$4 -> 19806.56187 | L19: =E19/'Charges Summary'!E$4 -> 19955.74168 | M19: =F19/'Charges Summary'!F$4 -> 20033.26743 | N19: =G19/'Charges Summary'!G$4 -> 20214.38284 | O19: =H19/'Charges Summary'!H$4 -> 20437.92395
A20: ='DNSP Inputs General'!A54 -> Incandescent 100 watt | C20: =IF('PL Tariffs'!C19=0,"",'DNSP Inputs General'!J54*'PL Tariffs'!C19) -> 0 | D20: =IF('PL Tariffs'!D19=0,"",'DNSP Inputs General'!K54*'PL Tariffs'!D19) -> 0 | E20: =IF('PL Tariffs'!E19=0,"",'DNSP Inputs General'!L54*'PL Tariffs'!E19) -> 0 | F20: =IF('PL Tariffs'!F19=0,"",'DNSP Inputs General'!M54*'PL Tariffs'!F19) -> 0 | G20: =IF('PL Tariffs'!G19=0,"",'DNSP Inputs General'!N54*'PL Tariffs'!G19) -> 0 | H20: =IF('PL Tariffs'!H19=0,"",'DNSP Inputs General'!O54*'PL Tariffs'!H19) -> 0 | J20: 0 | K20: =D20/'Charges Summary'!D$4 -> 0 | L20: =E20/'Charges Summary'!E$4 -> 0 | M20: =F20/'Charges Summary'!F$4 -> 0 | N20: =G20/'Charges Summary'!G$4 -> 0 | O20: =H20/'Charges Summary'!H$4 -> 0
A21: ='DNSP Inputs General'!A55 -> Incandescent 150 watt | C21: =IF('PL Tariffs'!C20=0,"",'DNSP Inputs General'!J55*'PL Tariffs'!C20) -> 0 | D21: =IF('PL Tariffs'!D20=0,"",'DNSP Inputs General'!K55*'PL Tariffs'!D20) -> 0 | E21: =IF('PL Tariffs'!E20=0,"",'DNSP Inputs General'!L55*'PL Tariffs'!E20) -> 0 | F21: =IF('PL Tariffs'!F20=0,"",'DNSP Inputs General'!M55*'PL Tariffs'!F20) -> 0 | G21: =IF('PL Tariffs'!G20=0,"",'DNSP Inputs General'!N55*'PL Tariffs'!G20) -> 0 | H21: =IF('PL Tariffs'!H20=0,"",'DNSP Inputs General'!O55*'PL Tariffs'!H20) -> 0 | J21: 0 | K21: =D21/'Charges Summary'!D$4 -> 0 | L21: =E21/'Charges Summary'!E$4 -> 0 | M21: =F21/'Charges Summary'!F$4 -> 0 | N21: =G21/'Charges Summary'!G$4 -> 0 | O21: =H21/'Charges Summary'!H$4 -> 0
A22: ='DNSP Inputs General'!A56 -> Metal halide 250 watt | C22: =IF('PL Tariffs'!C21=0,"",'DNSP Inputs General'!J56*'PL Tariffs'!C21) -> 6180.340636 | D22: =IF('PL Tariffs'!D21=0,"",'DNSP Inputs General'!K56*'PL Tariffs'!D21) -> 7087.908376 | E22: =IF('PL Tariffs'!E21=0,"",'DNSP Inputs General'!L56*'PL Tariffs'!E21) -> 7671.271869 | F22: =IF('PL Tariffs'!F21=0,"",'DNSP Inputs General'!M56*'PL Tariffs'!F21) -> 8272.595517 | G22: =IF('PL Tariffs'!G21=0,"",'DNSP Inputs General'!N56*'PL Tariffs'!G21) -> 8966.872385 | H22: =IF('PL Tariffs'!H21=0,"",'DNSP Inputs General'!O56*'PL Tariffs'!H21) -> 9738.852361 | J22: 6180.340636 | K22: =D22/'Charges Summary'!D$4 -> 6908.292764 | L22: =E22/'Charges Summary'!E$4 -> 7287.400747 | M22: =F22/'Charges Summary'!F$4 -> 7659.487433 | N22: =G22/'Charges Summary'!G$4 -> 8091.919356 | O22: =H22/'Charges Summary'!H$4 -> 8565.860121
A23: ='DNSP Inputs General'!A57 -> Metal halide 400 watt | C23: =IF('PL Tariffs'!C22=0,"",'DNSP Inputs General'!J57*'PL Tariffs'!C22) -> 0 | D23: =IF('PL Tariffs'!D22=0,"",'DNSP Inputs General'!K57*'PL Tariffs'!D22) -> 0 | E23: =IF('PL Tariffs'!E22=0,"",'DNSP Inputs General'!L57*'PL Tariffs'!E22) -> 0 | F23: =IF('PL Tariffs'!F22=0,"",'DNSP Inputs General'!M57*'PL Tariffs'!F22) -> 0 | G23: =IF('PL Tariffs'!G22=0,"",'DNSP Inputs General'!N57*'PL Tariffs'!G22) -> 0 | H23: =IF('PL Tariffs'!H22=0,"",'DNSP Inputs General'!O57*'PL Tariffs'!H22) -> 0 | J23: 0 | K23: =D23/'Charges Summary'!D$4 -> 0 | L23: =E23/'Charges Summary'!E$4 -> 0 | M23: =F23/'Charges Summary'!F$4 -> 0 | N23: =G23/'Charges Summary'!G$4 -> 0 | O23: =H23/'Charges Summary'!H$4 -> 0
A24: ='DNSP Inputs General'!A58 -> Metal halide 70 watt | C24: =IF('PL Tariffs'!C23=0,"",'DNSP Inputs General'!J58*'PL Tariffs'!C23) -> 0 | D24: =IF('PL Tariffs'!D23=0,"",'DNSP Inputs General'!K58*'PL Tariffs'!D23) -> 0 | E24: =IF('PL Tariffs'!E23=0,"",'DNSP Inputs General'!L58*'PL Tariffs'!E23) -> 0 | F24: =IF('PL Tariffs'!F23=0,"",'DNSP Inputs General'!M58*'PL Tariffs'!F23) -> 0 | G24: =IF('PL Tariffs'!G23=0,"",'DNSP Inputs General'!N58*'PL Tariffs'!G23) -> 0 | H24: =IF('PL Tariffs'!H23=0,"",'DNSP Inputs General'!O58*'PL Tariffs'!H23) -> 0 | J24: =C24 -> 0 | K24: =D24/'Charges Summary'!D$4 -> 0 | L24: =E24/'Charges Summary'!E$4 -> 0 | M24: =F24/'Charges Summary'!F$4 -> 0 | N24: =G24/'Charges Summary'!G$4 -> 0 | O24: =H24/'Charges Summary'!H$4 -> 0
A25: ='DNSP Inputs General'!A59 -> Metal halide 150 watt | C25: =IF('PL Tariffs'!C24=0,"",'DNSP Inputs General'!J59*'PL Tariffs'!C24) -> 0 | D25: =IF('PL Tariffs'!D24=0,"",'DNSP Inputs General'!K59*'PL Tariffs'!D24) -> 0 | E25: =IF('PL Tariffs'!E24=0,"",'DNSP Inputs General'!L59*'PL Tariffs'!E24) -> 0 | F25: =IF('PL Tariffs'!F24=0,"",'DNSP Inputs General'!M59*'PL Tariffs'!F24) -> 0 | G25: =IF('PL Tariffs'!G24=0,"",'DNSP Inputs General'!N59*'PL Tariffs'!G24) -> 0 | H25: =IF('PL Tariffs'!H24=0,"",'DNSP Inputs General'!O59*'PL Tariffs'!H24) -> 0 | J25: 0 | K25: =D25/'Charges Summary'!D$4 -> 0 | L25: =E25/'Charges Summary'!E$4 -> 0 | M25: =F25/'Charges Summary'!F$4 -> 0 | N25: =G25/'Charges Summary'!G$4 -> 0 | O25: =H25/'Charges Summary'!H$4 -> 0
A29: ='DNSP Inputs General'!A$62 -> Energy Efficient Lights
A30: ='DNSP Inputs General'!A63 -> T5 2X14W | C30: =IF('PL Tariffs'!C31=0,"",'DNSP Inputs General'!J63*'PL Tariffs'!C31) -> 230967.3682 | D30: =IF('PL Tariffs'!D31=0,"",'DNSP Inputs General'!K63*'PL Tariffs'!D31) -> 216995.0122 | E30: =IF('PL Tariffs'!E31=0,"",'DNSP Inputs General'!L63*'PL Tariffs'!E31) -> 215919.2327 | F30: =IF('PL Tariffs'!F31=0,"",'DNSP Inputs General'!M63*'PL Tariffs'!F31) -> 218791.6125 | G30: =IF('PL Tariffs'!G31=0,"",'DNSP Inputs General'!N63*'PL Tariffs'!G31) -> 221634.8787 | H30: =IF('PL Tariffs'!H31=0,"",'DNSP Inputs General'!O63*'PL Tariffs'!H31) -> 224466.5047 | J30: =C30 -> 230967.3682 | K30: =D30/'Charges Summary'!D$4 -> 211496.1132 | L30: =E30/'Charges Summary'!E$4 -> 205114.6152 | M30: =F30/'Charges Summary'!F$4 -> 202576.2776 | N30: =G30/'Charges Summary'!G$4 -> 200008.597 | O30: =H30/'Charges Summary'!H$4 -> 197430.7249
A31: ='DNSP Inputs General'!A64 -> T5 2X24W | C31: =IF('PL Tariffs'!C32=0,"",'DNSP Inputs General'!J64*'PL Tariffs'!C32) -> 28210.56108 | D31: =IF('PL Tariffs'!D32=0,"",'DNSP Inputs General'!K64*'PL Tariffs'!D32) -> 26503.96501 | E31: =IF('PL Tariffs'!E32=0,"",'DNSP Inputs General'!L64*'PL Tariffs'!E32) -> 26372.56834 | F31: =IF('PL Tariffs'!F32=0,"",'DNSP Inputs General'!M64*'PL Tariffs'!F32) -> 26723.40337 | G31: =IF('PL Tariffs'!G32=0,"",'DNSP Inputs General'!N64*'PL Tariffs'!G32) -> 27070.68246 | H31: =IF('PL Tariffs'!H32=0,"",'DNSP Inputs General'!O64*'PL Tariffs'!H32) -> 27416.53979 | J31: =C31 -> 28210.56108 | K31: =D31/'Charges Summary'!D$4 -> 25832.32457 | L31: =E31/'Charges Summary'!E$4 -> 25052.88269 | M31: =F31/'Charges Summary'!F$4 -> 24742.84786 | N31: =G31/'Charges Summary'!G$4 -> 24429.22905 | O31: =H31/'Charges Summary'!H$4 -> 24114.36545
A32: ='DNSP Inputs General'!A65 -> CF32 | C32: =IF('PL Tariffs'!C33=0,"",'DNSP Inputs General'!J65*'PL Tariffs'!C33) -> 92798.71879 | D32: =IF('PL Tariffs'!D33=0,"",'DNSP Inputs General'!K65*'PL Tariffs'!D33) -> 87184.86628 | E32: =IF('PL Tariffs'!E33=0,"",'DNSP Inputs General'!L65*'PL Tariffs'!E33) -> 86752.63657 | F32: =IF('PL Tariffs'!F33=0,"",'DNSP Inputs General'!M65*'PL Tariffs'!F33) -> 87906.7094 | G32: =IF('PL Tariffs'!G33=0,"",'DNSP Inputs General'!N65*'PL Tariffs'!G33) -> 89049.08492 | H32: =IF('PL Tariffs'!H33=0,"",'DNSP Inputs General'!O65*'PL Tariffs'!H33) -> 90186.78357 | J32: 92798.71879 | K32: =D32/'Charges Summary'!D$4 -> 84975.5032 | L32: =E32/'Charges Summary'!E$4 -> 82411.52698 | M32: =F32/'Charges Summary'!F$4 -> 81391.66657 | N32: =G32/'Charges Summary'!G$4 -> 80360.01661 | O32: =H32/'Charges Summary'!H$4 -> 79324.27192
A33: ='DNSP Inputs General'!A66 -> CF42 | C33: =IF('PL Tariffs'!C34=0,"",'DNSP Inputs General'!J66*'PL Tariffs'!C34) -> 25743.75699 | D33: =IF('PL Tariffs'!D34=0,"",'DNSP Inputs General'!K66*'PL Tariffs'!D34) -> 24186.39007 | E33: =IF('PL Tariffs'!E34=0,"",'DNSP Inputs General'!L66*'PL Tariffs'!E34) -> 24066.48306 | F33: =IF('PL Tariffs'!F34=0,"",'DNSP Inputs General'!M66*'PL Tariffs'!F34) -> 24386.64018 | G33: =IF('PL Tariffs'!G34=0,"",'DNSP Inputs General'!N66*'PL Tariffs'!G34) -> 24703.55229 | H33: =IF('PL Tariffs'!H34=0,"",'DNSP Inputs General'!O66*'PL Tariffs'!H34) -> 25019.16697 | J33: 25743.75699 | K33: =D33/'Charges Summary'!D$4 -> 23573.4796 | L33: =E33/'Charges Summary'!E$4 -> 22862.19412 | M33: =F33/'Charges Summary'!F$4 -> 22579.26954 | N33: =G33/'Charges Summary'!G$4 -> 22293.07437 | O33: =H33/'Charges Summary'!H$4 -> 22005.74325
A34: ='DNSP Inputs General'!A67 -> Category P LED 18 Watt | C34: =IF('PL Tariffs'!C35=0,"",'DNSP Inputs General'!J67*'PL Tariffs'!C35) -> 263335.0916 | D34: =IF('PL Tariffs'!D35=0,"",'DNSP Inputs General'!K67*'PL Tariffs'!D35) -> 444109.7499 | E34: =IF('PL Tariffs'!E35=0,"",'DNSP Inputs General'!L67*'PL Tariffs'!E35) -> 608701.5832 | F34: =IF('PL Tariffs'!F35=0,"",'DNSP Inputs General'!M67*'PL Tariffs'!F35) -> 675764.7666 | G34: =IF('PL Tariffs'!G35=0,"",'DNSP Inputs General'!N67*'PL Tariffs'!G35) -> 750026.2379 | H34: =IF('PL Tariffs'!H35=0,"",'DNSP Inputs General'!O67*'PL Tariffs'!H35) -> 832272.6787 | J34: 263335.0916 | K34: =D34/'Charges Summary'!D$4 -> 432855.5067 | L34: =E34/'Charges Summary'!E$4 -> 578242.1022 | M34: =F34/'Charges Summary'!F$4 -> 625681.7134 | N34: =G34/'Charges Summary'!G$4 -> 676841.5531 | O34: =H34/'Charges Summary'!H$4 -> 732029.9235
A35: ='DNSP Inputs General'!A68 -> Category P LED 47 Watt | C35: =IF('PL Tariffs'!C36=0,"",'DNSP Inputs General'!J68*'PL Tariffs'!C36) -> 0 | D35: =IF('PL Tariffs'!D36=0,"",'DNSP Inputs General'!K68*'PL Tariffs'!D36) -> 0 | E35: =IF('PL Tariffs'!E36=0,"",'DNSP Inputs General'!L68*'PL Tariffs'!E36) -> 0 | F35: =IF('PL Tariffs'!F36=0,"",'DNSP Inputs General'!M68*'PL Tariffs'!F36) -> 0 | G35: =IF('PL Tariffs'!G36=0,"",'DNSP Inputs General'!N68*'PL Tariffs'!G36) -> 0 | H35: =IF('PL Tariffs'!H36=0,"",'DNSP Inputs General'!O68*'PL Tariffs'!H36) -> 0 | J35: 0 | K35: =D35/'Charges Summary'!D$4 -> 0 | L35: =E35/'Charges Summary'!E$4 -> 0 | M35: =F35/'Charges Summary'!F$4 -> 0 | N35: =G35/'Charges Summary'!G$4 -> 0 | O35: =H35/'Charges Summary'!H$4 -> 0
A37: Total Revenue | C37: =IF(SUM(C7:C36)=0,"",SUM(C7:C36)) -> 4082537.812 | D37: =IF(SUM(D7:D36)=0,"",SUM(D7:D36)) -> 3718017.521 | E37: 3782696.877 | F37: 3915592.408 | G37: 4089681.536 | H37: 4289384.87 | J37: =IF(SUM(J7:J36)=0,"",SUM(J7:J36)) -> 4082537.812 | K37: =SUM(K7:K36) -> 3623798.754 | L37: =SUM(L7:L36) -> 3593410.391 | M37: =SUM(M7:M36) -> 3625395.534 | N37: =SUM(N7:N36) -> 3690626.091 | O37: =SUM(O7:O36) -> 3772751.598
A40: Public Lighting - O & M | D40: Forecast O & M - Nominal | K40: Forecast O & M - Real 2015 $
D41: =D$2 -> 2016 | E41: 2017 | F41: 2018 | G41: 2019 | H41: 2020 | K41: =K$2 -> 2016 | L41: 2017 | M41: 2018 | N41: 2019 | O41: 2020
A43: Unit cost
A44: ='DNSP Inputs General'!A$41 -> Mercury vapour 80 watt | D44: =SUM('Charges Summary'!D25,'Charges Summary'!D8) -> 27.51232753 | E44: =SUM('Charges Summary'!E25,'Charges Summary'!E8) -> 28.4534941 | F44: =SUM('Charges Summary'!F25,'Charges Summary'!F8) -> 29.52460959 | G44: =SUM('Charges Summary'!G25,'Charges Summary'!G8) -> 30.6213635 | H44: =SUM('Charges Summary'!H25,'Charges Summary'!H8) -> 31.74755235
A45: ='DNSP Inputs General'!A$42 -> Sodium high pressure 150 watt | D45: =SUM('Charges Summary'!D49,'Charges Summary'!D8) -> 85.3887632 | E45: =SUM('Charges Summary'!E49,'Charges Summary'!E8) -> 88.38233809 | F45: =SUM('Charges Summary'!F49,'Charges Summary'!F8) -> 91.43738949 | G45: =SUM('Charges Summary'!G49,'Charges Summary'!G8) -> 94.60447233 | H45: =SUM('Charges Summary'!H49,'Charges Summary'!H8) -> 97.89979656
A46: ='DNSP Inputs General'!A$43 -> Sodium high pressure 250 watt | D46: =SUM('Charges Summary'!D65,'Charges Summary'!D8) -> 81.33261688 | E46: =SUM('Charges Summary'!E65,'Charges Summary'!E8) -> 84.28743058 | F46: =SUM('Charges Summary'!F65,'Charges Summary'!F8) -> 87.33123839 | G46: =SUM('Charges Summary'!G65,'Charges Summary'!G8) -> 90.48763878 | H46: =SUM('Charges Summary'!H65,'Charges Summary'!H8) -> 93.9696
A48: ='DNSP Inputs General'!A$40 -> Existing Lights
A49: ='DNSP Inputs General'!A$41 -> Mercury vapour 80 watt | D49: =D44*'DNSP Inputs General'!K41 -> 682383.5533 | E49: =E44*'DNSP Inputs General'!L41 -> 542918.1613 | F49: =F44*'DNSP Inputs General'!M41 -> 507020.404 | G49: =G44*'DNSP Inputs General'!N41 -> 473269.2719 | H49: =H44*'DNSP Inputs General'!O41 -> 441607.6013 | K49: =D49/'Charges Summary'!D$4 -> 665091.1826 | L49: =E49/'Charges Summary'!E$4 -> 515750.4885 | M49: =F49/'Charges Summary'!F$4 -> 469443.5266 | N49: =G49/'Charges Summary'!G$4 -> 427089.4708 | O49: =H49/'Charges Summary'!H$4 -> 388418.3476
A50: ='DNSP Inputs General'!A$42 -> Sodium high pressure 150 watt | D50: =D45*'DNSP Inputs General'!K42 -> 1135484.195 | E50: =E45*'DNSP Inputs General'!L42 -> 1227775.08 | F50: =F45*'DNSP Inputs General'!M42 -> 1326936.389 | G50: =G45*'DNSP Inputs General'!N42 -> 1434203.939 | H50: =H45*'DNSP Inputs General'!O42 -> 1550436.522 | K50: =D50/'Charges Summary'!D$4 -> 1106709.741 | L50: =E50/'Charges Summary'!E$4 -> 1166337.106 | M50: =F50/'Charges Summary'!F$4 -> 1228592.958 | N50: =G50/'Charges Summary'!G$4 -> 1294259.817 | O50: =H50/'Charges Summary'!H$4 -> 1363694.805
A51: ='DNSP Inputs General'!A$43 -> Sodium high pressure 250 watt | D51: =D46*'DNSP Inputs General'!K43 -> 332274.0419 | E51: =E46*'DNSP Inputs General'!L43 -> 356020.7141 | F51: =F46*'DNSP Inputs General'!M43 -> 381384.338 | G51: =G46*'DNSP Inputs General'!N43 -> 408566.9899 | H51: =H46*'DNSP Inputs General'!O43 -> 438674.2892 | K51: =D51/'Charges Summary'!D$4 -> 323853.842 | L51: =E51/'Charges Summary'!E$4 -> 338205.4061 | M51: =F51/'Charges Summary'!F$4 -> 353118.7447 | N51: =G51/'Charges Summary'!G$4 -> 368700.5894 | O51: =H51/'Charges Summary'!H$4 -> 385838.3371
A52: ='DNSP Inputs General'!A$44 -> Flourescent 20 watt | D52: =IF('DNSP Inputs General'!$B44='DNSP Inputs General'!$A$41,D$44,IF('DNSP Inputs General'!$B44='DNSP Inputs General'!$A$42,D$45,D$46))*'DNSP Inputs General'!$D44*'DNSP Inputs General'!K44 -> 0 | E52: =IF('DNSP Inputs General'!$B44='DNSP Inputs General'!$A$41,E$44,IF('DNSP Inputs General'!$B44='DNSP Inputs General'!$A$42,E$45,E$46))*'DNSP Inputs General'!$D44*'DNSP Inputs General'!L44 -> 0 | F52: =IF('DNSP Inputs General'!$B44='DNSP Inputs General'!$A$41,F$44,IF('DNSP Inputs General'!$B44='DNSP Inputs General'!$A$42,F$45,F$46))*'DNSP Inputs General'!$D44*'DNSP Inputs General'!M44 -> 0 | G52: =IF('DNSP Inputs General'!$B44='DNSP Inputs General'!$A$41,G$44,IF('DNSP Inputs General'!$B44='DNSP Inputs General'!$A$42,G$45,G$46))*'DNSP Inputs General'!$D44*'DNSP Inputs General'!N44 -> 0 | H52: =IF('DNSP Inputs General'!$B44='DNSP Inputs General'!$A$41,H$44,IF('DNSP Inputs General'!$B44='DNSP Inputs General'!$A$42,H$45,H$46))*'DNSP Inputs General'!$D44*'DNSP Inputs General'!O44 -> 0 | K52: =D52/'Charges Summary'!D$4 -> 0 | L52: =E52/'Charges Summary'!E$4 -> 0 | M52: =F52/'Charges Summary'!F$4 -> 0 | N52: =G52/'Charges Summary'!G$4 -> 0 | O52: =H52/'Charges Summary'!H$4 -> 0
A53: ='DNSP Inputs General'!A$45 -> Flourescent 40 watt | D53: =IF('DNSP Inputs General'!$B45='DNSP Inputs General'!$A$41,D$44,IF('DNSP Inputs General'!$B45='DNSP Inputs General'!$A$42,D$45,D$46))*'DNSP Inputs General'!$D45*'DNSP Inputs General'!K45 -> 0 | E53: =IF('DNSP Inputs General'!$B45='DNSP Inputs General'!$A$41,E$44,IF('DNSP Inputs General'!$B45='DNSP Inputs General'!$A$42,E$45,E$46))*'DNSP Inputs General'!$D45*'DNSP Inputs General'!L45 -> 0 | F53: =IF('DNSP Inputs General'!$B45='DNSP Inputs General'!$A$41,F$44,IF('DNSP Inputs General'!$B45='DNSP Inputs General'!$A$42,F$45,F$46))*'DNSP Inputs General'!$D45*'DNSP Inputs General'!M45 -> 0 | G53: =IF('DNSP Inputs General'!$B45='DNSP Inputs General'!$A$41,G$44,IF('DNSP Inputs General'!$B45='DNSP Inputs General'!$A$42,G$45,G$46))*'DNSP Inputs General'!$D45*'DNSP Inputs General'!N45 -> 0 | H53: =IF('DNSP Inputs General'!$B45='DNSP Inputs General'!$A$41,H$44,IF('DNSP Inputs General'!$B45='DNSP Inputs General'!$A$42,H$45,H$46))*'DNSP Inputs General'!$D45*'DNSP Inputs General'!O45 -> 0 | K53: =D53/'Charges Summary'!D$4 -> 0 | L53: =E53/'Charges Summary'!E$4 -> 0 | M53: =F53/'Charges Summary'!F$4 -> 0 | N53: =G53/'Charges Summary'!G$4 -> 0 | O53: =H53/'Charges Summary'!H$4 -> 0
A54: ='DNSP Inputs General'!A$46 -> Mercury vapour 50 watt | D54: =IF('DNSP Inputs General'!$B46='DNSP Inputs General'!$A$41,D$44,IF('DNSP Inputs General'!$B46='DNSP Inputs General'!$A$42,D$45,D$46))*'DNSP Inputs General'!$D46*'DNSP Inputs General'!K46 -> 9315.286817 | E54: =IF('DNSP Inputs General'!$B46='DNSP Inputs General'!$A$41,E$44,IF('DNSP Inputs General'!$B46='DNSP Inputs General'!$A$42,E$45,E$46))*'DNSP Inputs General'!$D46*'DNSP Inputs General'!L46 -> 9034.24093 | F54: =IF('DNSP Inputs General'!$B46='DNSP Inputs General'!$A$41,F$44,IF('DNSP Inputs General'!$B46='DNSP Inputs General'!$A$42,F$45,F$46))*'DNSP Inputs General'!$D46*'DNSP Inputs General'!M46 -> 8790.779584 | G54: =IF('DNSP Inputs General'!$B46='DNSP Inputs General'!$A$41,G$44,IF('DNSP Inputs General'!$B46='DNSP Inputs General'!$A$42,G$45,G$46))*'DNSP Inputs General'!$D46*'DNSP Inputs General'!N46 -> 8549.779547 | H54: =IF('DNSP Inputs General'!$B46='DNSP Inputs General'!$A$41,H$44,IF('DNSP Inputs General'!$B46='DNSP Inputs General'!$A$42,H$45,H$46))*'DNSP Inputs General'!$D46*'DNSP Inputs General'!O46 -> 8312.426232 | K54: =D54/'Charges Summary'!D$4 -> 9079.226917 | L54: =E54/'Charges Summary'!E$4 -> 8582.166716 | M54: =F54/'Charges Summary'!F$4 -> 8139.267249 | N54: =G54/'Charges Summary'!G$4 -> 7715.524837 | O54: =H54/'Charges Summary'!H$4 -> 7311.239326
A55: ='DNSP Inputs General'!A$47 -> Mercury vapour 125 watt | D55: =IF('DNSP Inputs General'!$B47='DNSP Inputs General'!$A$41,D$44,IF('DNSP Inputs General'!$B47='DNSP Inputs General'!$A$42,D$45,D$46))*'DNSP Inputs General'!$D47*'DNSP Inputs General'!K47 -> 31442.64663 | E55: =IF('DNSP Inputs General'!$B47='DNSP Inputs General'!$A$41,E$44,IF('DNSP Inputs General'!$B47='DNSP Inputs General'!$A$42,E$45,E$46))*'DNSP Inputs General'!$D47*'DNSP Inputs General'!L47 -> 33762.18986 | F55: =IF('DNSP Inputs General'!$B47='DNSP Inputs General'!$A$41,F$44,IF('DNSP Inputs General'!$B47='DNSP Inputs General'!$A$42,F$45,F$46))*'DNSP Inputs General'!$D47*'DNSP Inputs General'!M47 -> 36373.275 | G55: =IF('DNSP Inputs General'!$B47='DNSP Inputs General'!$A$41,G$44,IF('DNSP Inputs General'!$B47='DNSP Inputs General'!$A$42,G$45,G$46))*'DNSP Inputs General'!$D47*'DNSP Inputs General'!N47 -> 39167.51404 | H55: =IF('DNSP Inputs General'!$B47='DNSP Inputs General'!$A$41,H$44,IF('DNSP Inputs General'!$B47='DNSP Inputs General'!$A$42,H$45,H$46))*'DNSP Inputs General'!$D47*'DNSP Inputs General'!O47 -> 42161.39491 | K55: =D55/'Charges Summary'!D$4 -> 30645.85442 | L55: =E55/'Charges Summary'!E$4 -> 32072.7269 | M55: =F55/'Charges Summary'!F$4 -> 33677.53714 | N55: =G55/'Charges Summary'!G$4 -> 35345.69818 | O55: =H55/'Charges Summary'!H$4 -> 37083.28229
A56: ='DNSP Inputs General'!A$48 -> Mercury vapour 250 watt | D56: =IF('DNSP Inputs General'!$B48='DNSP Inputs General'!$A$41,D$44,IF('DNSP Inputs General'!$B48='DNSP Inputs General'!$A$42,D$45,D$46))*'DNSP Inputs General'!$D48*'DNSP Inputs General'!K48 -> 7134.668135 | E56: =IF('DNSP Inputs General'!$B48='DNSP Inputs General'!$A$41,E$44,IF('DNSP Inputs General'!$B48='DNSP Inputs General'!$A$42,E$45,E$46))*'DNSP Inputs General'!$D48*'DNSP Inputs General'!L48 -> 5684.503213 | F56: =IF('DNSP Inputs General'!$B48='DNSP Inputs General'!$A$41,F$44,IF('DNSP Inputs General'!$B48='DNSP Inputs General'!$A$42,F$45,F$46))*'DNSP Inputs General'!$D48*'DNSP Inputs General'!M48 -> 4528.141506 | G56: =IF('DNSP Inputs General'!$B48='DNSP Inputs General'!$A$41,G$44,IF('DNSP Inputs General'!$B48='DNSP Inputs General'!$A$42,G$45,G$46))*'DNSP Inputs General'!$D48*'DNSP Inputs General'!N48 -> 3607.117568 | H56: =IF('DNSP Inputs General'!$B48='DNSP Inputs General'!$A$41,H$44,IF('DNSP Inputs General'!$B48='DNSP Inputs General'!$A$42,H$45,H$46))*'DNSP Inputs General'!$D48*'DNSP Inputs General'!O48 -> 2879.911158 | K56: =D56/'Charges Summary'!D$4 -> 6953.867578 | L56: =E56/'Charges Summary'!E$4 -> 5400.05017 | M56: =F56/'Charges Summary'!F$4 -> 4192.546691 | N56: =G56/'Charges Summary'!G$4 -> 3255.148865 | O56: =H56/'Charges Summary'!H$4 -> 2533.041392
A57: ='DNSP Inputs General'!A$49 -> Mercury vapour 400 watt | D57: =IF('DNSP Inputs General'!$B49='DNSP Inputs General'!$A$41,D$44,IF('DNSP Inputs General'!$B49='DNSP Inputs General'!$A$42,D$45,D$46))*'DNSP Inputs General'!$D49*'DNSP Inputs General'!K49 -> 4215.913608 | E57: =IF('DNSP Inputs General'!$B49='DNSP Inputs General'!$A$41,E$44,IF('DNSP Inputs General'!$B49='DNSP Inputs General'!$A$42,E$45,E$46))*'DNSP Inputs General'!$D49*'DNSP Inputs General'!L49 -> 3890.897668 | F57: =IF('DNSP Inputs General'!$B49='DNSP Inputs General'!$A$41,F$44,IF('DNSP Inputs General'!$B49='DNSP Inputs General'!$A$42,F$45,F$46))*'DNSP Inputs General'!$D49*'DNSP Inputs General'!M49 -> 3590.183525 | G57: =IF('DNSP Inputs General'!$B49='DNSP Inputs General'!$A$41,G$44,IF('DNSP Inputs General'!$B49='DNSP Inputs General'!$A$42,G$45,G$46))*'DNSP Inputs General'!$D49*'DNSP Inputs General'!N49 -> 3312.808439 | H57: =IF('DNSP Inputs General'!$B49='DNSP Inputs General'!$A$41,H$44,IF('DNSP Inputs General'!$B49='DNSP Inputs General'!$A$42,H$45,H$46))*'DNSP Inputs General'!$D49*'DNSP Inputs General'!O49 -> 3063.758178 | K57: =D57/'Charges Summary'!D$4 -> 4109.077591 | L57: =E57/'Charges Summary'!E$4 -> 3696.196805 | M57: =F57/'Charges Summary'!F$4 -> 3324.103728 | N57: =G57/'Charges Summary'!G$4 -> 2989.557293 | O57: =H57/'Charges Summary'!H$4 -> 2694.74503
A58: ='DNSP Inputs General'!A$50 -> Mercury vapour 700 watt | D58: =IF('DNSP Inputs General'!$B50='DNSP Inputs General'!$A$41,D$44,IF('DNSP Inputs General'!$B50='DNSP Inputs General'!$A$42,D$45,D$46))*'DNSP Inputs General'!$D50*'DNSP Inputs General'!K50 -> 0 | E58: =IF('DNSP Inputs General'!$B50='DNSP Inputs General'!$A$41,E$44,IF('DNSP Inputs General'!$B50='DNSP Inputs General'!$A$42,E$45,E$46))*'DNSP Inputs General'!$D50*'DNSP Inputs General'!L50 -> 0 | F58: =IF('DNSP Inputs General'!$B50='DNSP Inputs General'!$A$41,F$44,IF('DNSP Inputs General'!$B50='DNSP Inputs General'!$A$42,F$45,F$46))*'DNSP Inputs General'!$D50*'DNSP Inputs General'!M50 -> 0 | G58: =IF('DNSP Inputs General'!$B50='DNSP Inputs General'!$A$41,G$44,IF('DNSP Inputs General'!$B50='DNSP Inputs General'!$A$42,G$45,G$46))*'DNSP Inputs General'!$D50*'DNSP Inputs General'!N50 -> 0 | H58: =IF('DNSP Inputs General'!$B50='DNSP Inputs General'!$A$41,H$44,IF('DNSP Inputs General'!$B50='DNSP Inputs General'!$A$42,H$45,H$46))*'DNSP Inputs General'!$D50*'DNSP Inputs General'!O50 -> 0 | K58: =D58/'Charges Summary'!D$4 -> 0 | L58: =E58/'Charges Summary'!E$4 -> 0 | M58: =F58/'Charges Summary'!F$4 -> 0 | N58: =G58/'Charges Summary'!G$4 -> 0 | O58: =H58/'Charges Summary'!H$4 -> 0
A59: ='DNSP Inputs General'!A$51 -> Sodium low pressure 90 watt | D59: =IF('DNSP Inputs General'!$B51='DNSP Inputs General'!$A$41,D$44,IF('DNSP Inputs General'!$B51='DNSP Inputs General'!$A$42,D$45,D$46))*'DNSP Inputs General'!$D51*'DNSP Inputs General'!K51 -> 0 | E59: =IF('DNSP Inputs General'!$B51='DNSP Inputs General'!$A$41,E$44,IF('DNSP Inputs General'!$B51='DNSP Inputs General'!$A$42,E$45,E$46))*'DNSP Inputs General'!$D51*'DNSP Inputs General'!L51 -> 0 | F59: =IF('DNSP Inputs General'!$B51='DNSP Inputs General'!$A$41,F$44,IF('DNSP Inputs General'!$B51='DNSP Inputs General'!$A$42,F$45,F$46))*'DNSP Inputs General'!$D51*'DNSP Inputs General'!M51 -> 0 | G59: =IF('DNSP Inputs General'!$B51='DNSP Inputs General'!$A$41,G$44,IF('DNSP Inputs General'!$B51='DNSP Inputs General'!$A$42,G$45,G$46))*'DNSP Inputs General'!$D51*'DNSP Inputs General'!N51 -> 0 | H59: =IF('DNSP Inputs General'!$B51='DNSP Inputs General'!$A$41,H$44,IF('DNSP Inputs General'!$B51='DNSP Inputs General'!$A$42,H$45,H$46))*'DNSP Inputs General'!$D51*'DNSP Inputs General'!O51 -> 0 | K59: =D59/'Charges Summary'!D$4 -> 0 | L59: =E59/'Charges Summary'!E$4 -> 0 | M59: =F59/'Charges Summary'!F$4 -> 0 | N59: =G59/'Charges Summary'!G$4 -> 0 | O59: =H59/'Charges Summary'!H$4 -> 0
A60: ='DNSP Inputs General'!A$52 -> Sodium low pressure 180 watt | D60: =IF('DNSP Inputs General'!$B52='DNSP Inputs General'!$A$41,D$44,IF('DNSP Inputs General'!$B52='DNSP Inputs General'!$A$42,D$45,D$46))*'DNSP Inputs General'!$D52*'DNSP Inputs General'!K52 -> 0 | E60: =IF('DNSP Inputs General'!$B52='DNSP Inputs General'!$A$41,E$44,IF('DNSP Inputs General'!$B52='DNSP Inputs General'!$A$42,E$45,E$46))*'DNSP Inputs General'!$D52*'DNSP Inputs General'!L52 -> 0 | F60: =IF('DNSP Inputs General'!$B52='DNSP Inputs General'!$A$41,F$44,IF('DNSP Inputs General'!$B52='DNSP Inputs General'!$A$42,F$45,F$46))*'DNSP Inputs General'!$D52*'DNSP Inputs General'!M52 -> 0 | G60: =IF('DNSP Inputs General'!$B52='DNSP Inputs General'!$A$41,G$44,IF('DNSP Inputs General'!$B52='DNSP Inputs General'!$A$42,G$45,G$46))*'DNSP Inputs General'!$D52*'DNSP Inputs General'!N52 -> 0 | H60: =IF('DNSP Inputs General'!$B52='DNSP Inputs General'!$A$41,H$44,IF('DNSP Inputs General'!$B52='DNSP Inputs General'!$A$42,H$45,H$46))*'DNSP Inputs General'!$D52*'DNSP Inputs General'!O52 -> 0 | K60: =D60/'Charges Summary'!D$4 -> 0 | L60: =E60/'Charges Summary'!E$4 -> 0 | M60: =F60/'Charges Summary'!F$4 -> 0 | N60: =G60/'Charges Summary'!G$4 -> 0 | O60: =H60/'Charges Summary'!H$4 -> 0
A61: ='DNSP Inputs General'!A$53 -> Sodium high pressure 400 watt | D61: =IF('DNSP Inputs General'!$B53='DNSP Inputs General'!$A$41,D$44,IF('DNSP Inputs General'!$B53='DNSP Inputs General'!$A$42,D$45,D$46))*'DNSP Inputs General'!$D53*'DNSP Inputs General'!K53 -> 16773.32275 | E61: =IF('DNSP Inputs General'!$B53='DNSP Inputs General'!$A$41,E$44,IF('DNSP Inputs General'!$B53='DNSP Inputs General'!$A$42,E$45,E$46))*'DNSP Inputs General'!$D53*'DNSP Inputs General'!L53 -> 17442.47746 | F61: =IF('DNSP Inputs General'!$B53='DNSP Inputs General'!$A$41,F$44,IF('DNSP Inputs General'!$B53='DNSP Inputs General'!$A$42,F$45,F$46))*'DNSP Inputs General'!$D53*'DNSP Inputs General'!M53 -> 18134.51613 | G61: =IF('DNSP Inputs General'!$B53='DNSP Inputs General'!$A$41,G$44,IF('DNSP Inputs General'!$B53='DNSP Inputs General'!$A$42,G$45,G$46))*'DNSP Inputs General'!$D53*'DNSP Inputs General'!N53 -> 18854.56891 | H61: =IF('DNSP Inputs General'!$B53='DNSP Inputs General'!$A$41,H$44,IF('DNSP Inputs General'!$B53='DNSP Inputs General'!$A$42,H$45,H$46))*'DNSP Inputs General'!$D53*'DNSP Inputs General'!O53 -> 19647.42898 | K61: =D61/'Charges Summary'!D$4 -> 16348.26778 | L61: =E61/'Charges Summary'!E$4 -> 16569.65435 | M61: =F61/'Charges Summary'!F$4 -> 16790.51008 | N61: =G61/'Charges Summary'!G$4 -> 17014.81236 | O61: =H61/'Charges Summary'!H$4 -> 17281.00213
A62: ='DNSP Inputs General'!A$54 -> Incandescent 100 watt | D62: =IF('DNSP Inputs General'!$B54='DNSP Inputs General'!$A$41,D$44,IF('DNSP Inputs General'!$B54='DNSP Inputs General'!$A$42,D$45,D$46))*'DNSP Inputs General'!$D54*'DNSP Inputs General'!K54 -> 0 | E62: =IF('DNSP Inputs General'!$B54='DNSP Inputs General'!$A$41,E$44,IF('DNSP Inputs General'!$B54='DNSP Inputs General'!$A$42,E$45,E$46))*'DNSP Inputs General'!$D54*'DNSP Inputs General'!L54 -> 0 | F62: =IF('DNSP Inputs General'!$B54='DNSP Inputs General'!$A$41,F$44,IF('DNSP Inputs General'!$B54='DNSP Inputs General'!$A$42,F$45,F$46))*'DNSP Inputs General'!$D54*'DNSP Inputs General'!M54 -> 0 | G62: =IF('DNSP Inputs General'!$B54='DNSP Inputs General'!$A$41,G$44,IF('DNSP Inputs General'!$B54='DNSP Inputs General'!$A$42,G$45,G$46))*'DNSP Inputs General'!$D54*'DNSP Inputs General'!N54 -> 0 | H62: =IF('DNSP Inputs General'!$B54='DNSP Inputs General'!$A$41,H$44,IF('DNSP Inputs General'!$B54='DNSP Inputs General'!$A$42,H$45,H$46))*'DNSP Inputs General'!$D54*'DNSP Inputs General'!O54 -> 0 | K62: =D62/'Charges Summary'!D$4 -> 0 | L62: =E62/'Charges Summary'!E$4 -> 0 | M62: =F62/'Charges Summary'!F$4 -> 0 | N62: =G62/'Charges Summary'!G$4 -> 0 | O62: =H62/'Charges Summary'!H$4 -> 0
A63: ='DNSP Inputs General'!A$55 -> Incandescent 150 watt | D63: =IF('DNSP Inputs General'!$B55='DNSP Inputs General'!$A$41,D$44,IF('DNSP Inputs General'!$B55='DNSP Inputs General'!$A$42,D$45,D$46))*'DNSP Inputs General'!$D55*'DNSP Inputs General'!K55 -> 0 | E63: =IF('DNSP Inputs General'!$B55='DNSP Inputs General'!$A$41,E$44,IF('DNSP Inputs General'!$B55='DNSP Inputs General'!$A$42,E$45,E$46))*'DNSP Inputs General'!$D55*'DNSP Inputs General'!L55 -> 0 | F63: =IF('DNSP Inputs General'!$B55='DNSP Inputs General'!$A$41,F$44,IF('DNSP Inputs General'!$B55='DNSP Inputs General'!$A$42,F$45,F$46))*'DNSP Inputs General'!$D55*'DNSP Inputs General'!M55 -> 0 | G63: =IF('DNSP Inputs General'!$B55='DNSP Inputs General'!$A$41,G$44,IF('DNSP Inputs General'!$B55='DNSP Inputs General'!$A$42,G$45,G$46))*'DNSP Inputs General'!$D55*'DNSP Inputs General'!N55 -> 0 | H63: =IF('DNSP Inputs General'!$B55='DNSP Inputs General'!$A$41,H$44,IF('DNSP Inputs General'!$B55='DNSP Inputs General'!$A$42,H$45,H$46))*'DNSP Inputs General'!$D55*'DNSP Inputs General'!O55 -> 0 | K63: =D63/'Charges Summary'!D$4 -> 0 | L63: =E63/'Charges Summary'!E$4 -> 0 | M63: =F63/'Charges Summary'!F$4 -> 0 | N63: =G63/'Charges Summary'!G$4 -> 0 | O63: =H63/'Charges Summary'!H$4 -> 0
A64: ='DNSP Inputs General'!A$56 -> Metal halide 250 watt | D64: =IF('DNSP Inputs General'!$B56='DNSP Inputs General'!$A$41,D$44,IF('DNSP Inputs General'!$B56='DNSP Inputs General'!$A$42,D$45,D$46))*'DNSP Inputs General'!$D56*'DNSP Inputs General'!K56 -> 5850.335103 | E64: =IF('DNSP Inputs General'!$B56='DNSP Inputs General'!$A$41,E$44,IF('DNSP Inputs General'!$B56='DNSP Inputs General'!$A$42,E$45,E$46))*'DNSP Inputs General'!$D56*'DNSP Inputs General'!L56 -> 6369.611581 | F64: =IF('DNSP Inputs General'!$B56='DNSP Inputs General'!$A$41,F$44,IF('DNSP Inputs General'!$B56='DNSP Inputs General'!$A$42,F$45,F$46))*'DNSP Inputs General'!$D56*'DNSP Inputs General'!M56 -> 6933.521897 | G64: =IF('DNSP Inputs General'!$B56='DNSP Inputs General'!$A$41,G$44,IF('DNSP Inputs General'!$B56='DNSP Inputs General'!$A$42,G$45,G$46))*'DNSP Inputs General'!$D56*'DNSP Inputs General'!N56 -> 7547.578983 | H64: =IF('DNSP Inputs General'!$B56='DNSP Inputs General'!$A$41,H$44,IF('DNSP Inputs General'!$B56='DNSP Inputs General'!$A$42,H$45,H$46))*'DNSP Inputs General'!$D56*'DNSP Inputs General'!O56 -> 8234.551062 | K64: =D64/'Charges Summary'!D$4 -> 5702.080997 | L64: =E64/'Charges Summary'!E$4 -> 6050.875655 | M64: =F64/'Charges Summary'!F$4 -> 6419.656773 | N64: =G64/'Charges Summary'!G$4 -> 6811.115162 | O64: =H64/'Charges Summary'!H$4 -> 7242.7438
A65: ='DNSP Inputs General'!$A57 -> Metal halide 400 watt | D65: =IF('DNSP Inputs General'!$B57='DNSP Inputs General'!$A$41,D$44,IF('DNSP Inputs General'!$B57='DNSP Inputs General'!$A$42,D$45,D$46))*'DNSP Inputs General'!$D57*'DNSP Inputs General'!K57 -> 0 | E65: =IF('DNSP Inputs General'!$B57='DNSP Inputs General'!$A$41,E$44,IF('DNSP Inputs General'!$B57='DNSP Inputs General'!$A$42,E$45,E$46))*'DNSP Inputs General'!$D57*'DNSP Inputs General'!L57 -> 0 | F65: =IF('DNSP Inputs General'!$B57='DNSP Inputs General'!$A$41,F$44,IF('DNSP Inputs General'!$B57='DNSP Inputs General'!$A$42,F$45,F$46))*'DNSP Inputs General'!$D57*'DNSP Inputs General'!M57 -> 0 | G65: =IF('DNSP Inputs General'!$B57='DNSP Inputs General'!$A$41,G$44,IF('DNSP Inputs General'!$B57='DNSP Inputs General'!$A$42,G$45,G$46))*'DNSP Inputs General'!$D57*'DNSP Inputs General'!N57 -> 0 | H65: =IF('DNSP Inputs General'!$B57='DNSP Inputs General'!$A$41,H$44,IF('DNSP Inputs General'!$B57='DNSP Inputs General'!$A$42,H$45,H$46))*'DNSP Inputs General'!$D57*'DNSP Inputs General'!O57 -> 0 | K65: =D65/'Charges Summary'!D$4 -> 0 | L65: =E65/'Charges Summary'!E$4 -> 0 | M65: =F65/'Charges Summary'!F$4 -> 0 | N65: =G65/'Charges Summary'!G$4 -> 0 | O65: =H65/'Charges Summary'!H$4 -> 0
A66: ='DNSP Inputs General'!$A58 -> Metal halide 70 watt | D66: =IF('DNSP Inputs General'!$B58='DNSP Inputs General'!$A$41,D$44,IF('DNSP Inputs General'!$B58='DNSP Inputs General'!$A$42,D$45,D$46))*'DNSP Inputs General'!$D58*'DNSP Inputs General'!K58 -> 0 | E66: =IF('DNSP Inputs General'!$B58='DNSP Inputs General'!$A$41,E$44,IF('DNSP Inputs General'!$B58='DNSP Inputs General'!$A$42,E$45,E$46))*'DNSP Inputs General'!$D58*'DNSP Inputs General'!L58 -> 0 | F66: =IF('DNSP Inputs General'!$B58='DNSP Inputs General'!$A$41,F$44,IF('DNSP Inputs General'!$B58='DNSP Inputs General'!$A$42,F$45,F$46))*'DNSP Inputs General'!$D58*'DNSP Inputs General'!M58 -> 0 | G66: =IF('DNSP Inputs General'!$B58='DNSP Inputs General'!$A$41,G$44,IF('DNSP Inputs General'!$B58='DNSP Inputs General'!$A$42,G$45,G$46))*'DNSP Inputs General'!$D58*'DNSP Inputs General'!N58 -> 0 | H66: =IF('DNSP Inputs General'!$B58='DNSP Inputs General'!$A$41,H$44,IF('DNSP Inputs General'!$B58='DNSP Inputs General'!$A$42,H$45,H$46))*'DNSP Inputs General'!$D58*'DNSP Inputs General'!O58 -> 0 | K66: =D66/'Charges Summary'!D$4 -> 0 | L66: =E66/'Charges Summary'!E$4 -> 0 | M66: =F66/'Charges Summary'!F$4 -> 0 | N66: =G66/'Charges Summary'!G$4 -> 0 | O66: =H66/'Charges Summary'!H$4 -> 0
A67: ='DNSP Inputs General'!$A59 -> Metal halide 150 watt | D67: =IF('DNSP Inputs General'!$B59='DNSP Inputs General'!$A$41,D$44,IF('DNSP Inputs General'!$B59='DNSP Inputs General'!$A$42,D$45,D$46))*'DNSP Inputs General'!$D59*'DNSP Inputs General'!K59 -> 0 | E67: =IF('DNSP Inputs General'!$B59='DNSP Inputs General'!$A$41,E$44,IF('DNSP Inputs General'!$B59='DNSP Inputs General'!$A$42,E$45,E$46))*'DNSP Inputs General'!$D59*'DNSP Inputs General'!L59 -> 0 | F67: =IF('DNSP Inputs General'!$B59='DNSP Inputs General'!$A$41,F$44,IF('DNSP Inputs General'!$B59='DNSP Inputs General'!$A$42,F$45,F$46))*'DNSP Inputs General'!$D59*'DNSP Inputs General'!M59 -> 0 | G67: =IF('DNSP Inputs General'!$B59='DNSP Inputs General'!$A$41,G$44,IF('DNSP Inputs General'!$B59='DNSP Inputs General'!$A$42,G$45,G$46))*'DNSP Inputs General'!$D59*'DNSP Inputs General'!N59 -> 0 | H67: =IF('DNSP Inputs General'!$B59='DNSP Inputs General'!$A$41,H$44,IF('DNSP Inputs General'!$B59='DNSP Inputs General'!$A$42,H$45,H$46))*'DNSP Inputs General'!$D59*'DNSP Inputs General'!O59 -> 0 | K67: =D67/'Charges Summary'!D$4 -> 0 | L67: =E67/'Charges Summary'!E$4 -> 0 | M67: =F67/'Charges Summary'!F$4 -> 0 | N67: =G67/'Charges Summary'!G$4 -> 0 | O67: =H67/'Charges Summary'!H$4 -> 0
A73: ='DNSP Inputs General'!A$62 -> Energy Efficient Lights
A74: ='DNSP Inputs General'!$A63 -> T5 2X14W | D74: =SUM('Charges Summary'!D83,'Charges Summary'!D8)*'DNSP Inputs General'!$D63*'DNSP Inputs General'!K63 -> 198588.1577 | E74: =SUM('Charges Summary'!E83,'Charges Summary'!E8)*'DNSP Inputs General'!$D63*'DNSP Inputs General'!L63 -> 201230.6242 | F74: =SUM('Charges Summary'!F83,'Charges Summary'!F8)*'DNSP Inputs General'!$D63*'DNSP Inputs General'!M63 -> 204682.3339 | G74: =SUM('Charges Summary'!G83,'Charges Summary'!G8)*'DNSP Inputs General'!$D63*'DNSP Inputs General'!N63 -> 208070.5208 | H74: =SUM('Charges Summary'!H83,'Charges Summary'!H8)*'DNSP Inputs General'!$D63*'DNSP Inputs General'!O63 -> 211418.6817 | K74: =D74/'Charges Summary'!D$4 -> 193555.7092 | L74: =E74/'Charges Summary'!E$4 -> 191161.026 | M74: =F74/'Charges Summary'!F$4 -> 189512.6821 | N74: =G74/'Charges Summary'!G$4 -> 187767.7971 | O74: =H74/'Charges Summary'!H$4 -> 185954.4418
A75: ='DNSP Inputs General'!$A64 -> T5 2X24W | D75: =SUM('Charges Summary'!D83,'Charges Summary'!D8)*'DNSP Inputs General'!$D64*'DNSP Inputs General'!K64 -> 24255.73532 | E75: =SUM('Charges Summary'!E83,'Charges Summary'!E8)*'DNSP Inputs General'!$D64*'DNSP Inputs General'!L64 -> 24578.48855 | F75: =SUM('Charges Summary'!F83,'Charges Summary'!F8)*'DNSP Inputs General'!$D64*'DNSP Inputs General'!M64 -> 25000.08346 | G75: =SUM('Charges Summary'!G83,'Charges Summary'!G8)*'DNSP Inputs General'!$D64*'DNSP Inputs General'!N64 -> 25413.91965 | H75: =SUM('Charges Summary'!H83,'Charges Summary'!H8)*'DNSP Inputs General'!$D64*'DNSP Inputs General'!O64 -> 25822.86701 | K75: =D75/'Charges Summary'!D$4 -> 23641.06757 | L75: =E75/'Charges Summary'!E$4 -> 23348.57881 | M75: =F75/'Charges Summary'!F$4 -> 23147.24861 | N75: =G75/'Charges Summary'!G$4 -> 22934.1268 | O75: =H75/'Charges Summary'!H$4 -> 22712.64195
A76: ='DNSP Inputs General'!$A65 -> CF32 | D76: =SUM('Charges Summary'!D83,'Charges Summary'!D8)*'DNSP Inputs General'!$D65*'DNSP Inputs General'!K65 -> 79789.30852 | E76: =SUM('Charges Summary'!E83,'Charges Summary'!E8)*'DNSP Inputs General'!$D65*'DNSP Inputs General'!L65 -> 80851.00614 | F76: =SUM('Charges Summary'!F83,'Charges Summary'!F8)*'DNSP Inputs General'!$D65*'DNSP Inputs General'!M65 -> 82237.84378 | G76: =SUM('Charges Summary'!G83,'Charges Summary'!G8)*'DNSP Inputs General'!$D65*'DNSP Inputs General'!N65 -> 83599.15905 | H76: =SUM('Charges Summary'!H83,'Charges Summary'!H8)*'DNSP Inputs General'!$D65*'DNSP Inputs General'!O65 -> 84944.39253 | K76: =D76/'Charges Summary'!D$4 -> 77767.35723 | L76: =E76/'Charges Summary'!E$4 -> 76805.21465 | M76: =F76/'Charges Summary'!F$4 -> 76142.93842 | N76: =G76/'Charges Summary'!G$4 -> 75441.87362 | O76: =H76/'Charges Summary'!H$4 -> 74713.2986
A77: ='DNSP Inputs General'!$A66 -> CF42 | D77: =SUM('Charges Summary'!D83,'Charges Summary'!D8)*'DNSP Inputs General'!$D66*'DNSP Inputs General'!K66 -> 22134.75138 | E77: =SUM('Charges Summary'!E83,'Charges Summary'!E8)*'DNSP Inputs General'!$D66*'DNSP Inputs General'!L66 -> 22429.28223 | F77: =SUM('Charges Summary'!F83,'Charges Summary'!F8)*'DNSP Inputs General'!$D66*'DNSP Inputs General'!M66 -> 22814.0118 | G77: =SUM('Charges Summary'!G83,'Charges Summary'!G8)*'DNSP Inputs General'!$D66*'DNSP Inputs General'!N66 -> 23191.66108 | H77: =SUM('Charges Summary'!H83,'Charges Summary'!H8)*'DNSP Inputs General'!$D66*'DNSP Inputs General'!O66 -> 23564.84903 | K77: =D77/'Charges Summary'!D$4 -> 21573.83175 | L77: =E77/'Charges Summary'!E$4 -> 21306.91897 | M77: =F77/'Charges Summary'!F$4 -> 21123.1936 | N77: =G77/'Charges Summary'!G$4 -> 20928.70771 | O77: =H77/'Charges Summary'!H$4 -> 20726.59007
A78: ='DNSP Inputs General'!$A67 -> Category P LED 18 Watt | D78: =SUM('Charges Summary'!D101,'Charges Summary'!D8)*'DNSP Inputs General'!$D67*'DNSP Inputs General'!K67 -> 356598.9947 | E78: =SUM('Charges Summary'!E101,'Charges Summary'!E8)*'DNSP Inputs General'!$D67*'DNSP Inputs General'!L67 -> 509981.7241 | F78: =SUM('Charges Summary'!F101,'Charges Summary'!F8)*'DNSP Inputs General'!$D67*'DNSP Inputs General'!M67 -> 571310.9431 | G78: =SUM('Charges Summary'!G101,'Charges Summary'!G8)*'DNSP Inputs General'!$D67*'DNSP Inputs General'!N67 -> 639402.2845 | H78: =SUM('Charges Summary'!H101,'Charges Summary'!H8)*'DNSP Inputs General'!$D67*'DNSP Inputs General'!O67 -> 715039.325 | K78: =D78/'Charges Summary'!D$4 -> 347562.373 | L78: =E78/'Charges Summary'!E$4 -> 484462.1936 | M78: =F78/'Charges Summary'!F$4 -> 528969.2915 | N78: =G78/'Charges Summary'!G$4 -> 577011.8609 | O78: =H78/'Charges Summary'!H$4 -> 628916.6949
A79: ='DNSP Inputs General'!$A68 -> Category P LED 47 Watt | D79: =SUM('Charges Summary'!D101,'Charges Summary'!D8)*'DNSP Inputs General'!$D68*'DNSP Inputs General'!K68 -> 0 | E79: =SUM('Charges Summary'!E101,'Charges Summary'!E8)*'DNSP Inputs General'!$D68*'DNSP Inputs General'!L68 -> 0 | F79: =SUM('Charges Summary'!F101,'Charges Summary'!F8)*'DNSP Inputs General'!$D68*'DNSP Inputs General'!M68 -> 0 | G79: =SUM('Charges Summary'!G101,'Charges Summary'!G8)*'DNSP Inputs General'!$D68*'DNSP Inputs General'!N68 -> 0 | H79: =SUM('Charges Summary'!H101,'Charges Summary'!H8)*'DNSP Inputs General'!$D68*'DNSP Inputs General'!O68 -> 0 | K79: =D79/'Charges Summary'!D$4 -> 0 | L79: =E79/'Charges Summary'!E$4 -> 0 | M79: =F79/'Charges Summary'!F$4 -> 0 | N79: =G79/'Charges Summary'!G$4 -> 0 | O79: =H79/'Charges Summary'!H$4 -> 0
A83: Total O & M | D83: =SUM(D49:D82) -> 2906240.91 | E83: =SUM(E49:E82) -> 3041969.001 | F83: =SUM(F49:F82) -> 3199736.765 | G83: =SUM(G49:G82) -> 3376757.113 | H83: =SUM(H49:H82) -> 3575807.998 | K83: =SUM(K49:K82) -> 2832593.48 | L83: =SUM(L49:L82) -> 2889748.604 | M83: =SUM(M49:M82) -> 2962594.205 | N83: =SUM(N49:N82) -> 3047266.1 | O83: =SUM(O49:O82) -> 3145121.211
A86: Public Lighting - Capital Charge | D86: Capital Charge - Nominal | K86: Capital Charge - Real 2015 $
D87: =D$2 -> 2016 | E87: 2017 | F87: 2018 | G87: 2019 | H87: 2020 | K87: =K$2 -> 2016 | L87: 2017 | M87: 2018 | N87: 2019 | O87: 2020
A89: Unit cost
A90: ='DNSP Inputs General'!A$41 -> Mercury vapour 80 watt | D90: =SUM('Charges Summary'!D27,'Charges Summary'!D11) -> 15.48044932 | E90: =SUM('Charges Summary'!E27,'Charges Summary'!E11) -> 15.49708403 | F90: =SUM('Charges Summary'!F27,'Charges Summary'!F11) -> 15.17550988 | G90: =SUM('Charges Summary'!G27,'Charges Summary'!G11) -> 15.30994709 | H90: =SUM('Charges Summary'!H27,'Charges Summary'!H11) -> 15.4452867
A91: ='DNSP Inputs General'!A$42 -> Sodium high pressure 150 watt | D91: =SUM('Charges Summary'!D51,'Charges Summary'!D11) -> 15.7766862 | E91: =SUM('Charges Summary'!E51,'Charges Summary'!E11) -> 15.79381752 | F91: =SUM('Charges Summary'!F51,'Charges Summary'!F11) -> 15.46594825 | G91: =SUM('Charges Summary'!G51,'Charges Summary'!G11) -> 15.60297989 | H91: =SUM('Charges Summary'!H51,'Charges Summary'!H11) -> 15.74095217
A92: ='DNSP Inputs General'!A$43 -> Sodium high pressure 250 watt | D92: =SUM('Charges Summary'!D67,'Charges Summary'!D11) -> 17.20500981 | E92: =SUM('Charges Summary'!E67,'Charges Summary'!E11) -> 17.22453556 | F92: =SUM('Charges Summary'!F67,'Charges Summary'!F11) -> 16.86631401 | G92: =SUM('Charges Summary'!G67,'Charges Summary'!G11) -> 17.01585488 | H92: =SUM('Charges Summary'!H67,'Charges Summary'!H11) -> 17.16652071
A94: ='DNSP Inputs General'!A$40 -> Existing Lights
A95: ='DNSP Inputs General'!A$41 -> Mercury vapour 80 watt | D95: =D90*'DNSP Inputs General'!K41 -> 383958.9364 | E95: =E90*'DNSP Inputs General'!L41 -> 295698.2484 | F95: =F90*'DNSP Inputs General'!M41 -> 260606.0929 | G95: =G90*'DNSP Inputs General'!N41 -> 236623.2814 | H95: =H90*'DNSP Inputs General'!O41 -> 214843.5236 | K95: =D95/'Charges Summary'!D$4 -> 374228.9828 | L95: =E95/'Charges Summary'!E$4 -> 280901.4819 | M95: =F95/'Charges Summary'!F$4 -> 241291.7554 | N95: =G95/'Charges Summary'!G$4 -> 213534.4888 | O95: =H95/'Charges Summary'!H$4 -> 188966.78
A96: ='DNSP Inputs General'!A$42 -> Sodium high pressure 150 watt | D96: =D91*'DNSP Inputs General'!K42 -> 209795.4947 | E96: =E91*'DNSP Inputs General'!L42 -> 219401.93 | F96: =F91*'DNSP Inputs General'!M42 -> 224441.3323 | G96: =G91*'DNSP Inputs General'!N42 -> 236541.1979 | H96: =H91*'DNSP Inputs General'!O42 -> 249289.0485 | K96: =D96/'Charges Summary'!D$4 -> 204479.0397 | L96: =E96/'Charges Summary'!E$4 -> 208423.0381 | M96: =F96/'Charges Summary'!F$4 -> 207807.279 | N96: =G96/'Charges Summary'!G$4 -> 213460.4147 | O96: =H96/'Charges Summary'!H$4 -> 219263.5272
A97: ='DNSP Inputs General'!A$43 -> Sodium high pressure 250 watt | D97: =D92*'DNSP Inputs General'!K43 -> 70288.87511 | E97: =E92*'DNSP Inputs General'!L43 -> 72754.51878 | F97: =F92*'DNSP Inputs General'!M43 -> 73656.89667 | G97: =G92*'DNSP Inputs General'!N43 -> 76829.46204 | H97: =H92*'DNSP Inputs General'!O43 -> 80137.7389 | K97: =D97/'Charges Summary'!D$4 -> 68507.67554 | L97: =E97/'Charges Summary'!E$4 -> 69113.87624 | M97: =F97/'Charges Summary'!F$4 -> 68197.95229 | N97: =G97/'Charges Summary'!G$4 -> 69332.73769 | O97: =H97/'Charges Summary'!H$4 -> 70485.58048
A98: ='DNSP Inputs General'!A$44 -> Flourescent 20 watt | D98: =IF('DNSP Inputs General'!$B44='DNSP Inputs General'!$A$41,D$90,IF('DNSP Inputs General'!$B44='DNSP Inputs General'!$A$42,D$91,D$92))*'DNSP Inputs General'!$D44*'DNSP Inputs General'!K44 -> 0 | E98: =IF('DNSP Inputs General'!$B44='DNSP Inputs General'!$A$41,E$90,IF('DNSP Inputs General'!$B44='DNSP Inputs General'!$A$42,E$91,E$92))*'DNSP Inputs General'!$D44*'DNSP Inputs General'!L44 -> 0 | F98: =IF('DNSP Inputs General'!$B44='DNSP Inputs General'!$A$41,F$90,IF('DNSP Inputs General'!$B44='DNSP Inputs General'!$A$42,F$91,F$92))*'DNSP Inputs General'!$D44*'DNSP Inputs General'!M44 -> 0 | G98: =IF('DNSP Inputs General'!$B44='DNSP Inputs General'!$A$41,G$90,IF('DNSP Inputs General'!$B44='DNSP Inputs General'!$A$42,G$91,G$92))*'DNSP Inputs General'!$D44*'DNSP Inputs General'!N44 -> 0 | H98: =IF('DNSP Inputs General'!$B44='DNSP Inputs General'!$A$41,H$90,IF('DNSP Inputs General'!$B44='DNSP Inputs General'!$A$42,H$91,H$92))*'DNSP Inputs General'!$D44*'DNSP Inputs General'!O44 -> 0 | K98: =D98/'Charges Summary'!D$4 -> 0 | L98: =E98/'Charges Summary'!E$4 -> 0 | M98: =F98/'Charges Summary'!F$4 -> 0 | N98: =G98/'Charges Summary'!G$4 -> 0 | O98: =H98/'Charges Summary'!H$4 -> 0
A99: ='DNSP Inputs General'!A$45 -> Flourescent 40 watt | D99: =IF('DNSP Inputs General'!$B45='DNSP Inputs General'!$A$41,D$90,IF('DNSP Inputs General'!$B45='DNSP Inputs General'!$A$42,D$91,D$92))*'DNSP Inputs General'!$D45*'DNSP Inputs General'!K45 -> 0 | E99: =IF('DNSP Inputs General'!$B45='DNSP Inputs General'!$A$41,E$90,IF('DNSP Inputs General'!$B45='DNSP Inputs General'!$A$42,E$91,E$92))*'DNSP Inputs General'!$D45*'DNSP Inputs General'!L45 -> 0 | F99: =IF('DNSP Inputs General'!$B45='DNSP Inputs General'!$A$41,F$90,IF('DNSP Inputs General'!$B45='DNSP Inputs General'!$A$42,F$91,F$92))*'DNSP Inputs General'!$D45*'DNSP Inputs General'!M45 -> 0 | G99: =IF('DNSP Inputs General'!$B45='DNSP Inputs General'!$A$41,G$90,IF('DNSP Inputs General'!$B45='DNSP Inputs General'!$A$42,G$91,G$92))*'DNSP Inputs General'!$D45*'DNSP Inputs General'!N45 -> 0 | H99: =IF('DNSP Inputs General'!$B45='DNSP Inputs General'!$A$41,H$90,IF('DNSP Inputs General'!$B45='DNSP Inputs General'!$A$42,H$91,H$92))*'DNSP Inputs General'!$D45*'DNSP Inputs General'!O45 -> 0 | K99: =D99/'Charges Summary'!D$4 -> 0 | L99: =E99/'Charges Summary'!E$4 -> 0 | M99: =F99/'Charges Summary'!F$4 -> 0 | N99: =G99/'Charges Summary'!G$4 -> 0 | O99: =H99/'Charges Summary'!H$4 -> 0
A100: ='DNSP Inputs General'!A$46 -> Mercury vapour 50 watt | D100: =IF('DNSP Inputs General'!$B46='DNSP Inputs General'!$A$41,D$90,IF('DNSP Inputs General'!$B46='DNSP Inputs General'!$A$42,D$91,D$92))*'DNSP Inputs General'!$D46*'DNSP Inputs General'!K46 -> 5241.462226 | E100: =IF('DNSP Inputs General'!$B46='DNSP Inputs General'!$A$41,E$90,IF('DNSP Inputs General'!$B46='DNSP Inputs General'!$A$42,E$91,E$92))*'DNSP Inputs General'!$D46*'DNSP Inputs General'!L46 -> 4920.46391 | F100: =IF('DNSP Inputs General'!$B46='DNSP Inputs General'!$A$41,F$90,IF('DNSP Inputs General'!$B46='DNSP Inputs General'!$A$42,F$91,F$92))*'DNSP Inputs General'!$D46*'DNSP Inputs General'!M46 -> 4518.419186 | G100: =IF('DNSP Inputs General'!$B46='DNSP Inputs General'!$A$41,G$90,IF('DNSP Inputs General'!$B46='DNSP Inputs General'!$A$42,G$91,G$92))*'DNSP Inputs General'!$D46*'DNSP Inputs General'!N46 -> 4274.684649 | H100: =IF('DNSP Inputs General'!$B46='DNSP Inputs General'!$A$41,H$90,IF('DNSP Inputs General'!$B46='DNSP Inputs General'!$A$42,H$91,H$92))*'DNSP Inputs General'!$D46*'DNSP Inputs General'!O46 -> 4044.022196 | K100: =D100/'Charges Summary'!D$4 -> 5108.637647 | L100: =E100/'Charges Summary'!E$4 -> 4674.243461 | M100: =F100/'Charges Summary'!F$4 -> 4183.544923 | N100: =G100/'Charges Summary'!G$4 -> 3857.577309 | O100: =H100/'Charges Summary'!H$4 -> 3556.941534
A101: ='DNSP Inputs General'!A$47 -> Mercury vapour 125 watt | D101: =IF('DNSP Inputs General'!$B47='DNSP Inputs General'!$A$41,D$90,IF('DNSP Inputs General'!$B47='DNSP Inputs General'!$A$42,D$91,D$92))*'DNSP Inputs General'!$D47*'DNSP Inputs General'!K47 -> 17691.93454 | E101: =IF('DNSP Inputs General'!$B47='DNSP Inputs General'!$A$41,E$90,IF('DNSP Inputs General'!$B47='DNSP Inputs General'!$A$42,E$91,E$92))*'DNSP Inputs General'!$D47*'DNSP Inputs General'!L47 -> 18388.44436 | F101: =IF('DNSP Inputs General'!$B47='DNSP Inputs General'!$A$41,F$90,IF('DNSP Inputs General'!$B47='DNSP Inputs General'!$A$42,F$91,F$92))*'DNSP Inputs General'!$D47*'DNSP Inputs General'!M47 -> 18695.69155 | G101: =IF('DNSP Inputs General'!$B47='DNSP Inputs General'!$A$41,G$90,IF('DNSP Inputs General'!$B47='DNSP Inputs General'!$A$42,G$91,G$92))*'DNSP Inputs General'!$D47*'DNSP Inputs General'!N47 -> 19582.81732 | H101: =IF('DNSP Inputs General'!$B47='DNSP Inputs General'!$A$41,H$90,IF('DNSP Inputs General'!$B47='DNSP Inputs General'!$A$42,H$91,H$92))*'DNSP Inputs General'!$D47*'DNSP Inputs General'!O47 -> 20511.65473 | K101: =D101/'Charges Summary'!D$4 -> 17243.60092 | L101: =E101/'Charges Summary'!E$4 -> 17468.28498 | M101: =F101/'Charges Summary'!F$4 -> 17310.09503 | N101: =G101/'Charges Summary'!G$4 -> 17672.00108 | O101: =H101/'Charges Summary'!H$4 -> 18041.13655
A102: ='DNSP Inputs General'!A$48 -> Mercury vapour 250 watt | D102: =IF('DNSP Inputs General'!$B48='DNSP Inputs General'!$A$41,D$90,IF('DNSP Inputs General'!$B48='DNSP Inputs General'!$A$42,D$91,D$92))*'DNSP Inputs General'!$D48*'DNSP Inputs General'!K48 -> 1509.25963 | E102: =IF('DNSP Inputs General'!$B48='DNSP Inputs General'!$A$41,E$90,IF('DNSP Inputs General'!$B48='DNSP Inputs General'!$A$42,E$91,E$92))*'DNSP Inputs General'!$D48*'DNSP Inputs General'!L48 -> 1161.655149 | F102: =IF('DNSP Inputs General'!$B48='DNSP Inputs General'!$A$41,F$90,IF('DNSP Inputs General'!$B48='DNSP Inputs General'!$A$42,F$91,F$92))*'DNSP Inputs General'!$D48*'DNSP Inputs General'!M48 -> 874.521625 | G102: =IF('DNSP Inputs General'!$B48='DNSP Inputs General'!$A$41,G$90,IF('DNSP Inputs General'!$B48='DNSP Inputs General'!$A$42,G$91,G$92))*'DNSP Inputs General'!$D48*'DNSP Inputs General'!N48 -> 678.3046824 | H102: =IF('DNSP Inputs General'!$B48='DNSP Inputs General'!$A$41,H$90,IF('DNSP Inputs General'!$B48='DNSP Inputs General'!$A$42,H$91,H$92))*'DNSP Inputs General'!$D48*'DNSP Inputs General'!O48 -> 526.1068956 | K102: =D102/'Charges Summary'!D$4 -> 1471.013284 | L102: =E102/'Charges Summary'!E$4 -> 1103.525823 | M102: =F102/'Charges Summary'!F$4 -> 809.7080757 | N102: =G102/'Charges Summary'!G$4 -> 612.118312 | O102: =H102/'Charges Summary'!H$4 -> 462.7401576
A103: ='DNSP Inputs General'!A$49 -> Mercury vapour 400 watt | D103: =IF('DNSP Inputs General'!$B49='DNSP Inputs General'!$A$41,D$90,IF('DNSP Inputs General'!$B49='DNSP Inputs General'!$A$42,D$91,D$92))*'DNSP Inputs General'!$D49*'DNSP Inputs General'!K49 -> 891.8295976 | E103: =IF('DNSP Inputs General'!$B49='DNSP Inputs General'!$A$41,E$90,IF('DNSP Inputs General'!$B49='DNSP Inputs General'!$A$42,E$91,E$92))*'DNSP Inputs General'!$D49*'DNSP Inputs General'!L49 -> 795.123363 | F103: =IF('DNSP Inputs General'!$B49='DNSP Inputs General'!$A$41,F$90,IF('DNSP Inputs General'!$B49='DNSP Inputs General'!$A$42,F$91,F$92))*'DNSP Inputs General'!$D49*'DNSP Inputs General'!M49 -> 693.3734571 | G103: =IF('DNSP Inputs General'!$B49='DNSP Inputs General'!$A$41,G$90,IF('DNSP Inputs General'!$B49='DNSP Inputs General'!$A$42,G$91,G$92))*'DNSP Inputs General'!$D49*'DNSP Inputs General'!N49 -> 622.9609747 | H103: =IF('DNSP Inputs General'!$B49='DNSP Inputs General'!$A$41,H$90,IF('DNSP Inputs General'!$B49='DNSP Inputs General'!$A$42,H$91,H$92))*'DNSP Inputs General'!$D49*'DNSP Inputs General'!O49 -> 559.6923707 | K103: =D103/'Charges Summary'!D$4 -> 869.2296273 | L103: =E103/'Charges Summary'!E$4 -> 755.3353197 | M103: =F103/'Charges Summary'!F$4 -> 641.9853685 | N103: =G103/'Charges Summary'!G$4 -> 562.1748311 | O103: =H103/'Charges Summary'!H$4 -> 492.2804434
A104: ='DNSP Inputs General'!A$50 -> Mercury vapour 700 watt | D104: =IF('DNSP Inputs General'!$B50='DNSP Inputs General'!$A$41,D$90,IF('DNSP Inputs General'!$B50='DNSP Inputs General'!$A$42,D$91,D$92))*'DNSP Inputs General'!$D50*'DNSP Inputs General'!K50 -> 0 | E104: =IF('DNSP Inputs General'!$B50='DNSP Inputs General'!$A$41,E$90,IF('DNSP Inputs General'!$B50='DNSP Inputs General'!$A$42,E$91,E$92))*'DNSP Inputs General'!$D50*'DNSP Inputs General'!L50 -> 0 | F104: =IF('DNSP Inputs General'!$B50='DNSP Inputs General'!$A$41,F$90,IF('DNSP Inputs General'!$B50='DNSP Inputs General'!$A$42,F$91,F$92))*'DNSP Inputs General'!$D50*'DNSP Inputs General'!M50 -> 0 | G104: =IF('DNSP Inputs General'!$B50='DNSP Inputs General'!$A$41,G$90,IF('DNSP Inputs General'!$B50='DNSP Inputs General'!$A$42,G$91,G$92))*'DNSP Inputs General'!$D50*'DNSP Inputs General'!N50 -> 0 | H104: =IF('DNSP Inputs General'!$B50='DNSP Inputs General'!$A$41,H$90,IF('DNSP Inputs General'!$B50='DNSP Inputs General'!$A$42,H$91,H$92))*'DNSP Inputs General'!$D50*'DNSP Inputs General'!O50 -> 0 | K104: =D104/'Charges Summary'!D$4 -> 0 | L104: =E104/'Charges Summary'!E$4 -> 0 | M104: =F104/'Charges Summary'!F$4 -> 0 | N104: =G104/'Charges Summary'!G$4 -> 0 | O104: =H104/'Charges Summary'!H$4 -> 0
A105: ='DNSP Inputs General'!A$51 -> Sodium low pressure 90 watt | D105: =IF('DNSP Inputs General'!$B51='DNSP Inputs General'!$A$41,D$90,IF('DNSP Inputs General'!$B51='DNSP Inputs General'!$A$42,D$91,D$92))*'DNSP Inputs General'!$D51*'DNSP Inputs General'!K51 -> 0 | E105: =IF('DNSP Inputs General'!$B51='DNSP Inputs General'!$A$41,E$90,IF('DNSP Inputs General'!$B51='DNSP Inputs General'!$A$42,E$91,E$92))*'DNSP Inputs General'!$D51*'DNSP Inputs General'!L51 -> 0 | F105: =IF('DNSP Inputs General'!$B51='DNSP Inputs General'!$A$41,F$90,IF('DNSP Inputs General'!$B51='DNSP Inputs General'!$A$42,F$91,F$92))*'DNSP Inputs General'!$D51*'DNSP Inputs General'!M51 -> 0 | G105: =IF('DNSP Inputs General'!$B51='DNSP Inputs General'!$A$41,G$90,IF('DNSP Inputs General'!$B51='DNSP Inputs General'!$A$42,G$91,G$92))*'DNSP Inputs General'!$D51*'DNSP Inputs General'!N51 -> 0 | H105: =IF('DNSP Inputs General'!$B51='DNSP Inputs General'!$A$41,H$90,IF('DNSP Inputs General'!$B51='DNSP Inputs General'!$A$42,H$91,H$92))*'DNSP Inputs General'!$D51*'DNSP Inputs General'!O51 -> 0 | K105: =D105/'Charges Summary'!D$4 -> 0 | L105: =E105/'Charges Summary'!E$4 -> 0 | M105: =F105/'Charges Summary'!F$4 -> 0 | N105: =G105/'Charges Summary'!G$4 -> 0 | O105: =H105/'Charges Summary'!H$4 -> 0
A106: ='DNSP Inputs General'!A$52 -> Sodium low pressure 180 watt | D106: =IF('DNSP Inputs General'!$B52='DNSP Inputs General'!$A$41,D$90,IF('DNSP Inputs General'!$B52='DNSP Inputs General'!$A$42,D$91,D$92))*'DNSP Inputs General'!$D52*'DNSP Inputs General'!K52 -> 0 | E106: =IF('DNSP Inputs General'!$B52='DNSP Inputs General'!$A$41,E$90,IF('DNSP Inputs General'!$B52='DNSP Inputs General'!$A$42,E$91,E$92))*'DNSP Inputs General'!$D52*'DNSP Inputs General'!L52 -> 0 | F106: =IF('DNSP Inputs General'!$B52='DNSP Inputs General'!$A$41,F$90,IF('DNSP Inputs General'!$B52='DNSP Inputs General'!$A$42,F$91,F$92))*'DNSP Inputs General'!$D52*'DNSP Inputs General'!M52 -> 0 | G106: =IF('DNSP Inputs General'!$B52='DNSP Inputs General'!$A$41,G$90,IF('DNSP Inputs General'!$B52='DNSP Inputs General'!$A$42,G$91,G$92))*'DNSP Inputs General'!$D52*'DNSP Inputs General'!N52 -> 0 | H106: =IF('DNSP Inputs General'!$B52='DNSP Inputs General'!$A$41,H$90,IF('DNSP Inputs General'!$B52='DNSP Inputs General'!$A$42,H$91,H$92))*'DNSP Inputs General'!$D52*'DNSP Inputs General'!O52 -> 0 | K106: =D106/'Charges Summary'!D$4 -> 0 | L106: =E106/'Charges Summary'!E$4 -> 0 | M106: =F106/'Charges Summary'!F$4 -> 0 | N106: =G106/'Charges Summary'!G$4 -> 0 | O106: =H106/'Charges Summary'!H$4 -> 0
A107: ='DNSP Inputs General'!A$53 -> Sodium high pressure 400 watt | D107: =IF('DNSP Inputs General'!$B53='DNSP Inputs General'!$A$41,D$90,IF('DNSP Inputs General'!$B53='DNSP Inputs General'!$A$42,D$91,D$92))*'DNSP Inputs General'!$D53*'DNSP Inputs General'!K53 -> 3548.209728 | E107: =IF('DNSP Inputs General'!$B53='DNSP Inputs General'!$A$41,E$90,IF('DNSP Inputs General'!$B53='DNSP Inputs General'!$A$42,E$91,E$92))*'DNSP Inputs General'!$D53*'DNSP Inputs General'!L53 -> 3564.452865 | F107: =IF('DNSP Inputs General'!$B53='DNSP Inputs General'!$A$41,F$90,IF('DNSP Inputs General'!$B53='DNSP Inputs General'!$A$42,F$91,F$92))*'DNSP Inputs General'!$D53*'DNSP Inputs General'!M53 -> 3502.325732 | G107: =IF('DNSP Inputs General'!$B53='DNSP Inputs General'!$A$41,G$90,IF('DNSP Inputs General'!$B53='DNSP Inputs General'!$A$42,G$91,G$92))*'DNSP Inputs General'!$D53*'DNSP Inputs General'!N53 -> 3545.529674 | H107: =IF('DNSP Inputs General'!$B53='DNSP Inputs General'!$A$41,H$90,IF('DNSP Inputs General'!$B53='DNSP Inputs General'!$A$42,H$91,H$92))*'DNSP Inputs General'!$D53*'DNSP Inputs General'!O53 -> 3589.224562 | K107: =D107/'Charges Summary'!D$4 -> 3458.294082 | L107: =E107/'Charges Summary'!E$4 -> 3386.087329 | M107: =F107/'Charges Summary'!F$4 -> 3242.757352 | N107: =G107/'Charges Summary'!G$4 -> 3199.570481 | O107: =H107/'Charges Summary'!H$4 -> 3156.921822
A108: ='DNSP Inputs General'!A$54 -> Incandescent 100 watt | D108: =IF('DNSP Inputs General'!$B54='DNSP Inputs General'!$A$41,D$90,IF('DNSP Inputs General'!$B54='DNSP Inputs General'!$A$42,D$91,D$92))*'DNSP Inputs General'!$D54*'DNSP Inputs General'!K54 -> 0 | E108: =IF('DNSP Inputs General'!$B54='DNSP Inputs General'!$A$41,E$90,IF('DNSP Inputs General'!$B54='DNSP Inputs General'!$A$42,E$91,E$92))*'DNSP Inputs General'!$D54*'DNSP Inputs General'!L54 -> 0 | F108: =IF('DNSP Inputs General'!$B54='DNSP Inputs General'!$A$41,F$90,IF('DNSP Inputs General'!$B54='DNSP Inputs General'!$A$42,F$91,F$92))*'DNSP Inputs General'!$D54*'DNSP Inputs General'!M54 -> 0 | G108: =IF('DNSP Inputs General'!$B54='DNSP Inputs General'!$A$41,G$90,IF('DNSP Inputs General'!$B54='DNSP Inputs General'!$A$42,G$91,G$92))*'DNSP Inputs General'!$D54*'DNSP Inputs General'!N54 -> 0 | H108: =IF('DNSP Inputs General'!$B54='DNSP Inputs General'!$A$41,H$90,IF('DNSP Inputs General'!$B54='DNSP Inputs General'!$A$42,H$91,H$92))*'DNSP Inputs General'!$D54*'DNSP Inputs General'!O54 -> 0 | K108: =D108/'Charges Summary'!D$4 -> 0 | L108: =E108/'Charges Summary'!E$4 -> 0 | M108: =F108/'Charges Summary'!F$4 -> 0 | N108: =G108/'Charges Summary'!G$4 -> 0 | O108: =H108/'Charges Summary'!H$4 -> 0
A109: ='DNSP Inputs General'!A$55 -> Incandescent 150 watt | D109: =IF('DNSP Inputs General'!$B55='DNSP Inputs General'!$A$41,D$90,IF('DNSP Inputs General'!$B55='DNSP Inputs General'!$A$42,D$91,D$92))*'DNSP Inputs General'!$D55*'DNSP Inputs General'!K55 -> 0 | E109: =IF('DNSP Inputs General'!$B55='DNSP Inputs General'!$A$41,E$90,IF('DNSP Inputs General'!$B55='DNSP Inputs General'!$A$42,E$91,E$92))*'DNSP Inputs General'!$D55*'DNSP Inputs General'!L55 -> 0 | F109: =IF('DNSP Inputs General'!$B55='DNSP Inputs General'!$A$41,F$90,IF('DNSP Inputs General'!$B55='DNSP Inputs General'!$A$42,F$91,F$92))*'DNSP Inputs General'!$D55*'DNSP Inputs General'!M55 -> 0 | G109: =IF('DNSP Inputs General'!$B55='DNSP Inputs General'!$A$41,G$90,IF('DNSP Inputs General'!$B55='DNSP Inputs General'!$A$42,G$91,G$92))*'DNSP Inputs General'!$D55*'DNSP Inputs General'!N55 -> 0 | H109: =IF('DNSP Inputs General'!$B55='DNSP Inputs General'!$A$41,H$90,IF('DNSP Inputs General'!$B55='DNSP Inputs General'!$A$42,H$91,H$92))*'DNSP Inputs General'!$D55*'DNSP Inputs General'!O55 -> 0 | K109: =D109/'Charges Summary'!D$4 -> 0 | L109: =E109/'Charges Summary'!E$4 -> 0 | M109: =F109/'Charges Summary'!F$4 -> 0 | N109: =G109/'Charges Summary'!G$4 -> 0 | O109: =H109/'Charges Summary'!H$4 -> 0
A110: ='DNSP Inputs General'!A$56 -> Metal halide 250 watt | D110: =IF('DNSP Inputs General'!$B56='DNSP Inputs General'!$A$41,D$90,IF('DNSP Inputs General'!$B56='DNSP Inputs General'!$A$42,D$91,D$92))*'DNSP Inputs General'!$D56*'DNSP Inputs General'!K56 -> 1237.573273 | E110: =IF('DNSP Inputs General'!$B56='DNSP Inputs General'!$A$41,E$90,IF('DNSP Inputs General'!$B56='DNSP Inputs General'!$A$42,E$91,E$92))*'DNSP Inputs General'!$D56*'DNSP Inputs General'!L56 -> 1301.660288 | F110: =IF('DNSP Inputs General'!$B56='DNSP Inputs General'!$A$41,F$90,IF('DNSP Inputs General'!$B56='DNSP Inputs General'!$A$42,F$91,F$92))*'DNSP Inputs General'!$D56*'DNSP Inputs General'!M56 -> 1339.07362 | G110: =IF('DNSP Inputs General'!$B56='DNSP Inputs General'!$A$41,G$90,IF('DNSP Inputs General'!$B56='DNSP Inputs General'!$A$42,G$91,G$92))*'DNSP Inputs General'!$D56*'DNSP Inputs General'!N56 -> 1419.293402 | H110: =IF('DNSP Inputs General'!$B56='DNSP Inputs General'!$A$41,H$90,IF('DNSP Inputs General'!$B56='DNSP Inputs General'!$A$42,H$91,H$92))*'DNSP Inputs General'!$D56*'DNSP Inputs General'!O56 -> 1504.301299 | K110: =D110/'Charges Summary'!D$4 -> 1206.211767 | L110: =E110/'Charges Summary'!E$4 -> 1236.525093 | M110: =F110/'Charges Summary'!F$4 -> 1239.83066 | N110: =G110/'Charges Summary'!G$4 -> 1280.804193 | O110: =H110/'Charges Summary'!H$4 -> 1323.116321
A111: ='DNSP Inputs General'!A57 -> Metal halide 400 watt | D111: =IF('DNSP Inputs General'!$B57='DNSP Inputs General'!$A$41,D$90,IF('DNSP Inputs General'!$B57='DNSP Inputs General'!$A$42,D$91,D$92))*'DNSP Inputs General'!$D57*'DNSP Inputs General'!K57 -> 0 | E111: =IF('DNSP Inputs General'!$B57='DNSP Inputs General'!$A$41,E$90,IF('DNSP Inputs General'!$B57='DNSP Inputs General'!$A$42,E$91,E$92))*'DNSP Inputs General'!$D57*'DNSP Inputs General'!L57 -> 0 | F111: =IF('DNSP Inputs General'!$B57='DNSP Inputs General'!$A$41,F$90,IF('DNSP Inputs General'!$B57='DNSP Inputs General'!$A$42,F$91,F$92))*'DNSP Inputs General'!$D57*'DNSP Inputs General'!M57 -> 0 | G111: =IF('DNSP Inputs General'!$B57='DNSP Inputs General'!$A$41,G$90,IF('DNSP Inputs General'!$B57='DNSP Inputs General'!$A$42,G$91,G$92))*'DNSP Inputs General'!$D57*'DNSP Inputs General'!N57 -> 0 | H111: =IF('DNSP Inputs General'!$B57='DNSP Inputs General'!$A$41,H$90,IF('DNSP Inputs General'!$B57='DNSP Inputs General'!$A$42,H$91,H$92))*'DNSP Inputs General'!$D57*'DNSP Inputs General'!O57 -> 0 | K111: =D111/'Charges Summary'!D$4 -> 0 | L111: =E111/'Charges Summary'!E$4 -> 0 | M111: =F111/'Charges Summary'!F$4 -> 0 | N111: =G111/'Charges Summary'!G$4 -> 0 | O111: =H111/'Charges Summary'!H$4 -> 0
A112: ='DNSP Inputs General'!A58 -> Metal halide 70 watt | D112: =IF('DNSP Inputs General'!$B58='DNSP Inputs General'!$A$41,D$90,IF('DNSP Inputs General'!$B58='DNSP Inputs General'!$A$42,D$91,D$92))*'DNSP Inputs General'!$D58*'DNSP Inputs General'!K58 -> 0 | E112: =IF('DNSP Inputs General'!$B58='DNSP Inputs General'!$A$41,E$90,IF('DNSP Inputs General'!$B58='DNSP Inputs General'!$A$42,E$91,E$92))*'DNSP Inputs General'!$D58*'DNSP Inputs General'!L58 -> 0 | F112: =IF('DNSP Inputs General'!$B58='DNSP Inputs General'!$A$41,F$90,IF('DNSP Inputs General'!$B58='DNSP Inputs General'!$A$42,F$91,F$92))*'DNSP Inputs General'!$D58*'DNSP Inputs General'!M58 -> 0 | G112: =IF('DNSP Inputs General'!$B58='DNSP Inputs General'!$A$41,G$90,IF('DNSP Inputs General'!$B58='DNSP Inputs General'!$A$42,G$91,G$92))*'DNSP Inputs General'!$D58*'DNSP Inputs General'!N58 -> 0 | H112: =IF('DNSP Inputs General'!$B58='DNSP Inputs General'!$A$41,H$90,IF('DNSP Inputs General'!$B58='DNSP Inputs General'!$A$42,H$91,H$92))*'DNSP Inputs General'!$D58*'DNSP Inputs General'!O58 -> 0 | K112: =D112/'Charges Summary'!D$4 -> 0 | L112: =E112/'Charges Summary'!E$4 -> 0 | M112: =F112/'Charges Summary'!F$4 -> 0 | N112: =G112/'Charges Summary'!G$4 -> 0 | O112: =H112/'Charges Summary'!H$4 -> 0
A113: ='DNSP Inputs General'!A59 -> Metal halide 150 watt | D113: =IF('DNSP Inputs General'!$B59='DNSP Inputs General'!$A$41,D$90,IF('DNSP Inputs General'!$B59='DNSP Inputs General'!$A$42,D$91,D$92))*'DNSP Inputs General'!$D59*'DNSP Inputs General'!K59 -> 0 | E113: =IF('DNSP Inputs General'!$B59='DNSP Inputs General'!$A$41,E$90,IF('DNSP Inputs General'!$B59='DNSP Inputs General'!$A$42,E$91,E$92))*'DNSP Inputs General'!$D59*'DNSP Inputs General'!L59 -> 0 | F113: =IF('DNSP Inputs General'!$B59='DNSP Inputs General'!$A$41,F$90,IF('DNSP Inputs General'!$B59='DNSP Inputs General'!$A$42,F$91,F$92))*'DNSP Inputs General'!$D59*'DNSP Inputs General'!M59 -> 0 | G113: =IF('DNSP Inputs General'!$B59='DNSP Inputs General'!$A$41,G$90,IF('DNSP Inputs General'!$B59='DNSP Inputs General'!$A$42,G$91,G$92))*'DNSP Inputs General'!$D59*'DNSP Inputs General'!N59 -> 0 | H113: =IF('DNSP Inputs General'!$B59='DNSP Inputs General'!$A$41,H$90,IF('DNSP Inputs General'!$B59='DNSP Inputs General'!$A$42,H$91,H$92))*'DNSP Inputs General'!$D59*'DNSP Inputs General'!O59 -> 0 | K113: =D113/'Charges Summary'!D$4 -> 0 | L113: =E113/'Charges Summary'!E$4 -> 0 | M113: =F113/'Charges Summary'!F$4 -> 0 | N113: =G113/'Charges Summary'!G$4 -> 0 | O113: =H113/'Charges Summary'!H$4 -> 0
A119: ='DNSP Inputs General'!A$62 -> Energy Efficient Lights
A120: ='DNSP Inputs General'!A63 -> T5 2X14W | D120: =SUM('Charges Summary'!D$85,'Charges Summary'!D$11)*'DNSP Inputs General'!$D63*'DNSP Inputs General'!K63 -> 18406.85448 | E120: =SUM('Charges Summary'!E$85,'Charges Summary'!E$11)*'DNSP Inputs General'!$D63*'DNSP Inputs General'!L63 -> 14688.60849 | F120: =SUM('Charges Summary'!F$85,'Charges Summary'!F$11)*'DNSP Inputs General'!$D63*'DNSP Inputs General'!M63 -> 14109.27855 | G120: =SUM('Charges Summary'!G$85,'Charges Summary'!G$11)*'DNSP Inputs General'!$D63*'DNSP Inputs General'!N63 -> 13564.35791 | H120: =SUM('Charges Summary'!H$85,'Charges Summary'!H$11)*'DNSP Inputs General'!$D63*'DNSP Inputs General'!O63 -> 13047.82304 | K120: =D120/'Charges Summary'!D$4 -> 17940.40397 | L120: =E120/'Charges Summary'!E$4 -> 13953.58922 | M120: =F120/'Charges Summary'!F$4 -> 13063.59552 | N120: =G120/'Charges Summary'!G$4 -> 12240.79987 | O120: =H120/'Charges Summary'!H$4 -> 11476.28313
A121: ='DNSP Inputs General'!A64 -> T5 2X24W | D121: =SUM('Charges Summary'!D$85,'Charges Summary'!D$11)*'DNSP Inputs General'!$D64*'DNSP Inputs General'!K64 -> 2248.229681 | E121: =SUM('Charges Summary'!E$85,'Charges Summary'!E$11)*'DNSP Inputs General'!$D64*'DNSP Inputs General'!L64 -> 1794.079788 | F121: =SUM('Charges Summary'!F$85,'Charges Summary'!F$11)*'DNSP Inputs General'!$D64*'DNSP Inputs General'!M64 -> 1723.31991 | G121: =SUM('Charges Summary'!G$85,'Charges Summary'!G$11)*'DNSP Inputs General'!$D64*'DNSP Inputs General'!N64 -> 1656.762816 | H121: =SUM('Charges Summary'!H$85,'Charges Summary'!H$11)*'DNSP Inputs General'!$D64*'DNSP Inputs General'!O64 -> 1593.672785 | K121: =D121/'Charges Summary'!D$4 -> 2191.256999 | L121: =E121/'Charges Summary'!E$4 -> 1704.303877 | M121: =F121/'Charges Summary'!F$4 -> 1595.599249 | N121: =G121/'Charges Summary'!G$4 -> 1495.102252 | O121: =H121/'Charges Summary'!H$4 -> 1401.723493
A122: ='DNSP Inputs General'!A65 -> CF32 | D122: =SUM('Charges Summary'!D$85,'Charges Summary'!D$11)*'DNSP Inputs General'!$D65*'DNSP Inputs General'!K65 -> 7395.557761 | E122: =SUM('Charges Summary'!E$85,'Charges Summary'!E$11)*'DNSP Inputs General'!$D65*'DNSP Inputs General'!L65 -> 5901.63043 | F122: =SUM('Charges Summary'!F$85,'Charges Summary'!F$11)*'DNSP Inputs General'!$D65*'DNSP Inputs General'!M65 -> 5668.865616 | G122: =SUM('Charges Summary'!G$85,'Charges Summary'!G$11)*'DNSP Inputs General'!$D65*'DNSP Inputs General'!N65 -> 5449.925871 | H122: =SUM('Charges Summary'!H$85,'Charges Summary'!H$11)*'DNSP Inputs General'!$D65*'DNSP Inputs General'!O65 -> 5242.391039 | K122: =D122/'Charges Summary'!D$4 -> 7208.145966 | L122: =E122/'Charges Summary'!E$4 -> 5606.312322 | M122: =F122/'Charges Summary'!F$4 -> 5248.728148 | N122: =G122/'Charges Summary'!G$4 -> 4918.142998 | O122: =H122/'Charges Summary'!H$4 -> 4610.973313
A123: ='DNSP Inputs General'!A66 -> CF42 | D123: =SUM('Charges Summary'!D$85,'Charges Summary'!D$11)*'DNSP Inputs General'!$D66*'DNSP Inputs General'!K66 -> 2051.638689 | E123: =SUM('Charges Summary'!E$85,'Charges Summary'!E$11)*'DNSP Inputs General'!$D66*'DNSP Inputs General'!L66 -> 1637.200832 | F123: =SUM('Charges Summary'!F$85,'Charges Summary'!F$11)*'DNSP Inputs General'!$D66*'DNSP Inputs General'!M66 -> 1572.62838 | G123: =SUM('Charges Summary'!G$85,'Charges Summary'!G$11)*'DNSP Inputs General'!$D66*'DNSP Inputs General'!N66 -> 1511.89121 | H123: =SUM('Charges Summary'!H$85,'Charges Summary'!H$11)*'DNSP Inputs General'!$D66*'DNSP Inputs General'!O66 -> 1454.317933 | K123: =D123/'Charges Summary'!D$4 -> 1999.647845 | L123: =E123/'Charges Summary'!E$4 -> 1555.275158 | M123: =F123/'Charges Summary'!F$4 -> 1456.075943 | N123: =G123/'Charges Summary'!G$4 -> 1364.366662 | O123: =H123/'Charges Summary'!H$4 -> 1279.153182
A124: ='DNSP Inputs General'!A67 -> Category P LED 18 Watt | D124: =SUM('Charges Summary'!D$103,'Charges Summary'!D$11)*'DNSP Inputs General'!$D67*'DNSP Inputs General'!K67 -> 87510.75515 | E124: =SUM('Charges Summary'!E$103,'Charges Summary'!E$11)*'DNSP Inputs General'!$D67*'DNSP Inputs General'!L67 -> 98719.85904 | F124: =SUM('Charges Summary'!F$103,'Charges Summary'!F$11)*'DNSP Inputs General'!$D67*'DNSP Inputs General'!M67 -> 104453.8235 | G124: =SUM('Charges Summary'!G$103,'Charges Summary'!G$11)*'DNSP Inputs General'!$D67*'DNSP Inputs General'!N67 -> 110623.9534 | H124: =SUM('Charges Summary'!H$103,'Charges Summary'!H$11)*'DNSP Inputs General'!$D67*'DNSP Inputs General'!O67 -> 117233.3538 | K124: =D124/'Charges Summary'!D$4 -> 85293.13368 | L124: =E124/'Charges Summary'!E$4 -> 93779.90858 | M124: =F124/'Charges Summary'!F$4 -> 96712.42195 | N124: =G124/'Charges Summary'!G$4 -> 99829.69214 | O124: =H124/'Charges Summary'!H$4 -> 103113.2286
A125: ='DNSP Inputs General'!A68 -> Category P LED 47 Watt | D125: =SUM('Charges Summary'!D$103,'Charges Summary'!D$11)*'DNSP Inputs General'!$D68*'DNSP Inputs General'!K68 -> 0 | E125: =SUM('Charges Summary'!E$103,'Charges Summary'!E$11)*'DNSP Inputs General'!$D68*'DNSP Inputs General'!L68 -> 0 | F125: =SUM('Charges Summary'!F$103,'Charges Summary'!F$11)*'DNSP Inputs General'!$D68*'DNSP Inputs General'!M68 -> 0 | G125: =SUM('Charges Summary'!G$103,'Charges Summary'!G$11)*'DNSP Inputs General'!$D68*'DNSP Inputs General'!N68 -> 0 | H125: =SUM('Charges Summary'!H$103,'Charges Summary'!H$11)*'DNSP Inputs General'!$D68*'DNSP Inputs General'!O68 -> 0 | K125: =D125/'Charges Summary'!D$4 -> 0 | L125: =E125/'Charges Summary'!E$4 -> 0 | M125: =F125/'Charges Summary'!F$4 -> 0 | N125: =G125/'Charges Summary'!G$4 -> 0 | O125: =H125/'Charges Summary'!H$4 -> 0
A129: Total Capital Charge | D129: =SUM(D95:D128) -> 811776.6109 | E129: =SUM(E95:E128) -> 740727.8757 | F129: =SUM(F95:F128) -> 715855.643 | G129: =SUM(G95:G128) -> 712924.4233 | H129: =SUM(H95:H128) -> 713576.8717 | K129: =SUM(K95:K128) -> 791205.2738 | L129: =SUM(L95:L128) -> 703661.7874 | M129: =SUM(M95:M128) -> 662801.3289 | N129: =SUM(N95:N128) -> 643359.9913 | O129: =SUM(O95:O128) -> 627630.3862
A131: Check | C131: =SUM(D131:O131) -> 8.847564459e-09 | D131: =ABS(D37-SUM(D83,D129)) -> 1.862645149e-09 | E131: =ABS(E37-SUM(E83,E129)) -> 9.313225746e-10 | F131: =ABS(F37-SUM(F83,F129)) -> 4.656612873e-10 | G131: =ABS(G37-SUM(G83,G129)) -> 4.656612873e-10 | H131: =ABS(H37-SUM(H83,H129)) -> 1.862645149e-09 | K131: =ABS(K37-SUM(K83,K129)) -> 4.656612873e-10 | L131: =ABS(L37-SUM(L83,L129)) -> 9.313225746e-10 | M131: =ABS(M37-SUM(M83,M129)) -> 4.656612873e-10 | N131: =ABS(N37-SUM(N83,N129)) -> 9.313225746e-10 | O131: =ABS(O37-SUM(O83,O129)) -> 4.656612873e-10
A133: Public Lighting - Capital Expenditure | D133: Forecast Capital Expenditure - Nominal | K133: Forecast Capital Expenditure - Real 2015 $
D134: =D$2 -> 2016 | E134: 2017 | F134: 2018 | G134: 2019 | H134: 2020 | K134: =K$2 -> 2016 | L134: 2017 | M134: 2018 | N134: 2019 | O134: 2020
A136: Total Capital Expenditure | D136: =K136*'Charges Summary'!D$4 -> -464312.2478 | E136: =L136*'Charges Summary'!E$4 -> -80487.08301 | F136: =M136*'Charges Summary'!F$4 -> 222976.2269 | G136: =N136*'Charges Summary'!G$4 -> 258728.2678 | H136: =O136*'Charges Summary'!H$4 -> 292787.8103 | K136: ='DNSP Inputs General'!K14 -> -452546.0505 | L136: ='DNSP Inputs General'!L14 -> -76459.50227 | M136: ='DNSP Inputs General'!M14 -> 206450.7571 | N136: ='DNSP Inputs General'!N14 -> 233482.5554 | O136: ='DNSP Inputs General'!O14 -> 257523.0978
A137: Check | C137: =SUM(D137:H137) -> 1.018634066e-10 | D137: =ABS(D136-D144) -> 5.820766091e-11 | E137: =ABS(E136-E144) -> 1.455191523e-11 | F137: =ABS(F136-F144) -> 0 | G137: =ABS(G136-G144) -> 2.910383046e-11 | H137: =ABS(H136-H144) -> 0
A140: Public Lighting - RAB | D140: RAB - Historical Cost ($)
D141: ='DNSP Inputs General'!K$2 -> 2016 | E141: ='DNSP Inputs General'!L$2 -> 2017 | F141: ='DNSP Inputs General'!M$2 -> 2018 | G141: ='DNSP Inputs General'!N$2 -> 2019 | H141: ='DNSP Inputs General'!O$2 -> 2020
A143: Opening RAB | D143: ='Total RAB'!N139 -> 5122210.165 | E143: =D146 -> 4235049.963 | F143: =E146 -> 3745543.368 | G143: 3556154.448 | H143: 3390699.944
A144: Capex | D144: ='Total RAB'!N140 -> -464312.2478 | E144: ='Total RAB'!O140 -> -80487.08301 | F144: ='Total RAB'!P140 -> 222976.2269 | G144: ='Total RAB'!Q140 -> 258728.2678 | H144: ='Total RAB'!R140 -> 292787.8103
A145: Depreciation | D145: ='Total RAB'!N141 -> 422847.9544 | E145: ='Total RAB'!O141 -> 409019.5124 | F145: ='Total RAB'!P141 -> 412365.1466 | G145: ='Total RAB'!Q141 -> 424182.7715 | H145: ='Total RAB'!R141 -> 437736.953
A146: Closing RAB | D146: =D143+D144-D145 -> 4235049.963 | E146: =E143+E144-E145 -> 3745543.368 | F146: =F143+F144-F145 -> 3556154.448 | G146: =G143+G144-G145 -> 3390699.944 | H146: =H143+H144-H145 -> 3245750.802
A148: Average RAB | D148: =SUM(D143,D146)/2 -> 4678630.064 | E148: =SUM(E143,E146)/2 -> 3990296.665 | F148: =SUM(F143,F146)/2 -> 3650848.908 | G148: =SUM(G143,G146)/2 -> 3473427.196 | H148: =SUM(H143,H146)/2 -> 3318225.373
A150: =WACC!A$8 -> Nominal Pre Tax WACC | D150: =WACC!E$8 -> 0.08312874735 | E150: =WACC!F$8 -> 0.08312874735 | F150: =WACC!G$8 -> 0.08312874735 | G150: =WACC!H$8 -> 0.08312874735 | H150: =WACC!I$8 -> 0.08312874735
A152: Capital Charge | D152: Capital Charge - Nominal
D153: =D$2 -> 2016 | E153: 2017 | F153: 2018 | G153: 2019 | H153: 2020
A155: Depreciation | D155: =D145 -> 422847.9544 | E155: =E145 -> 409019.5124 | F155: =F145 -> 412365.1466 | G155: =G145 -> 424182.7715 | H155: =H145 -> 437736.953
A156: Return | D156: =D150*D148 -> 388928.6566 | E156: =E150*E148 -> 331708.3634 | F156: =F150*F148 -> 303490.4965 | G156: =G150*G148 -> 288741.6518 | H156: =H150*H148 -> 275839.9187
D158: =SUM(D155:D157) -> 811776.6109 | E158: =SUM(E155:E157) -> 740727.8757 | F158: =SUM(F155:F157) -> 715855.643 | G158: =SUM(G155:G157) -> 712924.4233 | H158: =SUM(H155:H157) -> 713576.8717
A160: Check | C160: =SUM(D160:H160) -> 5.820766091e-10 | D160: =ABS(D129-D158)*IF('DNSP Inputs General'!K73=0,0,1) -> 1.164153218e-10 | E160: =ABS(E129-E158)*IF('DNSP Inputs General'!L73=0,0,1) -> 2.328306437e-10 | F160: =ABS(F129-F158)*IF('DNSP Inputs General'!M73=0,0,1) -> 0 | G160: =ABS(G129-G158)*IF('DNSP Inputs General'!N73=0,0,1) -> 0 | H160: =ABS(H129-H158)*IF('DNSP Inputs General'!O73=0,0,1) -> 2.328306437e-10

Sheet Charges Summary
A1: ='DNSP Inputs O & M'!$A$3 -> Powercor | D1: ='DNSP Inputs General'!K$2 -> 2016 | E1: ='DNSP Inputs General'!L$2 -> 2017 | F1: ='DNSP Inputs General'!M$2 -> 2018 | G1: ='DNSP Inputs General'!N$2 -> 2019 | H1: ='DNSP Inputs General'!O$2 -> 2020
A2: Nominal $
A4: ='Total RAB'!A20 -> CPI Index | D4: =(1+WACC!E6) -> 1.026 | E4: =D4*(1+WACC!F6) -> 1.052676 | F4: =E4*(1+WACC!G6) -> 1.080045576 | G4: =F4*(1+WACC!H6) -> 1.108126761 | H4: =G4*(1+WACC!I6) -> 1.136938057
A6: ='DNSP Inputs General'!$A$6 -> Poles and Brackets | D6: ='DNSP Inputs General'!K$2 -> 2016 | E6: ='DNSP Inputs General'!L$2 -> 2017 | F6: ='DNSP Inputs General'!M$2 -> 2018 | G6: ='DNSP Inputs General'!N$2 -> 2019 | H6: ='DNSP Inputs General'!O$2 -> 2020
A7: O & M
A8: ='O & M 2016-2020'!A$10 -> Dedicated poles - inspection | D8: ='O & M 2016-2020'!$B$10*D$4 -> 0 | E8: ='O & M 2016-2020'!$Y$10*E$4 -> 0 | F8: ='O & M 2016-2020'!$AV$10*F$4 -> 0 | G8: ='O & M 2016-2020'!$BS$10*G$4 -> 0 | H8: ='O & M 2016-2020'!$CP$10*H$4 -> 0
A10: Capital Charge
A11: Depreciation and Return | D11: ='Depn & WACC Post 2004'!H$81 -> 0.2465003188 | E11: ='Depn & WACC Post 2004'!H$131 -> 0.2375969379 | F11: ='Depn & WACC Post 2004'!H$181 -> 0.2397485912 | G11: ='Depn & WACC Post 2004'!H$231 -> 0.2407671744 | H11: ='Depn & WACC Post 2004'!H$281 -> 0.2407222781
A13: Total Charge | D13: =SUM(D8,D11) -> 0.2465003188 | E13: =SUM(E8,E11) -> 0.2375969379 | F13: =SUM(F8,F11) -> 0.2397485912 | G13: =SUM(G8,G11) -> 0.2407671744 | H13: =SUM(H8,H11) -> 0.2407222781
A18: ='DNSP Inputs General'!$A$8 -> Existing Lights
A20: ='O & M 2016-2020'!$A$8 -> MV80 | D20: =D$1 -> 2016 | E20: =E$1 -> 2017 | F20: 2018 | G20: 2019 | H20: 2020
A22: O & M Charge
A23: ='O & M 2016-2020'!A$9 -> Bulk change & repairs | D23: ='O & M 2016-2020'!$B$9*D$4 -> 25.9616493 | E23: ='O & M 2016-2020'!$Y$9*E$4 -> 26.92756933 | F23: ='O & M 2016-2020'!$AV$9*F$4 -> 27.95250192 | G23: ='O & M 2016-2020'!$BS$9*G$4 -> 29.00946236 | H23: ='O & M 2016-2020'!$CP$9*H$4 -> 30.10222693
A24: ='O & M 2016-2020'!A$11 -> Other costs | D24: ='O & M 2016-2020'!$B$11*D$4 -> 1.55067823 | E24: ='O & M 2016-2020'!$Y$11*E$4 -> 1.52592477 | F24: ='O & M 2016-2020'!$AV$11*F$4 -> 1.572107671 | G24: ='O & M 2016-2020'!$BS$11*G$4 -> 1.61190114 | H24: ='O & M 2016-2020'!$CP$11*H$4 -> 1.645325417
D25: =SUM(D23:D24) -> 27.51232753 | E25: =SUM(E23:E24) -> 28.4534941 | F25: =SUM(F23:F24) -> 29.52460959 | G25: =SUM(G23:G24) -> 30.6213635 | H25: =SUM(H23:H24) -> 31.74755235
A26: Capital Charge
A27: Depreciation and Return | D27: ='Depn & WACC Post 2004'!H$40 -> 15.233949 | E27: ='Depn & WACC Post 2004'!H$90 -> 15.25948709 | F27: ='Depn & WACC Post 2004'!H$140 -> 14.93576129 | G27: ='Depn & WACC Post 2004'!H$190 -> 15.06917992 | H27: ='Depn & WACC Post 2004'!H$240 -> 15.20456442
A29: Poles & Brackets Charge | D29: =D$13 -> 0.2465003188 | E29: =E$13 -> 0.2375969379 | F29: =F$13 -> 0.2397485912 | G29: =G$13 -> 0.2407671744 | H29: =H$13 -> 0.2407222781
A31: Total Charge | D31: =SUM(D25,D27,D29) -> 42.99277685 | E31: =SUM(E25,E27,E29) -> 43.95057814 | F31: =SUM(F25,F27,F29) -> 44.70011948 | G31: =SUM(G25,G27,G29) -> 45.93131059 | H31: =SUM(H25,H27,H29) -> 47.19283905
A33: WDV RAB - MV 80 Luminair
A34: RAB WDV | D34: =MAX(0,'Depn & WACC Post 2004'!$I$8) -> 77.21023347 | E34: =MAX(0,'Depn & WACC Post 2004'!I$40) -> 73.65510133 | F34: =MAX(0,'Depn & WACC Post 2004'!I$90) -> 70.19914254 | G34: =MAX(0,'Depn & WACC Post 2004'!I$140) -> 66.89565676 | H34: =MAX(0,'Depn & WACC Post 2004'!I$190) -> 63.57580057
A36: Avoided Costs - MV 80 O & M
A37: Materials & labour - bulk lamp change | D37: ='O & M 2016-2020'!$G$9*D$4 -> -28.57137596 | E37: ='O & M 2016-2020'!$AD$9*E$4 -> -29.67495791 | F37: ='O & M 2016-2020'!$BA$9*F$4 -> -30.80372099 | G37: ='O & M 2016-2020'!$BX$9*G$4 -> -31.97638381 | H37: ='O & M 2016-2020'!$CU$9*H$4 -> -33.19714178
A38: Materials & Labour - repair of faults | D38: ='O & M 2016-2020'!$G$10*D$4 -> -3.295398485 | E38: ='O & M 2016-2020'!$AD$10*E$4 -> -3.407864594 | F38: ='O & M 2016-2020'!$BA$10*F$4 -> -3.537762237 | G38: ='O & M 2016-2020'!$BX$10*G$4 -> -3.66956219 | H38: ='O & M 2016-2020'!$CU$10*H$4 -> -3.803733901
D39: =SUM(D37:D38) -> -31.86677445 | E39: =SUM(E37:E38) -> -33.0828225 | F39: =SUM(F37:F38) -> -34.34148322 | G39: =SUM(G37:G38) -> -35.645946 | H39: =SUM(H37:H38) -> -37.00087568
A44: ='O & M 2016-2020'!$A$14 -> S-HP 150 | D44: =D$1 -> 2016 | E44: =E$1 -> 2017 | F44: 2018 | G44: 2019 | H44: 2020
A46: O & M Charge
A47: ='O & M 2016-2020'!A$15 -> Patrols and repairs | D47: ='O & M 2016-2020'!$B$15*D$4 -> 83.83808497 | E47: ='O & M 2016-2020'!$Y$15*E$4 -> 86.85641332 | F47: ='O & M 2016-2020'!$AV$15*F$4 -> 89.86528182 | G47: ='O & M 2016-2020'!$BS$15*G$4 -> 92.99257119 | H47: ='O & M 2016-2020'!$CP$15*H$4 -> 96.25447115
A48: ='O & M 2016-2020'!A$17 -> Other costs | D48: ='O & M 2016-2020'!$B$17*D$4 -> 1.55067823 | E48: ='O & M 2016-2020'!$Y$17*E$4 -> 1.52592477 | F48: ='O & M 2016-2020'!$AV$17*F$4 -> 1.572107671 | G48: ='O & M 2016-2020'!$BS$17*G$4 -> 1.61190114 | H48: ='O & M 2016-2020'!$CP$17*H$4 -> 1.645325417
D49: =SUM(D47:D48) -> 85.3887632 | E49: =SUM(E47:E48) -> 88.38233809 | F49: =SUM(F47:F48) -> 91.43738949 | G49: =SUM(G47:G48) -> 94.60447233 | H49: =SUM(H47:H48) -> 97.89979656
A50: Capital Charge
A51: Depreciation and Return | D51: ='Depn & WACC Post 2004'!H$41 -> 15.53018588 | E51: ='Depn & WACC Post 2004'!H$91 -> 15.55622058 | F51: ='Depn & WACC Post 2004'!H$141 -> 15.22619966 | G51: ='Depn & WACC Post 2004'!H$191 -> 15.36221272 | H51: ='Depn & WACC Post 2004'!H$241 -> 15.50022989
A53: Poles & Brackets Charge | D53: =D$13 -> 0.2465003188 | E53: =E$13 -> 0.2375969379 | F53: =F$13 -> 0.2397485912 | G53: =G$13 -> 0.2407671744 | H53: =H$13 -> 0.2407222781
A55: Total Charge | D55: =SUM(D49,D51,D53) -> 101.1654494 | E55: =SUM(E49,E51,E53) -> 104.1761556 | F55: =SUM(F49,F51,F53) -> 106.9033377 | G55: =SUM(G49,G51,G53) -> 110.2074522 | H55: =SUM(H49,H51,H53) -> 113.6407487
A60: ='O & M 2016-2020'!$A$20 -> S-HP 250 | D60: =D$1 -> 2016 | E60: =E$1 -> 2017 | F60: 2018 | G60: 2019 | H60: 2020
A62: O & M Charge
A63: ='O & M 2016-2020'!A$21 -> Patrols and repairs | D63: ='O & M 2016-2020'!$B$21*D$4 -> 79.78193865 | E63: ='O & M 2016-2020'!$Y$21*E$4 -> 82.76150581 | F63: ='O & M 2016-2020'!$AV$21*F$4 -> 85.75913071 | G63: ='O & M 2016-2020'!$BS$21*G$4 -> 88.87573764 | H63: ='O & M 2016-2020'!$CP$21*H$4 -> 92.32427458
A64: ='O & M 2016-2020'!A$23 -> Other costs | D64: ='O & M 2016-2020'!$B$23*D$4 -> 1.55067823 | E64: ='O & M 2016-2020'!$Y$23*E$4 -> 1.52592477 | F64: ='O & M 2016-2020'!$AV$23*F$4 -> 1.572107671 | G64: ='O & M 2016-2020'!$BS$23*G$4 -> 1.61190114 | H64: ='O & M 2016-2020'!$CP$23*H$4 -> 1.645325417
D65: =SUM(D63:D64) -> 81.33261688 | E65: =SUM(E63:E64) -> 84.28743058 | F65: =SUM(F63:F64) -> 87.33123839 | G65: =SUM(G63:G64) -> 90.48763878 | H65: =SUM(H63:H64) -> 93.9696
A66: Capital Charge
A67: Depreciation and Return | D67: ='Depn & WACC Post 2004'!H$42 -> 16.95850949 | E67: ='Depn & WACC Post 2004'!H$92 -> 16.98693862 | F67: ='Depn & WACC Post 2004'!H$142 -> 16.62656541 | G67: ='Depn & WACC Post 2004'!H$192 -> 16.77508771 | H67: ='Depn & WACC Post 2004'!H$242 -> 16.92579843
A69: Poles & Brackets Charge | D69: =D$13 -> 0.2465003188 | E69: =E$13 -> 0.2375969379 | F69: =F$13 -> 0.2397485912 | G69: =G$13 -> 0.2407671744 | H69: =H$13 -> 0.2407222781
A71: Total Charge | D71: =SUM(D65,D67,D69) -> 98.53762669 | E71: =SUM(E65,E67,E69) -> 101.5119661 | F71: =SUM(F65,F67,F69) -> 104.1975524 | G71: =SUM(G65,G67,G69) -> 107.5034937 | H71: =SUM(H65,H67,H69) -> 111.1361207
A76: ='DNSP Inputs General'!$A$11 -> Energy Efficient Lights
A78: ='O & M 2016-2020'!$A$26 -> T5 2X14W | D78: =D$1 -> 2016 | E78: =E$1 -> 2017 | F78: 2018 | G78: 2019 | H78: 2020
A80: O & M Charge
A81: ='O & M 2016-2020'!A$27 -> Bulk change & repairs | D81: ='O & M 2016-2020'!$B$27*D$4 -> 27.93571423 | E81: ='O & M 2016-2020'!$Y$27*E$4 -> 28.96259175 | F81: ='O & M 2016-2020'!$AV$27*F$4 -> 30.07226597 | G81: ='O & M 2016-2020'!$BS$27*G$4 -> 31.21278801 | H81: ='O & M 2016-2020'!$CP$27*H$4 -> 32.38823244
A82: ='O & M 2016-2020'!A$29 -> Other costs | D82: ='O & M 2016-2020'!$B$29*D$4 -> 1.55067823 | E82: ='O & M 2016-2020'!$Y$29*E$4 -> 1.52592477 | F82: ='O & M 2016-2020'!$AV$29*F$4 -> 1.572107671 | G82: ='O & M 2016-2020'!$BS$29*G$4 -> 1.61190114 | H82: ='O & M 2016-2020'!$CP$29*H$4 -> 1.645325417
D83: =SUM(D81:D82) -> 29.48639246 | E83: =SUM(E81:E82) -> 30.48851652 | F83: =SUM(F81:F82) -> 31.64437365 | G83: =SUM(G81:G82) -> 32.82468915 | H83: =SUM(H81:H82) -> 34.03355786
A84: Capital Charge
A85: Depreciation and Return | D85: ='Depn & WACC Post 2004'!$H$69 -> 2.486551548 | E85: ='Depn & WACC Post 2004'!$H$119 -> 1.987878854 | F85: ='Depn & WACC Post 2004'!$H$169 -> 1.941579292 | G85: ='Depn & WACC Post 2004'!$H$219 -> 1.899112277 | H85: ='Depn & WACC Post 2004'!$H$269 -> 1.859677918
A87: Poles & Brackets Charge | D87: =D$13 -> 0.2465003188 | E87: =E$13 -> 0.2375969379 | F87: =F$13 -> 0.2397485912 | G87: =G$13 -> 0.2407671744 | H87: =H$13 -> 0.2407222781
A89: Total Charge | D89: =SUM(D83,D85,D87) -> 32.21944433 | E89: =SUM(E83,E85,E87) -> 32.71399232 | F89: =SUM(F83,F85,F87) -> 33.82570153 | G89: =SUM(G83,G85,G87) -> 34.9645686 | H89: =SUM(H83,H85,H87) -> 36.13395805
A94: ='DNSP Inputs General'!$A$11 -> Energy Efficient Lights
A96: ='O & M 2016-2020'!$A$32 -> Category P LED 18 Watt | D96: =D$1 -> 2016 | E96: =E$1 -> 2017 | F96: 2018 | G96: 2019 | H96: 2020
A98: O & M Charge
A99: ='O & M 2016-2020'!A$27 -> Bulk change & repairs | D99: ='O & M 2016-2020'!$B$33*D$4 -> 11.31122816 | E99: ='O & M 2016-2020'!$Y$33*E$4 -> 11.71900516 | F99: ='O & M 2016-2020'!$AV$33*F$4 -> 12.16653536 | G99: ='O & M 2016-2020'!$BS$33*G$4 -> 12.62520507 | H99: ='O & M 2016-2020'!$CP$33*H$4 -> 13.09658314
A100: ='O & M 2016-2020'!A$35 -> Other costs | D100: ='O & M 2016-2020'!$B$35*D$4 -> 1.55067823 | E100: ='O & M 2016-2020'!$Y$35*E$4 -> 1.52592477 | F100: ='O & M 2016-2020'!$AV$35*F$4 -> 1.572107671 | G100: ='O & M 2016-2020'!$BS$35*G$4 -> 1.61190114 | H100: ='O & M 2016-2020'!$CP$35*H$4 -> 1.645325417
D101: =SUM(D99:D100) -> 12.86190639 | E101: =SUM(E99:E100) -> 13.24492993 | F101: =SUM(F99:F100) -> 13.73864303 | G101: =SUM(G99:G100) -> 14.23710621 | H101: =SUM(H99:H100) -> 14.74190856
A102: Capital Charge
A103: Depreciation and Return | D103: ='Depn & WACC Post 2004'!$H$73 -> 2.909860628 | E103: ='Depn & WACC Post 2004'!$H$123 -> 2.326294185 | F103: ='Depn & WACC Post 2004'!$H$173 -> 2.272112614 | G103: ='Depn & WACC Post 2004'!$H$223 -> 2.222416039 | H103: ='Depn & WACC Post 2004'!$H$273 -> 2.176268397
A105: Poles & Brackets Charge | D105: =D$13 -> 0.2465003188 | E105: =E$13 -> 0.2375969379 | F105: =F$13 -> 0.2397485912 | G105: =G$13 -> 0.2407671744 | H105: =H$13 -> 0.2407222781
A107: Total Charge | D107: =SUM(D101,D103,D105) -> 16.01826733 | E107: =SUM(E101,E103,E105) -> 15.80882105 | F107: =SUM(F101,F103,F105) -> 16.25050423 | G107: =SUM(G101,G103,G105) -> 16.70028942 | H107: =SUM(H101,H103,H105) -> 17.15889923

Sheet O & M 2016-2020
A1: ='DNSP Inputs O & M'!$A$3 -> Powercor
A3: Public Lighting O & M Costs | B3: Year | C3: 2016 | Y3: Year | Z3: =C3+1 -> 2017 | AV3: Year | AW3: =Z3+1 -> 2018 | BS3: Year | BT3: =AW3+1 -> 2019 | CP3: Year | CQ3: =BT3+1 -> 2020
A4: ='DNSP Inputs O & M'!C5 -> Real 2015 $
A6: Summary
A8: =$A$70 -> MV80 | D8: Avoided Costs - MV 80 O & M | AA8: Avoided Costs - MV 80 O & M | AX8: Avoided Costs - MV 80 O & M | BU8: Avoided Costs - MV 80 O & M | CR8: Avoided Costs - MV 80 O & M
A9: =$A$71 -> Bulk change & repairs | B9: =G91*C40+N91*C41+U91*C42 -> 25.30375175 | D9: Materials & labour - bulk lamp change | G9: =-((G73+G82)*C40+(N73+N82)*C41+(U73+U82)*C42)*2 -> -27.84734499 | Y9: =AD91*Z40+AK91*Z41+AR91*Z42 -> 25.58011139 | AA9: Materials & labour - bulk lamp change | AD9: =-((AD73+AD82)*Z40+(AK73+AK82)*Z41+(AR73+AR82)*Z42)*2 -> -28.19002039 | AV9: =BA91*AW40+BH91*AW41+BO91*AW42 -> 25.88085405 | AX9: Materials & labour - bulk lamp change | BA9: =-((BA73+BA82)*AW40+(BH73+BH82)*AW41+(BO73+BO82)*AW42)*2 -> -28.5207603 | BS9: =BX91*BT40+CE91*BT41+CL91*BT42 -> 26.17883024 | BU9: Materials & labour - bulk lamp change | BX9: =-((BX73+BX82)*BT40+(CE73+CE82)*BT41+(CL73+CL82)*BT42)*2 -> -28.85625087 | CP9: =CU91*CQ40+DB91*CQ41+DI91*CQ42 -> 26.47657606 | CR9: Materials & labour - bulk lamp change | CU9: =-((CU73+CU82)*CQ40+(DB73+DB82)*CQ41+(DI73+DI82)*CQ42)*2 -> -29.19872511
A10: =A93 -> Dedicated poles - inspection | B10: =(G94*C40+N94*C41+U94*C42)*C44 -> 0 | D10: Materials & Labour - repair of faults | G10: =-((G77+G85+G87)*C40+(N77+N85+N87)*C41+(U77+U85+U87)*C42)/2 -> -3.211889361 | Y10: =(AD94*Z40+AK94*Z41+AR94*Z42)*Z44 -> 0 | AA10: Materials & Labour - repair of faults | AD10: =-((AD77+AD85+AD87)*Z40+(AK77+AK85+AK87)*Z41+(AR77+AR85+AR87)*Z42)/2 -> -3.237334749 | AV10: =(BA94*AW40+BH94*AW41+BO94*AW42)*AW44 -> 0 | AX10: Materials & Labour - repair of faults | BA10: =-((BA77+BA85+BA87)*AW40+(BH77+BH85+BH87)*AW41+(BO77+BO85+BO87)*AW42)/2 -> -3.275567546 | BS10: =(BX94*BT40+CE94*BT41+CL94*BT42)*BT44 -> 0 | BU10: Materials & Labour - repair of faults | BX10: =-((BX77+BX85+BX87)*BT40+(CE77+CE85+CE87)*BT41+(CL77+CL85+CL87)*BT42)/2 -> -3.31150038 | CP10: =(CU94*CQ40+DB94*CQ41+DI94*CQ42)*CQ44 -> 0 | CR10: Materials & Labour - repair of faults | CU10: =-((CU77+CU85+CU87)*CQ40+(DB77+DB85+DB87)*CQ41+(DI77+DI85+DI87)*CQ42)/2 -> -3.345594668
A11: Other costs | B11: =IF(C52=0,0,C51/C52) -> 1.51138229 | G11: =SUM(G9:G10) -> -31.05923435 | Y11: =IF(Z53=0,0,Z51/Z53) -> 1.449567359 | AD11: =SUM(AD9:AD10) -> -31.42735514 | AV11: =IF(AW53=0,0,AW51/AW53) -> 1.455593825 | BA11: =SUM(BA9:BA10) -> -31.79632785 | BS11: =IF(BT53=0,0,BT51/BT53) -> 1.454618006 | BX11: =SUM(BX9:BX10) -> -32.16775125 | CP11: =IF(CQ53=0,0,CQ51/CQ53) -> 1.447154844 | CU11: =SUM(CU9:CU10) -> -32.54431978
A14: =$A$111 -> S-HP 150
A15: =$A$112 -> Patrols and repairs | B15: =G128*E40+N128*E41+U128*E42 -> 81.71353311 | Y15: =AD128*AB40+AK128*AB41+AR128*AB42 -> 82.51011072 | AV15: =BA128*AY40+BH128*AY41+BO128*AY42 -> 83.20508302 | BS15: =BX128*BV40+CE128*BV41+CL128*BV42 -> 83.91871261 | CP15: =CU128*CS40+DB128*CS41+DI128*CS42 -> 84.66113925
A16: =$A$10 -> Dedicated poles - inspection | B16: =B10 -> 0 | Y16: =Y10 -> 0 | AV16: =AV10 -> 0 | BS16: =BS10 -> 0 | CP16: =CP10 -> 0
A17: =$A$11 -> Other costs | B17: =B11 -> 1.51138229 | Y17: =Y11 -> 1.449567359 | AV17: =AV11 -> 1.455593825 | BS17: =BS11 -> 1.454618006 | CP17: =CP11 -> 1.447154844
A20: =$A$143 -> S-HP 250
A21: =$A$144 -> Patrols and repairs | B21: =G160*G40+N160*G41+U160*G42 -> 77.76017412 | Y21: =AD160*AD40+AK160*AD41+AR160*AD42 -> 78.62011275 | AV21: =BA160*BA40+BH160*BA41+BO160*BA42 -> 79.4032517 | BS21: =BX160*BX40+CE160*BX41+CL160*BX42 -> 80.2035839 | CP21: =CU160*CU40+DB160*CU41+DI160*CU42 -> 81.20431367
A22: =$A$10 -> Dedicated poles - inspection | B22: =B10 -> 0 | Y22: =Y10 -> 0 | AV22: =AV10 -> 0 | BS22: =BS10 -> 0 | CP22: =CP10 -> 0
A23: =$A$11 -> Other costs | B23: =B11 -> 1.51138229 | Y23: =Y11 -> 1.449567359 | AV23: =AV11 -> 1.455593825 | BS23: =BS11 -> 1.454618006 | CP23: =CP11 -> 1.447154844
A26: =$A$177 -> T5 2X14W
A27: =$A$178 -> Bulk change & repairs | B27: =G198*I40+N198*I41+U198*I42 -> 27.22779165 | Y27: =AD198*AF40+AK198*AF41+AR198*AF42 -> 27.51330111 | AV27: =BA198*BC40+BH198*BC41+BO198*BC42 -> 27.84351572 | BS27: =BX198*BZ40+CE198*BZ41+CL198*BZ42 -> 28.16716382 | CP27: =CU198*CW40+DB198*CW41+DI198*CW42 -> 28.48724453
A28: =$A$10 -> Dedicated poles - inspection | B28: =B10 -> 0 | Y28: =Y10 -> 0 | AV28: =AV10 -> 0 | BS28: =BS10 -> 0 | CP28: =CP10 -> 0
A29: =$A$11 -> Other costs | B29: =B11 -> 1.51138229 | Y29: =Y11 -> 1.449567359 | AV29: =AV11 -> 1.455593825 | BS29: =BS11 -> 1.454618006 | CP29: =CP11 -> 1.447154844
A32: =$A$214 -> Category P LED 18 Watt
A33: =$A$178 -> Bulk change & repairs | B33: =G235*K40+N235*K41+U235*K42 -> 11.02458885 | Y33: =AD235*AH40+AK235*AH41+AR235*AH42 -> 11.13258511 | AV33: =BA235*BE40+BH235*BE41+BO235*BE42 -> 11.26483514 | BS33: =BX235*CB40+CE235*CB41+CL235*CB42 -> 11.39328596 | CP33: =CU235*CY40+DB235*CY41+DI235*CY42 -> 11.51917034
A34: =$A$10 -> Dedicated poles - inspection | B34: =B10 -> 0 | Y34: =Y10 -> 0 | AV34: =AV10 -> 0 | BS34: =BS10 -> 0 | CP34: =CP10 -> 0
A35: =$A$11 -> Other costs | B35: =B11 -> 1.51138229 | Y35: =Y11 -> 1.449567359 | AV35: =AV11 -> 1.455593825 | BS35: =BS11 -> 1.454618006 | CP35: =CP11 -> 1.447154844
A39: ='DNSP Inputs O & M'!A52 -> Location of selected public lighting assets within distributors' areas (%) | C39: =$A$70 -> MV80 | E39: =$A$111 -> S-HP 150 | G39: =$A$143 -> S-HP 250 | I39: =$A$177 -> T5 2X14W | K39: =$A$214 -> Category P LED 18 Watt | Z39: =$A$70 -> MV80 | AB39: =$A$111 -> S-HP 150 | AD39: =$A$143 -> S-HP 250 | AF39: =$A$177 -> T5 2X14W | AH39: =$A$214 -> Category P LED 18 Watt | AW39: =$A$70 -> MV80 | AY39: =$A$111 -> S-HP 150 | BA39: =$A$143 -> S-HP 250 | BC39: =$A$177 -> T5 2X14W | BE39: =$A$214 -> Category P LED 18 Watt | BT39: =$A$70 -> MV80 | BV39: =$A$111 -> S-HP 150 | BX39: =$A$143 -> S-HP 250 | BZ39: =$A$177 -> T5 2X14W | CB39: =$A$214 -> Category P LED 18 Watt | CQ39: =$A$70 -> MV80 | CS39: =$A$111 -> S-HP 150 | CU39: =$A$143 -> S-HP 250 | CW39: =$A$177 -> T5 2X14W | CY39: =$A$214 -> Category P LED 18 Watt
A40: ='DNSP Inputs O & M'!A53 -> Urban | C40: ='DNSP Inputs O & M'!$D$53 -> 0.6839891983 | E40: ='DNSP Inputs O & M'!$D$85 -> 0.7457946993 | G40: ='DNSP Inputs O & M'!$D$117 -> 0.7143604499 | I40: ='DNSP Inputs O & M'!$D$177 -> 0.5891012397 | K40: ='DNSP Inputs O & M'!$D$217 -> 0.2838129496 | Z40: ='DNSP Inputs O & M'!$E$53 -> 0.6839891983 | AB40: ='DNSP Inputs O & M'!$E$85 -> 0.7457946993 | AD40: ='DNSP Inputs O & M'!$E$117 -> 0.7143604499 | AF40: ='DNSP Inputs O & M'!$E$177 -> 0.5891012397 | AH40: ='DNSP Inputs O & M'!$E$217 -> 0.2838129496 | AW40: ='DNSP Inputs O & M'!$F$53 -> 0.6839891983 | AY40: ='DNSP Inputs O & M'!$F$85 -> 0.7457946993 | BA40: ='DNSP Inputs O & M'!$F$117 -> 0.7143604499 | BC40: ='DNSP Inputs O & M'!$F$177 -> 0.5891012397 | BE40: ='DNSP Inputs O & M'!$F$217 -> 0.2838129496 | BT40: ='DNSP Inputs O & M'!$G$53 -> 0.6839891983 | BV40: ='DNSP Inputs O & M'!$G$85 -> 0.7457946993 | BX40: ='DNSP Inputs O & M'!$G$117 -> 0.7143604499 | BZ40: ='DNSP Inputs O & M'!$G$177 -> 0.5891012397 | CB40: ='DNSP Inputs O & M'!$G$217 -> 0.2838129496 | CQ40: ='DNSP Inputs O & M'!$H$53 -> 0.6839891983 | CS40: ='DNSP Inputs O & M'!$H$85 -> 0.7457946993 | CU40: ='DNSP Inputs O & M'!$H$117 -> 0.7143604499 | CW40: ='DNSP Inputs O & M'!$H$177 -> 0.5891012397 | CY40: ='DNSP Inputs O & M'!$H$217 -> 0.2838129496
A41: ='DNSP Inputs O & M'!A54 -> Rural | C41: ='DNSP Inputs O & M'!$D$54 -> 0.2232483354 | E41: ='DNSP Inputs O & M'!$D$86 -> 0.2071879872 | G41: ='DNSP Inputs O & M'!$D$118 -> 0.2466649228 | I41: ='DNSP Inputs O & M'!$D$178 -> 0.4103822314 | K41: ='DNSP Inputs O & M'!$D$218 -> 0.6170863309 | Z41: ='DNSP Inputs O & M'!$E$54 -> 0.2232483354 | AB41: ='DNSP Inputs O & M'!$E$86 -> 0.2071879872 | AD41: ='DNSP Inputs O & M'!$E$118 -> 0.2466649228 | AF41: ='DNSP Inputs O & M'!$E$178 -> 0.4103822314 | AH41: ='DNSP Inputs O & M'!$E$218 -> 0.6170863309 | AW41: ='DNSP Inputs O & M'!$F$54 -> 0.2232483354 | AY41: ='DNSP Inputs O & M'!$F$86 -> 0.2071879872 | BA41: ='DNSP Inputs O & M'!$F$118 -> 0.2466649228 | BC41: ='DNSP Inputs O & M'!$F$178 -> 0.4103822314 | BE41: ='DNSP Inputs O & M'!$F$218 -> 0.6170863309 | BT41: ='DNSP Inputs O & M'!$G$54 -> 0.2232483354 | BV41: ='DNSP Inputs O & M'!$G$86 -> 0.2071879872 | BX41: ='DNSP Inputs O & M'!$G$118 -> 0.2466649228 | BZ41: ='DNSP Inputs O & M'!$G$178 -> 0.4103822314 | CB41: ='DNSP Inputs O & M'!$G$218 -> 0.6170863309 | CQ41: ='DNSP Inputs O & M'!$H$54 -> 0.2232483354 | CS41: ='DNSP Inputs O & M'!$H$86 -> 0.2071879872 | CU41: ='DNSP Inputs O & M'!$H$118 -> 0.2466649228 | CW41: ='DNSP Inputs O & M'!$H$178 -> 0.4103822314 | CY41: ='DNSP Inputs O & M'!$H$218 -> 0.6170863309
A42: ='DNSP Inputs O & M'!A55 -> Remote | C42: ='DNSP Inputs O & M'!$D$55 -> 0.09276246624 | E42: ='DNSP Inputs O & M'!$D$87 -> 0.04693525888 | G42: ='DNSP Inputs O & M'!$D$119 -> 0.03818990322 | I42: ='DNSP Inputs O & M'!$D$179 -> 0.0005165289256 | K42: ='DNSP Inputs O & M'!$D$219 -> 0.09910071942 | Z42: ='DNSP Inputs O & M'!$E$55 -> 0.09276246624 | AB42: ='DNSP Inputs O & M'!$E$87 -> 0.04693525888 | AD42: ='DNSP Inputs O & M'!$E$119 -> 0.03818990322 | AF42: ='DNSP Inputs O & M'!$E$179 -> 0.0005165289256 | AH42: ='DNSP Inputs O & M'!$E$219 -> 0.09910071942 | AW42: ='DNSP Inputs O & M'!$F$55 -> 0.09276246624 | AY42: ='DNSP Inputs O & M'!$F$87 -> 0.04693525888 | BA42: ='DNSP Inputs O & M'!$F$119 -> 0.03818990322 | BC42: ='DNSP Inputs O & M'!$F$179 -> 0.0005165289256 | BE42: ='DNSP Inputs O & M'!$F$219 -> 0.09910071942 | BT42: ='DNSP Inputs O & M'!$G$55 -> 0.09276246624 | BV42: ='DNSP Inputs O & M'!$G$87 -> 0.04693525888 | BX42: ='DNSP Inputs O & M'!$G$119 -> 0.03818990322 | BZ42: ='DNSP Inputs O & M'!$G$179 -> 0.0005165289256 | CB42: ='DNSP Inputs O & M'!$G$219 -> 0.09910071942 | CQ42: ='DNSP Inputs O & M'!$H$55 -> 0.09276246624 | CS42: ='DNSP Inputs O & M'!$H$87 -> 0.04693525888 | CU42: ='DNSP Inputs O & M'!$H$119 -> 0.03818990322 | CW42: ='DNSP Inputs O & M'!$H$179 -> 0.0005165289256 | CY42: ='DNSP Inputs O & M'!$H$219 -> 0.09910071942
A44: ='DNSP Inputs O & M'!A128 -> Proportion of lights on dedicated poles | C44: ='DNSP Inputs O & M'!$D$128 -> 0 | Z44: ='DNSP Inputs O & M'!$E$128 -> 0 | AW44: ='DNSP Inputs O & M'!$F$128 -> 0 | BT44: ='DNSP Inputs O & M'!$G$128 -> 0 | CQ44: ='DNSP Inputs O & M'!$H$128 -> 0
A46: ='DNSP Inputs O & M'!A132 -> Other direct costs
A47: ='DNSP Inputs O & M'!$A$133 -> Call centre | C47: ='DNSP Inputs O & M'!$D$136 -> 49345.49733 | Z47: ='DNSP Inputs O & M'!$E$136 -> 51021.82208 | AW47: ='DNSP Inputs O & M'!$F$136 -> 52755.09356 | BT47: ='DNSP Inputs O & M'!$G$136 -> 54547.24631 | CQ47: ='DNSP Inputs O & M'!$H$136 -> 56400.2806
A48: ='DNSP Inputs O & M'!$A$138 -> GIS and other | C48: ='DNSP Inputs O & M'!$D$138 -> 58016.7663 | Z48: ='DNSP Inputs O & M'!$E$138 -> 58993.98528 | AW48: ='DNSP Inputs O & M'!$F$138 -> 59987.66428 | BT48: ='DNSP Inputs O & M'!$G$138 -> 60998.08055 | CQ48: ='DNSP Inputs O & M'!$H$138 -> 62025.51599
A49: ='DNSP Inputs O & M'!A139 -> Complaints handling | C49: ='DNSP Inputs O & M'!$D$139 -> 17405.02989 | Z49: ='DNSP Inputs O & M'!$E$139 -> 17698.19559 | AW49: ='DNSP Inputs O & M'!$F$139 -> 17996.29928 | BT49: ='DNSP Inputs O & M'!$G$139 -> 18299.42416 | CQ49: ='DNSP Inputs O & M'!$H$139 -> 18607.6548
A50: ='DNSP Inputs O & M'!A140 -> Accounts Manager | C50: ='DNSP Inputs O & M'!$D$140 -> 0 | Z50: ='DNSP Inputs O & M'!$E$140 -> 0 | AW50: ='DNSP Inputs O & M'!$F$140 -> 0 | BT50: ='DNSP Inputs O & M'!$G$140 -> 0 | CQ50: ='DNSP Inputs O & M'!$H$140 -> 0
C51: =SUM(C47:C50) -> 124767.2935 | Z51: =SUM(Z47:Z50) -> 127714.003 | AW51: =SUM(AW47:AW50) -> 130739.0571 | BT51: =SUM(BT47:BT50) -> 133844.751 | CQ51: =SUM(CQ47:CQ50) -> 137033.4514
A52: ='DNSP Inputs General'!A73 -> Total Number of Lights | C52: ='DNSP Inputs General'!$K$73 -> 82551.77683
Z53: ='DNSP Inputs General'!$L$73 -> 88104.91084 | AW53: ='DNSP Inputs General'!$M$73 -> 89818.36476 | BT53: ='DNSP Inputs General'!$N$73 -> 92013.67676 | CQ53: ='DNSP Inputs General'!$O$73 -> 94691.63022
A58: Mercury Vapour 80 Watt Standard Light Type - Cost build-up
A60: Addiitonal assumptions
A61: Proportion of lamps that will fail before bulk change | D61: ='DNSP Inputs O & M'!$D$27 -> 0.1554544767 | AA61: ='DNSP Inputs O & M'!$E$27 -> 0.1554544767 | AX61: ='DNSP Inputs O & M'!$F$27 -> 0.1554544767 | BU61: ='DNSP Inputs O & M'!$G$27 -> 0.1554544767 | CR61: ='DNSP Inputs O & M'!$H$27 -> 0.1554544767
A62: Proportion of lamps that will fail before bulk change (per year) | D62: =D61/'DNSP Inputs O & M'!$D$25 -> 0.03886361918 | AA62: =AA61/'DNSP Inputs O & M'!$E$25 -> 0.03886361918 | AX62: =AX61/'DNSP Inputs O & M'!$F$25 -> 0.03886361918 | BU62: =BU61/'DNSP Inputs O & M'!$G$25 -> 0.03886361918 | CR62: =CR61/'DNSP Inputs O & M'!$H$25 -> 0.03886361918
A63: Overheads are applied to material and labour components
A64: All costs and charges are exclusive of GST
B66: Urban | I66: Rural | P66: Remote | Y66: Urban | AF66: Rural | AM66: Remote | AV66: Urban | BC66: Rural | BJ66: Remote | BS66: Urban | BZ66: Rural | CG66: Remote | CP66: Urban | CW66: Rural | DD66: Remote
B68: Unit rate | C68: Number | D68: Hours | E68: Cost | F68: Annualised | G68: Annualised | I68: Unit rate | J68: Number | K68: Hours | L68: Cost | M68: Annualised | N68: Annualised | P68: Unit rate | Q68: Number | R68: Hours | S68: Cost | T68: Annualised | U68: Annualised | Y68: Unit rate | Z68: Number | AA68: Hours | AB68: Cost | AC68: Annualised | AD68: Annualised | AF68: Unit rate | AG68: Number | AH68: Hours | AI68: Cost | AJ68: Annualised | AK68: Annualised | AM68: Unit rate | AN68: Number | AO68: Hours | AP68: Cost | AQ68: Annualised | AR68: Annualised | AV68: Unit rate | AW68: Number | AX68: Hours | AY68: Cost | AZ68: Annualised | BA68: Annualised | BC68: Unit rate | BD68: Number | BE68: Hours | BF68: Cost | BG68: Annualised | BH68: Annualised | BJ68: Unit rate | BK68: Number | BL68: Hours | BM68: Cost | BN68: Annualised | BO68: Annualised | BS68: Unit rate | BT68: Number | BU68: Hours | BV68: Cost | BW68: Annualised | BX68: Annualised | BZ68: Unit rate | CA68: Number | CB68: Hours | CC68: Cost | CD68: Annualised | CE68: Annualised | CG68: Unit rate | CH68: Number | CI68: Hours | CJ68: Cost | CK68: Annualised | CL68: Annualised | CP68: Unit rate | CQ68: Number | CR68: Hours | CS68: Cost | CT68: Annualised | CU68: Annualised | CW68: Unit rate | CX68: Number | CY68: Hours | CZ68: Cost | DA68: Annualised | DB68: Annualised | DD68: Unit rate | DE68: Number | DF68: Hours | DG68: Cost | DH68: Annualised | DI68: Annualised
F69: cost | G69: unit cost | M69: cost | N69: unit cost | T69: cost | U69: unit cost | AC69: cost | AD69: unit cost | AJ69: cost | AK69: unit cost | AQ69: cost | AR69: unit cost | AZ69: cost | BA69: unit cost | BG69: cost | BH69: unit cost | BN69: cost | BO69: unit cost | BW69: cost | BX69: unit cost | CD69: cost | CE69: unit cost | CK69: cost | CL69: unit cost | CT69: cost | CU69: unit cost | DA69: cost | DB69: unit cost | DH69: cost | DI69: unit cost
A70: MV80
A71: Bulk change & repairs
A72: Materials - bulk lamp change
A73: Lamp | B73: ='DNSP Inputs O & M'!$D$28 -> 5.711379906 | C73: ='DNSP Inputs O & M'!$D$34 -> 86.4 | E73: =B73*C73 -> 493.4632239 | F73: =E73/'DNSP Inputs O & M'!$D$25*0.8 -> 98.69264477 | G73: =(F73+F74+F75)/C73 -> 4.274474206 | I73: ='DNSP Inputs O & M'!$D$28*(1+'DNSP Inputs O & M'!$D$11) -> 5.996948901 | J73: ='DNSP Inputs O & M'!$D$35 -> 72 | L73: =I73*J73 -> 431.7803209 | M73: =L73/'DNSP Inputs O & M'!$D$25*0.8 -> 86.35606418 | N73: =(M73+M74+M75)/J73 -> 4.488197917 | P73: ='DNSP Inputs O & M'!$D$28*(1+'DNSP Inputs O & M'!$D$11) -> 5.996948901 | Q73: ='DNSP Inputs O & M'!$D$36 -> 60 | S73: =P73*Q73 -> 359.8169341 | T73: =S73/'DNSP Inputs O & M'!$D$25*0.8 -> 71.96338681 | U73: =(T73+T74+T75)/Q73 -> 4.488197917 | Y73: ='DNSP Inputs O & M'!$E$28 -> 5.711379906 | Z73: ='DNSP Inputs O & M'!$E$34 -> 86.4 | AB73: =Y73*Z73 -> 493.4632239 | AC73: =AB73/'DNSP Inputs O & M'!$E$25*0.8 -> 98.69264477 | AD73: =(AC73+AC74+AC75)/Z73 -> 4.274474206 | AF73: ='DNSP Inputs O & M'!$E$28*(1+'DNSP Inputs O & M'!$E$11) -> 5.996948901 | AG73: ='DNSP Inputs O & M'!$E$35 -> 72 | AI73: =AF73*AG73 -> 431.7803209 | AJ73: =AI73/'DNSP Inputs O & M'!$E$25*0.8 -> 86.35606418 | AK73: =(AJ73+AJ74+AJ75)/AG73 -> 4.488197917 | AM73: ='DNSP Inputs O & M'!$E$28*(1+'DNSP Inputs O & M'!$E$11) -> 5.996948901 | AN73: ='DNSP Inputs O & M'!$E$36 -> 60 | AP73: =AM73*AN73 -> 359.8169341 | AQ73: =AP73/'DNSP Inputs O & M'!$E$25*0.8 -> 71.96338681 | AR73: =(AQ73+AQ74+AQ75)/AN73 -> 4.488197917 | AV73: ='DNSP Inputs O & M'!$F$28 -> 5.711379906 | AW73: ='DNSP Inputs O & M'!$F$34 -> 86.4 | AY73: =AV73*AW73 -> 493.4632239 | AZ73: =AY73/'DNSP Inputs O & M'!$F$25*0.8 -> 98.69264477 | BA73: =(AZ73+AZ74+AZ75)/AW73 -> 4.274474206 | BC73: ='DNSP Inputs O & M'!$F$28*(1+'DNSP Inputs O & M'!$F$11) -> 5.996948901 | BD73: ='DNSP Inputs O & M'!$F$35 -> 72 | BF73: =BC73*BD73 -> 431.7803209 | BG73: =BF73/'DNSP Inputs O & M'!$F$25*0.8 -> 86.35606418 | BH73: =(BG73+BG74+BG75)/BD73 -> 4.488197917 | BJ73: ='DNSP Inputs O & M'!$F$28*(1+'DNSP Inputs O & M'!$F$11) -> 5.996948901 | BK73: ='DNSP Inputs O & M'!$F$36 -> 60 | BM73: =BJ73*BK73 -> 359.8169341 | BN73: =BM73/'DNSP Inputs O & M'!$F$25*0.8 -> 71.96338681 | BO73: =(BN73+BN74+BN75)/BK73 -> 4.488197917 | BS73: ='DNSP Inputs O & M'!$G$28 -> 5.711379906 | BT73: ='DNSP Inputs O & M'!$G$34 -> 86.4 | BV73: =BS73*BT73 -> 493.4632239 | BW73: =BV73/'DNSP Inputs O & M'!$G$25*0.8 -> 98.69264477 | BX73: =(BW73+BW74+BW75)/BT73 -> 4.274474206 | BZ73: ='DNSP Inputs O & M'!$G$28*(1+'DNSP Inputs O & M'!$G$11) -> 5.996948901 | CA73: ='DNSP Inputs O & M'!$G$35 -> 72 | CC73: =BZ73*CA73 -> 431.7803209 | CD73: =CC73/'DNSP Inputs O & M'!$G$25*0.8 -> 86.35606418 | CE73: =(CD73+CD74+CD75)/CA73 -> 4.488197917 | CG73: ='DNSP Inputs O & M'!$G$28*(1+'DNSP Inputs O & M'!$G$11) -> 5.996948901 | CH73: ='DNSP Inputs O & M'!$G$36 -> 60 | CJ73: =CG73*CH73 -> 359.8169341 | CK73: =CJ73/'DNSP Inputs O & M'!$G$25*0.8 -> 71.96338681 | CL73: =(CK73+CK74+CK75)/CH73 -> 4.488197917 | CP73: ='DNSP Inputs O & M'!$H$28 -> 5.711379906 | CQ73: ='DNSP Inputs O & M'!$H$34 -> 86.4 | CS73: =CP73*CQ73 -> 493.4632239 | CT73: =CS73/'DNSP Inputs O & M'!$H$25*0.8 -> 98.69264477 | CU73: =(CT73+CT74+CT75)/CQ73 -> 4.274474206 | CW73: ='DNSP Inputs O & M'!$H$28*(1+'DNSP Inputs O & M'!$H$11) -> 5.996948901 | CX73: ='DNSP Inputs O & M'!$H$35 -> 72 | CZ73: =CW73*CX73 -> 431.7803209 | DA73: =CZ73/'DNSP Inputs O & M'!$H$25*0.8 -> 86.35606418 | DB73: =(DA73+DA74+DA75)/CX73 -> 4.488197917 | DD73: ='DNSP Inputs O & M'!$H$28*(1+'DNSP Inputs O & M'!$H$11) -> 5.996948901 | DE73: ='DNSP Inputs O & M'!$H$36 -> 60 | DG73: =DD73*DE73 -> 359.8169341 | DH73: =DG73/'DNSP Inputs O & M'!$H$25*0.8 -> 71.96338681 | DI73: =(DH73+DH74+DH75)/DE73 -> 4.488197917
A74: PE cell | B74: ='DNSP Inputs O & M'!$D$29 -> 23.05797796 | C74: =C73*'DNSP Inputs O & M'!$D$25/'DNSP Inputs O & M'!$D$26 -> 43.2 | E74: =B74*C74 -> 996.1046477 | F74: =E74/'DNSP Inputs O & M'!$D$25 -> 249.0261619 | I74: ='DNSP Inputs O & M'!$D$29*(1+'DNSP Inputs O & M'!$D$11) -> 24.21087685 | J74: =J73*'DNSP Inputs O & M'!$D$25/'DNSP Inputs O & M'!$D$26 -> 36 | L74: =I74*J74 -> 871.5915668 | M74: =L74/'DNSP Inputs O & M'!$D$25 -> 217.8978917 | P74: ='DNSP Inputs O & M'!$D$29*(1+'DNSP Inputs O & M'!$D$11) -> 24.21087685 | Q74: =Q73*'DNSP Inputs O & M'!$D$25/'DNSP Inputs O & M'!$D$26 -> 30 | S74: =P74*Q74 -> 726.3263056 | T74: =S74/'DNSP Inputs O & M'!$D$25 -> 181.5815764 | Y74: ='DNSP Inputs O & M'!$E$29 -> 23.05797796 | Z74: =Z73*'DNSP Inputs O & M'!$E$25/'DNSP Inputs O & M'!$E$26 -> 43.2 | AB74: =Y74*Z74 -> 996.1046477 | AC74: =AB74/'DNSP Inputs O & M'!$E$25 -> 249.0261619 | AF74: ='DNSP Inputs O & M'!$E$29*(1+'DNSP Inputs O & M'!$E$11) -> 24.21087685 | AG74: =AG73*'DNSP Inputs O & M'!$E$25/'DNSP Inputs O & M'!$E$26 -> 36 | AI74: =AF74*AG74 -> 871.5915668 | AJ74: =AI74/'DNSP Inputs O & M'!$E$25 -> 217.8978917 | AM74: ='DNSP Inputs O & M'!$E$29*(1+'DNSP Inputs O & M'!$E$11) -> 24.21087685 | AN74: =AN73*'DNSP Inputs O & M'!$E$25/'DNSP Inputs O & M'!$E$26 -> 30 | AP74: =AM74*AN74 -> 726.3263056 | AQ74: =AP74/'DNSP Inputs O & M'!$E$25 -> 181.5815764 | AV74: ='DNSP Inputs O & M'!$F$29 -> 23.05797796 | AW74: =AW73*'DNSP Inputs O & M'!$F$25/'DNSP Inputs O & M'!$F$26 -> 43.2 | AY74: =AV74*AW74 -> 996.1046477 | AZ74: =AY74/'DNSP Inputs O & M'!$F$25 -> 249.0261619 | BC74: ='DNSP Inputs O & M'!$F$29*(1+'DNSP Inputs O & M'!$F$11) -> 24.21087685 | BD74: =BD73*'DNSP Inputs O & M'!$F$25/'DNSP Inputs O & M'!$F$26 -> 36 | BF74: =BC74*BD74 -> 871.5915668 | BG74: =BF74/'DNSP Inputs O & M'!$F$25 -> 217.8978917 | BJ74: ='DNSP Inputs O & M'!$F$29*(1+'DNSP Inputs O & M'!$F$11) -> 24.21087685 | BK74: =BK73*'DNSP Inputs O & M'!$F$25/'DNSP Inputs O & M'!$F$26 -> 30 | BM74: =BJ74*BK74 -> 726.3263056 | BN74: =BM74/'DNSP Inputs O & M'!$F$25 -> 181.5815764 | BS74: ='DNSP Inputs O & M'!$G$29 -> 23.05797796 | BT74: =BT73*'DNSP Inputs O & M'!$G$25/'DNSP Inputs O & M'!$G$26 -> 43.2 | BV74: =BS74*BT74 -> 996.1046477 | BW74: =BV74/'DNSP Inputs O & M'!$G$25 -> 249.0261619 | BZ74: ='DNSP Inputs O & M'!$G$29*(1+'DNSP Inputs O & M'!$G$11) -> 24.21087685 | CA74: =CA73*'DNSP Inputs O & M'!$G$25/'DNSP Inputs O & M'!$G$26 -> 36 | CC74: =BZ74*CA74 -> 871.5915668 | CD74: =CC74/'DNSP Inputs O & M'!$G$25 -> 217.8978917 | CG74: ='DNSP Inputs O & M'!$G$29*(1+'DNSP Inputs O & M'!$G$11) -> 24.21087685 | CH74: =CH73*'DNSP Inputs O & M'!$G$25/'DNSP Inputs O & M'!$G$26 -> 30 | CJ74: =CG74*CH74 -> 726.3263056 | CK74: =CJ74/'DNSP Inputs O & M'!$G$25 -> 181.5815764 | CP74: ='DNSP Inputs O & M'!$H$29 -> 23.05797796 | CQ74: =CQ73*'DNSP Inputs O & M'!$H$25/'DNSP Inputs O & M'!$H$26 -> 43.2 | CS74: =CP74*CQ74 -> 996.1046477 | CT74: =CS74/'DNSP Inputs O & M'!$H$25 -> 249.0261619 | CW74: ='DNSP Inputs O & M'!$H$29*(1+'DNSP Inputs O & M'!$H$11) -> 24.21087685 | CX74: =CX73*'DNSP Inputs O & M'!$H$25/'DNSP Inputs O & M'!$H$26 -> 36 | CZ74: =CW74*CX74 -> 871.5915668 | DA74: =CZ74/'DNSP Inputs O & M'!$H$25 -> 217.8978917 | DD74: ='DNSP Inputs O & M'!$H$29*(1+'DNSP Inputs O & M'!$H$11) -> 24.21087685 | DE74: =DE73*'DNSP Inputs O & M'!$H$25/'DNSP Inputs O & M'!$H$26 -> 30 | DG74: =DD74*DE74 -> 726.3263056 | DH74: =DG74/'DNSP Inputs O & M'!$H$25 -> 181.5815764
A75: Miscellaneous | B75: ='DNSP Inputs O & M'!$D$31 -> 1.249754903 | C75: ='DNSP Inputs O & M'!$D$34 -> 86.4 | E75: =B75*C75 -> 107.9788236 | F75: =E75/'DNSP Inputs O & M'!$D$25*0.8 -> 21.59576472 | I75: ='DNSP Inputs O & M'!$D$31*(1+'DNSP Inputs O & M'!$D$11) -> 1.312242648 | J75: ='DNSP Inputs O & M'!$D$35 -> 72 | L75: =I75*J75 -> 94.48147065 | M75: =L75/'DNSP Inputs O & M'!$D$25*0.8 -> 18.89629413 | P75: ='DNSP Inputs O & M'!$D$31*(1+'DNSP Inputs O & M'!$D$11) -> 1.312242648 | Q75: ='DNSP Inputs O & M'!$D$36 -> 60 | S75: =P75*Q75 -> 78.73455888 | T75: =S75/'DNSP Inputs O & M'!$D$25*0.8 -> 15.74691178 | Y75: ='DNSP Inputs O & M'!$E$31 -> 1.249754903 | Z75: ='DNSP Inputs O & M'!$E$34 -> 86.4 | AB75: =Y75*Z75 -> 107.9788236 | AC75: =AB75/'DNSP Inputs O & M'!$E$25*0.8 -> 21.59576472 | AF75: ='DNSP Inputs O & M'!$E$31*(1+'DNSP Inputs O & M'!$E$11) -> 1.312242648 | AG75: ='DNSP Inputs O & M'!$E$35 -> 72 | AI75: =AF75*AG75 -> 94.48147065 | AJ75: =AI75/'DNSP Inputs O & M'!$E$25*0.8 -> 18.89629413 | AM75: ='DNSP Inputs O & M'!$E$31*(1+'DNSP Inputs O & M'!$E$11) -> 1.312242648 | AN75: ='DNSP Inputs O & M'!$E$36 -> 60 | AP75: =AM75*AN75 -> 78.73455888 | AQ75: =AP75/'DNSP Inputs O & M'!$E$25*0.8 -> 15.74691178 | AV75: ='DNSP Inputs O & M'!$F$31 -> 1.249754903 | AW75: ='DNSP Inputs O & M'!$F$34 -> 86.4 | AY75: =AV75*AW75 -> 107.9788236 | AZ75: =AY75/'DNSP Inputs O & M'!$F$25*0.8 -> 21.59576472 | BC75: ='DNSP Inputs O & M'!$F$31*(1+'DNSP Inputs O & M'!$F$11) -> 1.312242648 | BD75: ='DNSP Inputs O & M'!$F$35 -> 72 | BF75: =BC75*BD75 -> 94.48147065 | BG75: =BF75/'DNSP Inputs O & M'!$F$25*0.8 -> 18.89629413 | BJ75: ='DNSP Inputs O & M'!$F$31*(1+'DNSP Inputs O & M'!$F$11) -> 1.312242648 | BK75: ='DNSP Inputs O & M'!$F$36 -> 60 | BM75: =BJ75*BK75 -> 78.73455888 | BN75: =BM75/'DNSP Inputs O & M'!$F$25*0.8 -> 15.74691178 | BS75: ='DNSP Inputs O & M'!$G$31 -> 1.249754903 | BT75: ='DNSP Inputs O & M'!$G$34 -> 86.4 | BV75: =BS75*BT75 -> 107.9788236 | BW75: =BV75/'DNSP Inputs O & M'!$G$25*0.8 -> 21.59576472 | BZ75: ='DNSP Inputs O & M'!$G$31*(1+'DNSP Inputs O & M'!$G$11) -> 1.312242648 | CA75: ='DNSP Inputs O & M'!$G$35 -> 72 | CC75: =BZ75*CA75 -> 94.48147065 | CD75: =CC75/'DNSP Inputs O & M'!$G$25*0.8 -> 18.89629413 | CG75: ='DNSP Inputs O & M'!$G$31*(1+'DNSP Inputs O & M'!$G$11) -> 1.312242648 | CH75: ='DNSP Inputs O & M'!$G$36 -> 60 | CJ75: =CG75*CH75 -> 78.73455888 | CK75: =CJ75/'DNSP Inputs O & M'!$G$25*0.8 -> 15.74691178 | CP75: ='DNSP Inputs O & M'!$H$31 -> 1.249754903 | CQ75: ='DNSP Inputs O & M'!$H$34 -> 86.4 | CS75: =CP75*CQ75 -> 107.9788236 | CT75: =CS75/'DNSP Inputs O & M'!$H$25*0.8 -> 21.59576472 | CW75: ='DNSP Inputs O & M'!$H$31*(1+'DNSP Inputs O & M'!$H$11) -> 1.312242648 | CX75: ='DNSP Inputs O & M'!$H$35 -> 72 | CZ75: =CW75*CX75 -> 94.48147065 | DA75: =CZ75/'DNSP Inputs O & M'!$H$25*0.8 -> 18.89629413 | DD75: ='DNSP Inputs O & M'!$H$31*(1+'DNSP Inputs O & M'!$H$11) -> 1.312242648 | DE75: ='DNSP Inputs O & M'!$H$36 -> 60 | DG75: =DD75*DE75 -> 78.73455888 | DH75: =DG75/'DNSP Inputs O & M'!$H$25*0.8 -> 15.74691178
A76: Materials - repair of faults
A77: Lamp | B77: ='DNSP Inputs O & M'!$D$28 -> 5.711379906 | C77: ='DNSP Inputs O & M'!$D$37*'DNSP Inputs O & M'!$D$40 -> 17.28 | E77: =B77*C77 -> 98.69264477 | F77: =(E77+E78+E79+E80)/'DNSP Inputs O & M'!$D$37 -> 45.9278678 | G77: =F77*D62 -> 1.784923164 | I77: ='DNSP Inputs O & M'!$D$28*(1+'DNSP Inputs O & M'!$D$11) -> 5.996948901 | J77: ='DNSP Inputs O & M'!$D$38*'DNSP Inputs O & M'!$D$40 -> 14.4 | L77: =I77*J77 -> 86.35606418 | M77: =(L77+L78+L79+L80)/'DNSP Inputs O & M'!$D$38 -> 48.22426119 | N77: =M77*$D$62 -> 1.874169322 | P77: ='DNSP Inputs O & M'!$D$28*(1+'DNSP Inputs O & M'!$D$11) -> 5.996948901 | Q77: ='DNSP Inputs O & M'!$D$39*'DNSP Inputs O & M'!$D$40 -> 11.52 | S77: =P77*Q77 -> 69.08485134 | T77: =(S77+S78+S79+S80)/'DNSP Inputs O & M'!$D$39 -> 48.22426119 | U77: =T77*D62 -> 1.874169322 | Y77: ='DNSP Inputs O & M'!$E$28 -> 5.711379906 | Z77: ='DNSP Inputs O & M'!$E$37*'DNSP Inputs O & M'!$E$40 -> 17.28 | AB77: =Y77*Z77 -> 98.69264477 | AC77: =(AB77+AB78+AB79+AB80)/'DNSP Inputs O & M'!$E$37 -> 45.9278678 | AD77: =AC77*AA62 -> 1.784923164 | AF77: ='DNSP Inputs O & M'!$E$28*(1+'DNSP Inputs O & M'!$E$11) -> 5.996948901 | AG77: ='DNSP Inputs O & M'!$E$38*'DNSP Inputs O & M'!$E$40 -> 14.4 | AI77: =AF77*AG77 -> 86.35606418 | AJ77: =(AI77+AI78+AI79+AI80)/'DNSP Inputs O & M'!$E$38 -> 48.22426119 | AK77: =AJ77*$AA$62 -> 1.874169322 | AM77: ='DNSP Inputs O & M'!$E$28*(1+'DNSP Inputs O & M'!$E$11) -> 5.996948901 | AN77: ='DNSP Inputs O & M'!$E$39*'DNSP Inputs O & M'!$E$40 -> 11.52 | AP77: =AM77*AN77 -> 69.08485134 | AQ77: =(AP77+AP78+AP79+AP80)/'DNSP Inputs O & M'!$E$39 -> 48.22426119 | AR77: =AQ77*AA62 -> 1.874169322 | AV77: ='DNSP Inputs O & M'!$F$28 -> 5.711379906 | AW77: ='DNSP Inputs O & M'!$F$37*'DNSP Inputs O & M'!$F$40 -> 17.28 | AY77: =AV77*AW77 -> 98.69264477 | AZ77: =(AY77+AY78+AY79+AY80)/'DNSP Inputs O & M'!$F$37 -> 45.9278678 | BA77: =AZ77*AX62 -> 1.784923164 | BC77: ='DNSP Inputs O & M'!$F$28*(1+'DNSP Inputs O & M'!$F$11) -> 5.996948901 | BD77: ='DNSP Inputs O & M'!$F$38*'DNSP Inputs O & M'!$F$40 -> 14.4 | BF77: =BC77*BD77 -> 86.35606418 | BG77: =(BF77+BF78+BF79+BF80)/'DNSP Inputs O & M'!$F$38 -> 48.22426119 | BH77: =BG77*$AX$62 -> 1.874169322 | BJ77: ='DNSP Inputs O & M'!$F$28*(1+'DNSP Inputs O & M'!$F$11) -> 5.996948901 | BK77: ='DNSP Inputs O & M'!$F$39*'DNSP Inputs O & M'!$F$40 -> 11.52 | BM77: =BJ77*BK77 -> 69.08485134 | BN77: =(BM77+BM78+BM79+BM80)/'DNSP Inputs O & M'!$F$39 -> 48.22426119 | BO77: =BN77*AX62 -> 1.874169322 | BS77: ='DNSP Inputs O & M'!$G$28 -> 5.711379906 | BT77: ='DNSP Inputs O & M'!$G$37*'DNSP Inputs O & M'!$G$40 -> 17.28 | BV77: =BS77*BT77 -> 98.69264477 | BW77: =(BV77+BV78+BV79+BV80)/'DNSP Inputs O & M'!$G$37 -> 45.9278678 | BX77: =BW77*BU62 -> 1.784923164 | BZ77: ='DNSP Inputs O & M'!$G$28*(1+'DNSP Inputs O & M'!$G$11) -> 5.996948901 | CA77: ='DNSP Inputs O & M'!$G$38*'DNSP Inputs O & M'!$G$40 -> 14.4 | CC77: =BZ77*CA77 -> 86.35606418 | CD77: =(CC77+CC78+CC79+CC80)/'DNSP Inputs O & M'!$G$38 -> 48.22426119 | CE77: =CD77*$BU$62 -> 1.874169322 | CG77: ='DNSP Inputs O & M'!$G$28*(1+'DNSP Inputs O & M'!$G$11) -> 5.996948901 | CH77: ='DNSP Inputs O & M'!$G$39*'DNSP Inputs O & M'!$G$40 -> 11.52 | CJ77: =CG77*CH77 -> 69.08485134 | CK77: =(CJ77+CJ78+CJ79+CJ80)/'DNSP Inputs O & M'!$G$39 -> 48.22426119 | CL77: =CK77*BU62 -> 1.874169322 | CP77: ='DNSP Inputs O & M'!$H$28 -> 5.711379906 | CQ77: ='DNSP Inputs O & M'!$H$37*'DNSP Inputs O & M'!$H$40 -> 17.28 | CS77: =CP77*CQ77 -> 98.69264477 | CT77: =(CS77+CS78+CS79+CS80)/'DNSP Inputs O & M'!$H$37 -> 45.9278678 | CU77: =CT77*CR62 -> 1.784923164 | CW77: ='DNSP Inputs O & M'!$H$28*(1+'DNSP Inputs O & M'!$H$11) -> 5.996948901 | CX77: ='DNSP Inputs O & M'!$H$38*'DNSP Inputs O & M'!$H$40 -> 14.4 | CZ77: =CW77*CX77 -> 86.35606418 | DA77: =(CZ77+CZ78+CZ79+CZ80)/'DNSP Inputs O & M'!$H$38 -> 48.22426119 | DB77: =DA77*$CR$62 -> 1.874169322 | DD77: ='DNSP Inputs O & M'!$H$28*(1+'DNSP Inputs O & M'!$H$11) -> 5.996948901 | DE77: ='DNSP Inputs O & M'!$H$39*'DNSP Inputs O & M'!$H$40 -> 11.52 | DG77: =DD77*DE77 -> 69.08485134 | DH77: =(DG77+DG78+DG79+DG80)/'DNSP Inputs O & M'!$H$39 -> 48.22426119 | DI77: =DH77*CR62 -> 1.874169322
A78: PE cell | B78: ='DNSP Inputs O & M'!$D$29 -> 23.05797796 | C78: ='DNSP Inputs O & M'!$D$37*'DNSP Inputs O & M'!$D$41 -> 14.4 | E78: =B78*C78 -> 332.0348826 | I78: ='DNSP Inputs O & M'!$D$29*(1+'DNSP Inputs O & M'!$D$11) -> 24.21087685 | J78: ='DNSP Inputs O & M'!$D$38*'DNSP Inputs O & M'!$D$41 -> 12 | L78: =I78*J78 -> 290.5305223 | P78: ='DNSP Inputs O & M'!$D$29*(1+'DNSP Inputs O & M'!$D$11) -> 24.21087685 | Q78: ='DNSP Inputs O & M'!$D$39*'DNSP Inputs O & M'!$D$41 -> 9.6 | S78: =P78*Q78 -> 232.4244178 | Y78: ='DNSP Inputs O & M'!$E$29 -> 23.05797796 | Z78: ='DNSP Inputs O & M'!$E$37*'DNSP Inputs O & M'!$E$41 -> 14.4 | AB78: =Y78*Z78 -> 332.0348826 | AF78: ='DNSP Inputs O & M'!$E$29*(1+'DNSP Inputs O & M'!$E$11) -> 24.21087685 | AG78: ='DNSP Inputs O & M'!$E$38*'DNSP Inputs O & M'!$E$41 -> 12 | AI78: =AF78*AG78 -> 290.5305223 | AM78: ='DNSP Inputs O & M'!$E$29*(1+'DNSP Inputs O & M'!$E$11) -> 24.21087685 | AN78: ='DNSP Inputs O & M'!$E$39*'DNSP Inputs O & M'!$E$41 -> 9.6 | AP78: =AM78*AN78 -> 232.4244178 | AV78: ='DNSP Inputs O & M'!$F$29 -> 23.05797796 | AW78: ='DNSP Inputs O & M'!$F$37*'DNSP Inputs O & M'!$F$41 -> 14.4 | AY78: =AV78*AW78 -> 332.0348826 | BC78: ='DNSP Inputs O & M'!$F$29*(1+'DNSP Inputs O & M'!$F$11) -> 24.21087685 | BD78: ='DNSP Inputs O & M'!$F$38*'DNSP Inputs O & M'!$F$41 -> 12 | BF78: =BC78*BD78 -> 290.5305223 | BJ78: ='DNSP Inputs O & M'!$F$29*(1+'DNSP Inputs O & M'!$F$11) -> 24.21087685 | BK78: ='DNSP Inputs O & M'!$F$39*'DNSP Inputs O & M'!$F$41 -> 9.6 | BM78: =BJ78*BK78 -> 232.4244178 | BS78: ='DNSP Inputs O & M'!$G$29 -> 23.05797796 | BT78: ='DNSP Inputs O & M'!$G$37*'DNSP Inputs O & M'!$G$41 -> 14.4 | BV78: =BS78*BT78 -> 332.0348826 | BZ78: ='DNSP Inputs O & M'!$G$29*(1+'DNSP Inputs O & M'!$G$11) -> 24.21087685 | CA78: ='DNSP Inputs O & M'!$G$38*'DNSP Inputs O & M'!$G$41 -> 12 | CC78: =BZ78*CA78 -> 290.5305223 | CG78: ='DNSP Inputs O & M'!$G$29*(1+'DNSP Inputs O & M'!$G$11) -> 24.21087685 | CH78: ='DNSP Inputs O & M'!$G$39*'DNSP Inputs O & M'!$G$41 -> 9.6 | CJ78: =CG78*CH78 -> 232.4244178 | CP78: ='DNSP Inputs O & M'!$H$29 -> 23.05797796 | CQ78: ='DNSP Inputs O & M'!$H$37*'DNSP Inputs O & M'!$H$41 -> 14.4 | CS78: =CP78*CQ78 -> 332.0348826 | CW78: ='DNSP Inputs O & M'!$H$29*(1+'DNSP Inputs O & M'!$H$11) -> 24.21087685 | CX78: ='DNSP Inputs O & M'!$H$38*'DNSP Inputs O & M'!$H$41 -> 12 | CZ78: =CW78*CX78 -> 290.5305223 | DD78: ='DNSP Inputs O & M'!$H$29*(1+'DNSP Inputs O & M'!$H$11) -> 24.21087685 | DE78: ='DNSP Inputs O & M'!$H$39*'DNSP Inputs O & M'!$H$41 -> 9.6 | DG78: =DD78*DE78 -> 232.4244178
A79: Luminaire | B79: ='DNSP Inputs O & M'!$D$30 -> 198.1486398 | C79: ='DNSP Inputs O & M'!$D$37*'DNSP Inputs O & M'!$D$42 -> 4.32 | E79: =B79*C79 -> 856.0021241 | I79: ='DNSP Inputs O & M'!$D$30*(1+'DNSP Inputs O & M'!$D$11) -> 208.0560718 | J79: ='DNSP Inputs O & M'!$D$38*'DNSP Inputs O & M'!$D$42 -> 3.6 | L79: =I79*J79 -> 749.0018586 | P79: ='DNSP Inputs O & M'!$D$30*(1+'DNSP Inputs O & M'!$D$11) -> 208.0560718 | Q79: ='DNSP Inputs O & M'!$D$39*'DNSP Inputs O & M'!$D$42 -> 2.88 | S79: =P79*Q79 -> 599.2014869 | Y79: ='DNSP Inputs O & M'!$E$30 -> 198.1486398 | Z79: ='DNSP Inputs O & M'!$E$37*'DNSP Inputs O & M'!$E$42 -> 4.32 | AB79: =Y79*Z79 -> 856.0021241 | AF79: ='DNSP Inputs O & M'!$E$30*(1+'DNSP Inputs O & M'!$E$11) -> 208.0560718 | AG79: ='DNSP Inputs O & M'!$E$38*'DNSP Inputs O & M'!$E$42 -> 3.6 | AI79: =AF79*AG79 -> 749.0018586 | AM79: ='DNSP Inputs O & M'!$E$30*(1+'DNSP Inputs O & M'!$E$11) -> 208.0560718 | AN79: ='DNSP Inputs O & M'!$E$39*'DNSP Inputs O & M'!$E$42 -> 2.88 | AP79: =AM79*AN79 -> 599.2014869 | AV79: ='DNSP Inputs O & M'!$F$30 -> 198.1486398 | AW79: ='DNSP Inputs O & M'!$F$37*'DNSP Inputs O & M'!$F$42 -> 4.32 | AY79: =AV79*AW79 -> 856.0021241 | BC79: ='DNSP Inputs O & M'!$F$30*(1+'DNSP Inputs O & M'!$F$11) -> 208.0560718 | BD79: ='DNSP Inputs O & M'!$F$38*'DNSP Inputs O & M'!$F$42 -> 3.6 | BF79: =BC79*BD79 -> 749.0018586 | BJ79: ='DNSP Inputs O & M'!$F$30*(1+'DNSP Inputs O & M'!$F$11) -> 208.0560718 | BK79: ='DNSP Inputs O & M'!$F$39*'DNSP Inputs O & M'!$F$42 -> 2.88 | BM79: =BJ79*BK79 -> 599.2014869 | BS79: ='DNSP Inputs O & M'!$G$30 -> 198.1486398 | BT79: ='DNSP Inputs O & M'!$G$37*'DNSP Inputs O & M'!$G$42 -> 4.32 | BV79: =BS79*BT79 -> 856.0021241 | BZ79: ='DNSP Inputs O & M'!$G$30*(1+'DNSP Inputs O & M'!$G$11) -> 208.0560718 | CA79: ='DNSP Inputs O & M'!$G$38*'DNSP Inputs O & M'!$G$42 -> 3.6 | CC79: =BZ79*CA79 -> 749.0018586 | CG79: ='DNSP Inputs O & M'!$G$30*(1+'DNSP Inputs O & M'!$G$11) -> 208.0560718 | CH79: ='DNSP Inputs O & M'!$G$39*'DNSP Inputs O & M'!$G$42 -> 2.88 | CJ79: =CG79*CH79 -> 599.2014869 | CP79: ='DNSP Inputs O & M'!$H$30 -> 198.1486398 | CQ79: ='DNSP Inputs O & M'!$H$37*'DNSP Inputs O & M'!$H$42 -> 4.32 | CS79: =CP79*CQ79 -> 856.0021241 | CW79: ='DNSP Inputs O & M'!$H$30*(1+'DNSP Inputs O & M'!$H$11) -> 208.0560718 | CX79: ='DNSP Inputs O & M'!$H$38*'DNSP Inputs O & M'!$H$42 -> 3.6 | CZ79: =CW79*CX79 -> 749.0018586 | DD79: ='DNSP Inputs O & M'!$H$30*(1+'DNSP Inputs O & M'!$H$11) -> 208.0560718 | DE79: ='DNSP Inputs O & M'!$H$39*'DNSP Inputs O & M'!$H$42 -> 2.88 | DG79: =DD79*DE79 -> 599.2014869
A80: Miscellaneous | B80: ='DNSP Inputs O & M'!$D$32 -> 12.49754903 | C80: ='DNSP Inputs O & M'!$D$37*'DNSP Inputs O & M'!$D$43 -> 2.88 | E80: =B80*C80 -> 35.9929412 | I80: ='DNSP Inputs O & M'!$D$32*(1+'DNSP Inputs O & M'!$D$11) -> 13.12242648 | J80: ='DNSP Inputs O & M'!$D$38*'DNSP Inputs O & M'!$D$43 -> 2.4 | L80: =I80*J80 -> 31.49382355 | P80: ='DNSP Inputs O & M'!$D$32*(1+'DNSP Inputs O & M'!$D$11) -> 13.12242648 | Q80: ='DNSP Inputs O & M'!$D$39*'DNSP Inputs O & M'!$D$43 -> 1.92 | S80: =P80*Q80 -> 25.19505884 | Y80: ='DNSP Inputs O & M'!$E$32 -> 12.49754903 | Z80: ='DNSP Inputs O & M'!$E$37*'DNSP Inputs O & M'!$E$43 -> 2.88 | AB80: =Y80*Z80 -> 35.9929412 | AF80: ='DNSP Inputs O & M'!$E$32*(1+'DNSP Inputs O & M'!$E$11) -> 13.12242648 | AG80: ='DNSP Inputs O & M'!$E$38*'DNSP Inputs O & M'!$E$43 -> 2.4 | AI80: =AF80*AG80 -> 31.49382355 | AM80: ='DNSP Inputs O & M'!$E$32*(1+'DNSP Inputs O & M'!$E$11) -> 13.12242648 | AN80: ='DNSP Inputs O & M'!$E$39*'DNSP Inputs O & M'!$E$43 -> 1.92 | AP80: =AM80*AN80 -> 25.19505884 | AV80: ='DNSP Inputs O & M'!$F$32 -> 12.49754903 | AW80: ='DNSP Inputs O & M'!$F$37*'DNSP Inputs O & M'!$F$43 -> 2.88 | AY80: =AV80*AW80 -> 35.9929412 | BC80: ='DNSP Inputs O & M'!$F$32*(1+'DNSP Inputs O & M'!$F$11) -> 13.12242648 | BD80: ='DNSP Inputs O & M'!$F$38*'DNSP Inputs O & M'!$F$43 -> 2.4 | BF80: =BC80*BD80 -> 31.49382355 | BJ80: ='DNSP Inputs O & M'!$F$32*(1+'DNSP Inputs O & M'!$F$11) -> 13.12242648 | BK80: ='DNSP Inputs O & M'!$F$39*'DNSP Inputs O & M'!$F$43 -> 1.92 | BM80: =BJ80*BK80 -> 25.19505884 | BS80: ='DNSP Inputs O & M'!$G$32 -> 12.49754903 | BT80: ='DNSP Inputs O & M'!$G$37*'DNSP Inputs O & M'!$G$43 -> 2.88 | BV80: =BS80*BT80 -> 35.9929412 | BZ80: ='DNSP Inputs O & M'!$G$32*(1+'DNSP Inputs O & M'!$G$11) -> 13.12242648 | CA80: ='DNSP Inputs O & M'!$G$38*'DNSP Inputs O & M'!$G$43 -> 2.4 | CC80: =BZ80*CA80 -> 31.49382355 | CG80: ='DNSP Inputs O & M'!$G$32*(1+'DNSP Inputs O & M'!$G$11) -> 13.12242648 | CH80: ='DNSP Inputs O & M'!$G$39*'DNSP Inputs O & M'!$G$43 -> 1.92 | CJ80: =CG80*CH80 -> 25.19505884 | CP80: ='DNSP Inputs O & M'!$H$32 -> 12.49754903 | CQ80: ='DNSP Inputs O & M'!$H$37*'DNSP Inputs O & M'!$H$43 -> 2.88 | CS80: =CP80*CQ80 -> 35.9929412 | CW80: ='DNSP Inputs O & M'!$H$32*(1+'DNSP Inputs O & M'!$H$11) -> 13.12242648 | CX80: ='DNSP Inputs O & M'!$H$38*'DNSP Inputs O & M'!$H$43 -> 2.4 | CZ80: =CW80*CX80 -> 31.49382355 | DD80: ='DNSP Inputs O & M'!$H$32*(1+'DNSP Inputs O & M'!$H$11) -> 13.12242648 | DE80: ='DNSP Inputs O & M'!$H$39*'DNSP Inputs O & M'!$H$43 -> 1.92 | DG80: =DD80*DE80 -> 25.19505884
A81: Labour - bulk lamp change
A82: Crew costs | B82: ='DNSP Inputs O & M'!$D$12 -> 123.7674125 | C82: ='DNSP Inputs O & M'!$D$33 -> 2 | D82: ='DNSP Inputs O & M'!$D$17 -> 8 | E82: =B82*C82*D82 -> 1980.278601 | F82: =E82/'DNSP Inputs O & M'!$D$25*(C73+C74)/C73*0.8 -> 594.0835802 | G82: =(F82+F83)/C73 -> 9.034179619 | I82: ='DNSP Inputs O & M'!$D$12 -> 123.7674125 | J82: ='DNSP Inputs O & M'!$D$33 -> 2 | K82: ='DNSP Inputs O & M'!$D$17 -> 8 | L82: =I82*J82*K82 -> 1980.278601 | M82: =L82/'DNSP Inputs O & M'!$D$25*(J73+J74)/J73*0.8 -> 594.0835802 | N82: =(M82+M83)/J$73 -> 10.16960935 | P82: ='DNSP Inputs O & M'!$D$12 -> 123.7674125 | Q82: ='DNSP Inputs O & M'!$D$33 -> 2 | R82: ='DNSP Inputs O & M'!$D$17 -> 8 | S82: =P82*Q82*R82 -> 1980.278601 | T82: =S82/'DNSP Inputs O & M'!$D$25*(Q73+Q74)/Q73*0.8 -> 594.0835802 | U82: =(T82+T83)/Q73 -> 12.20353122 | Y82: ='DNSP Inputs O & M'!$E$12 -> 125.8521179 | Z82: ='DNSP Inputs O & M'!$E$33 -> 2 | AA82: ='DNSP Inputs O & M'!$E$17 -> 8 | AB82: =Y82*Z82*AA82 -> 2013.633887 | AC82: =AB82/'DNSP Inputs O & M'!$E$25*(Z73+Z74)/Z73*0.8 -> 604.090166 | AD82: =(AC82+AC83)/Z73 -> 9.196484393 | AF82: ='DNSP Inputs O & M'!$E$12 -> 125.8521179 | AG82: ='DNSP Inputs O & M'!$E$33 -> 2 | AH82: ='DNSP Inputs O & M'!$E$17 -> 8 | AI82: =AF82*AG82*AH82 -> 2013.633887 | AJ82: =AI82/'DNSP Inputs O & M'!$E$25*(AG73+AG74)/AG73*0.8 -> 604.090166 | AK82: =(AJ82+AJ83)/AG$73 -> 10.34991302 | AM82: ='DNSP Inputs O & M'!$E$12 -> 125.8521179 | AN82: ='DNSP Inputs O & M'!$E$33 -> 2 | AO82: ='DNSP Inputs O & M'!$E$17 -> 8 | AP82: =AM82*AN82*AO82 -> 2013.633887 | AQ82: =AP82/'DNSP Inputs O & M'!$E$25*(AN73+AN74)/AN73*0.8 -> 604.090166 | AR82: =(AQ82+AQ83)/AN73 -> 12.41989562 | AV82: ='DNSP Inputs O & M'!$F$12 -> 127.9719375 | AW82: ='DNSP Inputs O & M'!$F$33 -> 2 | AX82: ='DNSP Inputs O & M'!$F$17 -> 8 | AY82: =AV82*AW82*AX82 -> 2047.551 | AZ82: =AY82/'DNSP Inputs O & M'!$F$25*(AW73+AW74)/AW73*0.8 -> 614.2653001 | BA82: =(AZ82+AZ83)/AW73 -> 9.352501331 | BC82: ='DNSP Inputs O & M'!$F$12 -> 127.9719375 | BD82: ='DNSP Inputs O & M'!$F$33 -> 2 | BE82: ='DNSP Inputs O & M'!$F$17 -> 8 | BF82: =BC82*BD82*BE82 -> 2047.551 | BG82: =BF82/'DNSP Inputs O & M'!$F$25*(BD73+BD74)/BD73*0.8 -> 614.2653001 | BH82: =(BG82+BG83)/BD$73 -> 10.52523427 | BJ82: ='DNSP Inputs O & M'!$F$12 -> 127.9719375 | BK82: ='DNSP Inputs O & M'!$F$33 -> 2 | BL82: ='DNSP Inputs O & M'!$F$17 -> 8 | BM82: =BJ82*BK82*BL82 -> 2047.551 | BN82: =BM82/'DNSP Inputs O & M'!$F$25*(BK73+BK74)/BK73*0.8 -> 614.2653001 | BO82: =(BN82+BN83)/BK73 -> 12.63028112 | BS82: ='DNSP Inputs O & M'!$G$12 -> 130.1274628 | BT82: ='DNSP Inputs O & M'!$G$33 -> 2 | BU82: ='DNSP Inputs O & M'!$G$17 -> 8 | BV82: =BS82*BT82*BU82 -> 2082.039405 | BW82: =BV82/'DNSP Inputs O & M'!$G$25*(BT73+BT74)/BT73*0.8 -> 624.6118215 | BX82: =(BW82+BW83)/BT73 -> 9.510728278 | BZ82: ='DNSP Inputs O & M'!$G$12 -> 130.1274628 | CA82: ='DNSP Inputs O & M'!$G$33 -> 2 | CB82: ='DNSP Inputs O & M'!$G$17 -> 8 | CC82: =BZ82*CA82*CB82 -> 2082.039405 | CD82: =CC82/'DNSP Inputs O & M'!$G$25*(CA73+CA74)/CA73*0.8 -> 624.6118215 | CE82: =(CD82+CD83)/CA$73 -> 10.7031371 | CG82: ='DNSP Inputs O & M'!$G$12 -> 130.1274628 | CH82: ='DNSP Inputs O & M'!$G$33 -> 2 | CI82: ='DNSP Inputs O & M'!$G$17 -> 8 | CJ82: =CG82*CH82*CI82 -> 2082.039405 | CK82: =CJ82/'DNSP Inputs O & M'!$G$25*(CH73+CH74)/CH73*0.8 -> 624.6118215 | CL82: =(CK82+CK83)/CH73 -> 12.84376452 | CP82: ='DNSP Inputs O & M'!$H$12 -> 132.3192952 | CQ82: ='DNSP Inputs O & M'!$H$33 -> 2 | CR82: ='DNSP Inputs O & M'!$H$17 -> 8 | CS82: =CP82*CQ82*CR82 -> 2117.108723 | CT82: =CS82/'DNSP Inputs O & M'!$H$25*(CQ73+CQ74)/CQ73*0.8 -> 635.1326169 | CU82: =(CT82+CT83)/CQ73 -> 9.672299379 | CW82: ='DNSP Inputs O & M'!$H$12 -> 132.3192952 | CX82: ='DNSP Inputs O & M'!$H$33 -> 2 | CY82: ='DNSP Inputs O & M'!$H$17 -> 8 | CZ82: =CW82*CX82*CY82 -> 2117.108723 | DA82: =CZ82/'DNSP Inputs O & M'!$H$25*(CX73+CX74)/CX73*0.8 -> 635.1326169 | DB82: =(DA82+DA83)/CX$73 -> 10.88464008 | DD82: ='DNSP Inputs O & M'!$H$12 -> 132.3192952 | DE82: ='DNSP Inputs O & M'!$H$33 -> 2 | DF82: ='DNSP Inputs O & M'!$H$17 -> 8 | DG82: =DD82*DE82*DF82 -> 2117.108723 | DH82: =DG82/'DNSP Inputs O & M'!$H$25*(DE73+DE74)/DE73*0.8 -> 635.1326169 | DI82: =(DH82+DH83)/DE73 -> 13.06156809
A83: Elevated platform costs | B83: ='DNSP Inputs O & M'!$D$14 -> 77.69564122 | C83: 1 | D83: ='DNSP Inputs O & M'!$D$17 -> 8 | E83: =B83*C83*D83 -> 621.5651298 | F83: =E83/'DNSP Inputs O & M'!$D$25*(C73+C74)/C73*0.8 -> 186.4695389 | I83: ='DNSP Inputs O & M'!$D$15 -> 57.55345553 | J83: 1 | K83: ='DNSP Inputs O & M'!$D$17 -> 8 | L83: =I83*J83*K83 -> 460.4276442 | M83: =L83/'DNSP Inputs O & M'!$D$25*(J73+J74)/J73*0.8 -> 138.1282933 | P83: ='DNSP Inputs O & M'!$D$15 -> 57.55345553 | Q83: 1 | R83: ='DNSP Inputs O & M'!$D$17 -> 8 | S83: =P83*Q83*R83 -> 460.4276442 | T83: =S83/'DNSP Inputs O & M'!$D$25*(Q73+Q74)/Q73*0.8 -> 138.1282933 | Y83: ='DNSP Inputs O & M'!$E$14 -> 79.36920231 | Z83: 1 | AA83: ='DNSP Inputs O & M'!$E$17 -> 8 | AB83: =Y83*Z83*AA83 -> 634.9536185 | AC83: =AB83/'DNSP Inputs O & M'!$E$25*(Z73+Z74)/Z73*0.8 -> 190.4860855 | AF83: ='DNSP Inputs O & M'!$E$15 -> 58.79315472 | AG83: 1 | AH83: ='DNSP Inputs O & M'!$E$17 -> 8 | AI83: =AF83*AG83*AH83 -> 470.3452378 | AJ83: =AI83/'DNSP Inputs O & M'!$E$25*(AG73+AG74)/AG73*0.8 -> 141.1035713 | AM83: ='DNSP Inputs O & M'!$E$15 -> 58.79315472 | AN83: 1 | AO83: ='DNSP Inputs O & M'!$E$17 -> 8 | AP83: =AM83*AN83*AO83 -> 470.3452378 | AQ83: =AP83/'DNSP Inputs O & M'!$E$25*(AN73+AN74)/AN73*0.8 -> 141.1035713 | AV83: ='DNSP Inputs O & M'!$F$14 -> 80.74617287 | AW83: 1 | AX83: ='DNSP Inputs O & M'!$F$17 -> 8 | AY83: =AV83*AW83*AX83 -> 645.969383 | AZ83: =AY83/'DNSP Inputs O & M'!$F$25*(AW73+AW74)/AW73*0.8 -> 193.7908149 | BC83: ='DNSP Inputs O & M'!$F$15 -> 59.81315292 | BD83: 1 | BE83: ='DNSP Inputs O & M'!$F$17 -> 8 | BF83: =BC83*BD83*BE83 -> 478.5052234 | BG83: =BF83/'DNSP Inputs O & M'!$F$25*(BD73+BD74)/BD73*0.8 -> 143.551567 | BJ83: ='DNSP Inputs O & M'!$F$15 -> 59.81315292 | BK83: 1 | BL83: ='DNSP Inputs O & M'!$F$17 -> 8 | BM83: =BJ83*BK83*BL83 -> 478.5052234 | BN83: =BM83/'DNSP Inputs O & M'!$F$25*(BK73+BK74)/BK73*0.8 -> 143.551567 | BS83: ='DNSP Inputs O & M'!$G$14 -> 82.13129241 | BT83: 1 | BU83: ='DNSP Inputs O & M'!$G$17 -> 8 | BV83: =BS83*BT83*BU83 -> 657.0503393 | BW83: =BV83/'DNSP Inputs O & M'!$G$25*(BT73+BT74)/BT73*0.8 -> 197.1151018 | BZ83: ='DNSP Inputs O & M'!$G$15 -> 60.83918751 | CA83: 1 | CB83: ='DNSP Inputs O & M'!$G$17 -> 8 | CC83: =BZ83*CA83*CB83 -> 486.7135001 | CD83: =CC83/'DNSP Inputs O & M'!$G$25*(CA73+CA74)/CA73*0.8 -> 146.01405 | CG83: ='DNSP Inputs O & M'!$G$15 -> 60.83918751 | CH83: 1 | CI83: ='DNSP Inputs O & M'!$G$17 -> 8 | CJ83: =CG83*CH83*CI83 -> 486.7135001 | CK83: =CJ83/'DNSP Inputs O & M'!$G$25*(CH73+CH74)/CH73*0.8 -> 146.01405 | CP83: ='DNSP Inputs O & M'!$H$14 -> 83.56418727 | CQ83: 1 | CR83: ='DNSP Inputs O & M'!$H$17 -> 8 | CS83: =CP83*CQ83*CR83 -> 668.5134982 | CT83: =CS83/'DNSP Inputs O & M'!$H$25*(CQ73+CQ74)/CQ73*0.8 -> 200.5540495 | CW83: ='DNSP Inputs O & M'!$H$15 -> 61.90061193 | CX83: 1 | CY83: ='DNSP Inputs O & M'!$H$17 -> 8 | CZ83: =CW83*CX83*CY83 -> 495.2048955 | DA83: =CZ83/'DNSP Inputs O & M'!$H$25*(CX73+CX74)/CX73*0.8 -> 148.5614686 | DD83: ='DNSP Inputs O & M'!$H$15 -> 61.90061193 | DE83: 1 | DF83: ='DNSP Inputs O & M'!$H$17 -> 8 | DG83: =DD83*DE83*DF83 -> 495.2048955 | DH83: =DG83/'DNSP Inputs O & M'!$H$25*(DE73+DE74)/DE73*0.8 -> 148.5614686
A84: Labour - repair of faults
A85: Crew costs | B85: ='DNSP Inputs O & M'!$D$12 -> 123.7674125 | C85: ='DNSP Inputs O & M'!$D$33 -> 2 | D85: ='DNSP Inputs O & M'!$D$17 -> 8 | E85: =B85*C85*D85 -> 1980.278601 | F85: =(E85+E86)/'DNSP Inputs O & M'!$D$37 -> 90.34179619 | G85: =F85*D62 -> 3.511009164 | I85: ='DNSP Inputs O & M'!$D$12 -> 123.7674125 | J85: ='DNSP Inputs O & M'!$D$33 -> 2 | K85: ='DNSP Inputs O & M'!$D$17 -> 8 | L85: =I85*J85*K85 -> 1980.278601 | M85: =(L85+L86)/'DNSP Inputs O & M'!$D$38 -> 101.6960935 | N85: =M85*$D$62 -> 3.952278252 | P85: ='DNSP Inputs O & M'!$D$12 -> 123.7674125 | Q85: ='DNSP Inputs O & M'!$D$33 -> 2 | R85: ='DNSP Inputs O & M'!$D$17 -> 8 | S85: =P85*Q85*R85 -> 1980.278601 | T85: =(S85+S86)/'DNSP Inputs O & M'!$D$39 -> 127.1201169 | U85: =T85*D62 -> 4.940347815 | Y85: ='DNSP Inputs O & M'!$E$12 -> 125.8521179 | Z85: ='DNSP Inputs O & M'!$E$33 -> 2 | AA85: ='DNSP Inputs O & M'!$E$17 -> 8 | AB85: =Y85*Z85*AA85 -> 2013.633887 | AC85: =(AB85+AB86)/'DNSP Inputs O & M'!$E$37 -> 91.96484393 | AD85: =AC85*AA62 -> 3.574086673 | AF85: ='DNSP Inputs O & M'!$E$12 -> 125.8521179 | AG85: ='DNSP Inputs O & M'!$E$33 -> 2 | AH85: ='DNSP Inputs O & M'!$E$17 -> 8 | AI85: =AF85*AG85*AH85 -> 2013.633887 | AJ85: =(AI85+AI86)/'DNSP Inputs O & M'!$E$38 -> 103.4991302 | AK85: =AJ85*$AA$62 -> 4.022350781 | AM85: ='DNSP Inputs O & M'!$E$12 -> 125.8521179 | AN85: ='DNSP Inputs O & M'!$E$33 -> 2 | AO85: ='DNSP Inputs O & M'!$E$17 -> 8 | AP85: =AM85*AN85*AO85 -> 2013.633887 | AQ85: =(AP85+AP86)/'DNSP Inputs O & M'!$E$39 -> 129.3739127 | AR85: =AQ85*AA62 -> 5.027938477 | AV85: ='DNSP Inputs O & M'!$F$12 -> 127.9719375 | AW85: ='DNSP Inputs O & M'!$F$33 -> 2 | AX85: ='DNSP Inputs O & M'!$F$17 -> 8 | AY85: =AV85*AW85*AX85 -> 2047.551 | AZ85: =(AY85+AY86)/'DNSP Inputs O & M'!$F$37 -> 93.52501331 | BA85: =AZ85*AX62 -> 3.634720502 | BC85: ='DNSP Inputs O & M'!$F$12 -> 127.9719375 | BD85: ='DNSP Inputs O & M'!$F$33 -> 2 | BE85: ='DNSP Inputs O & M'!$F$17 -> 8 | BF85: =BC85*BD85*BE85 -> 2047.551 | BG85: =(BF85+BF86)/'DNSP Inputs O & M'!$F$38 -> 105.2523427 | BH85: =BG85*$AX$62 -> 4.090486963 | BJ85: ='DNSP Inputs O & M'!$F$12 -> 127.9719375 | BK85: ='DNSP Inputs O & M'!$F$33 -> 2 | BL85: ='DNSP Inputs O & M'!$F$17 -> 8 | BM85: =BJ85*BK85*BL85 -> 2047.551 | BN85: =(BM85+BM86)/'DNSP Inputs O & M'!$F$39 -> 131.5654283 | BO85: =BN85*AX62 -> 5.113108704 | BS85: ='DNSP Inputs O & M'!$G$12 -> 130.1274628 | BT85: ='DNSP Inputs O & M'!$G$33 -> 2 | BU85: ='DNSP Inputs O & M'!$G$17 -> 8 | BV85: =BS85*BT85*BU85 -> 2082.039405 | BW85: =(BV85+BV86)/'DNSP Inputs O & M'!$G$37 -> 95.10728278 | BX85: =BW85*BU62 -> 3.69621322 | BZ85: ='DNSP Inputs O & M'!$G$12 -> 130.1274628 | CA85: ='DNSP Inputs O & M'!$G$33 -> 2 | CB85: ='DNSP Inputs O & M'!$G$17 -> 8 | CC85: =BZ85*CA85*CB85 -> 2082.039405 | CD85: =(CC85+CC86)/'DNSP Inputs O & M'!$G$38 -> 107.031371 | CE85: =CD85*$BU$62 -> 4.159626445 | CG85: ='DNSP Inputs O & M'!$G$12 -> 130.1274628 | CH85: ='DNSP Inputs O & M'!$G$33 -> 2 | CI85: ='DNSP Inputs O & M'!$G$17 -> 8 | CJ85: =CG85*CH85*CI85 -> 2082.039405 | CK85: =(CJ85+CJ86)/'DNSP Inputs O & M'!$G$39 -> 133.7892138 | CL85: =CK85*BU62 -> 5.199533056 | CP85: ='DNSP Inputs O & M'!$H$12 -> 132.3192952 | CQ85: ='DNSP Inputs O & M'!$H$33 -> 2 | CR85: ='DNSP Inputs O & M'!$H$17 -> 8 | CS85: =CP85*CQ85*CR85 -> 2117.108723 | CT85: =(CS85+CS86)/'DNSP Inputs O & M'!$H$37 -> 96.72299379 | CU85: =CT85*CR62 -> 3.759005597 | CW85: ='DNSP Inputs O & M'!$H$12 -> 132.3192952 | CX85: ='DNSP Inputs O & M'!$H$33 -> 2 | CY85: ='DNSP Inputs O & M'!$H$17 -> 8 | CZ85: =CW85*CX85*CY85 -> 2117.108723 | DA85: =(CZ85+CZ86)/'DNSP Inputs O & M'!$H$38 -> 108.8464008 | DB85: =DA85*$CR$62 -> 4.230165069 | DD85: ='DNSP Inputs O & M'!$H$12 -> 132.3192952 | DE85: ='DNSP Inputs O & M'!$H$33 -> 2 | DF85: ='DNSP Inputs O & M'!$H$17 -> 8 | DG85: =DD85*DE85*DF85 -> 2117.108723 | DH85: =(DG85+DG86)/'DNSP Inputs O & M'!$H$39 -> 136.058001 | DI85: =DH85*CR62 -> 5.287706336
A86: Elevated platform costs | B86: ='DNSP Inputs O & M'!$D$14 -> 77.69564122 | C86: 1 | D86: ='DNSP Inputs O & M'!$D$17 -> 8 | E86: =B86*C86*D86 -> 621.5651298 | I86: ='DNSP Inputs O & M'!$D$15 -> 57.55345553 | J86: 1 | K86: ='DNSP Inputs O & M'!$D$17 -> 8 | L86: =I86*J86*K86 -> 460.4276442 | P86: ='DNSP Inputs O & M'!$D$15 -> 57.55345553 | Q86: 1 | R86: ='DNSP Inputs O & M'!$D$17 -> 8 | S86: =P86*Q86*R86 -> 460.4276442 | Y86: ='DNSP Inputs O & M'!$E$14 -> 79.36920231 | Z86: 1 | AA86: ='DNSP Inputs O & M'!$E$17 -> 8 | AB86: =Y86*Z86*AA86 -> 634.9536185 | AF86: ='DNSP Inputs O & M'!$E$15 -> 58.79315472 | AG86: 1 | AH86: ='DNSP Inputs O & M'!$E$17 -> 8 | AI86: =AF86*AG86*AH86 -> 470.3452378 | AM86: ='DNSP Inputs O & M'!$E$15 -> 58.79315472 | AN86: 1 | AO86: ='DNSP Inputs O & M'!$E$17 -> 8 | AP86: =AM86*AN86*AO86 -> 470.3452378 | AV86: ='DNSP Inputs O & M'!$F$14 -> 80.74617287 | AW86: 1 | AX86: ='DNSP Inputs O & M'!$F$17 -> 8 | AY86: =AV86*AW86*AX86 -> 645.969383 | BC86: ='DNSP Inputs O & M'!$F$15 -> 59.81315292 | BD86: 1 | BE86: ='DNSP Inputs O & M'!$F$17 -> 8 | BF86: =BC86*BD86*BE86 -> 478.5052234 | BJ86: ='DNSP Inputs O & M'!$F$15 -> 59.81315292 | BK86: 1 | BL86: ='DNSP Inputs O & M'!$F$17 -> 8 | BM86: =BJ86*BK86*BL86 -> 478.5052234 | BS86: ='DNSP Inputs O & M'!$G$14 -> 82.13129241 | BT86: 1 | BU86: ='DNSP Inputs O & M'!$G$17 -> 8 | BV86: =BS86*BT86*BU86 -> 657.0503393 | BZ86: ='DNSP Inputs O & M'!$G$15 -> 60.83918751 | CA86: 1 | CB86: ='DNSP Inputs O & M'!$G$17 -> 8 | CC86: =BZ86*CA86*CB86 -> 486.7135001 | CG86: ='DNSP Inputs O & M'!$G$15 -> 60.83918751 | CH86: 1 | CI86: ='DNSP Inputs O & M'!$G$17 -> 8 | CJ86: =CG86*CH86*CI86 -> 486.7135001 | CP86: ='DNSP Inputs O & M'!$H$14 -> 83.56418727 | CQ86: 1 | CR86: ='DNSP Inputs O & M'!$H$17 -> 8 | CS86: =CP86*CQ86*CR86 -> 668.5134982 | CW86: ='DNSP Inputs O & M'!$H$15 -> 61.90061193 | CX86: 1 | CY86: ='DNSP Inputs O & M'!$H$17 -> 8 | CZ86: =CW86*CX86*CY86 -> 495.2048955 | DD86: ='DNSP Inputs O & M'!$H$15 -> 61.90061193 | DE86: 1 | DF86: ='DNSP Inputs O & M'!$H$17 -> 8 | DG86: =DD86*DE86*DF86 -> 495.2048955
A87: Other Maintenance and Repair costs | G87: ='DNSP Inputs O & M'!$D$50 -> 0.8685420772 | N87: ='DNSP Inputs O & M'!$D$50 -> 0.8685420772 | U87: ='DNSP Inputs O & M'!$D$50 -> 0.8685420772 | AD87: ='DNSP Inputs O & M'!$E$50 -> 0.8525198152 | AK87: ='DNSP Inputs O & M'!$E$50 -> 0.8525198152 | AR87: ='DNSP Inputs O & M'!$E$50 -> 0.8525198152 | BA87: ='DNSP Inputs O & M'!$F$50 -> 0.8644006364 | BH87: ='DNSP Inputs O & M'!$F$50 -> 0.8644006364 | BO87: ='DNSP Inputs O & M'!$F$50 -> 0.8644006364 | BX87: ='DNSP Inputs O & M'!$G$50 -> 0.8707537394 | CE87: ='DNSP Inputs O & M'!$G$50 -> 0.8707537394 | CL87: ='DNSP Inputs O & M'!$G$50 -> 0.8707537394 | CU87: ='DNSP Inputs O & M'!$H$50 -> 0.8720662068 | DB87: ='DNSP Inputs O & M'!$H$50 -> 0.8720662068 | DI87: ='DNSP Inputs O & M'!$H$50 -> 0.8720662068
A89: Overheads | B89: ='DNSP Inputs O & M'!$D$18 -> 0.24358336 | G89: =B89*SUM(G73:G87) -> 4.743330004 | I89: ='DNSP Inputs O & M'!$D$18 -> 0.24358336 | N89: =I89*SUM(N73:N87) -> 5.20118602 | P89: ='DNSP Inputs O & M'!$D$18 -> 0.24358336 | U89: =P89*SUM(U73:U87) -> 5.937292847 | Y89: ='DNSP Inputs O & M'!$E$18 -> 0.24358336 | AD89: =Y89*SUM(AD73:AD87) -> 4.794326621 | AF89: ='DNSP Inputs O & M'!$E$18 -> 0.24358336 | AK89: =AF89*SUM(AK73:AK87) -> 5.258270738 | AM89: ='DNSP Inputs O & M'!$E$18 -> 0.24358336 | AR89: =AM89*SUM(AR73:AR87) -> 6.007428485 | AV89: ='DNSP Inputs O & M'!$F$18 -> 0.24358336 | BA89: =AV89*SUM(BA73:BA87) -> 4.849993114 | BC89: ='DNSP Inputs O & M'!$F$18 -> 0.24358336 | BH89: =BC89*SUM(BH73:BH87) -> 5.320466887 | BJ89: ='DNSP Inputs O & M'!$F$18 -> 0.24358336 | BO89: =BJ89*SUM(BO73:BO87) -> 6.082314912 | BS89: ='DNSP Inputs O & M'!$G$18 -> 0.24358336 | BX89: =BS89*SUM(BX73:BX87) -> 4.905060678 | BZ89: ='DNSP Inputs O & M'!$G$18 -> 0.24358336 | CE89: =BZ89*SUM(CE73:CE87) -> 5.382189795 | CG89: ='DNSP Inputs O & M'!$G$18 -> 0.24358336 | CL89: =CG89*SUM(CL73:CL87) -> 6.156914961 | CP89: ='DNSP Inputs O & M'!$H$18 -> 0.24358336 | CU89: =CP89*SUM(CU73:CU87) -> 4.960031583 | CW89: ='DNSP Inputs O & M'!$H$18 -> 0.24358336 | DB89: =CW89*SUM(DB73:DB87) -> 5.44390263 | DD89: ='DNSP Inputs O & M'!$H$18 -> 0.24358336 | DI89: =DD89*SUM(DI73:DI87) -> 6.231765525
G91: =SUM(G73,G77,G82,G85,G87,G89) -> 24.21645823 | N91: =SUM(N73,N77,N82,N85,N87,N89) -> 26.55398294 | U91: =SUM(U73,U77,U82,U85,U87,U89) -> 30.3120812 | AD91: =SUM(AD73,AD77,AD82,AD85,AD87,AD89) -> 24.47681487 | AK91: =SUM(AK73,AK77,AK82,AK85,AK87,AK89) -> 26.84542159 | AR91: =SUM(AR73,AR77,AR82,AR85,AR87,AR89) -> 30.67014964 | BA91: =SUM(BA73,BA77,BA82,BA85,BA87,BA89) -> 24.76101295 | BH91: =SUM(BH73,BH77,BH82,BH85,BH87,BH89) -> 27.16295599 | BO91: =SUM(BO73,BO77,BO82,BO85,BO87,BO89) -> 31.05247261 | BX91: =SUM(BX73,BX77,BX82,BX85,BX87,BX89) -> 25.04215329 | CE91: =SUM(CE73,CE77,CE82,CE85,CE87,CE89) -> 27.47807432 | CL91: =SUM(CL73,CL77,CL82,CL85,CL87,CL89) -> 31.43333352 | CU91: =SUM(CU73,CU77,CU82,CU85,CU87,CU89) -> 25.32280014 | DB91: =SUM(DB73,DB77,DB82,DB85,DB87,DB89) -> 27.79314122 | DI91: =SUM(DI73,DI77,DI82,DI85,DI87,DI89) -> 31.8154734
A93: Dedicated poles - inspection
A101: Sodium High Pressure 150 Watt Standard Light Type - Cost build-up
A103: Addiitonal assumptions
A104: Overheads are applied to material and labour components
A105: All costs and charges are exclusive of GST
B107: Urban | I107: Rural | P107: Remote | Y107: Urban | AF107: Rural | AM107: Remote | AV107: Urban | BC107: Rural | BJ107: Remote | BS107: Urban | BZ107: Rural | CG107: Remote | CP107: Urban | CW107: Rural | DD107: Remote
B109: Unit rate | C109: Number | D109: Hours | E109: Cost | F109: Annualised | G109: Annualised | I109: Unit rate | J109: Number | K109: Hours | L109: Cost | M109: Annualised | N109: Annualised | P109: Unit rate | Q109: Number | R109: Hours | S109: Cost | T109: Annualised | U109: Annualised | Y109: Unit rate | Z109: Number | AA109: Hours | AB109: Cost | AC109: Annualised | AD109: Annualised | AF109: Unit rate | AG109: Number | AH109: Hours | AI109: Cost | AJ109: Annualised | AK109: Annualised | AM109: Unit rate | AN109: Number | AO109: Hours | AP109: Cost | AQ109: Annualised | AR109: Annualised | AV109: Unit rate | AW109: Number | AX109: Hours | AY109: Cost | AZ109: Annualised | BA109: Annualised | BC109: Unit rate | BD109: Number | BE109: Hours | BF109: Cost | BG109: Annualised | BH109: Annualised | BJ109: Unit rate | BK109: Number | BL109: Hours | BM109: Cost | BN109: Annualised | BO109: Annualised | BS109: Unit rate | BT109: Number | BU109: Hours | BV109: Cost | BW109: Annualised | BX109: Annualised | BZ109: Unit rate | CA109: Number | CB109: Hours | CC109: Cost | CD109: Annualised | CE109: Annualised | CG109: Unit rate | CH109: Number | CI109: Hours | CJ109: Cost | CK109: Annualised | CL109: Annualised | CP109: Unit rate | CQ109: Number | CR109: Hours | CS109: Cost | CT109: Annualised | CU109: Annualised | CW109: Unit rate | CX109: Number | CY109: Hours | CZ109: Cost | DA109: Annualised | DB109: Annualised | DD109: Unit rate | DE109: Number | DF109: Hours | DG109: Cost | DH109: Annualised | DI109: Annualised
F110: cost | G110: unit cost | M110: cost | N110: unit cost | T110: cost | U110: unit cost | AC110: cost | AD110: unit cost | AJ110: cost | AK110: unit cost | AQ110: cost | AR110: unit cost | AZ110: cost | BA110: unit cost | BG110: cost | BH110: unit cost | BN110: cost | BO110: unit cost | BW110: cost | BX110: unit cost | CD110: cost | CE110: unit cost | CK110: cost | CL110: unit cost | CT110: cost | CU110: unit cost | DA110: cost | DB110: unit cost | DH110: cost | DI110: unit cost
A111: S-HP 150
A112: Patrols and repairs
A113: Materials
A114: Lamp | B114: ='DNSP Inputs O & M'!$D$65 -> 41.30439954 | C114: ='DNSP Inputs O & M'!$D$73 -> 19.2 | E114: =B114*C114 -> 793.0444711 | F114: =(E114+E115+E116)/'DNSP Inputs O & M'!$D$73 -> 55.0204596 | G114: =F114/'DNSP Inputs O & M'!$D$63 -> 11.00409192 | I114: ='DNSP Inputs O & M'!$D$65*(1+'DNSP Inputs O & M'!$D$11) -> 43.36961951 | J114: ='DNSP Inputs O & M'!$D$74 -> 15.36 | L114: =I114*J114 -> 666.1573557 | M114: =(L114+L115+L116)/'DNSP Inputs O & M'!$D$74 -> 57.77148258 | N114: =M114/'DNSP Inputs O & M'!$D$63 -> 11.55429652 | P114: ='DNSP Inputs O & M'!$D$65*(1+'DNSP Inputs O & M'!$D$11) -> 43.36961951 | Q114: ='DNSP Inputs O & M'!$D$75 -> 11.52 | S114: =P114*Q114 -> 499.6180168 | T114: =(S114+S115+S116)/'DNSP Inputs O & M'!$D$75 -> 57.77148258 | U114: =T114/'DNSP Inputs O & M'!$D$63 -> 11.55429652 | Y114: ='DNSP Inputs O & M'!$E$65 -> 41.30439954 | Z114: ='DNSP Inputs O & M'!$E$73 -> 19.2 | AB114: =Y114*Z114 -> 793.0444711 | AC114: =(AB114+AB115+AB116)/'DNSP Inputs O & M'!$E$73 -> 55.0204596 | AD114: =AC114/'DNSP Inputs O & M'!$E$63 -> 11.00409192 | AF114: ='DNSP Inputs O & M'!$E$65*(1+'DNSP Inputs O & M'!$E$11) -> 43.36961951 | AG114: ='DNSP Inputs O & M'!$E$74 -> 15.36 | AI114: =AF114*AG114 -> 666.1573557 | AJ114: =(AI114+AI115+AI116)/'DNSP Inputs O & M'!$E$74 -> 57.77148258 | AK114: =AJ114/'DNSP Inputs O & M'!$E$63 -> 11.55429652 | AM114: ='DNSP Inputs O & M'!$E$65*(1+'DNSP Inputs O & M'!$E$11) -> 43.36961951 | AN114: ='DNSP Inputs O & M'!$E$75 -> 11.52 | AP114: =AM114*AN114 -> 499.6180168 | AQ114: =(AP114+AP115+AP116)/'DNSP Inputs O & M'!$E$75 -> 57.77148258 | AR114: =AQ114/'DNSP Inputs O & M'!$E$63 -> 11.55429652 | AV114: ='DNSP Inputs O & M'!$F$65 -> 41.30439954 | AW114: ='DNSP Inputs O & M'!$F$73 -> 19.2 | AY114: =AV114*AW114 -> 793.0444711 | AZ114: =(AY114+AY115+AY116)/'DNSP Inputs O & M'!$F$73 -> 55.0204596 | BA114: =AZ114/'DNSP Inputs O & M'!$F$63 -> 11.00409192 | BC114: ='DNSP Inputs O & M'!$F$65*(1+'DNSP Inputs O & M'!$F$11) -> 43.36961951 | BD114: ='DNSP Inputs O & M'!$F$74 -> 15.36 | BF114: =BC114*BD114 -> 666.1573557 | BG114: =(BF114+BF115+BF116)/'DNSP Inputs O & M'!$F$74 -> 57.77148258 | BH114: =BG114/'DNSP Inputs O & M'!$F$63 -> 11.55429652 | BJ114: ='DNSP Inputs O & M'!$F$65*(1+'DNSP Inputs O & M'!$F$11) -> 43.36961951 | BK114: ='DNSP Inputs O & M'!$F$75 -> 11.52 | BM114: =BJ114*BK114 -> 499.6180168 | BN114: =(BM114+BM115+BM116)/'DNSP Inputs O & M'!$F$75 -> 57.77148258 | BO114: =BN114/'DNSP Inputs O & M'!$F$63 -> 11.55429652 | BS114: ='DNSP Inputs O & M'!$G$65 -> 41.30439954 | BT114: ='DNSP Inputs O & M'!$G$73 -> 19.2 | BV114: =BS114*BT114 -> 793.0444711 | BW114: =(BV114+BV115+BV116)/'DNSP Inputs O & M'!$G$73 -> 55.0204596 | BX114: =BW114/'DNSP Inputs O & M'!$G$63 -> 11.00409192 | BZ114: ='DNSP Inputs O & M'!$G$65*(1+'DNSP Inputs O & M'!$G$11) -> 43.36961951 | CA114: ='DNSP Inputs O & M'!$G$74 -> 15.36 | CC114: =BZ114*CA114 -> 666.1573557 | CD114: =(CC114+CC115+CC116)/'DNSP Inputs O & M'!$G$74 -> 57.77148258 | CE114: =CD114/'DNSP Inputs O & M'!$G$63 -> 11.55429652 | CG114: ='DNSP Inputs O & M'!$G$65*(1+'DNSP Inputs O & M'!$G$11) -> 43.36961951 | CH114: ='DNSP Inputs O & M'!$G$75 -> 11.52 | CJ114: =CG114*CH114 -> 499.6180168 | CK114: =(CJ114+CJ115+CJ116)/'DNSP Inputs O & M'!$G$75 -> 57.77148258 | CL114: =CK114/'DNSP Inputs O & M'!$G$63 -> 11.55429652 | CP114: ='DNSP Inputs O & M'!$H$65 -> 41.30439954 | CQ114: ='DNSP Inputs O & M'!$H$73 -> 19.2 | CS114: =CP114*CQ114 -> 793.0444711 | CT114: =(CS114+CS115+CS116)/'DNSP Inputs O & M'!$H$73 -> 55.0204596 | CU114: =CT114/'DNSP Inputs O & M'!$H$63 -> 11.00409192 | CW114: ='DNSP Inputs O & M'!$H$65*(1+'DNSP Inputs O & M'!$H$11) -> 43.36961951 | CX114: ='DNSP Inputs O & M'!$H$74 -> 15.36 | CZ114: =CW114*CX114 -> 666.1573557 | DA114: =(CZ114+CZ115+CZ116)/'DNSP Inputs O & M'!$H$74 -> 57.77148258 | DB114: =DA114/'DNSP Inputs O & M'!$H$63 -> 11.55429652 | DD114: ='DNSP Inputs O & M'!$H$65*(1+'DNSP Inputs O & M'!$H$11) -> 43.36961951 | DE114: ='DNSP Inputs O & M'!$H$75 -> 11.52 | DG114: =DD114*DE114 -> 499.6180168 | DH114: =(DG114+DG115+DG116)/'DNSP Inputs O & M'!$H$75 -> 57.77148258 | DI114: =DH114/'DNSP Inputs O & M'!$H$63 -> 11.55429652
